Workbook

Sheet Форма заказа
N2: Цвета
B3: Заказ
B4: Дата заявки | G4: Склад отгрузки
B5: № клиента
B6: Компания | G6: Информация о доставке | N6: C01
B7: Контакное лицо | N7: C02
B8: Телефон | G8: Дата отгрузки | N8: C03
B9: E-mail | N9: C04
B10: Скидка | C10: 0 | G10: Дополнительно
E14: Упаковка | Y14: Итого метраж, м2 | Z14: 100 | AB14: =SUM(AE18:AE47) -> 0
A15: № п/п | B15: Артикул | C15: Наименование продукта | D15: Цвет | E15: Объем тары | F15: ед. | G15: вид упаковки | H15: Цена за единицу с НДС | I15: Кол-во единиц товара | J15: Сумма заказа с НДС | K15: Сумма заказа с НДС со скидкой | L15: Итого вес брутто (кг) | M15: Итого паллет | T15: Артикул | U15: Наименование | V15: =E15 -> Объем тары | W15: =F15 -> ед. | X15: =G15 -> вид упаковки | Y15: Мин. Расход | Z15: Ед. | AA15: Цена за м2 с НДС | AB15: Цена за м2 с НДС со скидкой | AC15: Кол-во упаковок | AD15: Кол-во упаковок округление | AE15: Итого, руб с НДС со скидкой | AG15: Мин. Расход
J16: ИТОГО | K16: =SUM(K18:K117)-SUM(K18:K117)*C10 -> 0 | L16: =SUM(L18:L117) -> 0 | M16: =SUM(M18:M117) -> 0 | Z16: Итого за 1 м2 | AA16: =SUM(AA18:AA47) -> 0 | AB16: =SUM(AB18:AB47) -> 0 | AG16: Макс. Расход
T18: =B18 -> 0 | U18: =C18 -> 0 | V18: =E18 -> 0 | W18: =F18 -> 0 | X18: =G18 -> 0 | Y18: =IF($Y$15=$AG$15,IFERROR(VLOOKUP(T18,#REF!,3,0)," "),IFERROR(VLOOKUP(T18,#REF!,4,0)," ")) ->  | Z18: =IFERROR(VLOOKUP(T18,[1]Расход!A$3:E$884,5,0)," ") ->  | AA18: =IFERROR(H18/E18*Y18," ") ->  | AB18: =IFERROR(AA18*(1-$C$10)," ") ->  | AC18: =IFERROR(Y18*$Z$14/V18," ") ->  | AD18: =AC18 ->  | AE18: =IFERROR(AD18*K18," ") -> 
T19: 0 | U19: 0 | V19: 0 | W19: 0 | X19: 0 | Y19: =IF($Y$15=$AG$15,IFERROR(VLOOKUP(T19,#REF!,3,0)," "),IFERROR(VLOOKUP(T19,#REF!,4,0)," ")) ->  | Z19: =IFERROR(VLOOKUP(T19,[1]Расход!A$3:E$884,5,0)," ") ->  | AB19: =IFERROR(AA19*(1-$C$10)," ") ->  | AC19: =IFERROR(Y19*$Z$14/V19," ") ->  | AD19: =AC19 ->  | AE19: =IFERROR(AD19*K19," ") -> 
T20: 0 | U20: 0 | V20: 0 | W20: 0 | X20: 0 | Y20: =IF($Y$15=$AG$15,IFERROR(VLOOKUP(T20,#REF!,3,0)," "),IFERROR(VLOOKUP(T20,#REF!,4,0)," ")) ->  | Z20: =IFERROR(VLOOKUP(T20,[1]Расход!A$3:E$884,5,0)," ") -> 
T21: 0 | U21: 0 | V21: 0 | W21: 0 | X21: 0 | Y21: =IF($Y$15=$AG$15,IFERROR(VLOOKUP(T21,#REF!,3,0)," "),IFERROR(VLOOKUP(T21,#REF!,4,0)," ")) ->  | Z21: =IFERROR(VLOOKUP(T21,[1]Расход!A$3:E$884,5,0)," ") -> 
T22: 0 | U22: 0 | V22: 0 | W22: 0 | X22: 0 | Y22: =IF($Y$15=$AG$15,IFERROR(VLOOKUP(T22,#REF!,3,0)," "),IFERROR(VLOOKUP(T22,#REF!,4,0)," ")) ->  | Z22: =IFERROR(VLOOKUP(T22,[1]Расход!A$3:E$884,5,0)," ") -> 
T23: 0 | U23: 0 | V23: 0 | W23: 0 | X23: 0 | Y23: =IF($Y$15=$AG$15,IFERROR(VLOOKUP(T23,#REF!,3,0)," "),IFERROR(VLOOKUP(T23,#REF!,4,0)," ")) ->  | Z23: =IFERROR(VLOOKUP(T23,[1]Расход!A$3:E$884,5,0)," ") -> 
T24: 0 | U24: 0 | V24: 0 | W24: 0 | X24: 0 | Y24: =IF($Y$15=$AG$15,IFERROR(VLOOKUP(T24,#REF!,3,0)," "),IFERROR(VLOOKUP(T24,#REF!,4,0)," ")) ->  | Z24: =IFERROR(VLOOKUP(T24,[1]Расход!A$3:E$884,5,0)," ") -> 
T25: 0 | U25: 0 | V25: 0 | W25: 0 | X25: 0 | Y25: =IF($Y$15=$AG$15,IFERROR(VLOOKUP(T25,#REF!,3,0)," "),IFERROR(VLOOKUP(T25,#REF!,4,0)," ")) ->  | Z25: =IFERROR(VLOOKUP(T25,[1]Расход!A$3:E$884,5,0)," ") -> 
T26: 0 | U26: 0 | V26: 0 | W26: 0 | X26: 0 | Y26: =IF($Y$15=$AG$15,IFERROR(VLOOKUP(T26,#REF!,3,0)," "),IFERROR(VLOOKUP(T26,#REF!,4,0)," ")) ->  | Z26: =IFERROR(VLOOKUP(T26,[1]Расход!A$3:E$884,5,0)," ") -> 
T27: 0 | U27: 0 | V27: 0 | W27: 0 | X27: 0 | Y27: =IF($Y$15=$AG$15,IFERROR(VLOOKUP(T27,#REF!,3,0)," "),IFERROR(VLOOKUP(T27,#REF!,4,0)," ")) ->  | Z27: =IFERROR(VLOOKUP(T27,[1]Расход!A$3:E$884,5,0)," ") -> 
T28: 0 | U28: 0 | V28: 0 | W28: 0 | X28: 0 | Y28: =IF($Y$15=$AG$15,IFERROR(VLOOKUP(T28,#REF!,3,0)," "),IFERROR(VLOOKUP(T28,#REF!,4,0)," ")) ->  | Z28: =IFERROR(VLOOKUP(T28,[1]Расход!A$3:E$884,5,0)," ") -> 
T29: 0 | U29: 0 | V29: 0 | W29: 0 | X29: 0 | Y29: =IF($Y$15=$AG$15,IFERROR(VLOOKUP(T29,#REF!,3,0)," "),IFERROR(VLOOKUP(T29,#REF!,4,0)," ")) ->  | Z29: =IFERROR(VLOOKUP(T29,[1]Расход!A$3:E$884,5,0)," ") -> 
T30: 0 | U30: 0 | V30: 0 | W30: 0 | X30: 0 | Y30: =IF($Y$15=$AG$15,IFERROR(VLOOKUP(T30,#REF!,3,0)," "),IFERROR(VLOOKUP(T30,#REF!,4,0)," ")) ->  | Z30: =IFERROR(VLOOKUP(T30,[1]Расход!A$3:E$884,5,0)," ") -> 
T31: 0 | U31: 0 | V31: 0 | W31: 0 | X31: 0 | Y31: =IF($Y$15=$AG$15,IFERROR(VLOOKUP(T31,#REF!,3,0)," "),IFERROR(VLOOKUP(T31,#REF!,4,0)," ")) ->  | Z31: =IFERROR(VLOOKUP(T31,[1]Расход!A$3:E$884,5,0)," ") -> 
T32: 0 | U32: 0 | V32: 0 | W32: 0 | X32: 0 | Y32: =IF($Y$15=$AG$15,IFERROR(VLOOKUP(T32,#REF!,3,0)," "),IFERROR(VLOOKUP(T32,#REF!,4,0)," ")) ->  | Z32: =IFERROR(VLOOKUP(T32,[1]Расход!A$3:E$884,5,0)," ") -> 
T33: 0 | U33: 0 | V33: 0 | W33: 0 | X33: 0 | Y33: =IF($Y$15=$AG$15,IFERROR(VLOOKUP(T33,#REF!,3,0)," "),IFERROR(VLOOKUP(T33,#REF!,4,0)," ")) ->  | Z33: =IFERROR(VLOOKUP(T33,[1]Расход!A$3:E$884,5,0)," ") -> 
T34: 0 | U34: 0 | V34: 0 | W34: 0 | X34: 0 | Y34: =IF($Y$15=$AG$15,IFERROR(VLOOKUP(T34,#REF!,3,0)," "),IFERROR(VLOOKUP(T34,#REF!,4,0)," ")) ->  | Z34: =IFERROR(VLOOKUP(T34,[1]Расход!A$3:E$884,5,0)," ") -> 
T35: 0 | U35: 0 | V35: 0 | W35: 0 | X35: 0 | Y35: =IF($Y$15=$AG$15,IFERROR(VLOOKUP(T35,#REF!,3,0)," "),IFERROR(VLOOKUP(T35,#REF!,4,0)," ")) ->  | Z35: =IFERROR(VLOOKUP(T35,[1]Расход!A$3:E$884,5,0)," ") -> 
T36: 0 | U36: 0 | V36: 0 | W36: 0 | X36: 0 | Y36: =IF($Y$15=$AG$15,IFERROR(VLOOKUP(T36,#REF!,3,0)," "),IFERROR(VLOOKUP(T36,#REF!,4,0)," ")) ->  | Z36: =IFERROR(VLOOKUP(T36,[1]Расход!A$3:E$884,5,0)," ") -> 
T37: 0 | U37: 0 | V37: 0 | W37: 0 | X37: 0 | Y37: =IF($Y$15=$AG$15,IFERROR(VLOOKUP(T37,#REF!,3,0)," "),IFERROR(VLOOKUP(T37,#REF!,4,0)," ")) ->  | Z37: =IFERROR(VLOOKUP(T37,[1]Расход!A$3:E$884,5,0)," ") -> 
T38: 0 | U38: 0 | V38: 0 | W38: 0 | X38: 0 | Y38: =IF($Y$15=$AG$15,IFERROR(VLOOKUP(T38,#REF!,3,0)," "),IFERROR(VLOOKUP(T38,#REF!,4,0)," ")) ->  | Z38: =IFERROR(VLOOKUP(T38,[1]Расход!A$3:E$884,5,0)," ") -> 
T39: 0 | U39: 0 | V39: 0 | W39: 0 | X39: 0 | Y39: =IF($Y$15=$AG$15,IFERROR(VLOOKUP(T39,#REF!,3,0)," "),IFERROR(VLOOKUP(T39,#REF!,4,0)," ")) ->  | Z39: =IFERROR(VLOOKUP(T39,[1]Расход!A$3:E$884,5,0)," ") -> 
T40: 0 | U40: 0 | V40: 0 | W40: 0 | X40: 0 | Y40: =IF($Y$15=$AG$15,IFERROR(VLOOKUP(T40,#REF!,3,0)," "),IFERROR(VLOOKUP(T40,#REF!,4,0)," ")) ->  | Z40: =IFERROR(VLOOKUP(T40,[1]Расход!A$3:E$884,5,0)," ") -> 
T41: 0 | U41: 0 | V41: 0 | W41: 0 | X41: 0 | Y41: =IF($Y$15=$AG$15,IFERROR(VLOOKUP(T41,#REF!,3,0)," "),IFERROR(VLOOKUP(T41,#REF!,4,0)," ")) ->  | Z41: =IFERROR(VLOOKUP(T41,[1]Расход!A$3:E$884,5,0)," ") -> 
T42: 0 | U42: 0 | V42: 0 | W42: 0 | X42: 0 | Y42: =IF($Y$15=$AG$15,IFERROR(VLOOKUP(T42,#REF!,3,0)," "),IFERROR(VLOOKUP(T42,#REF!,4,0)," ")) ->  | Z42: =IFERROR(VLOOKUP(T42,[1]Расход!A$3:E$884,5,0)," ") -> 
T43: 0 | U43: 0 | V43: 0 | W43: 0 | X43: 0 | Y43: =IF($Y$15=$AG$15,IFERROR(VLOOKUP(T43,#REF!,3,0)," "),IFERROR(VLOOKUP(T43,#REF!,4,0)," ")) ->  | Z43: =IFERROR(VLOOKUP(T43,[1]Расход!A$3:E$884,5,0)," ") -> 
T44: 0 | U44: 0 | V44: 0 | W44: 0 | X44: 0 | Y44: =IF($Y$15=$AG$15,IFERROR(VLOOKUP(T44,#REF!,3,0)," "),IFERROR(VLOOKUP(T44,#REF!,4,0)," ")) ->  | Z44: =IFERROR(VLOOKUP(T44,[1]Расход!A$3:E$884,5,0)," ") -> 
T45: 0 | U45: 0 | V45: 0 | W45: 0 | X45: 0 | Y45: =IF($Y$15=$AG$15,IFERROR(VLOOKUP(T45,#REF!,3,0)," "),IFERROR(VLOOKUP(T45,#REF!,4,0)," ")) ->  | Z45: =IFERROR(VLOOKUP(T45,[1]Расход!A$3:E$884,5,0)," ") -> 
T46: 0 | U46: 0 | V46: 0 | W46: 0 | X46: 0 | Y46: =IF($Y$15=$AG$15,IFERROR(VLOOKUP(T46,#REF!,3,0)," "),IFERROR(VLOOKUP(T46,#REF!,4,0)," ")) ->  | Z46: =IFERROR(VLOOKUP(T46,[1]Расход!A$3:E$884,5,0)," ") -> 
T47: 0 | U47: 0 | V47: 0 | W47: 0 | X47: 0 | Y47: =IF($Y$15=$AG$15,IFERROR(VLOOKUP(T47,#REF!,3,0)," "),IFERROR(VLOOKUP(T47,#REF!,4,0)," ")) ->  | Z47: =IFERROR(VLOOKUP(T47,[1]Расход!A$3:E$884,5,0)," ") -> 
L61: =IF(D61="C01", "Надбавка затонирование составляет 0 руб.", IF(D61="C02", "Внимание! В сумме заказе не учтена надбавка за тонирование. Подробнее см. во вкладке 8", IF(D61="C03", "Внимание! В сумме заказе не учтена надбавка за тонирование. Подробнее см. во вкладке 8", IF(D61="C04", "Внимание! В сумме заказе не учтена надбавка за тонирование. Она будет расчитана после обработки заказа", "")))) -> 
L83: =IF(D83="C01", "Надбавка затонирование составляет 0 руб.", IF(D83="C02", "Внимание! В сумме заказе не учтена надбавка за тонирование. Подробнее см. во вкладке 8", IF(D83="C03", "Внимание! В сумме заказе не учтена надбавка за тонирование. Подробнее см. во вкладке 8", IF(D83="C04", "Внимание! В сумме заказе не учтена надбавка за тонирование. Она будет расчитана после обработки заказа", "")))) -> 
A118: Не нашли нужную позицию? Ниже вы можете оставить запрос на цену и наличие на складе необходимых позиций

Sheet 1. ФАСАД
A2: Прайс-лист Товаров Продуктовой группы раздела «Фасад» Цены действительны c 03.03.2022 г.
A3: Артикул | B3: Наименование продукта | C3: Произ-водство | D3: Область применения | E3: Вид материала | F3: Основа материала | G3: Упаковка | J3: Min расход продукта | M3: Цена БЕЗ учета НДС за единицу измерения | N3: Цена с НДС за единицу измерения | O3: Цена с НДС за 1м² (при min расходе) | P3: Цена с НДС за упаковку | Q3: Кол-во единиц товара | R3: Сумма заказа с НДС | S3: Итого вес брутто (кг) | T3: Итого паллет | U3: Наличие на складе | V3: Рекомендованный ассортимент | W3: Количество упаковок на паллете, шт. | X3: Вес одного паллето-места (без палеты), кг. | Y3: Норма загрузки авто (20 т.) шт. | Z3: Краткое описание продукта
G4: к-во | H4: ед. | I4: вид упаковки | J4: от | K4: до | L4: единица измерения
A5: 00861-002 | B5: StoPlex W | C5: DE | D5: фасад | E5: грунт проникающий | F5: акрил-силоксан | G5: 20 | H5: л | I5: Канистра | J5: 0.1 | K5: 0.4 | L5: л/м² | M5: =VLOOKUP($A5,'Изменение прайс-листа'!$A$2:$E$798,4,FALSE) -> 540 | N5: =M5*1.2 -> 648 | O5: =$N5*$J5 -> 64.8 | P5: =$N5*$G5 -> 12960 | R5: =Q5*P5 -> 0 | S5: =ROUNDUP(X5/W5*Q5,0) -> 0 | T5: =Q5/W5 -> 0 | U5: ● | V5: ● | W5: 24 | X5: 498.72 | Y5: 792 | Z5: универсальная водоразбавимая грунтовка на акрилатной основе, усиленная силоксаном (гидрофобизирующий эффект). Разбавляется водой в соотношении 1:1
A6: 00861-001 | B6: StoPlex W | C6: DE | D6: фасад | E6: грунт проникающий | F6: акрил-силоксан | G6: 10 | H6: л | I6: Канистра | J6: 0.1 | K6: 0.4 | L6: л/м² | M6: =VLOOKUP($A6,'Изменение прайс-листа'!$A$2:$E$798,4,FALSE) -> 536 | N6: =M6*1.2 -> 643.2 | O6: =$N6*$J6 -> 64.32 | P6: =$N6*$G6 -> 6432 | R6: =Q6*P6 -> 0 | S6: =ROUNDUP(X6/W6*Q6,0) -> 0 | T6: =Q6/W6 -> 0 | U6: ● | W6: 60 | X6: 623.4 | Y6: 1740
A7: 00861_012 | B7: StoPrim Solid | C7: RU | D7: универсальный | E7: грунт проникающий | F7: акрил | G7: 5 | H7: л | I7: Канистра | J7: 0.02 | K7: 0.08 | L7: л/м² | M7: =VLOOKUP($A7,'Изменение прайс-листа'!$A$2:$E$798,4,FALSE) -> 566 | N7: 679.2 | O7: 13.584 | P7: 3396 | R7: =Q7*P7 -> 0 | S7: 0 | T7: 0 | U7: ● | V7: ● | W7: 96 | X7: 498.72 | Y7: 3168 | Z7: универсальная водорастворимая грунтовка - концентрат на основе акрилата с модифицирующими добавками. Разбавляется водой в соотношении 1:4. Глубоко проникает, хорошо укрепляет основание.
A8: 00810-015 | B8: StoPrim Micro | C8: DE | D8: фасад | E8: грунт проникающий | F8: силикон | G8: 3 | H8: л | I8: Канистра | J8: 0.01 | K8: 0.05 | L8: л/м² | M8: =VLOOKUP($A8,'Изменение прайс-листа'!$A$2:$E$798,4,FALSE) -> 14448 | N8: 17337.6 | O8: 173.376 | P8: 52012.8 | R8: 0 | S8: 0 | T8: 0 | W8: 150 | X8: 469.35 | Y8: 4950 | Z8: глубокопроникающий грунтовочный концентрат на основе силиконовой микроэмульсии, предназначен для проблемных оснований, разбавляется водой 1:10
A9: 00870-006 | B9: StoPrim Silikat | C9: DE | D9: универсальный | E9: грунт проникающий | F9: силикат | G9: 10 | H9: л | I9: Канистра | J9: 0.15 | K9: 0.6 | L9: л/м² | M9: =VLOOKUP($A9,'Изменение прайс-листа'!$A$2:$E$798,4,FALSE) -> 584 | N9: 700.8 | O9: 105.12 | P9: 7008 | R9: 0 | S9: 0 | T9: 0 | W9: 60 | X9: 653.4 | Y9: 1680 | Z9: водоразбавимая бесцветная грунтовка на силикатной основе, идеальна для минеральных покрытий, разбавляется водой 1:1
A10: 00870-047 | B10: StoPrim Sol GT | C10: DE | D10: универсальный | E10: грунт проникающий | F10: силикат | G10: 15 | H10: л | I10: Канистра | J10: 0.1 | K10: 0.2 | L10: л/м² | M10: =VLOOKUP($A10,'Изменение прайс-листа'!$A$2:$E$798,4,FALSE) -> 720 | N10: 864 | O10: 86.4 | P10: 12960 | R10: 0 | S10: 0 | T10: 0 | U10: ● | V10: ● | W10: 24 | X10: 463.2 | Y10: 792 | Z10: Уникальный продукт! водоразбавимая бесцветная грунтовка на силикатной основе, идеальна для минеральных и органических оснований. Гелевая консистенция, минимизирующая капание
A11: 00856-013 | B11: StoPrim Grundex | C11: DE | D11: фасад | E11: грунт проникающий | F11: растворитель | G11: 20 | H11: л | I11: Канистра | J11: 0.2 | K11: 0.6 | L11: л/м² | M11: =VLOOKUP($A11,'Изменение прайс-листа'!$A$2:$E$798,4,FALSE) -> 2078 | N11: 2493.6 | O11: 498.72 | P11: 49872 | R11: 0 | S11: 0 | T11: 0 | U11: ● | W11: 24 | X11: 408 | Y11: 792 | Z11: особоглубокопроникающая бесцветная грунтовка на основе полимерных смол, содержит растворитель, предназначена для проблемных оснований, активно защищает от выхода солей на поверхность, возможно применение на гипсовых основаниях
A12: 00856-012 | B12: StoPrim Grundex | C12: DE | D12: фасад | E12: грунт проникающий | F12: растворитель | G12: 10 | H12: л | I12: Канистра | J12: 0.2 | K12: 0.6 | L12: л/м² | M12: =VLOOKUP($A12,'Изменение прайс-листа'!$A$2:$E$798,4,FALSE) -> 2262 | N12: 2714.4 | O12: 542.88 | P12: 27144 | R12: 0 | S12: 0 | T12: 0 | W12: 50 | X12: 425 | Y12: 1650
A13: 01304-006 | B13: StoPrim Isol | C13: DE | D13: универсальный | E13: грунт изолирующий | F13: акрил | G13: 5 | H13: л | I13: Ведро | J13: 0.1 | K13: 0.4 | L13: л/м² | M13: =VLOOKUP($A13,'Изменение прайс-листа'!$A$2:$E$798,4,FALSE) -> 2110 | N13: 2532 | O13: 253.2 | P13: 12660 | R13: 0 | S13: 0 | T13: 0 | U13: ● | W13: 60 | X13: 367.8 | Y13: 1980 | Z13: водоразбавимая изолирующая грунтовка на акрилатной основе
A14: 00855-003 | B14: StoPrim LP | C14: DE | D14: фасад | E14: грунт изолирующий | F14: растворитель | G14: 12,5 | H14: л | I14: Ведро | J14: 0.13 | K14: 0.15 | L14: л/м² | M14: =VLOOKUP($A14,'Изменение прайс-листа'!$A$2:$E$798,4,FALSE) -> 3306 | N14: 3967.2 | O14: 515.736 | P14: 49590 | R14: 0 | S14: 0 | T14: 0 | W14: 24 | X14: 454.2 | Y14: 792 | Z14: изолирующая грунтовка, содержит растворитель
A15: 08401-009 | B15: Sto-Allgrund AF, белая | C15: DE | D15: металл | E15: грунт антикоррозионный | F15: растворитель | G15: 2,5 | H15: л | I15: Банка | J15: 0.08 | K15: 0.1 | L15: л/м² | M15: =VLOOKUP($A15,'Изменение прайс-листа'!$A$2:$E$798,4,FALSE) -> 4224 | N15: 5068.8 | O15: 405.504 | P15: 12672 | R15: 0 | S15: 0 | T15: 0 | U15: ● | W15: 144 | X15: 575.712 | Y15: 4464 | Z15: быстросохнущая антикоррозионная грунтовка на основе алкидных смол, содержит растворитель, хорошие адгезионные свойства при нанесении на цинк, оцинкованную сталь, алюминий
A16: 08401-011 | B16: Sto-Allgrund AF getönt (колерованная) | C16: DE | D16: металл | E16: грунт антикоррозионный | F16: растворитель | G16: 2.5 | H16: л | I16: Банка | J16: 0.08 | K16: 0.1 | L16: л/м² | M16: =VLOOKUP($A16,'Изменение прайс-листа'!$A$2:$E$798,4,FALSE) -> 4224 | N16: 5068.8 | O16: 405.504 | P16: 12672 | R16: 0 | S16: 0 | T16: 0 | W16: 144 | X16: 575.712 | Y16: 4464
A17: 00889-005 | B17: StoPrim Fungal | C17: DE | D17: универсальный | E17: биоцид | F17: вода | G17: 20 | H17: л | I17: Канистра | J17: 0.15 | K17: 0.3 | L17: л/м² | M17: =VLOOKUP($A17,'Изменение прайс-листа'!$A$2:$E$798,4,FALSE) -> 468 | N17: =M17*1.2 -> 561.6 | O17: =$N17*$J17 -> 84.24 | P17: =$N17*$G17 -> 11232 | R17: =Q17*P17 -> 0 | S17: 0 | T17: 0 | U17: ● | W17: 24 | X17: 498.72 | Y17: 792 | Z17: водоразбавимый дезинфицирующий раствор для обработки поверхностей, пораженных водорослями и/или грибком
A18: 00889-001 | B18: StoPrim Fungal | C18: DE | D18: универсальный | E18: биоцид | F18: вода | G18: 10 | H18: л | I18: Канистра | J18: 0.15 | K18: 0.3 | L18: л/м² | M18: =VLOOKUP($A18,'Изменение прайс-листа'!$A$2:$E$798,4,FALSE) -> 480 | N18: 576 | O18: 86.4 | P18: 5760 | R18: 0 | S18: 0 | T18: 0 | W18: 60 | X18: 623.4 | Y18: 1740
A19: 00728_002 | B19: Sto-Baukleber | C19: RU | D19: фасад | E19: клей | F19: цемент | G19: 25 | H19: кг | I19: Мешок | J19: 5 | K19: 6 | L19: кг/м² | M19: =VLOOKUP($A19,'Изменение прайс-листа'!$A$2:$E$798,4,FALSE) -> 60 | N19: 72 | O19: 360 | P19: 1800 | R19: 0 | S19: 0 | T19: 0 | U19: ● | W19: 42 | X19: 1054.2 | Y19: 780 | Z19: усиленный цементно-серый минеральный клеящий раствор для неровных органических и минеральных неэластичных оснований
A20: 00728_102 | B20: StoLevell Basic K/StoColl Basic | C20: RU | D20: фасад | E20: клей | F20: цемент | G20: 25 | H20: кг | I20: Мешок | J20: 5.2 | K20: 7.4 | L20: кг/м² | M20: =VLOOKUP($A20,'Изменение прайс-листа'!$A$2:$E$798,4,FALSE) -> 38 | N20: 45.6 | O20: 237.12 | P20: 1140 | R20: 0 | S20: 0 | T20: 0 | U20: ● | W20: 42 | X20: 1054.2 | Y20: 780 | Z20: цементно-серый минеральный клеящий раствор для минеральных неэластичных оснований
A21: 02559-002 | B21: Sto-Turbofix mini, баллон 750 мл. | C21: DE | D21: фасад | E21: клей | F21: полиуретан | G21: 1 | H21: шт. | I21: Баллон | J21: 0.13 | K21: 0.25 | L21: л/м² | M21: =VLOOKUP($A21,'Изменение прайс-листа'!$A$2:$E$798,4,FALSE) -> 2712 | N21: 3254.4 | O21: 423.072 | P21: 3254.4 | R21: 0 | S21: 0 | T21: 0 | W21: 504 | X21: 452.088 | Y21: 16632 | Z21: однокомпонентная пена в баллоне под давлением для приклеивания теплоизоляционных плит из пенополистирола
A22: 00832-006 | B22: Sto-Steinpaste | C22: DE | D22: универсальный | E22: клей | F22: акрил | G22: 16 | H22: кг | I22: Ведро | J22: 0.5 | K22: 1.5 | L22: кг/м² | M22: =VLOOKUP($A22,'Изменение прайс-листа'!$A$2:$E$798,4,FALSE) -> 1496 | N22: 1795.2 | O22: 897.6 | P22: 28723.2 | R22: 0 | S22: 0 | T22: 0 | W22: 36 | X22: 902.7 | Y22: 714 | Z22: универсальный пастообразный дисперсионный клей с особо сильной фиксацией, предназначен для различных типов поверхностей (дерево, оцинкованный металл и т.д.)
A23: 00829-004 | B23: Sto-Dispersionskleber | C23: DE | D23: фасад | E23: клей | F23: акрил | G23: 20 | H23: кг | I23: Ведро | J23: 1 | K23: 1.5 | L23: кг/м² | M23: =VLOOKUP($A23,'Изменение прайс-листа'!$A$2:$E$798,4,FALSE) -> 764 | N23: 916.8 | O23: 916.8 | P23: 18336 | R23: 0 | S23: 0 | T23: 0 | W23: 36 | X23: 902.7 | Y23: 891 | Z23: готовая к применению органическая клеящая масса для ровных слабовпитывающих оснований. Рекомендована для приклеивания к ОСБ, ОСП, ЦСП и другим основаниям.
A24: 00506-001 | B24: Sto-Pistolenschaum SE, 750 мл | C24: DE | D24: фасад | E24: пена | F24: полиуретан | G24: 1 | H24: шт. | I24: Баллон | J24: 0.05 | K24: 0.25 | L24: л/м² | M24: =VLOOKUP($A24,'Изменение прайс-листа'!$A$2:$E$798,4,FALSE) -> 2296 | N24: 2755.2 | O24: 137.76 | P24: 2755.2 | R24: 0 | S24: 0 | T24: 0 | U24: ● | W24: 504 | X24: 452.088 | Y24: 16632 | Z24: однокомпонентная пена в баллоне под давлением для заполнения швов, отверстий и других полостей в теплоизоляционных плитах шириной до 5 мм
A25: 01373_029 | B25: StoLevell Duo plus | C25: RU | D25: фасад | E25: клей- армировка СФТК | F25: цемент | G25: 25 | H25: кг | I25: Мешок | J25: 4.5 | K25: 6 | L25: кг/м² | M25: =VLOOKUP($A25,'Изменение прайс-листа'!$A$2:$E$798,4,FALSE) -> 64 | N25: 76.8 | O25: 345.6 | P25: 1920 | R25: 0 | S25: 0 | T25: 0 | U25: ● | W25: 42 | X25: 1054.2 | Y25: 780 | Z25: минеральный клеящий и армирующий усиленный микроволокнами раствор для минеральных оснований, подходит для машинного нанесения
A26: 01373_129 | B26: StoLevell Basic | C26: RU | D26: фасад | E26: клей- армировка СФТК | F26: цемент | G26: 25 | H26: кг | I26: Мешок | J26: 4.1 | K26: 6 | L26: кг/м² | M26: =VLOOKUP($A26,'Изменение прайс-листа'!$A$2:$E$798,4,FALSE) -> 46 | N26: 55.2 | O26: 226.32 | P26: 1380 | R26: 0 | S26: 0 | T26: 0 | U26: ● | W26: 42 | X26: 1054.2 | Y26: 780 | Z26: цементно-серый минеральный клеящий и армирующий раствор для минеральных оснований.
A27: 00815_001 | B27: StoLevell Uni | C27: RU | D27: фасад | E27: клей- армировка СФТК | F27: цемент | G27: 25 | H27: кг | I27: Мешок | J27: 4 | K27: 5 | L27: кг/м² | M27: =VLOOKUP($A27,'Изменение прайс-листа'!$A$2:$E$798,4,FALSE) -> 74 | N27: 88.8 | O27: 355.2 | P27: 2220 | R27: 0 | S27: 0 | T27: 0 | U27: ● | W27: 42 | X27: 1054.2 | Y27: 780 | Z27: минеральный клеящий и армирующий раствор для органических и минеральных неэластичных оснований. Высокая клеящая и армирующая сила, усилен микроволокнами. Низкий расход, натурально-белый цвет.
A28: 00250-087 | B28: StoArmat Classic plus F (натурального цвета) | C28: DE | D28: фасад | E28: армировка | F28: акрил | G28: 25 | H28: кг | I28: Ведро | J28: 3.5 | K28: 9.5 | L28: кг/м² | M28: =VLOOKUP($A28,'Изменение прайс-листа'!$A$2:$E$798,4,FALSE) -> 490 | N28: 588 | O28: 2058 | P28: 14700 | R28: 0 | S28: 0 | T28: 0 | U28: ● | W28: 24 | X28: 616.32 | Y28: 696 | Z28: Уникальный продукт! готовая к применению органическая армирующая масса с направляющим зерном (F:0,7 мм; M: 1,2 мм; G: 1,4 мм). Для использования на органических и минеральных основаниях систем StoTherm Classic. Не содержит цемента. Обогащена базальтом. Высокая эластичность и устойчивость к образованию трещин.
A29: 00250-086 | B29: StoArmat Classic plus F getönt (колерованная ) C1 | C29: DE | D29: фасад | E29: армировка | F29: акрил | G29: 25 | H29: кг | I29: Ведро | J29: 3.5 | K29: 9.5 | L29: кг/м² | M29: =M28+'7. Надбавки'!$C$5 -> 536 | N29: 643.2 | O29: 2251.2 | P29: 16080 | R29: 0 | S29: 0 | T29: 0 | W29: 24 | X29: 616.32 | Y29: 696
A30: 00250-089 | B30: StoArmat Classic plus M (натурального цвета) | C30: DE | D30: фасад | E30: армировка | F30: акрил | G30: 25 | H30: кг | I30: Ведро | J30: 3.5 | K30: 9.5 | L30: кг/м² | M30: =VLOOKUP($A30,'Изменение прайс-листа'!$A$2:$E$798,4,FALSE) -> 490 | N30: 588 | O30: 2058 | P30: 14700 | R30: 0 | S30: 0 | T30: 0 | W30: 24 | X30: 616.32 | Y30: 696
A31: 00250-088 | B31: StoArmat Classic plus M getönt (колерованная ) C1 | C31: DE | D31: фасад | E31: армировка | F31: акрил | G31: 25 | H31: кг | I31: Ведро | J31: 3.5 | K31: 9.5 | L31: кг/м² | M31: =M30+'7. Надбавки'!$C$5 -> 536 | N31: 643.2 | O31: 2251.2 | P31: 16080 | R31: 0 | S31: 0 | T31: 0 | W31: 24 | X31: 616.32 | Y31: 696
A32: 00250-091 | B32: StoArmat Classic plus G (натурального цвета) | C32: DE | D32: фасад | E32: армировка | F32: акрил | G32: 25 | H32: кг | I32: Ведро | J32: 3.5 | K32: 9.5 | L32: кг/м² | M32: =VLOOKUP($A32,'Изменение прайс-листа'!$A$2:$E$798,4,FALSE) -> 490 | N32: 588 | O32: 2058 | P32: 14700 | R32: 0 | S32: 0 | T32: 0 | W32: 24 | X32: 616.32 | Y32: 696
A33: 00250-090 | B33: StoArmat Classic plus G getönt (колерованная ) C1 | C33: DE | D33: фасад | E33: армировка | F33: акрил | G33: 25 | H33: кг | I33: Ведро | J33: 3.5 | K33: 9.5 | L33: кг/м² | M33: =M32+'7. Надбавки'!$C$5 -> 536 | N33: 643.2 | O33: 2251.2 | P33: 16080 | R33: 0 | S33: 0 | T33: 0 | W33: 24 | X33: 616.32 | Y33: 696
A34: 00002-002 | B34: StoArmat Classic AIMS (натурального цвета) | C34: DE | D34: фасад | E34: армировка | F34: акрил | G34: 25 | H34: кг | I34: Ведро | J34: 3.5 | K34: 9.5 | L34: кг/м² | M34: =VLOOKUP($A34,'Изменение прайс-листа'!$A$2:$E$798,4,FALSE) -> 604 | N34: =M34*1.2 -> 724.8 | O34: 2536.8 | P34: 18120 | R34: =Q34*P34 -> 0 | S34: =ROUNDUP(X34/W34*Q34,0) -> 0 | T34: =Q34/W34 -> 0 | W34: 24 | X34: 616.32 | Y34: 696 | Z34: Уникальный продукт! готовая к применению органическая армирующая масса с направляющим зерном. 95% натурального сырья. 30% содержания сосновго масла
A35: 00002-001 | B35: StoArmat Classic AIMS getönt (колерованная ) C1 | C35: DE | D35: фасад | E35: армировка | F35: акрил | G35: 25 | H35: кг | I35: Ведро | J35: 3.5 | K35: 9.5 | L35: кг/м² | M35: =M34+'7. Надбавки'!$C$5 -> 650 | N35: 780 | O35: 2730 | P35: 19500 | R35: 0 | S35: 0 | T35: 0 | W35: 24 | X35: 616.32 | Y35: 696
A36: 00250-029 | B36: StoArmat Classic S1 natur (натурального цвета) | C36: DE | D36: фасад | E36: армировка | F36: акрил | G36: 25 | H36: кг | I36: Ведро | J36: 3.5 | K36: 6 | L36: кг/м² | M36: =VLOOKUP($A36,'Изменение прайс-листа'!$A$2:$E$798,4,FALSE) -> 548 | N36: 657.6 | O36: 2301.6 | P36: 16440 | R36: 0 | S36: 0 | T36: 0 | U36: ● | V36: ● | W36: 24 | X36: 616.32 | Y36: 696 | Z36: Уникальный продукт! готовая к применению органическая армирующая масса с направляющим зерном. Для использования на органических и минеральных основаниях систем StoTherm Classic S1. Не содержит цемента. Обогащена базальтом. Высокая эластичность и устойчивость к образованию трещин.
A37: 00250-033 | B37: StoArmat Classic S1 getönt (колерованная ) C1 | C37: DE | D37: фасад | E37: армировка | F37: акрил | G37: 25 | H37: кг | I37: Ведро | J37: 3.5 | K37: 6 | L37: кг/м² | M37: =M36+'7. Надбавки'!$C$5 -> 594 | N37: 712.8 | O37: 2494.8 | P37: 17820 | R37: 0 | S37: 0 | T37: 0 | W37: 24 | X37: 616.3 | Y37: 696
A38: 00225_002 | B38: Sto-Armierungsputz natur (натурального цвета) | C38: RU | D38: фасад | E38: армировка | F38: акрил | G38: 25 | H38: кг | I38: Ведро | J38: 2.5 | K38: 4 | L38: кг/м² | M38: =VLOOKUP($A38,'Изменение прайс-листа'!$A$2:$E$798,4,FALSE) -> 216 | N38: 259.2 | O38: 648 | P38: 6480 | R38: 0 | S38: 0 | T38: 0 | U38: ● | V38: ● | W38: 24 | X38: 568.008 | Y38: 768 | Z38: Уникальный продукт! органическая, готовая к применению армирующая масса с направляющим зерном, отличающаяся особой механической стойкостью ( до 100 Дж), не горючая
A39: 00920_003 | B39: Sto-Glasfasergewebe/ стеклосетка F 110 cm, ячейка 4х4 мм. | C39: RU | D39: фасад | E39: сетка | F39: стеклоткань | G39: 50 | H39: м | I39: Рулон | J39: 1 | K39: 1 | L39: м/м² | M39: =VLOOKUP($A39,'Изменение прайс-листа'!$A$2:$E$798,4,FALSE) -> 170 | N39: =M39*1.2 -> 204 | O39: 204 | P39: 10200 | R39: =Q39*P39 -> 0 | S39: 0 | T39: 0 | U39: ● | V39: ● | W39: 35 | X39: 339.5 | Y39: 1120 | Z39: универсальная армирующая сетка из стекловолокна, устойчива к воздействию щелочей. Ширина 110 см.
A40: 00915_002 | B40: Sto-Glasfasergewebe G / стеклосетка G 100cм | C40: RU | D40: фасад | E40: сетка | F40: стеклоткань | G40: 50 | H40: м | I40: Рулон | J40: 1 | K40: 1 | L40: м/м² | M40: =VLOOKUP($A40,'Изменение прайс-листа'!$A$2:$E$798,4,FALSE) -> 266 | N40: 319.2 | O40: 319.2 | P40: 15960 | R40: 0 | S40: 0 | T40: 0 | W40: 35 | X40: 339.5 | Y40: 1120 | Z40: специальная стеклосетка для систем с клинкером, натуральным камнем и т.п.
A41: 00917_001 | B41: Sto-Panzergewebe/ панцерная сетка 100 см | C41: RU | D41: фасад | E41: сетка | F41: стеклоткань | G41: 50 | H41: м | I41: Рулон | J41: 1 | K41: 1 | L41: м/м² | M41: =VLOOKUP($A41,'Изменение прайс-листа'!$A$2:$E$798,4,FALSE) -> 336 | N41: 403.2 | O41: 403.2 | P41: 20160 | R41: 0 | S41: 0 | T41: 0 | W41: 35 | X41: 343 | Y41: 1120 | Z41: усиленная стекловолокнистая сетка для дополнительного армирования и улучшения прочности на сжатие в удароопасных и цокольных участках, устойчива к щелочам.
A42: 00920_004 | B42: Sto-Detailgewebe/ сетка архитектурная 100 см | C42: RU | D42: фасад | E42: сетка | F42: стеклоткань | G42: 50 | H42: м | I42: Рулон | J42: 1 | K42: 1 | L42: м/м² | M42: =VLOOKUP($A42,'Изменение прайс-листа'!$A$2:$E$798,4,FALSE) -> 286 | N42: 343.2 | O42: 343.2 | P42: 17160 | R42: 0 | S42: 0 | T42: 0 | W42: 20 | X42: 245 | Y42: 660 | Z42: тонкая стекловолокнистая сетка для обработки и формирования деталей.
A43: 00961_013 | B43: Gewebewinkel/ уголок 2,5м стеклосетка 10х15 | C43: RU | D43: фасад | E43: уголок | F43: ПВХ стеклоткань | G43: 2,5 | H43: м | I43: Коробка | J43: 1 | K43: 1 | L43: м/мп | M43: =VLOOKUP($A43,'Изменение прайс-листа'!$A$2:$E$798,4,FALSE) -> 70 | N43: 84 | O43: 84 | P43: 210 | R43: 0 | S43: 0 | T43: 0 | U43: ● | W43: 2000 | X43: 440 | Y43: 30000 | Z43: уголок ПВХ со стеклосеткой / профиль для формирования канта (угол 90˚). Длина - 250 см.
A44: 01917-007 | B44: Sto-Rolleckwinkel 10х15 см. | C44: DE | D44: фасад | E44: уголок | F44: ПВХ стеклоткань | G44: 50 | H44: м | I44: Рулон | J44: 1 | K44: 1 | L44: м/мп | M44: =VLOOKUP($A44,'Изменение прайс-листа'!$A$2:$E$798,4,FALSE) -> 230 | N44: 276 | O44: 276 | P44: 13800 | R44: 0 | S44: 0 | T44: 0 | W44: 48 | X44: 247.2 | Y44: 1584 | Z44: профиль складной со стеклосеткой / профиль для формирования любого (изменяемого) угла с интегрированной стекловолокнистой сеткой
A45: 01032_005 | B45: Anputzleiste профиль примыкания со стеклосеткой 6 мм, 2.4 м | C45: RU | D45: фасад | E45: профиль примыкания | F45: ПВХ стеклоткань | G45: 2,4 | H45: м | I45: Коробка | J45: 1 | K45: 1 | L45: м/мп | M45: =VLOOKUP($A45,'Изменение прайс-листа'!$A$2:$E$798,4,FALSE) -> по запросу | S45: 0 | T45: 0 | U45: ● | W45: 2000 | X45: 400 | Y45: 30000 | Z45: профиль примыкания со стеклосеткой / профиль для формирования откосов дверных и оконных проемов с уплотнительной прокладкой и интегрированной стекловолокнистой сеткой.
A46: 04909-010 | B46: Ubergangsprofil B/ профиль примык. с кровлей или отливом | C46: DE | D46: фасад | E46: профиль примыкания | F46: ПВХ стеклоткань | G46: 2.5 | H46: м | I46: Коробка | J46: 1 | K46: 1 | L46: м/мп | M46: =VLOOKUP($A46,'Изменение прайс-листа'!$A$2:$E$798,4,FALSE) -> 1072 | N46: 1286.4 | O46: 1286.4 | P46: 3216 | R46: 0 | S46: 0 | T46: 0 | W46: 2000 | X46: 400 | Y46: 30000 | Z46: профиль с интегрированной стеклосеткой для создания герметичного примыкания с кровлей или отливом.
A47: 01889_016 | B47: Tropfkantenprofil 2,5м с "закрытым" капельником | C47: RU | D47: фасад | E47: капельник | F47: ПВХ стеклоткань | G47: 2.5 | H47: м | I47: Коробка | J47: 1 | K47: 1 | L47: м/мп | M47: =VLOOKUP($A47,'Изменение прайс-листа'!$A$2:$E$798,4,FALSE) -> по запросу | S47: 0 | T47: 0 | U47: ● | W47: 2000 | X47: 400 | Y47: 30000 | Z47: профиль с капельником и стеклосеткой
A48: 01077_017 | B48: Соединитель для цокольных шин 30 mm | C48: RU | D48: фасад | E48: соединитель | F48: ПВХ | G48: 1 | H48: уп. | I48: Коробка | J48: 0.005 | K48: 0.015 | L48: шт./мп | M48: =VLOOKUP($A48,'Изменение прайс-листа'!$A$2:$E$798,4,FALSE) -> по запросу | S48: 0 | T48: 0 | W48: 360000 | X48: 24 | Z48: соединитель для цокольных шин
A49: 07845_009 | B49: Sockelleiste профиль цокольный 80 мм 2,5 м | C49: RU | D49: фасад | E49: цокольный профиль | F49: алюминий | G49: 2,5 | H49: м | I49: без упаковки | J49: 1 | K49: 1 | L49: м/мп | M49: =VLOOKUP($A49,'Изменение прайс-листа'!$A$2:$E$798,4,FALSE) -> по запросу | S49: 0 | T49: 0 | W49: 120 | X49: 60 | Y49: 1800 | Z49: профиль цокольных шин
A50: 07845_011 | B50: Sockelleiste профиль цокольный 100 мм 2,5 м | C50: RU | D50: фасад | E50: цокольный профиль | F50: алюминий | G50: 2,5 | H50: м | I50: без упаковки | J50: 1 | K50: 1 | L50: м/мп | M50: =VLOOKUP($A50,'Изменение прайс-листа'!$A$2:$E$798,4,FALSE) -> по запросу | S50: 0 | T50: 0 | W50: 120 | X50: 56.4 | Y50: 1800
A51: 07845_014 | B51: Sockelleiste профиль цокольный 150 мм 2,5 м | C51: RU | D51: фасад | E51: цокольный профиль | F51: алюминий | G51: 2,5 | H51: м | I51: без упаковки | J51: 1 | K51: 1 | L51: м/мп | M51: =VLOOKUP($A51,'Изменение прайс-листа'!$A$2:$E$798,4,FALSE) -> по запросу | S51: 0 | T51: 0 | W51: 60 | X51: 54 | Y51: 900
A52: 01070_011 | B52: Unterlegscheibe компенсатор, толщина 3 мм | C52: RU | D52: фасад | E52: компенсатор | F52: ПВХ | G52: 1 | H52: уп. | I52: Коробка | J52: 0.01 | K52: 0.02 | L52: шт./мп | M52: =VLOOKUP($A52,'Изменение прайс-листа'!$A$2:$E$798,4,FALSE) -> по запросу | S52: 0 | T52: 0 | W52: 360000 | X52: 24 | Z52: дистанционная шайба с вырезом по центру для механического крепления, из пластмассы, для выравнивания неровностей основания при креплении фиксирующих реек, цокольных шин. Упаковка 100 шт.
A53: 01070_012 | B53: Unterlegscheibe компенсатор, толщина 5 мм | C53: RU | D53: фасад | E53: компенсатор | F53: ПВХ | G53: 1 | H53: уп. | I53: Коробка | J53: 0.01 | K53: 0.02 | L53: шт./мп | M53: =VLOOKUP($A53,'Изменение прайс-листа'!$A$2:$E$798,4,FALSE) -> по запросу | S53: 0 | T53: 0 | W53: 360000 | X53: 36
A54: 01900-001 | B54: Sto-Dehnfugenband 37/17-32 mm anthrazit | C54: DE | D54: фасад | E54: ПСУЛ | F54: Н/Д | G54: 4 | H54: м | I54: Рулон | J54: 1 | K54: 1 | L54: м/мп | M54: =VLOOKUP($A54,'Изменение прайс-листа'!$A$2:$E$798,4,FALSE) -> 3060 | N54: 3672 | O54: 3672 | P54: 14688 | R54: 0 | S54: 0 | T54: 0 | W54: 384 | X54: 23.04 | Y54: 12672 | Z54: саморасширяющаяся уплотнительная лента для деформационных швов из импрегнированного мягкого пористого материала.
A55: 01846-001 | B55: Sto-Fugendichtband 2D, 15/5-12 mm | C55: DE | D55: фасад | E55: ПСУЛ | F55: Н/Д | G55: 9 | H55: м | I55: Рулон | J55: 1 | K55: 1 | L55: м/мп | M55: =VLOOKUP($A55,'Изменение прайс-листа'!$A$2:$E$798,4,FALSE) -> 288 | N55: 345.6 | O55: 345.6 | P55: 3110.4 | R55: 0 | S55: 0 | T55: 0 | W55: 480 | X55: 64.8 | Y55: 15840 | Z55: саморасширяющаяся уплотнительная лента для швов из импрегнированного мягкого пористого материала. Для долговечной изоляции мест примыкания.
A56: 01897-017 | B56: Dehnfugenprofil/ профиль деформационный Typ E 2,5м | C56: DE | D56: фасад | E56: профиль примыкания | F56: ПВХ стеклоткань | G56: 2,5 | H56: м | I56: Коробка | J56: 1 | K56: 1 | L56: м/мп | M56: =VLOOKUP($A56,'Изменение прайс-листа'!$A$2:$E$798,4,FALSE) -> 1520 | N56: 1824 | O56: =$N56*$J56 -> 1824 | P56: =$N56*$G56 -> 4560 | R56: 0 | S56: 0 | T56: 0 | W56: 2000 | X56: 900 | Y56: 30000 | Z56: профиль для обработки деформационных швов на плоскости с интегрированной стекловолокнистой сеткой
A57: 01897-018 | B57: Dehnfugenprofil/ профиль деформационный Typ V 2,5м | C57: DE | D57: фасад | E57: профиль примыкания | F57: ПВХ стеклоткань | G57: 2,5 | H57: м | I57: Коробка | J57: 1 | K57: 1 | L57: м/мп | M57: =VLOOKUP($A57,'Изменение прайс-листа'!$A$2:$E$798,4,FALSE) -> 1580 | N57: 1896 | O57: 1896 | P57: 4740 | R57: 0 | S57: 0 | T57: 0 | W57: 2000 | X57: 760 | Y57: 30000 | Z57: профиль для обработки деформационных швов в углах с интегрированной стекловолокнистой сеткой
A58: 01897-019 | B58: Sto-Dehnfugen-Abdeckprofil E 250 cm | C58: DE | D58: фасад | E58: профиль примыкания | F58: ПВХ | G58: 2,5 | H58: м | I58: Коробка | J58: 1 | K58: 1 | L58: м/мп | M58: =VLOOKUP($A58,'Изменение прайс-листа'!$A$2:$E$798,4,FALSE) -> 792 | N58: 950.4 | O58: 950.4 | P58: 2376 | R58: 0 | S58: 0 | T58: 0 | W58: 2000 | X58: 900 | Y58: 30000 | Z58: заглушка для деформационного профиля тип Е, может окрашиваться в цвет фасада
A59: 04878_025 | B59: Sto-Универсальный забивной дюбель Н5 x 135 толщина теплоизоляции 80 | C59: RU | D59: фасад | E59: дюбель | F59: пластик/ металл | G59: 300 | H59: шт. | I59: Коробка | J59: 5 | K59: 15 | L59: шт/м² | M59: =VLOOKUP($A59,'Изменение прайс-листа'!$A$2:$E$798,4,FALSE) -> по запросу | S59: 0 | T59: 0 | W59: 76800 | X59: 121.6 | Y59: 528 | Z59: тарельчатый забивной дюбель из полиэтилена с металлическим элементом из закаленной оцинкованной стали, термоголовка из полиамида Крепление теплоизоляции в бетон, полнотелый кирпич, пустотелый материал Зона анкеровки: 35мм - бетон, полнотелый кирпич
A60: 04878_026 | B60: Sto-Универсальный забивной дюбель Н5 x 155 толщина теплоизоляции 100 | C60: RU | D60: фасад | E60: дюбель | F60: пластик/ металл | G60: 250 | H60: шт. | I60: Коробка | J60: 5 | K60: 15 | L60: шт/м² | M60: =VLOOKUP($A60,'Изменение прайс-листа'!$A$2:$E$798,4,FALSE) -> по запросу | S60: 0 | T60: 0 | W60: 76800 | X60: 121.6 | Y60: 528
A61: 04878_027 | B61: Sto-Универсальный забивной дюбель Н5 x 175 толщина теплоизоляции 120 | C61: RU | D61: фасад | E61: дюбель | F61: пластик/ металл | G61: 200 | H61: шт. | I61: Коробка | J61: 5 | K61: 15 | L61: шт/м² | M61: =VLOOKUP($A61,'Изменение прайс-листа'!$A$2:$E$798,4,FALSE) -> по запросу | S61: 0 | T61: 0 | W61: 64000 | X61: 110.4 | Y61: 528
A62: 04878_028 | B62: Sto-Универсальный забивной дюбель Н5 x 195 толщина теплоизоляции 140 | C62: RU | D62: фасад | E62: дюбель | F62: пластик/ металл | G62: 200 | H62: шт. | I62: Коробка | J62: 5 | K62: 15 | L62: шт/м² | M62: =VLOOKUP($A62,'Изменение прайс-листа'!$A$2:$E$798,4,FALSE) -> по запросу | S62: 0 | T62: 0 | W62: 51200 | X62: 102.4 | Y62: 528
A63: 04878_029 | B63: Sto-Универсальный забивной дюбель Н5 x 215 толщина теплоизоляции 160 | C63: RU | D63: фасад | E63: дюбель | F63: пластик/ металл | G63: 150 | H63: шт. | I63: Коробка | J63: 5 | K63: 15 | L63: шт/м² | M63: =VLOOKUP($A63,'Изменение прайс-листа'!$A$2:$E$798,4,FALSE) -> по запросу | S63: 0 | T63: 0 | W63: 51200 | X63: 102.4 | Y63: 528
A64: 04878_030 | B64: Sto-Универсальный забивной дюбель Н5 x 235 толщина теплоизоляции 180 | C64: RU | D64: фасад | E64: дюбель | F64: пластик/ металл | G64: 150 | H64: шт. | I64: Коробка | J64: 5 | K64: 15 | L64: шт/м² | M64: =VLOOKUP($A64,'Изменение прайс-листа'!$A$2:$E$798,4,FALSE) -> по запросу | S64: 0 | T64: 0 | W64: 38400 | X64: 91.2 | Y64: 528
A65: 04878_031 | B65: Sto-Универсальный забивной дюбель Н5 x 255 толщина теплоизоляции 200 | C65: RU | D65: фасад | E65: дюбель | F65: пластик/ металл | G65: 150 | H65: шт. | I65: Коробка | J65: 5 | K65: 15 | L65: шт/м² | M65: =VLOOKUP($A65,'Изменение прайс-листа'!$A$2:$E$798,4,FALSE) -> по запросу | S65: 0 | T65: 0 | W65: 38400 | X65: 96 | Y65: 528
A66: 04878_032 | B66: Sto-Универсальный забивной дюбель Н5 x 275 толщина теплоизоляции 220 | C66: RU | D66: фасад | E66: дюбель | F66: пластик/ металл | G66: 100 | H66: шт. | I66: Коробка | J66: 5 | K66: 15 | L66: шт/м² | M66: =VLOOKUP($A66,'Изменение прайс-листа'!$A$2:$E$798,4,FALSE) -> по запросу | S66: 0 | T66: 0 | W66: 38400 | X66: 105.6 | Y66: 528
A67: 04878_033 | B67: Sto-Универсальный забивной дюбель Н5 x 295 толщина теплоизоляции 240 | C67: RU | D67: фасад | E67: дюбель | F67: пластик/ металл | G67: 100 | H67: шт. | I67: Коробка | J67: 5 | K67: 15 | L67: шт/м² | M67: =VLOOKUP($A67,'Изменение прайс-листа'!$A$2:$E$798,4,FALSE) -> по запросу | S67: 0 | T67: 0 | W67: 25600 | X67: 72 | Y67: 528
A68: 01011_001 | B68: Sto-Thermodübel EJ STR 8/60U, длина 115 мм | C68: RU | D68: фасад | E68: дюбель | F68: пластик/ металл | G68: 100 | H68: шт. | I68: Коробка | J68: 5 | K68: 15 | L68: шт/м² | M68: =VLOOKUP($A68,'Изменение прайс-листа'!$A$2:$E$798,4,FALSE) -> по запросу | S68: 0 | T68: 0 | W68: 25600 | X68: 72 | Y68: 528 | Z68: Тарельчатый дюбель из полиэтилена с закручиваемым металлическим элементом из закаленной оцинкованной стали Крепление теплоизоляции в бетон, полнотелый кирпич, пустотелый материал, пенобетон Крепление в теплоизоляцию с утапливанием дюбеля. Сверху устанавливается заглушка из минеральной ваты или пенополистерола Зона анкеровки для 25мм - бетон, полнотелый кирпич 65мм - пустотелый кирпич, пенобетон, газобетон.
A69: 01011_002 | B69: Sto- Thermodübel EJ STR 8/60U, длина 135 мм | C69: RU | D69: фасад | E69: дюбель | F69: пластик/ металл | G69: 100 | H69: шт. | I69: Коробка | J69: 5 | K69: 15 | L69: шт/м² | M69: =VLOOKUP($A69,'Изменение прайс-листа'!$A$2:$E$798,4,FALSE) -> по запросу | S69: 0 | T69: 0 | W69: 25600 | X69: 86.4 | Y69: 528
A70: 01011_003 | B70: Sto-Thermodübel EJ STR 8/60U, длина 155 мм | C70: RU | D70: фасад | E70: дюбель | F70: пластик/ металл | G70: 100 | H70: шт. | I70: Коробка | J70: 5 | K70: 15 | L70: шт/м² | M70: =VLOOKUP($A70,'Изменение прайс-листа'!$A$2:$E$798,4,FALSE) -> по запросу | S70: 0 | T70: 0 | W70: 25600 | X70: 89.6 | Y70: 528
A71: 01011_004 | B71: Sto-Thermodübel EJ STR 8/60U, длина 175 мм | C71: RU | D71: фасад | E71: дюбель | F71: пластик/ металл | G71: 100 | H71: шт. | I71: Коробка | J71: 5 | K71: 15 | L71: шт/м² | M71: =VLOOKUP($A71,'Изменение прайс-листа'!$A$2:$E$798,4,FALSE) -> по запросу | S71: 0 | T71: 0 | W71: 25600 | X71: 92.8 | Y71: 528
A72: 01011_005 | B72: Sto-Thermodübel EJ STR 8/60U, длина 195 мм | C72: RU | D72: фасад | E72: дюбель | F72: пластик/ металл | G72: 100 | H72: шт. | I72: Коробка | J72: 5 | K72: 15 | L72: шт/м² | M72: =VLOOKUP($A72,'Изменение прайс-листа'!$A$2:$E$798,4,FALSE) -> по запросу | S72: =ROUNDUP(X72/W72*Q72,0) -> 0 | T72: =Q72/W72 -> 0 | W72: 25600 | X72: 94.4 | Y72: 528
A73: 01011_006 | B73: Sto-Thermodübel EJ STR 8/60U, длина 215 мм | C73: RU | D73: фасад | E73: дюбель | F73: пластик/ металл | G73: 100 | H73: шт. | I73: Коробка | J73: 5 | K73: 15 | L73: шт/м² | M73: =VLOOKUP($A73,'Изменение прайс-листа'!$A$2:$E$798,4,FALSE) -> по запросу | S73: 0 | T73: 0 | W73: 25600 | X73: 97.6 | Y73: 528
A74: 01011_007 | B74: Sto-Thermodübel EJ STR 8/60U, длина 235 мм | C74: RU | D74: фасад | E74: дюбель | F74: пластик/ металл | G74: 100 | H74: шт. | I74: Коробка | J74: 5 | K74: 15 | L74: шт/м² | M74: =VLOOKUP($A74,'Изменение прайс-листа'!$A$2:$E$798,4,FALSE) -> по запросу | S74: 0 | T74: 0 | W74: 25600 | X74: 100.8 | Y74: 528
A75: 01011_008 | B75: Sto-Thermodübel EJ STR 8/60U, длина 255 мм | C75: RU | D75: фасад | E75: дюбель | F75: пластик/ металл | G75: 100 | H75: шт. | I75: Коробка | J75: 5 | K75: 15 | L75: шт/м² | M75: =VLOOKUP($A75,'Изменение прайс-листа'!$A$2:$E$798,4,FALSE) -> по запросу | S75: 0 | T75: 0 | W75: 25600 | X75: 105.6 | Y75: 528
A76: 01011_009 | B76: Sto-Thermodübel EJ STR 8/60U, длина 275 мм | C76: RU | D76: фасад | E76: дюбель | F76: пластик/ металл | G76: 100 | H76: шт. | I76: Коробка | J76: 5 | K76: 15 | L76: шт/м² | M76: =VLOOKUP($A76,'Изменение прайс-листа'!$A$2:$E$798,4,FALSE) -> по запросу | S76: 0 | T76: 0 | W76: 25600 | X76: 108.8 | Y76: 528
A77: 01011_010 | B77: Sto-Thermodübel EJ STR 8/60U, длина 295 мм | C77: RU | D77: фасад | E77: дюбель | F77: пластик/ металл | G77: 100 | H77: шт. | I77: Коробка | J77: 5 | K77: 15 | L77: шт/м² | M77: =VLOOKUP($A77,'Изменение прайс-листа'!$A$2:$E$798,4,FALSE) -> по запросу | S77: 0 | T77: 0 | W77: 25600 | X77: 113.6 | Y77: 528
A78: 00931_001 | B78: Sto-Thermodübel RPS / STR заглушка EPS (Rondell Polystyrol) | C78: RU | D78: фасад | E78: заглушка | F78: EPS | G78: 100 | H78: шт. | I78: Коробка | J78: 5 | K78: 15 | L78: шт/м² | M78: =VLOOKUP($A78,'Изменение прайс-листа'!$A$2:$E$798,4,FALSE) -> по запросу | S78: 0 | T78: 0 | W78: 25600 | X78: 116.8 | Y78: 528 | Z78: цилиндрическая заглушка из пенополистирола для маскировки утопленных в утеплитель дюбельных тарелок при стандартной посадке
A79: 00931_002 | B79: Sto-Thermodübel RMW / STR заглушка MW (Rondell Mineralwolle) | C79: RU | D79: фасад | E79: заглушка | F79: MW | G79: 100 | H79: шт. | I79: Коробка | J79: 5 | K79: 15 | L79: шт/м² | M79: =VLOOKUP($A79,'Изменение прайс-листа'!$A$2:$E$798,4,FALSE) -> по запросу | S79: 0 | T79: 0 | W79: 25600 | X79: 33.6 | Y79: 528 | Z79: цилиндрическая заглушка из минеральной ваты для маскировки утопленных в утеплитель дюбельных тарелок при стандартной посадке
A80: 00931_003 | B80: Sto-Thermodübel VE / STR заглушка EPS малая (Verschlusselement) | C80: RU | D80: фасад | E80: заглушка | F80: EPS | G80: 500 | H80: шт. | I80: Коробка | J80: 5 | K80: 15 | L80: шт/м² | M80: =VLOOKUP($A80,'Изменение прайс-листа'!$A$2:$E$798,4,FALSE) -> по запросу | S80: 0 | T80: 0 | W80: 25600 | X80: 100 | Y80: 528 | Z80: круглая крышка для поверхностной маскировки дюбельных тарелок
A81: 00934_004 | B81: Sto-Thermodübel MT Фреза STR tool | C81: RU | D81: фасад | E81: фреза | F81: металл | G81: 1 | H81: шт. | I81: без упаковки | J81: н/д | K81: н/д | L81: шт | M81: =VLOOKUP($A81,'Изменение прайс-листа'!$A$2:$E$798,4,FALSE) -> по запросу | S81: 0 | T81: 0 | W81: 25600 | X81: 33.6 | Y81: 528 | Z81: насадка - фреза на дрель для монтажа дюбелей типа Thermodübel
A82: 00801_118 | B82: Sto-Putzgrund OR natur (натурального цвета) | C82: RU | D82: фасад | E82: грунт адгезионный | F82: акрил | G82: 23 | H82: кг | I82: Ведро | J82: 0.3 | K82: 0.4 | L82: кг/м² | M82: =VLOOKUP($A82,'Изменение прайс-листа'!$A$2:$E$798,4,FALSE) -> 234 | N82: 280.8 | O82: 84.24 | P82: 6458.4 | R82: 0 | S82: 0 | T82: 0 | U82: ● | V82: ● | W82: 24 | X82: 568.008 | Y82: 768 | Z82: органическая адгезионная грунтовка с наполнителем (кварцевый песок) для последующего нанесения органических и силиконовых покрытий
A83: 00801_122 | B83: Sto-Putzgrund OR getönt (колерованная) C1 | C83: RU | D83: фасад | E83: грунт адгезионный | F83: акрил | G83: 23 | H83: кг | I83: Ведро | J83: 0.3 | K83: 0.4 | L83: кг/м² | M83: =M82+'7. Надбавки'!$C$5 -> 280 | N83: 336 | O83: 100.8 | P83: 7728 | R83: 0 | S83: 0 | T83: 0 | W83: 24 | X83: 568.008 | Y83: 768
A84: 00804-001 | B84: StoPrep Miral natur (натурального цвета) | C84: DE | D84: фасад | E84: грунт адгезионный | F84: силикат | G84: 25 | H84: кг | I84: Ведро | J84: 0.3 | K84: 0.4 | L84: кг/м² | M84: =VLOOKUP($A84,'Изменение прайс-листа'!$A$2:$E$798,4,FALSE) -> 554 | N84: 664.8 | O84: 199.44 | P84: 16620 | R84: 0 | S84: 0 | T84: 0 | W84: 24 | X84: 616.2 | Y84: 696 | Z84: силикатное пигментированное промежуточное покрытие с наполнителем (кварцевый песок)
A85: 00804-020 | B85: StoPrep Miral getönt (колерованное) C1 | C85: DE | D85: фасад | E85: грунт адгезионный | F85: силикат | G85: 25 | H85: кг | I85: Ведро | J85: 0.3 | K85: 0.4 | L85: кг/м² | M85: =M84+'7. Надбавки'!$C$5 -> 600 | N85: 720 | O85: 216 | P85: 18000 | R85: 0 | S85: 0 | T85: 0 | W85: 24 | X85: 616.2 | Y85: 696
A86: 00517-001 | B86: StoPrim Color weiss (белая) | C86: DE | D86: фасад | E86: грунт адгезионный | F86: силикон | G86: 15 | H86: л | I86: Ведро | J86: 0.1 | K86: 0.13 | L86: л/м² | M86: =VLOOKUP($A86,'Изменение прайс-листа'!$A$2:$E$798,4,FALSE) -> 1062 | N86: 1274.4 | O86: 127.44 | P86: 19116 | R86: 0 | S86: 0 | T86: 0 | U86: ● | V86: ● | W86: 24 | X86: 519.84 | Y86: 792 | Z86: промежуточное покрытие на силиконо-кремниевой основе для твердых, гладких, слабовпитывающих оснований
A87: 00517-008 | B87: StoPrim Color getönt (колерованное) C1 | C87: DE | D87: фасад | E87: грунт адгезионный | F87: силикон | G87: 15 | H87: л | I87: Ведро | J87: 0.1 | K87: 0.13 | L87: л/м² | M87: =M86+'7. Надбавки'!$C$6 -> 1136 | N87: 1363.2 | O87: 136.32 | P87: 20448 | R87: 0 | S87: 0 | T87: 0 | W87: 24 | X87: 519.84 | Y87: 792
A88: 00884-001 | B88: StoPrep Contact | C88: DE | D88: универсальный | E88: грунт адгезионный | F88: акрил | G88: 25 | H88: кг | I88: Ведро | J88: 0.2 | K88: 0.4 | L88: кг/м² | M88: =VLOOKUP($A88,'Изменение прайс-листа'!$A$2:$E$798,4,FALSE) -> 530 | N88: 636 | O88: 127.2 | P88: 15900 | R88: 0 | S88: 0 | T88: 0 | W88: 24 | X88: 616.2 | Y88: 696 | Z88: "адгезионный мостик" для гладких оснований, может смешиваться с цементом
A89: 00747-001 | B89: StoLevell Deco weiss (белая) | C89: DE | D89: фасад | E89: шпатлевка | F89: акрил | G89: 25 | H89: кг | I89: Ведро | J89: 1.3 | K89: 1.8 | L89: кг/м² | M89: =VLOOKUP($A89,'Изменение прайс-листа'!$A$2:$E$798,4,FALSE) -> 496 | N89: 595.2 | O89: 773.76 | P89: 14880 | R89: 0 | S89: 0 | T89: 0 | U89: ● | W89: 24 | X89: 616.2 | Y89: 696 | Z89: органическая финишная шпаклевочная масса, колеруется по системе StoColor System, предназначена для всех минеральных и органических оснований
A90: 00747-002 | B90: StoLevell Deco getönt (колерованная) C1 | C90: DE | D90: фасад | E90: шпатлевка | F90: акрил | G90: 25 | H90: кг | I90: Ведро | J90: 1.3 | K90: 1.8 | L90: кг/м² | M90: =M89+'7. Надбавки'!$C$5 -> 542 | N90: 650.4 | O90: 845.52 | P90: 16260 | R90: 0 | S90: 0 | T90: 0 | W90: 24 | X90: 616.2 | Y90: 696
A91: 00845-006 | B91: StoMiral FL Vario | C91: DE | D91: фасад | E91: штукатурка | F91: цемент | G91: 15 | H91: кг | I91: Мешок | J91: 0.83 | K91: 8.3 | L91: кг/м² | M91: =VLOOKUP($A91,'Изменение прайс-листа'!$A$2:$E$798,4,FALSE) -> 312 | N91: 374.4 | O91: 310.752 | P91: 5616 | R91: 0 | S91: 0 | T91: 0 | W91: 42 | X91: 633.78 | Y91: 1176 | Z91: минеральная, армированная волокнами легкая штукатурка. Для теплоизоляционной кладки из кирпича, а также для смешанной кладки.
A92: 04346-019 | B92: StoLevell Reno weiss (белая) | C92: DE | D92: фасад | E92: штукатурка | F92: цемент | G92: 25 | H92: кг | I92: Мешок | J92: 1.28 | K92: 1.3 | L92: кг/м² | M92: =VLOOKUP($A92,'Изменение прайс-листа'!$A$2:$E$798,4,FALSE) -> 262 | N92: =M92*1.2 -> 314.4 | O92: =$N92*$J92 -> 402.432 | P92: =$N92*$G92 -> 7860 | R92: =Q92*P92 -> 0 | S92: 0 | T92: 0 | W92: 36 | X92: 903.6 | Y92: 720 | Z92: Минеральная фильцующаяся, армированная волокнами шпаклевочная масса, органически улучшенная
A93: 04346_120 | B93: StoReno fein | C93: RU | D93: универсальный | E93: шпаклевка | F93: цемент | G93: 18 | H93: кг | I93: Мешок | J93: 1.4 | K93: 1.5 | L93: кг/м² | M93: =VLOOKUP($A93,'Изменение прайс-листа'!$A$2:$E$798,4,FALSE) -> 90 | N93: 104.688 | O93: 94.2192 | P93: 1884.384 | R93: 0 | S93: 0 | T93: 0 | U93: ● | W93: 42 | X93: 1054.2 | Y93: 780 | Z93: шпаклеква минеральная усиленная
A94: 04346_121 | B94: StoReno | C94: RU | D94: универсальный | E94: шпаклевка | F94: цемент | G94: 25 | H94: кг | I94: Мешок | J94: 1.8 | K94: 2 | L94: кг/м² | M94: =VLOOKUP($A94,'Изменение прайс-листа'!$A$2:$E$798,4,FALSE) -> 42 | N94: 42.288 | O94: 84.576 | P94: 1057.2 | R94: 0 | S94: 0 | T94: 0 | U94: ● | W94: 42 | X94: 1054.2 | Y94: 780 | Z94: финишная шпаклеква минеральная усиленная
A95: 01505_001 | B95: Sto-Strukturputz K 1,5 weiss (белая) | C95: RU | D95: фасад | E95: декоративная штукатурка | F95: цемент | G95: 25 | H95: кг | I95: Мешок | J95: 1.9 | K95: 2 | L95: кг/м² | M95: =VLOOKUP($A95,'Изменение прайс-листа'!$A$2:$E$798,4,FALSE) -> 54 | N95: =M95*1.2 -> 64.8 | O95: =$N95*$J95 -> 123.12 | P95: =$N95*$G95 -> 1620 | R95: 0 | S95: 0 | T95: 0 | U95: ● | W95: 42 | X95: 1054.2 | Y95: 780 | Z95: минеральная финишная штукатурка, усиленная органическими добавками - царапанная структура ("шуба") для минеральных оснований
A96: 01502_004 | B96: Sto-Strukturputz K 2,0 weiss (белая) | C96: RU | D96: фасад | E96: декоративная штукатурка | F96: цемент | G96: 25 | H96: кг | I96: Мешок | J96: 2.4 | K96: 2.5 | L96: кг/м² | M96: =VLOOKUP($A96,'Изменение прайс-листа'!$A$2:$E$798,4,FALSE) -> 54 | N96: 64.8 | O96: 155.52 | P96: 1620 | R96: 0 | S96: 0 | T96: 0 | U96: ● | W96: 42 | X96: 1054.2 | Y96: 780
A97: 01512_001 | B97: Sto-Strukturputz R 1,5 weiss (белая) | C97: RU | D97: фасад | E97: декоративная штукатурка | F97: цемент | G97: 25 | H97: кг | I97: Мешок | J97: 1.9 | K97: 2 | L97: кг/м² | M97: =VLOOKUP($A97,'Изменение прайс-листа'!$A$2:$E$798,4,FALSE) -> 54 | N97: 64.8 | O97: 123.12 | P97: 1620 | R97: 0 | S97: 0 | T97: 0 | U97: ● | W97: 42 | X97: 1054.2 | Y97: 780 | Z97: минеральная финишная штукатурка, усиленная органическими добавками - бороздчатая структура ("короед") для минеральных оснований
A98: 01512_002 | B98: Sto-Strukturputz R 2,0 weiss (белая) | C98: RU | D98: фасад | E98: декоративная штукатурка | F98: цемент | G98: 25 | H98: кг | I98: Мешок | J98: 2.4 | K98: 2.5 | L98: кг/м² | M98: =VLOOKUP($A98,'Изменение прайс-листа'!$A$2:$E$798,4,FALSE) -> 54 | N98: 64.8 | O98: 155.52 | P98: 1620 | R98: 0 | S98: 0 | T98: 0 | U98: ● | W98: 42 | X98: 1054.2 | Y98: 780
A99: 08744-001 | B99: StoMiral K 1,0 weiss (белая) | C99: DE | D99: фасад | E99: декоративная штукатурка | F99: цемент | G99: 25 | H99: кг | I99: Мешок | J99: 1.6 | K99: 1.7 | L99: кг/м² | M99: =VLOOKUP($A99,'Изменение прайс-листа'!$A$2:$E$798,4,FALSE) -> 312 | N99: 374.4 | O99: 599.04 | P99: 9360 | R99: 0 | S99: 0 | T99: 0 | W99: 36 | X99: 903.6 | Y99: 720 | Z99: минеральная финишная штукатурка, усиленная органическими добавками - царапанная структура ("шуба") для минеральных оснований
A100: 01380-001 | B100: StoMiral K 1,5 weiss (белая) | C100: DE | D100: фасад | E100: декоративная штукатурка | F100: цемент | G100: 25 | H100: кг | I100: Мешок | J100: 1.8 | K100: 1.9 | L100: кг/м² | M100: =VLOOKUP($A100,'Изменение прайс-листа'!$A$2:$E$798,4,FALSE) -> 312 | N100: 374.4 | O100: 673.92 | P100: 9360 | R100: 0 | S100: 0 | T100: 0 | W100: 36 | X100: 903.6 | Y100: 720
A101: 01381-001 | B101: StoMiral K 2,0 weiss (белая) | C101: DE | D101: фасад | E101: декоративная штукатурка | F101: цемент | G101: 25 | H101: кг | I101: Мешок | J101: 2.4 | K101: 2.5 | L101: кг/м² | M101: =VLOOKUP($A101,'Изменение прайс-листа'!$A$2:$E$798,4,FALSE) -> 312 | N101: 374.4 | O101: 898.56 | P101: 9360 | R101: 0 | S101: 0 | T101: 0 | W101: 36 | X101: 903.6 | Y101: 720
A102: 01382-001 | B102: StoMiral K 3,0 weiss (белая) | C102: DE | D102: фасад | E102: декоративная штукатурка | F102: цемент | G102: 25 | H102: кг | I102: Мешок | J102: 2.7 | K102: 2.8 | L102: кг/м² | M102: =VLOOKUP($A102,'Изменение прайс-листа'!$A$2:$E$798,4,FALSE) -> 312 | N102: 374.4 | O102: 1010.88 | P102: 9360 | R102: 0 | S102: 0 | T102: 0 | W102: 36 | X102: 903.6 | Y102: 720
A103: 01385-001 | B103: StoMiral R 1,5 weiss (белая) | C103: DE | D103: фасад | E103: декоративная штукатурка | F103: цемент | G103: 25 | H103: кг | I103: Мешок | J103: 1.8 | K103: 1.9 | L103: кг/м² | M103: =VLOOKUP($A103,'Изменение прайс-листа'!$A$2:$E$798,4,FALSE) -> 312 | N103: 374.4 | O103: 673.92 | P103: 9360 | R103: 0 | S103: 0 | T103: 0 | W103: 36 | X103: 903.6 | Y103: 720 | Z103: финишная штукатурка, усиленная органическими добавками - бороздчатая структура ("короед") для минеральных оснований
A104: 01386-001 | B104: StoMiral R 2,0 weiss (белая) | C104: DE | D104: фасад | E104: декоративная штукатурка | F104: цемент | G104: 25 | H104: кг | I104: Мешок | J104: 2.4 | K104: 2.5 | L104: кг/м² | M104: =VLOOKUP($A104,'Изменение прайс-листа'!$A$2:$E$798,4,FALSE) -> 312 | N104: 374.4 | O104: 898.56 | P104: 9360 | R104: 0 | S104: 0 | T104: 0 | W104: 36 | X104: 903.6 | Y104: 720
A105: 01387-001 | B105: StoMiral R 3,0 weiss (белая) | C105: DE | D105: фасад | E105: декоративная штукатурка | F105: цемент | G105: 25 | H105: кг | I105: Мешок | J105: 2.8 | K105: 2.9 | L105: кг/м² | M105: =VLOOKUP($A105,'Изменение прайс-листа'!$A$2:$E$798,4,FALSE) -> 312 | N105: 374.4 | O105: 1048.32 | P105: 9360 | R105: 0 | S105: 0 | T105: 0 | W105: 36 | X105: 903.6 | Y105: 720
A106: 00113-020 | B106: StoMiral MP weiss (белая) | C106: DE | D106: фасад | E106: декоративная штукатурка | F106: цемент | G106: 25 | H106: кг | I106: Мешок | J106: 1.5 | K106: 4 | L106: кг/м² | M106: =VLOOKUP($A106,'Изменение прайс-листа'!$A$2:$E$798,4,FALSE) -> 312 | N106: 374.4 | O106: 561.6 | P106: 9360 | R106: 0 | S106: 0 | T106: 0 | W106: 36 | X106: 903.6 | Y106: 720 | Z106: минеральная финишная штукатурка с моделируемой структурой
A107: 00113-023 | B107: StoMiral MP getönt (колерованная) C1 | C107: DE | D107: фасад | E107: декоративная штукатурка | F107: цемент | G107: 25 | H107: кг | I107: Мешок | J107: 1.5 | K107: 4 | L107: кг/м² | M107: =M106+'7. Надбавки'!$C$5 -> 358 | N107: 429.6 | O107: 644.4 | P107: 10740 | R107: 0 | S107: 0 | T107: 0 | W107: 36 | X107: 903.6 | Y107: 720
A108: 01388-001 | B108: StoMiral Nivell F (мелкозернистая) | C108: DE | D108: фасад | E108: декоративная штукатурка | F108: цемент | G108: 25 | H108: кг | I108: Мешок | J108: 1.7 | K108: 1.8 | L108: кг/м² | M108: =VLOOKUP($A108,'Изменение прайс-листа'!$A$2:$E$798,4,FALSE) -> 312 | N108: 374.4 | O108: 636.48 | P108: 9360 | R108: 0 | S108: 0 | T108: 0 | W108: 36 | X108: 903.6 | Y108: 720 | Z108: мелкозернистая минеральная штукатурка для имитации затертой штукатурки, необходимо покрывать фасадной краской
A109: 01247_001 | B109: StoMarlit K (RU) 1.0 weiss (белая) | C109: RU | D109: фасад | E109: декоративная штукатурка | F109: акрил | G109: 25 | H109: кг | I109: Ведро | J109: 1.9 | K109: 2 | L109: кг/м² | M109: =VLOOKUP($A109,'Изменение прайс-листа'!$A$2:$E$798,4,FALSE) -> 214 | N109: 256.8 | O109: 487.92 | P109: 6420 | R109: 0 | S109: 0 | T109: 0 | U109: ● | W109: 24 | X109: 616.2 | Y109: 720 | Z109: органическая финишная штукатурка (с высокой паропроницаемостью) с зернистой структурой ("шуба") для наружных работ, применяется на минеральных и органических основаниях.
A110: 01247_003 | B110: StoMarlit K (RU) 1.0 getönt (колерованная) C1 | C110: RU | D110: фасад | E110: декоративная штукатурка | F110: акрил | G110: 25 | H110: кг | I110: Ведро | J110: 1.9 | K110: 2 | L110: кг/м² | M110: =M109+'7. Надбавки'!$C$5 -> 260 | N110: 312 | O110: 592.8 | P110: 7800 | R110: 0 | S110: 0 | T110: 0 | W110: 24 | X110: 616.2 | Y110: 720
A111: 02131_001 | B111: StoMarlit K (RU) 1.5 weiss (белая) | C111: RU | D111: фасад | E111: декоративная штукатурка | F111: акрил | G111: 25 | H111: кг | I111: Ведро | J111: 2.4 | K111: 2.5 | L111: кг/м² | M111: =VLOOKUP($A111,'Изменение прайс-листа'!$A$2:$E$798,4,FALSE) -> 214 | N111: 256.8 | O111: 616.32 | P111: 6420 | R111: 0 | S111: 0 | T111: 0 | U111: ● | W111: 24 | X111: 616.2 | Y111: 720
A112: 02131_002 | B112: StoMarlit K (RU) 1.5 getönt (колерованная) C1 | C112: RU | D112: фасад | E112: декоративная штукатурка | F112: акрил | G112: 25 | H112: кг | I112: Ведро | J112: 2.4 | K112: 2.5 | L112: кг/м² | M112: =M111+'7. Надбавки'!$C$5 -> 260 | N112: 312 | O112: 748.8 | P112: 7800 | R112: 0 | S112: 0 | T112: 0 | W112: 24 | X112: 616.2 | Y112: 720
A113: 02132_001 | B113: StoMarlit K (RU) 2.0 weiss (белая) | C113: RU | D113: фасад | E113: декоративная штукатурка | F113: акрил | G113: 25 | H113: кг | I113: Ведро | J113: 3.1 | K113: 3.2 | L113: кг/м² | M113: =VLOOKUP($A113,'Изменение прайс-листа'!$A$2:$E$798,4,FALSE) -> 214 | N113: 256.8 | O113: 796.08 | P113: 6420 | R113: 0 | S113: 0 | T113: 0 | U113: ● | W113: 24 | X113: 616.2 | Y113: 720
A114: 02132_002 | B114: StoMarlit K (RU) 2.0 getönt (колерованная) C1 | C114: RU | D114: фасад | E114: декоративная штукатурка | F114: акрил | G114: 25 | H114: кг | I114: Ведро | J114: 3.1 | K114: 3.2 | L114: кг/м² | M114: =M113+'7. Надбавки'!$C$5 -> 260 | N114: 312 | O114: 967.2 | P114: 7800 | R114: 0 | S114: 0 | T114: 0 | W114: 24 | X114: 616.2 | Y114: 720
A115: 02142_001 | B115: StoMarlit R (RU) 2.0 weiss (белая) | C115: RU | D115: фасад | E115: декоративная штукатурка | F115: акрил | G115: 25 | H115: кг | I115: Ведро | J115: 2.8 | K115: 2.9 | L115: кг/м² | M115: =VLOOKUP($A115,'Изменение прайс-листа'!$A$2:$E$798,4,FALSE) -> 214 | N115: 256.8 | O115: 719.04 | P115: 6420 | R115: 0 | S115: 0 | T115: 0 | U115: ● | W115: 24 | X115: 616.2 | Y115: 720 | Z115: органическая финишная штукатурка (с высокой паропроницаемостью) с бороздчатой структурой ("короед") для наружных работ, применяется на минеральных и органических основаниях.
A116: 02142_002 | B116: StoMarlit R (RU) 2.0 getönt (колерованная) C1 | C116: RU | D116: фасад | E116: декоративная штукатурка | F116: акрил | G116: 25 | H116: кг | I116: Ведро | J116: 2.8 | K116: 2.9 | L116: кг/м² | M116: =M115+'7. Надбавки'!$C$5 -> 260 | N116: 312 | O116: 873.6 | P116: 7800 | R116: 0 | S116: 0 | T116: 0 | W116: 24 | X116: 616.2 | Y116: 720
A117: 00130-001 | B117: Stolit K 1,0 weiss (белая) | C117: DE | D117: фасад | E117: декоративная штукатурка | F117: акрил | G117: 25 | H117: кг | I117: Ведро | J117: 1.8 | K117: 1.9 | L117: кг/м² | M117: =VLOOKUP($A117,'Изменение прайс-листа'!$A$2:$E$798,4,FALSE) -> 580 | N117: 696 | O117: 1252.8 | P117: 17400 | R117: 0 | S117: 0 | T117: 0 | W117: 24 | X117: 616.2 | Y117: 696 | Z117: органическая, армированная волокнами, усиленная финишная штукатурка с царапанной структурой ("шуба"), применяется на минеральных и органических основаниях
A118: 00130-005 | B118: Stolit K 1,0 getönt (колерованная) C1 | C118: DE | D118: фасад | E118: декоративная штукатурка | F118: акрил | G118: 25 | H118: кг | I118: Ведро | J118: 1.8 | K118: 1.9 | L118: кг/м² | M118: =M117+'7. Надбавки'!$C$5 -> 626 | N118: 751.2 | O118: 1352.16 | P118: 18780 | R118: 0 | S118: 0 | T118: 0 | W118: 24 | X118: 616.2 | Y118: 696
A119: 00131-001 | B119: Stolit K 1,5 weiss (белая) | C119: DE | D119: фасад | E119: декоративная штукатурка | F119: акрил | G119: 25 | H119: кг | I119: Ведро | J119: 2.3 | K119: 2.4 | L119: кг/м² | M119: =VLOOKUP($A119,'Изменение прайс-листа'!$A$2:$E$798,4,FALSE) -> 580 | N119: 696 | O119: 1600.8 | P119: 17400 | R119: 0 | S119: 0 | T119: 0 | W119: 24 | X119: 616.2 | Y119: 696
A120: 00131-053 | B120: Stolit K 1,5 getönt (колерованная) C1 | C120: DE | D120: фасад | E120: декоративная штукатурка | F120: акрил | G120: 25 | H120: кг | I120: Ведро | J120: 2.3 | K120: 2.4 | L120: кг/м² | M120: =M119+'7. Надбавки'!$C$5 -> 626 | N120: 751.2 | O120: 1727.76 | P120: 18780 | R120: 0 | S120: 0 | T120: 0 | W120: 24 | X120: 616.2 | Y120: 696
A121: 00132-001 | B121: Stolit K 2,0 weiss (белая) | C121: DE | D121: фасад | E121: декоративная штукатурка | F121: акрил | G121: 25 | H121: кг | I121: Ведро | J121: 3 | K121: 3.1 | L121: кг/м² | M121: =VLOOKUP($A121,'Изменение прайс-листа'!$A$2:$E$798,4,FALSE) -> 580 | N121: 696 | O121: 2088 | P121: 17400 | R121: 0 | S121: 0 | T121: 0 | W121: 24 | X121: 616.2 | Y121: 696
A122: 00132-003 | B122: Stolit K 2,0 getönt (колерованная) C1 | C122: DE | D122: фасад | E122: декоративная штукатурка | F122: акрил | G122: 25 | H122: кг | I122: Ведро | J122: 3 | K122: 3.1 | L122: кг/м² | M122: =M121+'7. Надбавки'!$C$5 -> 626 | N122: 751.2 | O122: 2253.6 | P122: 18780 | R122: 0 | S122: 0 | T122: 0 | W122: 24 | X122: 616.2 | Y122: 696
A123: 00134-001 | B123: Stolit K 3,0 weiss (белая) | C123: DE | D123: фасад | E123: декоративная штукатурка | F123: акрил | G123: 25 | H123: кг | I123: Ведро | J123: 4.3 | K123: 4.4 | L123: кг/м² | M123: =VLOOKUP($A123,'Изменение прайс-листа'!$A$2:$E$798,4,FALSE) -> 580 | N123: 696 | O123: 2992.8 | P123: 17400 | R123: 0 | S123: 0 | T123: 0 | W123: 24 | X123: 616.2 | Y123: 696
A124: 00134-003 | B124: Stolit K 3,0 getönt (колерованная) C1 | C124: DE | D124: фасад | E124: декоративная штукатурка | F124: акрил | G124: 25 | H124: кг | I124: Ведро | J124: 4.3 | K124: 4.4 | L124: кг/м² | M124: =M123+'7. Надбавки'!$C$5 -> 626 | N124: 751.2 | O124: 3230.16 | P124: 18780 | R124: 0 | S124: 0 | T124: 0 | W124: 24 | X124: 616.2 | Y124: 696
A125: 00135-001 | B125: Stolit K 6,0 weiss (белая) | C125: DE | D125: фасад | E125: декоративная штукатурка | F125: акрил | G125: 25 | H125: кг | I125: Ведро | J125: 6 | K125: 6.1 | L125: кг/м² | M125: =VLOOKUP($A125,'Изменение прайс-листа'!$A$2:$E$798,4,FALSE) -> 606 | N125: 727.2 | O125: 4363.2 | P125: 18180 | R125: 0 | S125: 0 | T125: 0 | W125: 24 | X125: 616.2 | Y125: 696
A126: 00135-002 | B126: Stolit K 6,0 getönt (колерованная) C1 | C126: DE | D126: фасад | E126: декоративная штукатурка | F126: акрил | G126: 25 | H126: кг | I126: Ведро | J126: 6 | K126: 6.1 | L126: кг/м² | M126: =M125+'7. Надбавки'!$C$5 -> 652 | N126: 782.4 | O126: 4694.4 | P126: 19560 | R126: 0 | S126: 0 | T126: 0 | W126: 24 | X126: 616.2 | Y126: 696
A127: 00141-001 | B127: Stolit R 1,5 weiss (белая) | C127: DE | D127: фасад | E127: декоративная штукатурка | F127: акрил | G127: 25 | H127: кг | I127: Ведро | J127: 2.2 | K127: 2.3 | L127: кг/м² | M127: =VLOOKUP($A127,'Изменение прайс-листа'!$A$2:$E$798,4,FALSE) -> 580 | N127: 696 | O127: 1531.2 | P127: 17400 | R127: 0 | S127: 0 | T127: 0 | W127: 24 | X127: 616.2 | Y127: 696 | Z127: органическая, армированная волокнами, усиленная финишная штукатурка с бороздчатой структурой ("короед") для наружных работ, применяется на минеральных и органических основаниях
A128: 00141-046 | B128: Stolit R 1,5 getönt (колерованная) C1 | C128: DE | D128: фасад | E128: декоративная штукатурка | F128: акрил | G128: 25 | H128: кг | I128: Ведро | J128: 2.2 | K128: 2.3 | L128: кг/м² | M128: =M127+'7. Надбавки'!$C$5 -> 626 | N128: 751.2 | O128: 1652.64 | P128: 18780 | R128: 0 | S128: 0 | T128: 0 | W128: 24 | X128: 616.2 | Y128: 696
A129: 00142-002 | B129: Stolit R 2,0 weiss (белая) | C129: DE | D129: фасад | E129: декоративная штукатурка | F129: акрил | G129: 25 | H129: кг | I129: Ведро | J129: 2.7 | K129: 2.8 | L129: кг/м² | M129: =VLOOKUP($A129,'Изменение прайс-листа'!$A$2:$E$798,4,FALSE) -> 580 | N129: 696 | O129: 1879.2 | P129: 17400 | R129: 0 | S129: 0 | T129: 0 | W129: 24 | X129: 616.2 | Y129: 696
A130: 00142-047 | B130: Stolit R 2,0 getönt (колерованная) C1 | C130: DE | D130: фасад | E130: декоративная штукатурка | F130: акрил | G130: 25 | H130: кг | I130: Ведро | J130: 2.7 | K130: 2.8 | L130: кг/м² | M130: =M129+'7. Надбавки'!$C$5 -> 626 | N130: 751.2 | O130: 2028.24 | P130: 18780 | R130: 0 | S130: 0 | T130: 0 | W130: 24 | X130: 616.2 | Y130: 696
A131: 00143-001 | B131: Stolit R 3,0 weiss (белая) | C131: DE | D131: фасад | E131: декоративная штукатурка | F131: акрил | G131: 25 | H131: кг | I131: Ведро | J131: 3.5 | K131: 3.6 | L131: кг/м² | M131: =VLOOKUP($A131,'Изменение прайс-листа'!$A$2:$E$798,4,FALSE) -> 580 | N131: 696 | O131: 2436 | P131: 17400 | R131: 0 | S131: 0 | T131: 0 | W131: 24 | X131: 616.2 | Y131: 696
A132: 00143-048 | B132: Stolit R 3,0 getönt (колерованная) C1 | C132: DE | D132: фасад | E132: декоративная штукатурка | F132: акрил | G132: 25 | H132: кг | I132: Ведро | J132: 3.5 | K132: 3.6 | L132: кг/м² | M132: =M131+'7. Надбавки'!$C$5 -> 626 | N132: 751.2 | O132: 2629.2 | P132: 18780 | R132: 0 | S132: 0 | T132: 0 | W132: 24 | X132: 616.2 | Y132: 696
A133: 00144-001 | B133: Stolit R 6,0 weiss (белая) | C133: DE | D133: фасад | E133: декоративная штукатурка | F133: акрил | G133: 25 | H133: кг | I133: Ведро | J133: 5.6 | K133: 5.7 | L133: кг/м² | M133: =VLOOKUP($A133,'Изменение прайс-листа'!$A$2:$E$798,4,FALSE) -> 648 | N133: 777.6 | O133: 4354.56 | P133: 19440 | R133: 0 | S133: 0 | T133: 0 | W133: 24 | X133: 616.2 | Y133: 696
A134: 00144-003 | B134: Stolit R 6,0 getönt (колерованная) C1 | C134: DE | D134: фасад | E134: декоративная штукатурка | F134: акрил | G134: 25 | H134: кг | I134: Ведро | J134: 5.6 | K134: 5.7 | L134: кг/м² | M134: =M133+'7. Надбавки'!$C$5 -> 694 | N134: 832.8 | O134: 4663.68 | P134: 20820 | R134: 0 | S134: 0 | T134: 0 | W134: 24 | X134: 616.2 | Y134: 696
A135: 00183-001 | B135: Stolit MP weiss (белая) | C135: DE | D135: фасад | E135: декоративная штукатурка | F135: акрил | G135: 25 | H135: кг | I135: Ведро | J135: 1.5 | K135: 2.5 | L135: кг/м² | M135: =VLOOKUP($A135,'Изменение прайс-листа'!$A$2:$E$798,4,FALSE) -> 580 | N135: 696 | O135: 1044 | P135: 17400 | R135: 0 | S135: 0 | T135: 0 | U135: ● | V135: ● | W135: 24 | X135: 616.2 | Y135: 696 | Z135: органическая финишная штукатурка с моделируемой структурой для наружных работ, применяется на минеральных и органических основаниях
A136: 00183-014 | B136: Stolit MP getönt (колерованная) C1 | C136: DE | D136: фасад | E136: декоративная штукатурка | F136: акрил | G136: 25 | H136: кг | I136: Ведро | J136: 1.5 | K136: 2.5 | L136: кг/м² | M136: =M135+'7. Надбавки'!$C$5 -> 626 | N136: 751.2 | O136: 1126.8 | P136: 18780 | R136: 0 | S136: =ROUNDUP(X136/W136*Q136,0) -> 0 | T136: =Q136/W136 -> 0 | W136: 24 | X136: 616.2 | Y136: 696
A137: 00966-001 | B137: Stolit Effect weiss (белая) | C137: DE | D137: фасад | E137: декоративная штукатурка | F137: акрил | G137: 25 | H137: кг | I137: Ведро | J137: 3.5 | K137: 5.5 | L137: кг/м² | M137: =VLOOKUP($A137,'Изменение прайс-листа'!$A$2:$E$798,4,FALSE) -> 580 | N137: =M137*1.2 -> 696 | O137: =$N137*$J137 -> 2436 | P137: =$N137*$G137 -> 17400 | R137: =Q137*P137 -> 0 | S137: 0 | T137: 0 | W137: 24 | X137: 616.2 | Y137: 696 | Z137: специальная наружная штукатурка на искусственных смолах. Высокая защита от атмосферных воздействий, хорошая паропроницаемость.
A138: 00966-002 | B138: Stolit Effect getönt (колерованная) C1 | C138: DE | D138: фасад | E138: декоративная штукатурка | F138: акрил | G138: 25 | H138: кг | I138: Ведро | J138: 3.5 | K138: 5.5 | L138: кг/м² | M138: =M137+'7. Надбавки'!$C$5 -> 626 | N138: 751.2 | O138: 2629.2 | P138: 18780 | R138: 0 | S138: 0 | T138: 0 | W138: 24 | X138: 616.2 | Y138: 696
A139: 04366-003 | B139: Stolit Milano natur (натурального цвета) | C139: DE | D139: фасад | E139: декоративная штукатурка | F139: акрил | G139: 25 | H139: кг | I139: Ведро | J139: 1.5 | K139: 2.5 | L139: кг/м² | M139: =VLOOKUP($A139,'Изменение прайс-листа'!$A$2:$E$798,4,FALSE) -> 580 | N139: 696 | O139: 1044 | P139: 17400 | R139: 0 | S139: 0 | T139: 0 | U139: ● | V139: ● | W139: 24 | X139: 616.2 | Y139: 696 | Z139: тонкая наружная штукатурка на исскуственных смолах. Высокая эластичность и устойчивость к атмосферным воздействиям. Возможность моделирования различных структур, высокая стабильность цветового тона.
A140: 04366-004 | B140: Stolit Milano getönt (колерованная) C1 | C140: DE | D140: фасад | E140: декоративная штукатурка | F140: акрил | G140: 25 | H140: кг | I140: Ведро | J140: 1.5 | K140: 2.5 | L140: кг/м² | M140: =M139+'7. Надбавки'!$C$5 -> 626 | N140: 751.2 | O140: 1126.8 | P140: 18780 | R140: 0 | S140: 0 | T140: 0 | W140: 24 | X140: 616.2 | Y140: 696
A141: 09576-010 | B141: Stolit AIMS K 1,0 weiss (белая) | C141: DE | D141: фасад | E141: декоративная штукатурка | F141: акрил | G141: 25 | H141: кг | I141: Ведро | J141: 1.5 | K141: 2.5 | L141: кг/м² | M141: =VLOOKUP($A141,'Изменение прайс-листа'!$A$2:$E$798,4,FALSE) -> 792 | N141: =M141*1.2 -> 950.4 | O141: 1425.6 | P141: 23760 | R141: =Q141*P141 -> 0 | S141: =ROUNDUP(X141/W141*Q141,0) -> 0 | T141: =Q141/W141 -> 0 | W141: 24 | X141: 616.2 | Y141: 696 | Z141: Уникальный продукт! органическая, армированная волокнами, усиленная финишная штукатурка с бороздчатой структурой ("короед") для наружных работ, применяется на минеральных и органических основаниях. 95% натурального сырья. Содержит 30% натурального масла сосны
A142: 09576-009 | B142: Stolit AIMS K 1,0 getönt (колерованная) C1 | C142: DE | D142: фасад | E142: декоративная штукатурка | F142: акрил | G142: 25 | H142: кг | I142: Ведро | J142: 1.5 | K142: 2.5 | L142: кг/м² | M142: =M141+'7. Надбавки'!$C$5 -> 838 | N142: 1005.6 | O142: 1508.4 | P142: 25140 | R142: 0 | S142: 0 | T142: 0 | W142: 24 | X142: 616.2 | Y142: 696
A143: 09576-006 | B143: Stolit AIMS K 1,5 weiss (белая) | C143: DE | D143: фасад | E143: декоративная штукатурка | F143: акрил | G143: 25 | H143: кг | I143: Ведро | J143: 1.5 | K143: 2.5 | L143: кг/м² | M143: =VLOOKUP($A143,'Изменение прайс-листа'!$A$2:$E$798,4,FALSE) -> 792 | N143: 950.4 | O143: 1425.6 | P143: 23760 | R143: 0 | S143: 0 | T143: 0 | W143: 24 | X143: 616.2 | Y143: 696
A144: 09576-005 | B144: Stolit AIMS K 1,5 getönt (колерованная) C1 | C144: DE | D144: фасад | E144: декоративная штукатурка | F144: акрил | G144: 25 | H144: кг | I144: Ведро | J144: 1.5 | K144: 2.5 | L144: кг/м² | M144: =M143+'7. Надбавки'!$C$5 -> 838 | N144: 1005.6 | O144: 1508.4 | P144: 25140 | R144: 0 | S144: 0 | T144: 0 | W144: 24 | X144: 616.2 | Y144: 696
A145: 09576-002 | B145: Stolit AIMS K 2,0 weiss (белая) | C145: DE | D145: фасад | E145: декоративная штукатурка | F145: акрил | G145: 25 | H145: кг | I145: Ведро | J145: 1.5 | K145: 2.5 | L145: кг/м² | M145: =VLOOKUP($A145,'Изменение прайс-листа'!$A$2:$E$798,4,FALSE) -> 792 | N145: 950.4 | O145: 1425.6 | P145: 23760 | R145: 0 | S145: 0 | T145: 0 | W145: 24 | X145: 616.2 | Y145: 696
A146: 09576-001 | B146: Stolit AIMS K 2,0 getönt (колерованная) C1 | C146: DE | D146: фасад | E146: декоративная штукатурка | F146: акрил | G146: 25 | H146: кг | I146: Ведро | J146: 1.5 | K146: 2.5 | L146: кг/м² | M146: =M145+'7. Надбавки'!$C$5 -> 838 | N146: 1005.6 | O146: 1508.4 | P146: 25140 | R146: 0 | S146: 0 | T146: 0 | W146: 24 | X146: 616.2 | Y146: 696
A147: 09576-008 | B147: Stolit AIMS K 3,0 weiss (белая) | C147: DE | D147: фасад | E147: декоративная штукатурка | F147: акрил | G147: 25 | H147: кг | I147: Ведро | J147: 1.5 | K147: 2.5 | L147: кг/м² | M147: =VLOOKUP($A147,'Изменение прайс-листа'!$A$2:$E$798,4,FALSE) -> 792 | N147: 950.4 | O147: 1425.6 | P147: 23760 | R147: 0 | S147: 0 | T147: 0 | W147: 24 | X147: 616.2 | Y147: 696
A148: 09576-007 | B148: Stolit AIMS K 3,0 getönt (колерованная) C1 | C148: DE | D148: фасад | E148: декоративная штукатурка | F148: акрил | G148: 25 | H148: кг | I148: Ведро | J148: 1.5 | K148: 2.5 | L148: кг/м² | M148: =M147+'7. Надбавки'!$C$5 -> 838 | N148: 1005.6 | O148: 1508.4 | P148: 25140 | R148: 0 | S148: 0 | T148: 0 | W148: 24 | X148: 616.2 | Y148: 696
A149: 09576-004 | B149: Stolit AIMS MP weiss (белая) | C149: DE | D149: фасад | E149: декоративная штукатурка | F149: акрил | G149: 25 | H149: кг | I149: Ведро | J149: 1.5 | K149: 2.5 | L149: кг/м² | M149: =VLOOKUP($A149,'Изменение прайс-листа'!$A$2:$E$798,4,FALSE) -> 848 | N149: 1017.6 | O149: 1526.4 | P149: 25440 | R149: 0 | S149: 0 | T149: 0 | W149: 24 | X149: 616.2 | Y149: 696
A150: 09576-003 | B150: Stolit AIMS MP getönt (колерованная) C1 | C150: DE | D150: фасад | E150: декоративная штукатурка | F150: акрил | G150: 25 | H150: кг | I150: Ведро | J150: 1.5 | K150: 2.5 | L150: кг/м² | M150: =M149+'7. Надбавки'!$C$5 -> 894 | N150: 1072.8 | O150: 1609.2 | P150: 26820 | R150: 0 | S150: 0 | T150: 0 | W150: 24 | X150: 616.2 | Y150: 696
A151: 01383-001 | B151: StoNivellit weiss (белая) | C151: DE | D151: фасад | E151: декоративная штукатурка | F151: акрил | G151: 25 | H151: кг | I151: Ведро | J151: 1.5 | K151: 1.7 | L151: кг/м² | M151: =VLOOKUP($A151,'Изменение прайс-листа'!$A$2:$E$798,4,FALSE) -> 614 | N151: 736.8 | O151: 1105.2 | P151: 18420 | R151: 0 | S151: 0 | T151: 0 | W151: 24 | X151: 616.2 | Y151: 696 | Z151: мелкозернистая наружная штукатурка на искусственных смолах. Не содержит цемента, высокая погодоустойчивость и эластичность, белая, колеруемая.
A152: 01383-008 | B152: StoNivellit getönt (колерованная) C1 | C152: DE | D152: фасад | E152: декоративная штукатурка | F152: акрил | G152: 25 | H152: кг | I152: Ведро | J152: 1.5 | K152: 1.7 | L152: кг/м² | M152: =M151+'7. Надбавки'!$C$5 -> 660 | N152: 792 | O152: 1188 | P152: 19800 | R152: 0 | S152: 0 | T152: 0 | W152: 24 | X152: 616.2 | Y152: 696
A153: 00152-062 | B153: Sto-Superlit K 2,0 405 (размер зерна 2,00 мм) | C153: DE | D153: фасад | E153: декоративная штукатурка | F153: акрил | G153: 23 | H153: кг | I153: Ведро | J153: 5 | K153: 6 | L153: кг/м² | M153: =VLOOKUP($A153,'Изменение прайс-листа'!$A$2:$E$798,4,FALSE) -> 734 | N153: =M153*1.2 -> 880.8 | O153: =$N153*$J153 -> 4404 | P153: =$N153*$G153 -> 20258.4 | R153: =Q153*P153 -> 0 | S153: 0 | T153: 0 | W153: 24 | X153: 568.008 | Y153: 768 | Z153: Уникальный продукт! органическая штукатурка из смеси натуральных цветных камней. Высокая устойчивость к механическим нагрузкам, высокая эластичность, хорошая пароницаемость, погодоустойчавая.
A154: 00152-063 | B154: Sto-Superlit K 2,0 409 (размер зерна 2,00 мм) | C154: DE | D154: фасад | E154: декоративная штукатурка | F154: акрил | G154: 23 | H154: кг | I154: Ведро | J154: 5 | K154: 6 | L154: кг/м² | M154: =VLOOKUP($A154,'Изменение прайс-листа'!$A$2:$E$798,4,FALSE) -> 734 | N154: 880.8 | O154: 4404 | P154: 20258.4 | R154: 0 | S154: 0 | T154: 0 | W154: 24 | X154: 568.008 | Y154: 768
A155: 00152-077 | B155: Sto-Superlit K 2,0 411 (размер зерна 2,00 мм) | C155: DE | D155: фасад | E155: декоративная штукатурка | F155: акрил | G155: 23 | H155: кг | I155: Ведро | J155: 5 | K155: 6 | L155: кг/м² | M155: =VLOOKUP($A155,'Изменение прайс-листа'!$A$2:$E$798,4,FALSE) -> 734 | N155: 880.8 | O155: 4404 | P155: 20258.4 | R155: 0 | S155: 0 | T155: 0 | W155: 24 | X155: 568.008 | Y155: 768
A156: 00152-078 | B156: Sto-Superlit K 2,0 412 (размер зерна 2,00 мм) | C156: DE | D156: фасад | E156: декоративная штукатурка | F156: акрил | G156: 23 | H156: кг | I156: Ведро | J156: 5 | K156: 6 | L156: кг/м² | M156: =VLOOKUP($A156,'Изменение прайс-листа'!$A$2:$E$798,4,FALSE) -> 734 | N156: 880.8 | O156: 4404 | P156: 20258.4 | R156: 0 | S156: 0 | T156: 0 | W156: 24 | X156: 568.008 | Y156: 768
A157: 00152-064 | B157: Sto-Superlit K 2,0 413 (размер зерна 2,00 мм) | C157: DE | D157: фасад | E157: декоративная штукатурка | F157: акрил | G157: 23 | H157: кг | I157: Ведро | J157: 5 | K157: 6 | L157: кг/м² | M157: =VLOOKUP($A157,'Изменение прайс-листа'!$A$2:$E$798,4,FALSE) -> 734 | N157: 880.8 | O157: 4404 | P157: 20258.4 | R157: 0 | S157: 0 | T157: 0 | W157: 24 | X157: 568.008 | Y157: 768
A158: 00152-079 | B158: Sto-Superlit K 2,0 414 (размер зерна 2,00 мм) | C158: DE | D158: фасад | E158: декоративная штукатурка | F158: акрил | G158: 23 | H158: кг | I158: Ведро | J158: 5 | K158: 6 | L158: кг/м² | M158: =VLOOKUP($A158,'Изменение прайс-листа'!$A$2:$E$798,4,FALSE) -> 734 | N158: 880.8 | O158: 4404 | P158: 20258.4 | R158: 0 | S158: 0 | T158: 0 | W158: 24 | X158: 568.008 | Y158: 768
A159: 00152-080 | B159: Sto-Superlit K 2,0 416 (размер зерна 2,00 мм) | C159: DE | D159: фасад | E159: декоративная штукатурка | F159: акрил | G159: 23 | H159: кг | I159: Ведро | J159: 5 | K159: 6 | L159: кг/м² | M159: =VLOOKUP($A159,'Изменение прайс-листа'!$A$2:$E$798,4,FALSE) -> 734 | N159: 880.8 | O159: 4404 | P159: 20258.4 | R159: 0 | S159: 0 | T159: 0 | W159: 24 | X159: 568.008 | Y159: 768
A160: 00152-030 | B160: Sto-Superlit K 2,0 800 (размер зерна 2,00 мм) | C160: DE | D160: фасад | E160: декоративная штукатурка | F160: акрил | G160: 23 | H160: кг | I160: Ведро | J160: 5 | K160: 6 | L160: кг/м² | M160: =VLOOKUP($A160,'Изменение прайс-листа'!$A$2:$E$798,4,FALSE) -> 734 | N160: 880.8 | O160: 4404 | P160: 20258.4 | R160: 0 | S160: 0 | T160: 0 | W160: 24 | X160: 568.008 | Y160: 768
A161: 00152-041 | B161: Sto-Superlit K 2,0 818 (размер зерна 2,00 мм) | C161: DE | D161: фасад | E161: декоративная штукатурка | F161: акрил | G161: 23 | H161: кг | I161: Ведро | J161: 5 | K161: 6 | L161: кг/м² | M161: =VLOOKUP($A161,'Изменение прайс-листа'!$A$2:$E$798,4,FALSE) -> 734 | N161: 880.8 | O161: 4404 | P161: 20258.4 | R161: 0 | S161: 0 | T161: 0 | W161: 24 | X161: 568.008 | Y161: 768
A162: 00152-043 | B162: Sto-Superlit K 2,0 820 (размер зерна 2,00 мм) | C162: DE | D162: фасад | E162: декоративная штукатурка | F162: акрил | G162: 23 | H162: кг | I162: Ведро | J162: 5 | K162: 6 | L162: кг/м² | M162: =VLOOKUP($A162,'Изменение прайс-листа'!$A$2:$E$798,4,FALSE) -> 734 | N162: 880.8 | O162: 4404 | P162: 20258.4 | R162: 0 | S162: 0 | T162: 0 | W162: 24 | X162: 568.008 | Y162: 768
A163: 00152-044 | B163: Sto-Superlit K 2,0 821 (размер зерна 2,00 мм) | C163: DE | D163: фасад | E163: декоративная штукатурка | F163: акрил | G163: 23 | H163: кг | I163: Ведро | J163: 5 | K163: 6 | L163: кг/м² | M163: =VLOOKUP($A163,'Изменение прайс-листа'!$A$2:$E$798,4,FALSE) -> 734 | N163: 880.8 | O163: 4404 | P163: 20258.4 | R163: 0 | S163: 0 | T163: 0 | W163: 24 | X163: 568.008 | Y163: 768
A164: 00152-047 | B164: Sto-Superlit K 2,0 824 (размер зерна 2,00 мм) | C164: DE | D164: фасад | E164: декоративная штукатурка | F164: акрил | G164: 23 | H164: кг | I164: Ведро | J164: 5 | K164: 6 | L164: кг/м² | M164: =VLOOKUP($A164,'Изменение прайс-листа'!$A$2:$E$798,4,FALSE) -> 734 | N164: 880.8 | O164: 4404 | P164: 20258.4 | R164: 0 | S164: 0 | T164: 0 | W164: 24 | X164: 568.008 | Y164: 768
A165: 00152-051 | B165: Sto-Superlit K 2,0 828 (размер зерна 2,00 мм) | C165: DE | D165: фасад | E165: декоративная штукатурка | F165: акрил | G165: 23 | H165: кг | I165: Ведро | J165: 5 | K165: 6 | L165: кг/м² | M165: =VLOOKUP($A165,'Изменение прайс-листа'!$A$2:$E$798,4,FALSE) -> 734 | N165: 880.8 | O165: 4404 | P165: 20258.4 | R165: 0 | S165: 0 | T165: 0 | W165: 24 | X165: 568.008 | Y165: 768
A166: 00152-054 | B166: Sto-Superlit K 2,0 831 (размер зерна 2,00 мм) | C166: DE | D166: фасад | E166: декоративная штукатурка | F166: акрил | G166: 23 | H166: кг | I166: Ведро | J166: 5 | K166: 6 | L166: кг/м² | M166: =VLOOKUP($A166,'Изменение прайс-листа'!$A$2:$E$798,4,FALSE) -> 734 | N166: 880.8 | O166: 4404 | P166: 20258.4 | R166: 0 | S166: 0 | T166: 0 | W166: 24 | X166: 568.008 | Y166: 768
A167: 00152-056 | B167: Sto-Superlit K 2,0 833 (размер зерна 2,00 мм) | C167: DE | D167: фасад | E167: декоративная штукатурка | F167: акрил | G167: 23 | H167: кг | I167: Ведро | J167: 5 | K167: 6 | L167: кг/м² | M167: =VLOOKUP($A167,'Изменение прайс-листа'!$A$2:$E$798,4,FALSE) -> 734 | N167: 880.8 | O167: 4404 | P167: 20258.4 | R167: 0 | S167: 0 | T167: 0 | W167: 24 | X167: 568.008 | Y167: 768
A168: 00152-057 | B168: Sto-Superlit K 2,0 834 (размер зерна 2,00 мм) | C168: DE | D168: фасад | E168: декоративная штукатурка | F168: акрил | G168: 23 | H168: кг | I168: Ведро | J168: 5 | K168: 6 | L168: кг/м² | M168: =VLOOKUP($A168,'Изменение прайс-листа'!$A$2:$E$798,4,FALSE) -> 734 | N168: 880.8 | O168: 4404 | P168: 20258.4 | R168: 0 | S168: 0 | T168: 0 | W168: 24 | X168: 568.008 | Y168: 768
A169: 00152-083 | B169: Sto-Superlit K 2,0 841 (размер зерна 2,00 мм) | C169: DE | D169: фасад | E169: декоративная штукатурка | F169: акрил | G169: 23 | H169: кг | I169: Ведро | J169: 5 | K169: 6 | L169: кг/м² | M169: =VLOOKUP($A169,'Изменение прайс-листа'!$A$2:$E$798,4,FALSE) -> 734 | N169: 880.8 | O169: 4404 | P169: 20258.4 | R169: 0 | S169: 0 | T169: 0 | W169: 24 | X169: 568.008 | Y169: 768
A170: 00152-061 | B170: Sto-Superlit K 2,0 403 (размер зерна 2,00 мм) | C170: DE | D170: фасад | E170: декоративная штукатурка | F170: акрил | G170: 23 | H170: кг | I170: Ведро | J170: 5 | K170: 6 | L170: кг/м² | M170: =VLOOKUP($A170,'Изменение прайс-листа'!$A$2:$E$798,4,FALSE) -> 734 | N170: =M170*1.2 -> 880.8 | O170: =$N170*$J170 -> 4404 | P170: =$N170*$G170 -> 20258.4 | R170: =Q170*P170 -> 0 | S170: 0 | T170: 0 | W170: 24 | X170: 568.008 | Y170: 768
A171: 00152-076 | B171: Sto-Superlit K 2,0 404 (размер зерна 2,00 мм) | C171: DE | D171: фасад | E171: декоративная штукатурка | F171: акрил | G171: 23 | H171: кг | I171: Ведро | J171: 5 | K171: 6 | L171: кг/м² | M171: =VLOOKUP($A171,'Изменение прайс-листа'!$A$2:$E$798,4,FALSE) -> 808 | N171: 969.6 | O171: 4848 | P171: 22300.8 | R171: 0 | S171: 0 | T171: 0 | W171: 24 | X171: 568.008 | Y171: 768
A172: 00152-065 | B172: Sto-Superlit K 2,0 415 (размер зерна 2,00 мм) | C172: DE | D172: фасад | E172: декоративная штукатурка | F172: акрил | G172: 23 | H172: кг | I172: Ведро | J172: 5 | K172: 6 | L172: кг/м² | M172: =VLOOKUP($A172,'Изменение прайс-листа'!$A$2:$E$798,4,FALSE) -> 808 | N172: 969.6 | O172: 4848 | P172: 22300.8 | R172: 0 | S172: 0 | T172: 0 | W172: 24 | X172: 568.008 | Y172: 768
A173: 00152-050 | B173: Sto-Superlit K 2,0 827 (размер зерна 2,00 мм) | C173: DE | D173: фасад | E173: декоративная штукатурка | F173: акрил | G173: 23 | H173: кг | I173: Ведро | J173: 5 | K173: 6 | L173: кг/м² | M173: =VLOOKUP($A173,'Изменение прайс-листа'!$A$2:$E$798,4,FALSE) -> 808 | N173: 969.6 | O173: 4848 | P173: 22300.8 | R173: 0 | S173: 0 | T173: 0 | W173: 24 | X173: 568.008 | Y173: 768
A174: 00152-052 | B174: Sto-Superlit K 2,0 829 (размер зерна 2,00 мм) | C174: DE | D174: фасад | E174: декоративная штукатурка | F174: акрил | G174: 23 | H174: кг | I174: Ведро | J174: 5 | K174: 6 | L174: кг/м² | M174: =VLOOKUP($A174,'Изменение прайс-листа'!$A$2:$E$798,4,FALSE) -> 808 | N174: 969.6 | O174: 4848 | P174: 22300.8 | R174: 0 | S174: 0 | T174: 0 | W174: 24 | X174: 568.008 | Y174: 768
A175: 00152-055 | B175: Sto-Superlit K 2,0 832 (размер зерна 2,00 мм) | C175: DE | D175: фасад | E175: декоративная штукатурка | F175: акрил | G175: 23 | H175: кг | I175: Ведро | J175: 5 | K175: 6 | L175: кг/м² | M175: =VLOOKUP($A175,'Изменение прайс-листа'!$A$2:$E$798,4,FALSE) -> 808 | N175: 969.6 | O175: 4848 | P175: 22300.8 | R175: 0 | S175: 0 | T175: 0 | W175: 24 | X175: 568.008 | Y175: 768
A176: 00152-059 | B176: Sto-Superlit K 2,0 836 (размер зерна 2,00 мм) | C176: DE | D176: фасад | E176: декоративная штукатурка | F176: акрил | G176: 23 | H176: кг | I176: Ведро | J176: 5 | K176: 6 | L176: кг/м² | M176: =VLOOKUP($A176,'Изменение прайс-листа'!$A$2:$E$798,4,FALSE) -> 808 | N176: 969.6 | O176: 4848 | P176: 22300.8 | R176: 0 | S176: 0 | T176: 0 | W176: 24 | X176: 568.008 | Y176: 768
A177: 00152-084 | B177: Sto-Superlit K 2,0 842 (размер зерна 2,00 мм) | C177: DE | D177: фасад | E177: декоративная штукатурка | F177: акрил | G177: 23 | H177: кг | I177: Ведро | J177: 5 | K177: 6 | L177: кг/м² | M177: =VLOOKUP($A177,'Изменение прайс-листа'!$A$2:$E$798,4,FALSE) -> 808 | N177: 969.6 | O177: 4848 | P177: 22300.8 | R177: 0 | S177: 0 | T177: 0 | W177: 24 | X177: 568.008 | Y177: 768
A178: 00866-001 | B178: StoSuperlit Protect transparent (прозрачный) | C178: DE | D178: фасад | E178: лазурь | F178: акрил | G178: 15 | H178: кг | I178: Ведро | J178: 0.16 | K178: 0.4 | L178: кг/м² | M178: =VLOOKUP($A178,'Изменение прайс-листа'!$A$2:$E$798,4,FALSE) -> 2224 | N178: =M178*1.2 -> 2668.8 | O178: =$N178*$J178 -> 427.008 | P178: =$N178*$G178 -> 40032 | R178: =Q178*P178 -> 0 | S178: 0 | T178: 0 | W178: 24 | X178: 375.84 | Y178: 792 | Z178: прозрачное защитное, полуглянцевое покрытие, идеально подходит для старых мозаичных штукатурок типа StoSuperlit.
A179: 14524_002 | B179: Sto-Silkolit K (RU) 1,0 weiss (белая) | C179: RU | D179: фасад | E179: декоративная штукатурка | F179: силикон | G179: 25 | H179: кг | I179: Ведро | J179: 1.9 | K179: 1.9 | L179: кг/м² | M179: =VLOOKUP($A179,'Изменение прайс-листа'!$A$2:$E$798,4,FALSE) -> 258 | N179: =M179*1.2 -> 309.6 | O179: =$N179*$J179 -> 588.24 | P179: =$N179*$G179 -> 7740 | R179: =Q179*P179 -> 0 | S179: 0 | T179: 0 | U179: ● | V179: ● | W179: 24 | X179: 616.2 | Y179: 720 | Z179: наружняя стандартная силиконовая штукатурка. Структура зернистая - типа "шуба". Выдерживает механические нагрузки, хорошая самоочищаемость, высокая паропроницаемость и водоотталкивающая способность, хорошая погодоустойчивость, белая, колеруемая, готова к применению.
A180: 14524_001 | B180: Sto-Silkolit K (RU) 1,0 getönt (колерованная) C1 | C180: RU | D180: фасад | E180: декоративная штукатурка | F180: силикон | G180: 25 | H180: кг | I180: Ведро | J180: 1.9 | K180: 1.9 | L180: кг/м² | M180: =M179+'7. Надбавки'!$C$5 -> 304 | N180: 364.8 | O180: 693.12 | P180: 9120 | R180: 0 | S180: 0 | T180: 0 | W180: 24 | X180: 616.2 | Y180: 720
A181: 14006_031 | B181: Sto-Silkolit K (RU) 1,5 weiss (белая) | C181: RU | D181: фасад | E181: декоративная штукатурка | F181: силикон | G181: 25 | H181: кг | I181: Ведро | J181: 2.4 | K181: 2.5 | L181: кг/м² | M181: =VLOOKUP($A181,'Изменение прайс-листа'!$A$2:$E$798,4,FALSE) -> 258 | N181: 309.6 | O181: 743.04 | P181: 7740 | R181: 0 | S181: 0 | T181: 0 | U181: ● | V181: ● | W181: 24 | X181: 616.2 | Y181: 720
A182: 14006_032 | B182: Sto-Silkolit K (RU) 1,5 getönt (колерованная) C1 | C182: RU | D182: фасад | E182: декоративная штукатурка | F182: силикон | G182: 25 | H182: кг | I182: Ведро | J182: 2.4 | K182: 2.5 | L182: кг/м² | M182: =M181+'7. Надбавки'!$C$5 -> 304 | N182: 364.8 | O182: 875.52 | P182: 9120 | R182: 0 | S182: 0 | T182: 0 | W182: 24 | X182: 616.2 | Y182: 720
A183: 14007_037 | B183: Sto-Silkolit K (RU) 2,0 weiss (белая) | C183: RU | D183: фасад | E183: декоративная штукатурка | F183: силикон | G183: 25 | H183: кг | I183: Ведро | J183: 3.1 | K183: 3.2 | L183: кг/м² | M183: =VLOOKUP($A183,'Изменение прайс-листа'!$A$2:$E$798,4,FALSE) -> 258 | N183: 309.6 | O183: 959.76 | P183: 7740 | R183: 0 | S183: 0 | T183: 0 | U183: ● | V183: ● | W183: 24 | X183: 616.2 | Y183: 720
A184: 14007_036 | B184: Sto-Silkolit K (RU) 2,0 getönt (колерованная) C1 | C184: RU | D184: фасад | E184: декоративная штукатурка | F184: силикон | G184: 25 | H184: кг | I184: Ведро | J184: 3.1 | K184: 3.2 | L184: кг/м² | M184: =M183+'7. Надбавки'!$C$5 -> 304 | N184: 364.8 | O184: 1130.88 | P184: 9120 | R184: 0 | S184: 0 | T184: 0 | W184: 24 | X184: 616.2 | Y184: 720
A185: 14009_002 | B185: Sto-Silkolit R (RU) 2,0 weiss (белая) | C185: RU | D185: фасад | E185: декоративная штукатурка | F185: силикон | G185: 25 | H185: кг | I185: Ведро | J185: 3 | K185: 3.1 | L185: кг/м² | M185: =VLOOKUP($A185,'Изменение прайс-листа'!$A$2:$E$798,4,FALSE) -> 258 | N185: 309.6 | O185: 928.8 | P185: 7740 | R185: 0 | S185: 0 | T185: 0 | U185: ● | W185: 24 | X185: 616.2 | Y185: 720 | Z185: наружняя стандартная силиконовая штукатурка. Структура зернистая - типа "короед". Выдерживает механические нагрузки, хорошая самоочищаемость, высокая паропроницаемость и водоотталкивающая способность, хорошая погодоустойчивость, белая, колеруемая, готова к применению.
A186: 14009_001 | B186: Sto-Silkolit R (RU) 2,0 getönt (колерованная) C1 | C186: RU | D186: фасад | E186: декоративная штукатурка | F186: силикон | G186: 25 | H186: кг | I186: Ведро | J186: 3 | K186: 3.1 | L186: кг/м² | M186: =M185+'7. Надбавки'!$C$5 -> 304 | N186: 364.8 | O186: 1094.4 | P186: 9120 | R186: 0 | S186: 0 | T186: 0 | W186: 24 | X186: 616.2 | Y186: 720
A187: 01220-001 | B187: StoSilco K 1,0 fein weiss (мелкозернистая белая) | C187: DE | D187: фасад | E187: декоративная штукатурка | F187: силикон | G187: 25 | H187: кг | I187: Ведро | J187: 2 | K187: 2.1 | L187: кг/м² | M187: =VLOOKUP($A187,'Изменение прайс-листа'!$A$2:$E$798,4,FALSE) -> 612 | N187: 734.4 | O187: 1468.8 | P187: 18360 | R187: 0 | S187: 0 | T187: 0 | W187: 24 | X187: 616.2 | Y187: 696 | Z187: наружняя силиконовая улучшенная штукатурка. Структура зернистая - типа "шуба". Выдерживает механические нагрузки, хорошо самоочищающаяся, отличная устойчивость против воздействия микроорганизмов, высокая паропроницаемость и водоотталкивающая способность, хорошая погодоустойчивость, белая, колеруемая, высокая стабильность цветового фона, готова к применению.
A188: 01220-024 | B188: StoSilco K 1,0 fein getönt (мелкозернистая колерованная) C1 | C188: DE | D188: фасад | E188: декоративная штукатурка | F188: силикон | G188: 25 | H188: кг | I188: Ведро | J188: 2 | K188: 2.1 | L188: кг/м² | M188: =M187+'7. Надбавки'!$C$5 -> 658 | N188: 789.6 | O188: 1579.2 | P188: 19740 | R188: 0 | S188: 0 | T188: 0 | W188: 24 | X188: 616.2 | Y188: 696
A189: 01218-001 | B189: StoSilco K 1,5 weiss (белая) | C189: DE | D189: фасад | E189: декоративная штукатурка | F189: силикон | G189: 25 | H189: кг | I189: Ведро | J189: 2.3 | K189: 2.4 | L189: кг/м² | M189: =VLOOKUP($A189,'Изменение прайс-листа'!$A$2:$E$798,4,FALSE) -> 612 | N189: 734.4 | O189: 1689.12 | P189: 18360 | R189: 0 | S189: 0 | T189: 0 | W189: 24 | X189: 616.2 | Y189: 696
A190: 01218-043 | B190: StoSilco K 1,5 getönt (колерованная) C1 | C190: DE | D190: фасад | E190: декоративная штукатурка | F190: силикон | G190: 25 | H190: кг | I190: Ведро | J190: 2.3 | K190: 2.4 | L190: кг/м² | M190: =M189+'7. Надбавки'!$C$5 -> 658 | N190: 789.6 | O190: 1816.08 | P190: 19740 | R190: 0 | S190: 0 | T190: 0 | W190: 24 | X190: 616.2 | Y190: 696
A191: 00186-001 | B191: StoSilco K 2,0 weiss (белая) | C191: DE | D191: фасад | E191: декоративная штукатурка | F191: силикон | G191: 25 | H191: кг | I191: Ведро | J191: 3 | K191: 3.1 | L191: кг/м² | M191: =VLOOKUP($A191,'Изменение прайс-листа'!$A$2:$E$798,4,FALSE) -> 612 | N191: 734.4 | O191: 2203.2 | P191: 18360 | R191: 0 | S191: 0 | T191: 0 | W191: 24 | X191: 616.2 | Y191: 696
A192: 00186-026 | B192: StoSilco K 2,0 getönt (колерованная) C1 | C192: DE | D192: фасад | E192: декоративная штукатурка | F192: силикон | G192: 25 | H192: кг | I192: Ведро | J192: 3 | K192: 3.1 | L192: кг/м² | M192: =M191+'7. Надбавки'!$C$5 -> 658 | N192: 789.6 | O192: 2368.8 | P192: 19740 | R192: 0 | S192: 0 | T192: 0 | W192: 24 | X192: 616.2 | Y192: 696
A193: 00187-001 | B193: StoSilco K 3,0 weiss (белая) | C193: DE | D193: фасад | E193: декоративная штукатурка | F193: силикон | G193: 25 | H193: кг | I193: Ведро | J193: 4.3 | K193: 4.4 | L193: кг/м² | M193: =VLOOKUP($A193,'Изменение прайс-листа'!$A$2:$E$798,4,FALSE) -> 612 | N193: 734.4 | O193: 3157.92 | P193: 18360 | R193: 0 | S193: 0 | T193: 0 | W193: 24 | X193: 616.2 | Y193: 696
A194: 00187-028 | B194: StoSilco K 3,0 getönt (колерованная) C1 | C194: DE | D194: фасад | E194: декоративная штукатурка | F194: силикон | G194: 25 | H194: кг | I194: Ведро | J194: 4.3 | K194: 4.4 | L194: кг/м² | M194: =M193+'7. Надбавки'!$C$5 -> 658 | N194: 789.6 | O194: 3395.28 | P194: 19740 | R194: 0 | S194: 0 | T194: 0 | W194: 24 | X194: 616.2 | Y194: 696
A195: 01219-001 | B195: StoSilco R 1,5 weiss (белая) | C195: DE | D195: фасад | E195: декоративная штукатурка | F195: силикон | G195: 25 | H195: кг | I195: Ведро | J195: 2.2 | K195: 2.3 | L195: кг/м² | M195: =VLOOKUP($A195,'Изменение прайс-листа'!$A$2:$E$798,4,FALSE) -> 696 | N195: 835.2 | O195: 1837.44 | P195: 20880 | R195: 0 | S195: 0 | T195: 0 | W195: 24 | X195: 616.2 | Y195: 696 | Z195: наружняя силиконовая улучшенная штукатурка. Структура бороздчатая - типа "короед". Выдерживает механические нагрузки, хорошо самоочищающаяся, отличная устойчивость к воздействию микроорганизмов, высокая паропроницаемость и водоотталкивающая способность, хорошая погодоустойчивость, белая, колеруемая, высокая стабильность цветового фона, готова к применению.
A196: 01219-018 | B196: StoSilco R 1,5 getönt (колерованная) C1 | C196: DE | D196: фасад | E196: декоративная штукатурка | F196: силикон | G196: 25 | H196: кг | I196: Ведро | J196: 2.2 | K196: 2.3 | L196: кг/м² | M196: =M195+'7. Надбавки'!$C$5 -> 742 | N196: 890.4 | O196: 1958.88 | P196: 22260 | R196: 0 | S196: 0 | T196: 0 | W196: 24 | X196: 616.2 | Y196: 696
A197: 00188-001 | B197: StoSilco R 2,0 weiss (белая) | C197: DE | D197: фасад | E197: декоративная штукатурка | F197: силикон | G197: 25 | H197: кг | I197: Ведро | J197: 2.7 | K197: 2.8 | L197: кг/м² | M197: =VLOOKUP($A197,'Изменение прайс-листа'!$A$2:$E$798,4,FALSE) -> 696 | N197: 835.2 | O197: 2255.04 | P197: 20880 | R197: 0 | S197: 0 | T197: 0 | W197: 24 | X197: 616.2 | Y197: 696
A198: 00188-023 | B198: StoSilco R 2,0 getönt (колерованная) C1 | C198: DE | D198: фасад | E198: декоративная штукатурка | F198: силикон | G198: 25 | H198: кг | I198: Ведро | J198: 2.7 | K198: 2.8 | L198: кг/м² | M198: =M197+'7. Надбавки'!$C$5 -> 742 | N198: 890.4 | O198: 2404.08 | P198: 22260 | R198: 0 | S198: 0 | T198: 0 | W198: 24 | X198: 616.2 | Y198: 696
A199: 00189-001 | B199: StoSilco R 3,0 weiss (белая) | C199: DE | D199: фасад | E199: декоративная штукатурка | F199: силикон | G199: 25 | H199: кг | I199: Ведро | J199: 3.5 | K199: 3.6 | L199: кг/м² | M199: =VLOOKUP($A199,'Изменение прайс-листа'!$A$2:$E$798,4,FALSE) -> 696 | N199: 835.2 | O199: 2923.2 | P199: 20880 | R199: 0 | S199: 0 | T199: 0 | W199: 24 | X199: 616.2 | Y199: 696
A200: 00189-024 | B200: StoSilco R 3,0 getönt (колерованная) C1 | C200: DE | D200: фасад | E200: декоративная штукатурка | F200: силикон | G200: 25 | H200: кг | I200: Ведро | J200: 3.5 | K200: 3.6 | L200: кг/м² | M200: =M199+'7. Надбавки'!$C$5 -> 742 | N200: 890.4 | O200: 3116.4 | P200: 22260 | R200: 0 | S200: 0 | T200: 0 | W200: 24 | X200: 616.2 | Y200: 696
A201: 01214-001 | B201: StoSilco MP weiss (белая) | C201: DE | D201: фасад | E201: декоративная штукатурка | F201: силикон | G201: 25 | H201: кг | I201: Ведро | J201: 1.5 | K201: 2.5 | L201: кг/м² | M201: =VLOOKUP($A201,'Изменение прайс-листа'!$A$2:$E$798,4,FALSE) -> 696 | N201: 835.2 | O201: 1252.8 | P201: 20880 | R201: 0 | S201: 0 | T201: 0 | W201: 24 | X201: 616.2 | Y201: 696 | Z201: финишная штукатурка на основе силиконовых смол с моделируемой структурой
... 111 more rows

Sheet 2. ИНТЕРЬЕР
A2: Прайс-лист Товаров Продуктовой группы раздела «Интерьер» Цены действительны c 03.03.2022 г.
A3: Артикул | B3: Наименование продукта | C3: Производство | D3: Область применения | E3: Вид материала | F3: Основа материала | G3: Класс влажного истирания | H3: Класс укрывистости | I3: Степень матовости | J3: Упаковка | M3: Min расход продукта | P3: Цена БЕЗ учета НДС за единицу измерения | Q3: Цена с НДС за единицу измерения | R3: Цена с НДС за 1м² (при min расходе) | S3: Цена с НДС за упаковку | T3: Кол-во единиц товара | U3: Сумма заказа с НДС | V3: Итого вес брутто (кг) | W3: Итого паллет | X3: Наличие на складе | Y3: Рекомендованный ассортимент | Z3: Количество упаковок на паллете, шт. | AA3: Вес одного паллето-места (без палеты), кг. | AB3: Норма загрузки авто (20 т.) шт. | AC3: Краткое описание продукта
J4: к-во | K4: ед. | L4: вид упаковки | M4: от | N4: до | O4: единица измерения
A5: 00518-002 | B5: StoPrim Plex | C5: DE | D5: интерьер | E5: грунт проникающий | F5: акрил | G5: н/д | H5: н/д | I5: н/д | J5: 20 | K5: л | L5: Канистра | M5: 0.1 | N5: 0.4 | O5: л/м² | P5: =VLOOKUP($A5,'Изменение прайс-листа'!$A$2:$E$798,4,FALSE) -> 620 | Q5: =P5*1.2 -> 744 | R5: =Q5*M5 -> 74.4 | S5: =Q5*J5 -> 14880 | U5: =T5*S5 -> 0 | V5: =ROUNDUP(AA5/Z5*T5,0) -> 0 | W5: =T5/Z5 -> 0 | X5: ● | Z5: 24 | AA5: 498.72 | AB5: 792 | AC5: универсальная грунтовка на акрилатной основе, не содержит растворителей и пластификаторов
A6: 00518-001 | B6: StoPrim Plex | C6: DE | D6: интерьер | E6: грунт проникающий | F6: акрил | G6: н/д | H6: н/д | I6: н/д | J6: 10 | K6: л | L6: Канистра | M6: 0.1 | N6: 0.4 | O6: л/м² | P6: =VLOOKUP($A6,'Изменение прайс-листа'!$A$2:$E$798,4,FALSE) -> 612 | Q6: =P6*1.2 -> 734.4 | R6: =Q6*M6 -> 73.44 | S6: =Q6*J6 -> 7344 | U6: =T6*S6 -> 0 | V6: =ROUNDUP(AA6/Z6*T6,0) -> 0 | W6: =T6/Z6 -> 0 | X6: ● | Z6: 60 | AA6: 623.4 | AB6: 1740
A7: 09609-001 | B7: StoPrim GT | C7: DE | D7: интерьер | E7: грунт проникающий | F7: акрил | G7: н/д | H7: н/д | I7: н/д | J7: 15 | K7: л | L7: Ведро | M7: 0.1 | N7: 0.3 | O7: л/м² | P7: =VLOOKUP($A7,'Изменение прайс-листа'!$A$2:$E$798,4,FALSE) -> 740 | Q7: =P7*1.2 -> 888 | R7: =Q7*M7 -> 88.8 | S7: =Q7*J7 -> 13320 | U7: =T7*S7 -> 0 | V7: 0 | W7: =T7/Z7 -> 0 | X7: ● | Y7: ● | Z7: 24 | AA7: 439.2 | AB7: 792 | AC7: Уникальный продукт! Проникающая грунтовка с технологией "Гель-Технолоджи", не капает, не образует подтеков. Идеальна для нанесения валиком! Идеальна для сложных поверхностей с "косым" светом
A8: 00870-047 | B8: StoPrim Sol GT | C8: DE | D8: универсальный | E8: грунт проникающий | F8: силикат | G8: н/д | H8: н/д | I8: н/д | J8: 15 | K8: л | L8: Ведро | M8: 0.1 | N8: 0.2 | O8: л/м² | P8: =VLOOKUP($A8,'Изменение прайс-листа'!$A$2:$E$798,4,FALSE) -> 720 | Q8: 864 | R8: 86.4 | S8: 12960 | U8: 0 | V8: 0 | W8: 0 | X8: ● | Y8: ● | Z8: 24 | AA8: 439.2 | AB8: 792 | AC8: Уникальный продукт! водоразбавимая бесцветная грунтовка на силикатной основе, идеальна для минеральных и органических оснований. Гелевая консистенция, минимизурующая образование капель
A9: 00861_012 | B9: StoPrim Solid | C9: RU | D9: универсальный | E9: грунт проникающий | F9: акрил | G9: н/д | H9: н/д | I9: н/д | J9: 5 | K9: л | L9: Канистра | M9: 0.02 | N9: 0.08 | O9: л/м² | P9: =VLOOKUP($A9,'Изменение прайс-листа'!$A$2:$E$798,4,FALSE) -> 566 | Q9: =P9*1.2 -> 679.2 | R9: =Q9*M9 -> 13.584 | S9: =Q9*J9 -> 3396 | U9: =T9*S9 -> 0 | V9: 0 | W9: 0 | X9: ● | Y9: ● | Z9: 96 | AA9: 498.72 | AB9: 3168 | AC9: универсальная водорастворимая грунтовка - концентрат на основе акрилата с модифицирующими добавками. Разбавляется водой в соотношении 1:4. Глубоко проникает, хорошо укрепляет основание.
A10: 00870-006 | B10: StoPrim Silikat | C10: DE | D10: универсальный | E10: грунт проникающий | F10: силикат | G10: н/д | H10: н/д | I10: н/д | J10: 10 | K10: л | L10: Канистра | M10: 0.15 | N10: 0.6 | O10: л/м² | P10: =VLOOKUP($A10,'Изменение прайс-листа'!$A$2:$E$798,4,FALSE) -> 584 | Q10: 700.8 | R10: 105.12 | S10: 7008 | U10: 0 | V10: 0 | W10: 0 | Z10: 60 | AA10: 653.4 | AB10: 1680 | AC10: водоразбавимая бесцветная грунтовка на силикатной основе, идеальна для минеральных покрытий
A11: 00517-001 | B11: StoPrim Color weiss (белая) | C11: DE | D11: универсальный | E11: грунт адгезионный | F11: акрил | G11: н/д | H11: н/д | I11: н/д | J11: 15 | K11: л | L11: Ведро | M11: 0.2 | N11: 0.3 | O11: л/м² | P11: =VLOOKUP($A11,'Изменение прайс-листа'!$A$2:$E$798,4,FALSE) -> 1062 | Q11: 1274.4 | R11: 254.88 | S11: 19116 | U11: 0 | V11: 0 | W11: 0 | X11: ● | Y11: ● | Z11: 24 | AA11: 519.84 | AB11: 792 | AC11: грунтовочная краска, не содержит растворителей и пластификаторов, при высыхании не выделяет вредных веществ
A12: 00517-008 | B12: StoPrim Color getönt (колерованная) | C12: DE | D12: универсальный | E12: грунт адгезионный | F12: акрил | G12: н/д | H12: н/д | I12: н/д | J12: 15 | K12: л | L12: Ведро | M12: 0.2 | N12: 0.3 | O12: л/м² | P12: =P11+'7. Надбавки'!$C$6 -> 1136 | Q12: 1363.2 | R12: 272.64 | S12: 20448 | U12: 0 | V12: 0 | W12: 0 | Z12: 24 | AA12: 519.84 | AB12: 792
A13: 01304-006 | B13: StoPrim Isol | C13: DE | D13: универсальный | E13: грунт изолирующий | F13: акрил | G13: н/д | H13: н/д | I13: н/д | J13: 5 | K13: л | L13: Ведро | M13: 0.1 | N13: 0.4 | O13: л/м² | P13: =VLOOKUP($A13,'Изменение прайс-листа'!$A$2:$E$798,4,FALSE) -> 2110 | Q13: 2532 | R13: 253.2 | S13: 12660 | U13: 0 | V13: 0 | W13: 0 | X13: ● | Z13: 60 | AA13: 367.8 | AB13: 1980 | AC13: водоразбавимая изолирующая грунтовка на акрилатной основе
A14: 00855-003 | B14: StoPrim LP | C14: DE | D14: универсальный | E14: грунт изолирующий | F14: растворитель | G14: н/д | H14: н/д | I14: н/д | J14: 12.5 | K14: л | L14: Ведро | M14: 0.13 | N14: 0.15 | O14: л/м² | P14: =VLOOKUP($A14,'Изменение прайс-листа'!$A$2:$E$798,4,FALSE) -> 3306 | Q14: 3967.2 | R14: 515.736 | S14: 49590 | U14: 0 | V14: 0 | W14: 0 | Z14: 24 | AA14: 454.2 | AB14: 792 | AC14: изолирующая грунтовка, содержит растворитель
A15: 00872-001 | B15: StoPrep In natur (натурального цвета) | C15: DE | D15: интерьер | E15: грунт адгезионный | F15: акрил | G15: н/д | H15: н/д | I15: н/д | J15: 25 | K15: кг | L15: Ведро | M15: 0.18 | N15: 0.32 | O15: кг/м² | P15: =VLOOKUP($A15,'Изменение прайс-листа'!$A$2:$E$798,4,FALSE) -> 640 | Q15: 768 | R15: 138.24 | S15: 19200 | U15: 0 | V15: 0 | W15: 0 | Z15: 24 | AA15: 616.2 | AB15: 696 | AC15: органическое предварительное и промежуточное покрытие, упрощает последующее нанесение штукатурных слоев, улучшает адгезию
A16: 00872-006 | B16: StoPrep In getönt (колерованное) | C16: DE | D16: интерьер | E16: грунт адгезионный | F16: акрил | G16: н/д | H16: н/д | I16: н/д | J16: 25 | K16: кг | L16: Ведро | M16: 0.18 | N16: 0.32 | O16: кг/м² | P16: =P15+'7. Надбавки'!$C$5 -> 686 | Q16: 823.2 | R16: 148.176 | S16: 20580 | U16: 0 | V16: 0 | W16: 0 | Z16: 24 | AA16: 616.2 | AB16: 696
A17: 00872-004 | B17: StoPrep In natur (натурального цвета) | C17: DE | D17: интерьер | E17: грунт адгезионный | F17: акрил | G17: н/д | H17: н/д | I17: н/д | J17: 8 | K17: кг | L17: Ведро | M17: 0.18 | N17: 0.32 | O17: кг/м² | P17: =VLOOKUP($A17,'Изменение прайс-листа'!$A$2:$E$798,4,FALSE) -> 810 | Q17: 972 | R17: 174.96 | S17: 7776 | U17: 0 | V17: 0 | W17: 0 | Z17: 60 | AA17: 495.36 | AB17: 1980
A18: 00872-005 | B18: StoPrep In getönt (колерованное) | C18: DE | D18: интерьер | E18: грунт адгезионный | F18: акрил | G18: н/д | H18: н/д | I18: н/д | J18: 8 | K18: кг | L18: Ведро | M18: 0.18 | N18: 0.32 | O18: кг/м² | P18: =P17+'7. Надбавки'!$C$5 -> 856 | Q18: 1027.2 | R18: 184.896 | S18: 8217.6 | U18: 0 | V18: 0 | W18: 0 | Z18: 60 | AA18: 495.36 | AB18: 1980
A19: 00884-001 | B19: StoPrep Contact | C19: DE | D19: универсальный | E19: грунт адгезионный | F19: акрил | G19: н/д | H19: н/д | I19: н/д | J19: 25 | K19: кг | L19: Ведро | M19: 0.2 | N19: 2 | O19: кг/м² | P19: =VLOOKUP($A19,'Изменение прайс-листа'!$A$2:$E$798,4,FALSE) -> 530 | Q19: 636 | R19: 127.2 | S19: 15900 | U19: 0 | V19: 0 | W19: 0 | Z19: 24 | AA19: 616.2 | AB19: 696 | AC19: "адгезионный мостик" для гладких оснований, может смешиваться с цементом
A20: 00749-018 | B20: StoLevell In XXL (мешок) | C20: DE | D20: интерьер | E20: шпатлевка | F20: акрил | G20: н/д | H20: н/д | I20: matt | J20: 25 | K20: кг | L20: Мешок | M20: 0.8 | N20: 3 | O20: кг/м² | P20: =VLOOKUP($A20,'Изменение прайс-листа'!$A$2:$E$798,4,FALSE) -> 362 | Q20: 434.4 | R20: 347.52 | S20: 10860 | U20: 0 | V20: 0 | W20: 0 | Z20: 36 | AA20: 903.6 | AB20: 720 | AC20: органическая заполняющая шпаклевочная масса для машинного и ручного нанесения
A21: 00749-019 | B21: StoLevell In XXL (ведро) | C21: DE | D21: интерьер | E21: шпатлевка | F21: акрил | G21: н/д | H21: н/д | I21: matt | J21: 25 | K21: кг | L21: Ведро | M21: 0.8 | N21: 3 | O21: кг/м² | P21: =VLOOKUP($A21,'Изменение прайс-листа'!$A$2:$E$798,4,FALSE) -> 436 | Q21: 523.2 | R21: 418.56 | S21: 13080 | U21: 0 | V21: 0 | W21: 0 | X21: ● | Y21: ● | Z21: 24 | AA21: 614.4 | AB21: 696
A22: 00822-001 | B22: StoLevell in Resist | C22: DE | D22: интерьер | E22: шпатлевка | F22: акрил | G22: н/д | H22: н/д | I22: matt | J22: 25 | K22: кг | L22: Ведро | M22: 0.8 | N22: 3 | O22: кг/м² | P22: =VLOOKUP($A22,'Изменение прайс-листа'!$A$2:$E$798,4,FALSE) -> 438 | Q22: 525.6 | R22: 420.48 | S22: 13140 | U22: 0 | V22: 0 | W22: 0 | Z22: 24 | AA22: 616.2 | AB22: 696 | AC22: органическая шпаклевка для влажных помещений
A23: 01230-001 | B23: StoLevell In G | C23: DE | D23: интерьер | E23: шпатлевка | F23: акрил | G23: н/д | H23: н/д | I23: matt | J23: 25 | K23: кг | L23: Ведро | M23: 1.1 | N23: 5 | O23: кг/м² | P23: =VLOOKUP($A23,'Изменение прайс-листа'!$A$2:$E$798,4,FALSE) -> 400 | Q23: =P23*1.2 -> 480 | R23: =Q23*M23 -> 528 | S23: =Q23*J23 -> 12000 | U23: =T23*S23 -> 0 | V23: 0 | W23: 0 | Z23: 24 | AA23: 616.2 | AB23: 696 | AC23: грубая органическая шпаклевка
A24: 00819-001 | B24: StoLevell in Sil | C24: DE | D24: интерьер | E24: шпатлевка | F24: силикат | G24: н/д | H24: н/д | I24: matt | J24: 25 | K24: кг | L24: Ведро | M24: 0.8 | N24: 3 | O24: кг/м² | P24: =VLOOKUP($A24,'Изменение прайс-листа'!$A$2:$E$798,4,FALSE) -> 462 | Q24: 554.4 | R24: 443.52 | S24: 13860 | U24: 0 | V24: 0 | W24: 0 | Z24: 24 | AA24: 616.2 | AB24: 696 | AC24: дисперсионная силикатная шпаклевка для минеральных и органических оснований, проста в применении, наносится вручную, легко шлифуется
A25: 08899-001 | B25: StoLevell Calce RP (мешок) | C25: DE | D25: интерьер | E25: шпатлевка | F25: известь | G25: н/д | H25: н/д | I25: matt | J25: 25 | K25: кг | L25: Мешок | M25: 12 | N25: 24 | O25: кг/м² | P25: =VLOOKUP($A25,'Изменение прайс-листа'!$A$2:$E$798,4,FALSE) -> 266 | Q25: 319.2 | R25: 3830.4 | S25: 7980 | U25: 0 | V25: 0 | W25: 0 | Z25: 36 | AA25: 903.6 | AB25: 720 | AC25: известковая шпатлевка
A26: 09320-001 | B26: StoLevell Calce FS (мешок) | C26: DE | D26: интерьер | E26: шпатлевка | F26: известь | G26: н/д | H26: н/д | I26: matt | J26: 25 | K26: кг | L26: Мешок | M26: 4 | N26: 8 | O26: кг/м² | P26: =VLOOKUP($A26,'Изменение прайс-листа'!$A$2:$E$798,4,FALSE) -> 276 | Q26: 331.2 | R26: 1324.8 | S26: 8280 | U26: 0 | V26: 0 | W26: 0 | Z26: 36 | AA26: 903.6 | AB26: 720 | AC26: известковая финишная шпаклевка
A27: 01245-001 | B27: StoLevell In As | C27: DE | D27: интерьер | E27: шпатлевка | F27: акрил | G27: н/д | H27: н/д | I27: matt | J27: 25 | K27: кг | L27: Мешок | M27: 1 | N27: 5 | O27: кг/м² | P27: =VLOOKUP($A27,'Изменение прайс-листа'!$A$2:$E$798,4,FALSE) -> 360 | Q27: 432 | R27: 432 | S27: 10800 | U27: 0 | V27: 0 | W27: 0 | Z27: 40 | AA27: 1004 | AB27: 720 | AC27: органическая особотонкая готовая к применению шпаклевка, идеально подходит для нанесения методом безвоздушного напыления, а также при помощи валика или шпателя
A28: 01245-003 | B28: StoLevell In As | C28: DE | D28: интерьер | E28: шпатлевка | F28: акрил | G28: н/д | H28: н/д | I28: matt | J28: 25 | K28: кг | L28: Ведро | M28: 1 | N28: 5 | O28: кг/м² | P28: =VLOOKUP($A28,'Изменение прайс-листа'!$A$2:$E$798,4,FALSE) -> 436 | Q28: 523.2 | R28: 523.2 | S28: 13080 | U28: 0 | V28: 0 | W28: 0 | Z28: 24 | AA28: 616.2 | AB28: 696
A29: 08414-004 | B29: StoLevell In Repair | C29: DE | D29: древесина | E29: шпатлевка | F29: акрил | G29: н/д | H29: н/д | I29: matt | J29: 1 | K29: шт | L29: Туба | M29: 0.25 | N29: 0.4 | O29: кг/м² | P29: =VLOOKUP($A29,'Изменение прайс-листа'!$A$2:$E$798,4,FALSE) -> 872 | Q29: 1046.4 | R29: 261.6 | S29: 1046.4 | U29: 0 | Z29: Н/Д | AA29: Н/Д | AB29: Н/Д | AC29: органическая шпаклевка для заполнения и выравнивания небольших площадей, подходит для древесины, бетона
A30: 02970-001 | B30: StoLevell In Fill | C30: DE | D30: интерьер | E30: шпатлевка | F30: гипс | G30: н/д | H30: н/д | I30: matt | J30: 15 | K30: кг | L30: Мешок | M30: 0.3 | N30: 30 | O30: кг/м² | P30: =VLOOKUP($A30,'Изменение прайс-листа'!$A$2:$E$798,4,FALSE) -> 442 | Q30: 530.4 | R30: 159.12 | S30: 7956 | U30: 0 | V30: 0 | W30: 0 | Z30: 48 | AA30: 722.88 | AB30: 1200 | AC30: минеральная (на основе гипса) шпаклевочная масса для выравнивания поверхности, заполнения трещин, швов
A31: 02970-002 | B31: StoLevell In Fill | C31: DE | D31: интерьер | E31: шпатлевка | F31: гипс | G31: н/д | H31: н/д | I31: matt | J31: 5 | K31: кг | L31: Мешок | M31: 0.3 | N31: 30 | O31: кг/м² | P31: =VLOOKUP($A31,'Изменение прайс-листа'!$A$2:$E$798,4,FALSE) -> 492 | Q31: 590.4 | R31: 177.12 | S31: 2952 | U31: 0 | V31: 0 | W31: 0 | Z31: 140 | AA31: 763 | AB31: 3360
A32: 01276-008 | B32: StoLevell In RS | C32: DE | D32: интерьер | E32: шпатлевка | F32: цемент | G32: н/д | H32: н/д | I32: matt | J32: 15 | K32: кг | L32: Мешок | M32: 0.5 | N32: 45 | O32: кг/м² | P32: =VLOOKUP($A32,'Изменение прайс-листа'!$A$2:$E$798,4,FALSE) -> 448 | Q32: 537.6 | R32: 268.8 | S32: 8064 | U32: 0 | V32: 0 | W32: 0 | Z32: 48 | AA32: 722.88 | AB32: 1200 | AC32: минеральная шпаклевка для заполнения монтажных швов бетонных плит перекрытий, шпаклевание бетона и т.п.
A33: 04346_120 | B33: StoReno feim | C33: RU | D33: универсальный | E33: шпаклевка | F33: цемент | G33: н/д | H33: н/д | J33: 18 | K33: кг | L33: Мешок | M33: 0.9 | N33: 0.9 | O33: кг/м131 | P33: =VLOOKUP($A33,'Изменение прайс-листа'!$A$2:$E$798,4,FALSE) -> 90 | Q33: =P33*1.2 -> 108 | R33: =Q33*M33 -> 97.2 | S33: =Q33*J33 -> 1944 | U33: 0 | V33: 0 | W33: 0 | X33: ● | Z33: 42 | AA33: 1054.2 | AB33: 780 | AC33: финишная шпаклеква минеральная усиленная
A34: 04346_121 | B34: StoReno | C34: RU | D34: универсальный | E34: шпаклевка | F34: цемент | G34: н/д | H34: н/д | J34: 25 | K34: кг | L34: Мешок | M34: 2 | N34: 2 | O34: кг/м132 | P34: =VLOOKUP($A34,'Изменение прайс-листа'!$A$2:$E$798,4,FALSE) -> 42 | Q34: 50.4 | R34: 100.8 | S34: 1260 | U34: 0 | V34: 0 | W34: 0 | X34: ● | Z34: 42 | AA34: 1054.2 | AB34: 780 | AC34: шпаклеква минеральная усиленная
A35: 09620-002 | B35: StoDecosit K 1,0 weiss (белая) | C35: DE | D35: интерьер | E35: декоративная штукатурка | F35: акрил | G35: н/д | H35: н/д | I35: matt | J35: 25 | K35: кг | L35: Ведро | M35: 2 | N35: 2.1 | O35: кг/м² | P35: =VLOOKUP($A35,'Изменение прайс-листа'!$A$2:$E$798,4,FALSE) -> 490 | Q35: 588 | R35: 1176 | S35: 14700 | U35: 0 | V35: 0 | W35: 0 | X35: ● | Y35: ● | Z35: 24 | AA35: 616.2 | AB35: 696 | AC35: органическая финишная экологически чистая штукатурка для внутренних работ с царапанной структурой ("шуба"). Подходит для помещений с повышенными требованиями к экологичности применяемых материалов (больницы, детские сады). Сертификация TÜV
A36: 09620-001 | B36: StoDecosit K 1,0 getönt (колерованная) C1 | C36: DE | D36: интерьер | E36: декоративная штукатурка | F36: акрил | G36: н/д | H36: н/д | I36: matt | J36: 25 | K36: кг | L36: Ведро | M36: 2 | N36: 2.1 | O36: кг/м² | P36: =P35+'7. Надбавки'!$C$5 -> 536 | Q36: 643.2 | R36: 1286.4 | S36: 16080 | U36: 0 | V36: 0 | W36: 0 | Z36: 24 | AA36: 616.2 | AB36: 696
A37: 09620-004 | B37: StoDecosit K 1,5 weiss (белая) | C37: DE | D37: интерьер | E37: декоративная штукатурка | F37: акрил | G37: н/д | H37: н/д | I37: matt | J37: 25 | K37: кг | L37: Ведро | M37: 2.2 | N37: 2.3 | O37: кг/м² | P37: =VLOOKUP($A37,'Изменение прайс-листа'!$A$2:$E$798,4,FALSE) -> 490 | Q37: 588 | R37: 1293.6 | S37: 14700 | U37: 0 | V37: 0 | W37: 0 | X37: ● | Z37: 24 | AA37: 616.2 | AB37: 696
A38: 09620-003 | B38: StoDecosit K 1,5 getönt (колерованная) C1 | C38: DE | D38: интерьер | E38: декоративная штукатурка | F38: акрил | G38: н/д | H38: н/д | I38: matt | J38: 25 | K38: кг | L38: Ведро | M38: 2.2 | N38: 2.3 | O38: кг/м² | P38: =P37+'7. Надбавки'!$C$5 -> 536 | Q38: 643.2 | R38: 1415.04 | S38: 16080 | U38: 0 | V38: 0 | W38: 0 | Z38: 24 | AA38: 616.2 | AB38: 696
A39: 09620-006 | B39: StoDecosit K 2,0 weiss (белая) | C39: DE | D39: интерьер | E39: декоративная штукатурка | F39: акрил | G39: н/д | H39: н/д | I39: matt | J39: 25 | K39: кг | L39: Ведро | M39: 2.9 | N39: 3 | O39: кг/м² | P39: =VLOOKUP($A39,'Изменение прайс-листа'!$A$2:$E$798,4,FALSE) -> 490 | Q39: 588 | R39: 1705.2 | S39: 14700 | U39: 0 | V39: 0 | W39: 0 | X39: ● | Z39: 24 | AA39: 616.2 | AB39: 696
A40: 09620-005 | B40: StoDecosit K 2,0 getönt (колерованная) C1 | C40: DE | D40: интерьер | E40: декоративная штукатурка | F40: акрил | G40: н/д | H40: н/д | I40: matt | J40: 25 | K40: кг | L40: Ведро | M40: 2.9 | N40: 3 | O40: кг/м² | P40: =P39+'7. Надбавки'!$C$5 -> 536 | Q40: 643.2 | R40: 1865.28 | S40: 16080 | U40: 0 | V40: 0 | W40: 0 | Z40: 24 | AA40: 616.2 | AB40: 696
A41: 09620-008 | B41: StoDecosit R 1,0 weiss (белая) | C41: DE | D41: интерьер | E41: декоративная штукатурка | F41: акрил | G41: н/д | H41: н/д | I41: matt | J41: 25 | K41: кг | L41: Ведро | M41: 1.6 | N41: 1.8 | O41: кг/м² | P41: =VLOOKUP($A41,'Изменение прайс-листа'!$A$2:$E$798,4,FALSE) -> 490 | Q41: 588 | R41: 940.8 | S41: 14700 | U41: 0 | V41: 0 | W41: 0 | X41: ● | Y41: ● | Z41: 24 | AA41: 616.2 | AB41: 696 | AC41: органическая финишная экологически чистая штукатурка для внутренних работ, с бороздчатой структурой ("короед"). Подходит для помещений с повышенными требованиями к экологичности применяемых материалов (больницы, детские сады). Сертификация TÜV
A42: 09620-007 | B42: StoDecosit R 1,0 getönt (колерованная) C1 | C42: DE | D42: интерьер | E42: декоративная штукатурка | F42: акрил | G42: н/д | H42: н/д | I42: matt | J42: 25 | K42: кг | L42: Ведро | M42: 1.6 | N42: 1.8 | O42: кг/м² | P42: =P41+'7. Надбавки'!$C$5 -> 536 | Q42: 643.2 | R42: 1029.12 | S42: 16080 | U42: 0 | V42: 0 | W42: 0 | Z42: 24 | AA42: 616.2 | AB42: 696
A43: 09620-010 | B43: StoDecosit R 1,5 weiss (белая) | C43: DE | D43: интерьер | E43: декоративная штукатурка | F43: акрил | G43: н/д | H43: н/д | I43: matt | J43: 25 | K43: кг | L43: Ведро | M43: 2.2 | N43: 2.3 | O43: кг/м² | P43: =VLOOKUP($A43,'Изменение прайс-листа'!$A$2:$E$798,4,FALSE) -> 512 | Q43: 614.4 | R43: 1351.68 | S43: 15360 | U43: 0 | V43: 0 | W43: 0 | X43: ● | Z43: 24 | AA43: 616.2 | AB43: 696
A44: 09620-009 | B44: StoDecosit R 1,5 getönt (колерованная) C1 | C44: DE | D44: интерьер | E44: декоративная штукатурка | F44: акрил | G44: н/д | H44: н/д | I44: matt | J44: 25 | K44: кг | L44: Ведро | M44: 2.2 | N44: 2.3 | O44: кг/м² | P44: =P43+'7. Надбавки'!$C$5 -> 558 | Q44: 669.6 | R44: 1473.12 | S44: 16740 | U44: 0 | V44: 0 | W44: 0 | Z44: 24 | AA44: 616.2 | AB44: 696
A45: 09620-012 | B45: StoDecosit MP 0,5 weiss (белая) | C45: DE | D45: интерьер | E45: декоративная штукатурка | F45: акрил | G45: н/д | H45: н/д | I45: matt | J45: 25 | K45: кг | L45: Ведро | M45: 1.5 | N45: 4 | O45: кг/м² | P45: =VLOOKUP($A45,'Изменение прайс-листа'!$A$2:$E$798,4,FALSE) -> 512 | Q45: 614.4 | R45: 921.6 | S45: 15360 | U45: 0 | V45: 0 | W45: 0 | X45: ● | Y45: ● | Z45: 24 | AA45: 616.2 | AB45: 696 | AC45: органическая финишная экологически чистая штукатурка для внутренних работ с моделируемой структурой. Подходит для помещений с повышенными требованиями к экологичности строительных материалов (больницы, детские сады). Сертификация TÜV
A46: 09620-011 | B46: StoDecosit MP 0,5 getönt (колерованная) C1 | C46: DE | D46: интерьер | E46: декоративная штукатурка | F46: акрил | G46: н/д | H46: н/д | I46: matt | J46: 25 | K46: кг | L46: Ведро | M46: 1.5 | N46: 4 | O46: кг/м² | P46: =P45+'7. Надбавки'!$C$5 -> 558 | Q46: =P46*1.2 -> 669.6 | R46: =Q46*M46 -> 1004.4 | S46: =Q46*J46 -> 16740 | U46: =T46*S46 -> 0 | V46: 0 | W46: 0 | Z46: 24 | AA46: 616.2 | AB46: 696
A47: 09620-014 | B47: StoDecosit SP 1,0 weiss (белая) | C47: DE | D47: интерьер | E47: декоративная штукатурка | F47: акрил | G47: н/д | H47: н/д | I47: matt | J47: 25 | K47: кг | L47: Ведро | M47: 0.5 | N47: 0.8 | O47: кг/м² | P47: =VLOOKUP($A47,'Изменение прайс-листа'!$A$2:$E$798,4,FALSE) -> 550 | Q47: 660 | R47: 330 | S47: 16500 | U47: 0 | V47: 0 | W47: 0 | X47: ● | Y47: ● | Z47: 24 | AA47: 616.2 | AB47: 696 | AC47: органическая финишная экологически чистая штукатурка для внутренних работ с эффектом "набрызга" для реализации творческого дизайна поверхностей стен и потолков. Подходит для помещений с повышенными требованиями к экологичности применяемых материалов (больницы, детские сады). Сертификация TÜV
A48: 09620-013 | B48: StoDecosit SP 1,0 getönt (колерованная) C1 | C48: DE | D48: интерьер | E48: декоративная штукатурка | F48: акрил | G48: н/д | H48: н/д | I48: matt | J48: 25 | K48: кг | L48: Ведро | M48: 0.5 | N48: 0.8 | O48: кг/м² | P48: =P47+'7. Надбавки'!$C$5 -> 596 | Q48: 715.2 | R48: 357.6 | S48: 17880 | U48: 0 | V48: 0 | W48: 0 | Z48: 24 | AA48: 616.2 | AB48: 696
A49: 09620-016 | B49: StoDecosit SP 1,5 weiss (белая) | C49: DE | D49: интерьер | E49: декоративная штукатурка | F49: акрил | G49: н/д | H49: н/д | I49: matt | J49: 25 | K49: кг | L49: Ведро | M49: 0.7 | N49: 0.9 | O49: кг/м² | P49: =VLOOKUP($A49,'Изменение прайс-листа'!$A$2:$E$798,4,FALSE) -> 550 | Q49: 660 | R49: 462 | S49: 16500 | U49: 0 | V49: 0 | W49: 0 | X49: ● | Y49: ● | Z49: 24 | AA49: 616.2 | AB49: 696
A50: 09620-015 | B50: StoDecosit SP 1,5 getönt (колерованная) C1 | C50: DE | D50: интерьер | E50: декоративная штукатурка | F50: акрил | G50: н/д | H50: н/д | I50: matt | J50: 25 | K50: кг | L50: Ведро | M50: 0.7 | N50: 0.9 | O50: кг/м² | P50: =P49+'7. Надбавки'!$C$5 -> 596 | Q50: 715.2 | R50: 500.64 | S50: 17880 | U50: 0 | V50: 0 | W50: 0 | Z50: 24 | AA50: 616.2 | AB50: 696
A51: 00180-023 | B51: Sto-Granit K 1,5 цвет 800 | C51: DE | D51: интерьер | E51: декоративная штукатурка | F51: акрил | G51: н/д | H51: н/д | I51: satinmatt | J51: 23 | K51: кг | L51: Ведро | M51: 3.5 | N51: 5 | O51: кг/м² | P51: =VLOOKUP($A51,'Изменение прайс-листа'!$A$2:$E$798,4,FALSE) -> 766 | Q51: 919.2 | R51: 3217.2 | S51: 21141.6 | U51: 0 | V51: 0 | W51: 0 | Z51: 24 | AA51: 568.008 | AB51: 768 | AC51: органическая штукатурка из дробленого натурального камня, величина зерна 1,5 мм. Цвета в ассортименте, цвет и фактуру см. по номеру в каталоге или в образцах.
A52: 00180-024 | B52: Sto-Granit K 1,5 цвет 801 | C52: DE | D52: интерьер | E52: декоративная штукатурка | F52: акрил | G52: н/д | H52: н/д | I52: satinmatt | J52: 23 | K52: кг | L52: Ведро | M52: 3.5 | N52: 5 | O52: кг/м² | P52: =VLOOKUP($A52,'Изменение прайс-листа'!$A$2:$E$798,4,FALSE) -> 766 | Q52: 919.2 | R52: 3217.2 | S52: 21141.6 | U52: 0 | V52: 0 | W52: 0 | Z52: 24 | AA52: 568.008 | AB52: 768
A53: 00180-029 | B53: Sto-Granit K 1,5 цвет 802 | C53: DE | D53: интерьер | E53: декоративная штукатурка | F53: акрил | G53: н/д | H53: н/д | I53: satinmatt | J53: 23 | K53: кг | L53: Ведро | M53: 3.5 | N53: 5 | O53: кг/м² | P53: =VLOOKUP($A53,'Изменение прайс-листа'!$A$2:$E$798,4,FALSE) -> 766 | Q53: 919.2 | R53: 3217.2 | S53: 21141.6 | U53: 0 | V53: 0 | W53: 0 | Z53: 24 | AA53: 568.008 | AB53: 768
A54: 00180-025 | B54: Sto-Granit K 1,5 цвет 803 | C54: DE | D54: интерьер | E54: декоративная штукатурка | F54: акрил | G54: н/д | H54: н/д | I54: satinmatt | J54: 23 | K54: кг | L54: Ведро | M54: 3.5 | N54: 5 | O54: кг/м² | P54: =VLOOKUP($A54,'Изменение прайс-листа'!$A$2:$E$798,4,FALSE) -> 766 | Q54: 919.2 | R54: 3217.2 | S54: 21141.6 | U54: 0 | V54: 0 | W54: 0 | Z54: 24 | AA54: 568.008 | AB54: 768
A55: 00180-030 | B55: Sto-Granit K 1,5 цвет 804 | C55: DE | D55: интерьер | E55: декоративная штукатурка | F55: акрил | G55: н/д | H55: н/д | I55: satinmatt | J55: 23 | K55: кг | L55: Ведро | M55: 3.5 | N55: 5 | O55: кг/м² | P55: =VLOOKUP($A55,'Изменение прайс-листа'!$A$2:$E$798,4,FALSE) -> 1260 | Q55: 1512 | R55: 5292 | S55: 34776 | U55: 0 | V55: 0 | W55: 0 | Z55: 24 | AA55: 568.008 | AB55: 768
A56: 00180-031 | B56: Sto-Granit K 1,5 цвет 808 | C56: DE | D56: интерьер | E56: декоративная штукатурка | F56: акрил | G56: н/д | H56: н/д | I56: satinmatt | J56: 23 | K56: кг | L56: Ведро | M56: 3.5 | N56: 5 | O56: кг/м² | P56: =VLOOKUP($A56,'Изменение прайс-листа'!$A$2:$E$798,4,FALSE) -> 766 | Q56: 919.2 | R56: 3217.2 | S56: 21141.6 | U56: 0 | V56: 0 | W56: 0 | Z56: 24 | AA56: 568.008 | AB56: 768
A57: 00180-032 | B57: Sto-Granit K 1,5 цвет 812 | C57: DE | D57: интерьер | E57: декоративная штукатурка | F57: акрил | G57: н/д | H57: н/д | I57: satinmatt | J57: 23 | K57: кг | L57: Ведро | M57: 3.5 | N57: 5 | O57: кг/м² | P57: =VLOOKUP($A57,'Изменение прайс-листа'!$A$2:$E$798,4,FALSE) -> 1260 | Q57: 1512 | R57: 5292 | S57: 34776 | U57: 0 | V57: 0 | W57: 0 | Z57: 24 | AA57: 568.008 | AB57: 768
A58: 00180-033 | B58: Sto-Granit K 1,5 цвет 813 | C58: DE | D58: интерьер | E58: декоративная штукатурка | F58: акрил | G58: н/д | H58: н/д | I58: satinmatt | J58: 23 | K58: кг | L58: Ведро | M58: 3.5 | N58: 5 | O58: кг/м² | P58: =VLOOKUP($A58,'Изменение прайс-листа'!$A$2:$E$798,4,FALSE) -> 1260 | Q58: 1512 | R58: 5292 | S58: 34776 | U58: 0 | V58: 0 | W58: 0 | Z58: 24 | AA58: 568.008 | AB58: 768
A59: 00180-027 | B59: Sto-Granit K 1,5 цвет 821 | C59: DE | D59: интерьер | E59: декоративная штукатурка | F59: акрил | G59: н/д | H59: н/д | I59: satinmatt | J59: 23 | K59: кг | L59: Ведро | M59: 3.5 | N59: 5 | O59: кг/м² | P59: =VLOOKUP($A59,'Изменение прайс-листа'!$A$2:$E$798,4,FALSE) -> 766 | Q59: 919.2 | R59: 3217.2 | S59: 21141.6 | U59: 0 | V59: 0 | W59: 0 | Z59: 24 | AA59: 568.008 | AB59: 768
A60: 00180-028 | B60: Sto-Granit K 1,5 цвет 824 | C60: DE | D60: интерьер | E60: декоративная штукатурка | F60: акрил | G60: н/д | H60: н/д | I60: satinmatt | J60: 23 | K60: кг | L60: Ведро | M60: 3.5 | N60: 5 | O60: кг/м² | P60: =VLOOKUP($A60,'Изменение прайс-листа'!$A$2:$E$798,4,FALSE) -> 766 | Q60: 919.2 | R60: 3217.2 | S60: 21141.6 | U60: 0 | V60: 0 | W60: 0 | Z60: 24 | AA60: 568.008 | AB60: 768
A61: 09217-003 | B61: StoCalce Activ MP 1,0 (натуральный белый) | C61: DE | D61: интерьер | E61: декоративная штукатурка | F61: известь | G61: н/д | H61: н/д | I61: matt | J61: 25 | K61: кг | L61: Мешок | M61: 1.5 | N61: 4.5 | O61: кг/м² | P61: =VLOOKUP($A61,'Изменение прайс-листа'!$A$2:$E$798,4,FALSE) -> 320 | Q61: =P61*1.2 -> 384 | R61: =Q61*M61 -> 576 | S61: =Q61*J61 -> 9600 | U61: =T61*S61 -> 0 | V61: 0 | W61: 0 | Z61: 36 | AA61: 902.7 | AB61: 720 | AC61: известковая моделируемая декоративная штукатурка. Регулирует микроклимат в помещении.
A62: 00039-001 | B62: StoColor Basic weiss (белая) | C62: DE | D62: интерьер | E62: краска | F62: акрил | G62: 3 | H62: 2 | I62: matt | J62: 15 | K62: л | L62: Ведро | M62: 0.12 | N62: 0.28 | O62: л/м² | P62: =VLOOKUP($A62,'Изменение прайс-листа'!$A$2:$E$798,4,FALSE) -> 588 | Q62: 705.6 | R62: 84.672 | S62: 10584 | U62: 0 | V62: 0 | W62: 0 | X62: ● | Y62: ● | Z62: 24 | AA62: 566.64 | AB62: 768 | AC62: не содержащая вредных веществ матовая органическая дисперсионная краска с высокой степенью белизны. Хорошая укрывистость. Не содержит растворителей и пластификаторов, характеризуется крайне низкой эмиссией вредных веществ. Имеет сертификат TÜV, не содержит субстанций, вызывающих эффект потемнения.
A63: 00039-006 | B63: StoColor Basic getönt (колерованная) С1 | C63: DE | D63: интерьер | E63: краска | F63: акрил | G63: 3 | H63: 2 | I63: matt | J63: 15 | K63: л | L63: Ведро | M63: 0.12 | N63: 0.28 | O63: л/м² | P63: =P62+'7. Надбавки'!$C$6 -> 662 | Q63: 794.4 | R63: 95.328 | S63: 11916 | U63: 0 | V63: 0 | W63: 0 | Z63: 24 | AA63: 566.64 | AB63: 768
A64: 00039-002 | B64: StoColor Basic weiss (белая) | C64: DE | D64: интерьер | E64: краска | F64: акрил | G64: 3 | H64: 2 | I64: matt | J64: 10 | K64: л | L64: Ведро | M64: 0.12 | N64: 0.28 | O64: л/м² | P64: =VLOOKUP($A64,'Изменение прайс-листа'!$A$2:$E$798,4,FALSE) -> 666 | Q64: 799.2 | R64: 95.904 | S64: 7992 | U64: 0 | V64: 0 | W64: 0 | X64: ● | Z64: 27 | AA64: 425.52 | AB64: 891
A65: 00039-007 | B65: StoColor Basic getönt (колерованная) С1 | C65: DE | D65: интерьер | E65: краска | F65: акрил | G65: 3 | H65: 2 | I65: matt | J65: 10 | K65: л | L65: Ведро | M65: 0.12 | N65: 0.28 | O65: л/м² | P65: =P64+'7. Надбавки'!$C$6 -> 740 | Q65: 888 | R65: 106.56 | S65: 8880 | U65: 0 | V65: 0 | W65: 0 | Z65: 27 | AA65: 425.52 | AB65: 891
A66: 00237-024 | B66: StoColor In weiss (белая) | C66: DE | D66: интерьер | E66: краска | F66: акрил | G66: 3 | H66: 1 | I66: matt | J66: 15 | K66: л | L66: Ведро | M66: 0.13 | N66: 0.3 | O66: л/м² | P66: =VLOOKUP($A66,'Изменение прайс-листа'!$A$2:$E$798,4,FALSE) -> 638 | Q66: 765.6 | R66: 99.528 | S66: 11484 | U66: 0 | V66: 0 | W66: 0 | X66: ● | Z66: 24 | AA66: 541.44 | AB66: 792 | AC66: универсальная дисперсионная матовая краска. Широкий спектр колеровки, имеет сертификат TÜV как безвредный продукт. Легко наносится, класс укрывистости - 2.
A67: 00237-082 | B67: StoColor In getönt (колерованная) С 1 | C67: DE | D67: интерьер | E67: краска | F67: акрил | G67: 3 | H67: 1 | I67: matt | J67: 15 | K67: л | L67: Ведро | M67: 0.13 | N67: 0.3 | O67: л/м² | P67: =P66+'7. Надбавки'!$C$6 -> 712 | Q67: 854.4 | R67: 111.072 | S67: 12816 | U67: 0 | V67: 0 | W67: 0 | Z67: 24 | AA67: 541.44 | AB67: 792
A68: 00237-022 | B68: StoColor In weiss (белая) | C68: DE | D68: интерьер | E68: краска | F68: акрил | G68: 3 | H68: 1 | I68: matt | J68: 10 | K68: л | L68: Ведро | M68: 0.13 | N68: 0.3 | O68: л/м² | P68: =VLOOKUP($A68,'Изменение прайс-листа'!$A$2:$E$798,4,FALSE) -> 722 | Q68: 866.4 | R68: 112.632 | S68: 8664 | U68: 0 | V68: 0 | W68: 0 | X68: ● | Z68: 27 | AA68: 406.62 | AB68: 891
A69: 00237-081 | B69: StoColor In getönt (колерованная) С 1 | C69: DE | D69: интерьер | E69: краска | F69: акрил | G69: 3 | H69: 1 | I69: matt | J69: 10 | K69: л | L69: Ведро | M69: 0.13 | N69: 0.3 | O69: л/м² | P69: =P68+'7. Надбавки'!$C$6 -> 796 | Q69: 955.2 | R69: 124.176 | S69: 9552 | U69: 0 | V69: 0 | W69: 0 | Z69: 27 | AA69: 406.62 | AB69: 891
A70: 00237-020 | B70: StoColor In weiss (белая) | C70: DE | D70: интерьер | E70: краска | F70: акрил | G70: 3 | H70: 1 | I70: matt | J70: 5 | K70: л | L70: Ведро | M70: 0.13 | N70: 0.3 | O70: л/м² | P70: =VLOOKUP($A70,'Изменение прайс-листа'!$A$2:$E$798,4,FALSE) -> 742 | Q70: 890.4 | R70: 115.752 | S70: 4452 | U70: 0 | V70: =ROUNDUP(AA70/Z70*T70,0) -> 0 | W70: =T70/Z70 -> 0 | X70: ● | Z70: 60 | AA70: 451.8 | AB70: 1980
A71: 00237-086 | B71: StoColor In getönt (колерованная) С 1 | C71: DE | D71: интерьер | E71: краска | F71: акрил | G71: 3 | H71: 1 | I71: matt | J71: 5 | K71: л | L71: Ведро | M71: 0.13 | N71: 0.3 | O71: л/м² | P71: =P70+'7. Надбавки'!$C$6 -> 816 | Q71: 979.2 | R71: 127.296 | S71: 4896 | U71: 0 | V71: 0 | W71: 0 | Z71: 60 | AA71: 451.8 | AB71: 1980
A72: 00237-018 | B72: StoColor In weiss (белая) | C72: DE | D72: интерьер | E72: краска | F72: акрил | G72: 3 | H72: 1 | I72: matt | J72: 2,5 | K72: л | L72: Ведро | M72: 0.13 | N72: 0.3 | O72: л/м² | P72: =VLOOKUP($A72,'Изменение прайс-листа'!$A$2:$E$798,4,FALSE) -> 1392 | Q72: 1670.4 | R72: 217.152 | S72: 4176 | U72: 0 | V72: 0 | W72: 0 | X72: ● | Z72: 72 | AA72: 271.08 | AB72: 2376
A73: 00237-093 | B73: StoColor In getönt (колерованная) С 1 | C73: DE | D73: интерьер | E73: краска | F73: акрил | G73: 3 | H73: 1 | I73: matt | J73: 2,5 | K73: л | L73: Ведро | M73: 0.13 | N73: 0.3 | O73: л/м² | P73: =P72+'7. Надбавки'!$C$6 -> 1466 | Q73: 1759.2 | R73: 228.696 | S73: 4398 | U73: 0 | V73: 0 | W73: 0 | Z73: 72 | AA73: 271.08 | AB73: 2376
A74: 00229-007 | B74: StoColor Rapid weiss (белая) | C74: DE | D74: интерьер | E74: краска | F74: акрил | G74: 2 | H74: 1 | I74: matt | J74: 15 | K74: л | L74: Ведро | M74: 0.13 | N74: 0.3 | O74: л/м² | P74: =VLOOKUP($A74,'Изменение прайс-листа'!$A$2:$E$798,4,FALSE) -> 1074 | Q74: 1288.8 | R74: 167.544 | S74: 19332 | U74: 0 | V74: 0 | W74: 0 | Z74: 24 | AA74: 540 | AB74: 792 | AC74: проверенная на отсутствие вредных примесей, дисперсионная краска с высокой укрывистостью. Однослойная дисперсионная краска, очень высокая степень белизны. Устойчива к мытью, не содержит растворителей и пластификаторов, с очень слабой эммисией вредных веществ, имеет сертификат TÜV как безвредный продукт, не содержит субстанций , способствующих образованию "черных пятен" (отложение копоти и пыли на стенах).
A75: 00229-046 | B75: StoColor Rapid getönt (колерованная) С 1 | C75: DE | D75: интерьер | E75: краска | F75: акрил | G75: 2 | H75: 1 | I75: matt | J75: 15 | K75: л | L75: Ведро | M75: 0.13 | N75: 0.3 | O75: л/м² | P75: =P74+'7. Надбавки'!$C$6 -> 1148 | Q75: 1377.6 | R75: 179.088 | S75: 20664 | U75: 0 | V75: 0 | W75: 0 | Z75: 24 | AA75: 540 | AB75: 792
A76: 00229-006 | B76: StoColor Rapid weiss (белая) | C76: DE | D76: интерьер | E76: краска | F76: акрил | G76: 2 | H76: 1 | I76: matt | J76: 10 | K76: л | L76: Ведро | M76: 0.13 | N76: 0.3 | O76: л/м² | P76: =VLOOKUP($A76,'Изменение прайс-листа'!$A$2:$E$798,4,FALSE) -> 1166 | Q76: 1399.2 | R76: 181.896 | S76: 13992 | U76: 0 | V76: 0 | W76: 0 | Z76: 27 | AA76: 405.54 | AB76: 891
A77: 00229-047 | B77: StoColor Rapid getönt (колерованная) С 1 | C77: DE | D77: интерьер | E77: краска | F77: акрил | G77: 2 | H77: 1 | I77: matt | J77: 10 | K77: л | L77: Ведро | M77: 0.13 | N77: 0.3 | O77: л/м² | P77: =P76+'7. Надбавки'!$C$6 -> 1240 | Q77: 1488 | R77: 193.44 | S77: 14880 | U77: 0 | V77: 0 | W77: 0 | Z77: 27 | AA77: 405.54 | AB77: 891
A78: 00229-005 | B78: StoColor Rapid weiss (белая) | C78: DE | D78: интерьер | E78: краска | F78: акрил | G78: 2 | H78: 1 | I78: matt | J78: 5 | K78: л | L78: Ведро | M78: 0.13 | N78: 0.3 | O78: л/м² | P78: =VLOOKUP($A78,'Изменение прайс-листа'!$A$2:$E$798,4,FALSE) -> 1170 | Q78: 1404 | R78: 182.52 | S78: 7020 | U78: 0 | V78: 0 | W78: 0 | Z78: 60 | AA78: 450.6 | AB78: 1980
A79: 00229-086 | B79: StoColor Rapid getönt (колерованная) С 1 | C79: DE | D79: интерьер | E79: краска | F79: акрил | G79: 2 | H79: 1 | I79: matt | J79: 5 | K79: л | L79: Ведро | M79: 0.13 | N79: 0.3 | O79: л/м² | P79: =P78+'7. Надбавки'!$C$6 -> 1244 | Q79: 1492.8 | R79: 194.064 | S79: 7464 | U79: 0 | V79: 0 | W79: 0 | Z79: 60 | AA79: 450.6 | AB79: 1980
A80: 00229-004 | B80: StoColor Rapid weiss (белая) | C80: DE | D80: интерьер | E80: краска | F80: акрил | G80: 2 | H80: 1 | I80: matt | J80: 2,5 | K80: л | L80: Ведро | M80: 0.13 | N80: 0.3 | O80: л/м² | P80: =VLOOKUP($A80,'Изменение прайс-листа'!$A$2:$E$798,4,FALSE) -> 1742 | Q80: 2090.4 | R80: 271.752 | S80: 5226 | U80: 0 | V80: 0 | W80: 0 | Z80: 72 | AA80: 270.36 | AB80: 2376
A81: 00229-087 | B81: StoColor Rapid getönt (колерованная) С 1 | C81: DE | D81: интерьер | E81: краска | F81: акрил | G81: 2 | H81: 1 | I81: matt | J81: 2,5 | K81: л | L81: Ведро | M81: 0.13 | N81: 0.3 | O81: л/м² | P81: =P80+'7. Надбавки'!$C$6 -> 1816 | Q81: 2179.2 | R81: 283.296 | S81: 5448 | U81: 0 | V81: 0 | W81: 0 | Z81: 72 | AA81: 270.36 | AB81: 2376
A82: 08011-004 | B82: StoColor Rapid Satin weiss (белая) | C82: DE | D82: интерьер | E82: краска | F82: акрил | G82: 1 | H82: 1 | I82: satin | J82: 15 | K82: л | L82: Ведро | M82: 0.13 | N82: 0.3 | O82: л/м² | P82: =VLOOKUP($A82,'Изменение прайс-листа'!$A$2:$E$798,4,FALSE) -> 1188 | Q82: 1425.6 | R82: 185.328 | S82: 21384 | U82: 0 | V82: 0 | W82: 0 | Z82: 24 | AA82: 534.96 | AB82: 792 | AC82: проверенная на отсутствие вредных примесей, дисперсионная шелковисто-глянцевая краска с высокой укрывистостью. Однослойная, очень высокая степень белизны. Устойчива к мытью, не содержит растворителей и пластификаторов, с очень слабой эммисией вредных веществ, имеет сертификат TÜV как безвредный продукт. Не содержит субстанций, способствующих образованию "черных пятен" (отложение копоти и пыли на стенах).
A83: 08011-009 | B83: StoColor Rapid Satin getönt (колерованная) C1 | C83: DE | D83: интерьер | E83: краска | F83: акрил | G83: 1 | H83: 1 | I83: satin | J83: 15 | K83: л | L83: Ведро | M83: 0.13 | N83: 0.3 | O83: л/м² | P83: =P82+'7. Надбавки'!$C$6 -> 1262 | Q83: 1514.4 | R83: 196.872 | S83: 22716 | U83: 0 | V83: 0 | W83: 0 | Z83: 24 | AA83: 534.96 | AB83: 792
A84: 08011-003 | B84: StoColor Rapid Satin weiss (белая) | C84: DE | D84: интерьер | E84: краска | F84: акрил | G84: 1 | H84: 1 | I84: satin | J84: 10 | K84: л | L84: Ведро | M84: 0.13 | N84: 0.3 | O84: л/м² | P84: =VLOOKUP($A84,'Изменение прайс-листа'!$A$2:$E$798,4,FALSE) -> 1334 | Q84: 1600.8 | R84: 208.104 | S84: 16008 | U84: 0 | V84: 0 | W84: 0 | Z84: 27 | AA84: 401.76 | AB84: 891
A85: 08011-008 | B85: StoColor Rapid Satin getönt (колерованная) C1 | C85: DE | D85: интерьер | E85: краска | F85: акрил | G85: 1 | H85: 1 | I85: satin | J85: 10 | K85: л | L85: Ведро | M85: 0.13 | N85: 0.3 | O85: л/м² | P85: =P84+'7. Надбавки'!$C$6 -> 1408 | Q85: 1689.6 | R85: 219.648 | S85: 16896 | U85: 0 | V85: 0 | W85: 0 | Z85: 27 | AA85: 401.76 | AB85: 891
A86: 08011-002 | B86: StoColor Rapid Satin weiss (белая) | C86: DE | D86: интерьер | E86: краска | F86: акрил | G86: 1 | H86: 1 | I86: satin | J86: 5 | K86: л | L86: Ведро | M86: 0.13 | N86: 0.3 | O86: л/м² | P86: =VLOOKUP($A86,'Изменение прайс-листа'!$A$2:$E$798,4,FALSE) -> 1452 | Q86: 1742.4 | R86: 226.512 | S86: 8712 | U86: 0 | V86: 0 | W86: 0 | Z86: 60 | AA86: 446.4 | AB86: 1980
A87: 08011-007 | B87: StoColor Rapid Satin getönt (колерованная) C1 | C87: DE | D87: интерьер | E87: краска | F87: акрил | G87: 1 | H87: 1 | I87: satin | J87: 5 | K87: л | L87: Ведро | M87: 0.13 | N87: 0.3 | O87: л/м² | P87: =P86+'7. Надбавки'!$C$6 -> 1526 | Q87: 1831.2 | R87: 238.056 | S87: 9156 | U87: 0 | V87: 0 | W87: 0 | Z87: 60 | AA87: 446.4 | AB87: 1980
A88: 08109-004 | B88: StoColor Rapid Ultramatt weiss (белая) | C88: DE | D88: интерьер | E88: краска | F88: акрил | G88: 2 | H88: 1 | I88: stumpfmatt | J88: 15 | K88: л | L88: Ведро | M88: 0.13 | N88: 0.3 | O88: л/м² | P88: =VLOOKUP($A88,'Изменение прайс-листа'!$A$2:$E$798,4,FALSE) -> 946 | Q88: 1135.2 | R88: 147.576 | S88: 17028 | U88: 0 | V88: 0 | W88: 0 | X88: ● | Y88: ● | Z88: 24 | AA88: 552.24 | AB88: 792 | AC88: дисперсионная краска для сложных поверхностей с добавлением силиконовой эмульсии, с увеличенным временем высыхания. Предназначена для окрашивания сложноосвещенных поверхностей ("косой свет"). Глубоко матовая, имеет ограниченный спектр колеровки, высокая степень белизны. Имеет сертификат TÜV как безвредный продукт, класс укрывистости -1.
A89: 08109-008 | B89: StoColor Rapid Ultramatt getönt (колерованная) С 1 | C89: DE | D89: интерьер | E89: краска | F89: акрил | G89: 2 | H89: 1 | I89: stumpfmatt | J89: 15 | K89: л | L89: Ведро | M89: 0.13 | N89: 0.3 | O89: л/м² | P89: =P88+'7. Надбавки'!$C$6 -> 1020 | Q89: 1224 | R89: 159.12 | S89: 18360 | U89: 0 | V89: 0 | W89: 0 | Z89: 24 | AA89: 552.24 | AB89: 792
A90: 08109-003 | B90: StoColor Rapid Ultramatt weiss (белая) | C90: DE | D90: интерьер | E90: краска | F90: акрил | G90: 2 | H90: 1 | I90: stumpfmatt | J90: 10 | K90: л | L90: Ведро | M90: 0.13 | N90: 0.3 | O90: л/м² | P90: =VLOOKUP($A90,'Изменение прайс-листа'!$A$2:$E$798,4,FALSE) -> 1034 | Q90: 1240.8 | R90: 161.304 | S90: 12408 | U90: 0 | V90: 0 | W90: 0 | X90: ● | Z90: 27 | AA90: 414.72 | AB90: 891
A91: 08109-007 | B91: StoColor Rapid Ultramatt getönt (колерованная) С 1 | C91: DE | D91: интерьер | E91: краска | F91: акрил | G91: 2 | H91: 1 | I91: stumpfmatt | J91: 10 | K91: л | L91: Ведро | M91: 0.13 | N91: 0.3 | O91: л/м² | P91: =P90+'7. Надбавки'!$C$6 -> 1108 | Q91: 1329.6 | R91: 172.848 | S91: 13296 | U91: 0 | V91: 0 | W91: 0 | Z91: 27 | AA91: 414.72 | AB91: 891
A92: 08109-002 | B92: StoColor Rapid Ultramatt weiss (белая) | C92: DE | D92: интерьер | E92: краска | F92: акрил | G92: 2 | H92: 1 | I92: stumpfmatt | J92: 5 | K92: л | L92: Ведро | M92: 0.13 | N92: 0.3 | O92: л/м² | P92: =VLOOKUP($A92,'Изменение прайс-листа'!$A$2:$E$798,4,FALSE) -> 1158 | Q92: 1389.6 | R92: 180.648 | S92: 6948 | U92: 0 | V92: 0 | W92: 0 | X92: ● | Z92: 60 | AA92: 460.8 | AB92: 1980
A93: 08109-006 | B93: StoColor Rapid Ultramatt getönt (колерованная) С 1 | C93: DE | D93: интерьер | E93: краска | F93: акрил | G93: 2 | H93: 1 | I93: stumpfmatt | J93: 5 | K93: л | L93: Ведро | M93: 0.13 | N93: 0.3 | O93: л/м² | P93: =P92+'7. Надбавки'!$C$6 -> 1232 | Q93: =P93*1.2 -> 1478.4 | R93: =Q93*M93 -> 192.192 | S93: =Q93*J93 -> 7392 | U93: =T93*S93 -> 0 | V93: 0 | W93: 0 | Z93: 60 | AA93: 460.8 | AB93: 1980
A94: 08109-001 | B94: StoColor Rapid Ultramatt weiss (белая) | C94: DE | D94: интерьер | E94: краска | F94: акрил | G94: 2 | H94: 1 | I94: stumpfmatt | J94: 2,5 | K94: л | L94: Ведро | M94: 0.13 | N94: 0.3 | O94: л/м² | P94: =VLOOKUP($A94,'Изменение прайс-листа'!$A$2:$E$798,4,FALSE) -> 1764 | Q94: 2116.8 | R94: 275.184 | S94: 5292 | U94: 0 | V94: 0 | W94: 0 | X94: ● | Z94: 72 | AA94: 277.2 | AB94: 2376
A95: 08109-005 | B95: StoColor Rapid Ultramatt getönt (колерованная) С 1 | C95: DE | D95: интерьер | E95: краска | F95: акрил | G95: 2 | H95: 1 | I95: stumpfmatt | J95: 2,5 | K95: л | L95: Ведро | M95: 0.13 | N95: 0.3 | O95: л/м² | P95: =P94+'7. Надбавки'!$C$6 -> 1838 | Q95: 2205.6 | R95: 286.728 | S95: 5514 | U95: 0 | V95: 0 | W95: 0 | Z95: 72 | AA95: 277.2 | AB95: 2376
A96: 00024-001 | B96: StoColor Opticryl Matt weiss (белая) | C96: DE | D96: интерьер | E96: краска | F96: акрил | G96: 1 | H96: 2 | I96: matt | J96: 15 | K96: л | L96: Ведро | M96: 0.13 | N96: 0.3 | O96: л/м² | P96: =VLOOKUP($A96,'Изменение прайс-листа'!$A$2:$E$798,4,FALSE) -> 1174 | Q96: 1408.8 | R96: 183.144 | S96: 21132 | U96: 0 | V96: 0 | W96: 0 | X96: ● | Y96: ● | Z96: 24 | AA96: 559.44 | AB96: 768 | AC96: Opticryl Matt. Серия акриловых дисперсионных красок. Устойчивы к механическим воздействиям, имеют сертификат TÜV как безвредный продукт. Очень тонкая структура, идеально подходят для окрашивания рельефной поверхности, колеруются в широкий спектр цветов. Матовая краска из серии латексных дисперсионных красок Opticryl. Тонкослойная (не забивает структуру), не содержит эмиссий и растворителей, класс укрывистости - 2.
A97: 00024-002 | B97: StoColor Opticryl Matt getönt (колерованная) С1 | C97: DE | D97: интерьер | E97: краска | F97: акрил | G97: 1 | H97: 2 | I97: matt | J97: 15 | K97: л | L97: Ведро | M97: 0.13 | N97: 0.3 | O97: л/м² | P97: =P96+'7. Надбавки'!$C$6 -> 1248 | Q97: 1497.6 | R97: 194.688 | S97: 22464 | U97: 0 | V97: 0 | W97: 0 | Z97: 24 | AA97: 559.44 | AB97: 768
A98: 00024-005 | B98: StoColor Opticryl Matt weiss (белая) | C98: DE | D98: интерьер | E98: краска | F98: акрил | G98: 1 | H98: 2 | I98: matt | J98: 10 | K98: л | L98: Ведро | M98: 0.13 | N98: 0.3 | O98: л/м² | P98: =VLOOKUP($A98,'Изменение прайс-листа'!$A$2:$E$798,4,FALSE) -> 1276 | Q98: 1531.2 | R98: 199.056 | S98: 15312 | U98: 0 | V98: 0 | W98: 0 | X98: ● | Z98: 27 | AA98: 420.12 | AB98: 891
A99: 00024-008 | B99: StoColor Opticryl Matt getönt (колерованная) С1 | C99: DE | D99: интерьер | E99: краска | F99: акрил | G99: 1 | H99: 2 | I99: matt | J99: 10 | K99: л | L99: Ведро | M99: 0.13 | N99: 0.3 | O99: л/м² | P99: =P98+'7. Надбавки'!$C$6 -> 1350 | Q99: 1620 | R99: 210.6 | S99: 16200 | U99: 0 | V99: 0 | W99: 0 | Z99: 27 | AA99: 420.12 | AB99: 891
A100: 00024-004 | B100: StoColor Opticryl Matt weiss (белая) | C100: DE | D100: интерьер | E100: краска | F100: акрил | G100: 1 | H100: 2 | I100: matt | J100: 5 | K100: л | L100: Ведро | M100: 0.13 | N100: 0.3 | O100: л/м² | P100: =VLOOKUP($A100,'Изменение прайс-листа'!$A$2:$E$798,4,FALSE) -> 1410 | Q100: 1692 | R100: 219.96 | S100: 8460 | U100: 0 | V100: 0 | W100: 0 | X100: ● | Z100: 60 | AA100: 468.3 | AB100: 1980
A101: 00024-007 | B101: StoColor Opticryl Matt getönt (колерованная) С1 | C101: DE | D101: интерьер | E101: краска | F101: акрил | G101: 1 | H101: 2 | I101: matt | J101: 5 | K101: л | L101: Ведро | M101: 0.13 | N101: 0.3 | O101: л/м² | P101: =P100+'7. Надбавки'!$C$6 -> 1484 | Q101: 1780.8 | R101: 231.504 | S101: 8904 | U101: 0 | V101: 0 | W101: 0 | Z101: 60 | AA101: 468.3 | AB101: 1980
A102: 00024-003 | B102: StoColor Opticryl Matt weiss (белая) | C102: DE | D102: интерьер | E102: краска | F102: акрил | G102: 1 | H102: 2 | I102: matt | J102: 2,5 | K102: л | L102: Ведро | M102: 0.13 | N102: 0.3 | O102: л/м² | P102: =VLOOKUP($A102,'Изменение прайс-листа'!$A$2:$E$798,4,FALSE) -> 1860 | Q102: 2232 | R102: 290.16 | S102: 5580 | U102: 0 | V102: 0 | W102: 0 | X102: ● | Z102: 72 | AA102: 285.336 | AB102: 2376
A103: 00024-006 | B103: StoColor Opticryl Matt getönt (колерованная) С1 | C103: DE | D103: интерьер | E103: краска | F103: акрил | G103: 1 | H103: 2 | I103: matt | J103: 2,5 | K103: л | L103: Ведро | M103: 0.13 | N103: 0.3 | O103: л/м² | P103: =P102+'7. Надбавки'!$C$6 -> 1934 | Q103: 2320.8 | R103: 301.704 | S103: 5802 | U103: 0 | V103: 0 | W103: 0 | Z103: 72 | AA103: 285.336 | AB103: 2376
A104: 00028-001 | B104: StoColor Opticryl Satin weiss (белая) | C104: DE | D104: интерьер | E104: краска | F104: акрил | G104: 1 | H104: 2 | I104: satin | J104: 15 | K104: л | L104: Ведро | M104: 0.13 | N104: 0.3 | O104: л/м² | P104: =VLOOKUP($A104,'Изменение прайс-листа'!$A$2:$E$798,4,FALSE) -> 2028 | Q104: 2433.6 | R104: 316.368 | S104: 36504 | U104: 0 | V104: 0 | W104: 0 | X104: ● | Z104: 24 | AA104: 541.44 | AB104: 792 | AC104: Opticryl Satin. Шелковисто-глянцевая краска, из серии латексных дисперсионных красок Opticryl. Тонкослойная (не забивает структуру), не содержит эмиссий и растворителей, класс укрывистости - 2. Отлично подходит для поверхностей, подвергающихся интенсивной чистке.
A105: 00028-002 | B105: StoColor Opticryl Satin getönt (колерованная) С1 | C105: DE | D105: интерьер | E105: краска | F105: акрил | G105: 1 | H105: 2 | I105: satin | J105: 15 | K105: л | L105: Ведро | M105: 0.13 | N105: 0.3 | O105: л/м² | P105: =P104+'7. Надбавки'!$C$6 -> 2102 | Q105: 2522.4 | R105: 327.912 | S105: 37836 | U105: 0 | V105: 0 | W105: 0 | Z105: 24 | AA105: 541.44 | AB105: 792
A106: 00028-005 | B106: StoColor Opticryl Satin weiss (белая) | C106: DE | D106: интерьер | E106: краска | F106: акрил | G106: 1 | H106: 2 | I106: satin | J106: 10 | K106: л | L106: Ведро | M106: 0.13 | N106: 0.3 | O106: л/м² | P106: =VLOOKUP($A106,'Изменение прайс-листа'!$A$2:$E$798,4,FALSE) -> 2214 | Q106: 2656.8 | R106: 345.384 | S106: 26568 | U106: 0 | V106: 0 | W106: 0 | Z106: 27 | AA106: 406.62 | AB106: 891
A107: 00028-008 | B107: StoColor Opticryl Satin getönt (колерованная) С1 | C107: DE | D107: интерьер | E107: краска | F107: акрил | G107: 1 | H107: 2 | I107: satin | J107: 10 | K107: л | L107: Ведро | M107: 0.13 | N107: 0.3 | O107: л/м² | P107: =P106+'7. Надбавки'!$C$6 -> 2288 | Q107: 2745.6 | R107: 356.928 | S107: 27456 | U107: 0 | V107: 0 | W107: 0 | Z107: 27 | AA107: 406.62 | AB107: 891
A108: 00028-004 | B108: StoColor Opticryl Satin weiss (белая) | C108: DE | D108: интерьер | E108: краска | F108: акрил | G108: 1 | H108: 2 | I108: satin | J108: 5 | K108: л | L108: Ведро | M108: 0.13 | N108: 0.3 | O108: л/м² | P108: =VLOOKUP($A108,'Изменение прайс-листа'!$A$2:$E$798,4,FALSE) -> 2306 | Q108: 2767.2 | R108: 359.736 | S108: 13836 | U108: 0 | V108: 0 | W108: 0 | Z108: 60 | AA108: 451.8 | AB108: 1980
A109: 00028-007 | B109: StoColor Opticryl Satin getönt (колерованная) С1 | C109: DE | D109: интерьер | E109: краска | F109: акрил | G109: 1 | H109: 2 | I109: satin | J109: 5 | K109: л | L109: Ведро | M109: 0.13 | N109: 0.3 | O109: л/м² | P109: =P108+'7. Надбавки'!$C$6 -> 2380 | Q109: 2856 | R109: 371.28 | S109: 14280 | U109: 0 | V109: 0 | W109: 0 | Z109: 60 | AA109: 451.8 | AB109: 1980
A110: 00028-003 | B110: StoColor Opticryl Satin weiss (белая) | C110: DE | D110: интерьер | E110: краска | F110: акрил | G110: 1 | H110: 2 | I110: satin | J110: 2,5 | K110: л | L110: Ведро | M110: 0.13 | N110: 0.3 | O110: л/м² | P110: =VLOOKUP($A110,'Изменение прайс-листа'!$A$2:$E$798,4,FALSE) -> 2802 | Q110: 3362.4 | R110: 437.112 | S110: 8406 | U110: 0 | V110: 0 | W110: 0 | Z110: 72 | AA110: 276.336 | AB110: 2376
A111: 00028-006 | B111: StoColor Opticryl Satin getönt (колерованная) С1 | C111: DE | D111: интерьер | E111: краска | F111: акрил | G111: 1 | H111: 2 | I111: satin | J111: 2,5 | K111: л | L111: Ведро | M111: 0.13 | N111: 0.3 | O111: л/м² | P111: =P110+'7. Надбавки'!$C$6 -> 2876 | Q111: 3451.2 | R111: 448.656 | S111: 8628 | U111: 0 | V111: 0 | W111: 0 | Z111: 72 | AA111: 276.336 | AB111: 2376
A112: 00026-001 | B112: Sto Color Opticryl Satinmatt weiss (белая) | C112: DE | D112: интерьер | E112: краска | F112: акрил | G112: 1 | H112: 2 | I112: satinmatt | J112: 15 | K112: л | L112: Ведро | M112: 0.13 | N112: 0.3 | O112: л/м² | P112: =VLOOKUP($A112,'Изменение прайс-листа'!$A$2:$E$798,4,FALSE) -> 1326 | Q112: 1591.2 | R112: 206.856 | S112: 23868 | U112: 0 | V112: 0 | W112: 0 | X112: ● | Y112: ● | Z112: 24 | AA112: 518.04 | AB112: 792 | AC112: Opticryl Satinmatt. Шелковисто-матовая краска, из серии латексных дисперсионных красок Opticryl. Тонкослойная (не забивает структуру), не содержит эмиссий и растворителей, класс укрывистости - 2.
A113: 00026-002 | B113: StoColor Opticryl Satinmatt getönt (колерованная) С1 | C113: DE | D113: интерьер | E113: краска | F113: акрил | G113: 1 | H113: 2 | I113: satinmatt | J113: 15 | K113: л | L113: Ведро | M113: 0.13 | N113: 0.3 | O113: л/м² | P113: =P112+'7. Надбавки'!$C$6 -> 1400 | Q113: 1680 | R113: 218.4 | S113: 25200 | U113: 0 | V113: 0 | W113: 0 | Z113: 24 | AA113: 518.04 | AB113: 792
A114: 00026-005 | B114: StoColor Opticryl Satinmatt weiss (белая) | C114: DE | D114: интерьер | E114: краска | F114: акрил | G114: 1 | H114: 2 | I114: satinmatt | J114: 10 | K114: л | L114: Ведро | M114: 0.13 | N114: 0.3 | O114: л/м² | P114: =VLOOKUP($A114,'Изменение прайс-листа'!$A$2:$E$798,4,FALSE) -> 1434 | Q114: 1720.8 | R114: 223.704 | S114: 17208 | U114: 0 | V114: 0 | W114: 0 | X114: ● | Z114: 27 | AA114: 389.07 | AB114: 891
A115: 00026-008 | B115: StoColor Opticryl Satinmatt getönt (колерованная) С1 | C115: DE | D115: интерьер | E115: краска | F115: акрил | G115: 1 | H115: 2 | I115: satinmatt | J115: 10 | K115: л | L115: Ведро | M115: 0.13 | N115: 0.3 | O115: л/м² | P115: =P114+'7. Надбавки'!$C$6 -> 1508 | Q115: 1809.6 | R115: 235.248 | S115: 18096 | U115: 0 | V115: 0 | W115: 0 | Z115: 27 | AA115: 389.07 | AB115: 891
A116: 00026-004 | B116: StoColor Opticryl Satinmatt weiss (белая) | C116: DE | D116: интерьер | E116: краска | F116: акрил | G116: 1 | H116: 2 | I116: satinmatt | J116: 5 | K116: л | L116: Ведро | M116: 0.13 | N116: 0.3 | O116: л/м² | P116: =VLOOKUP($A116,'Изменение прайс-листа'!$A$2:$E$798,4,FALSE) -> 1570 | Q116: 1884 | R116: 244.92 | S116: 9420 | U116: 0 | V116: 0 | W116: 0 | X116: ● | Z116: 60 | AA116: 433.8 | AB116: 1980
A117: 00026-007 | B117: StoColor Opticryl Satinmatt getönt (колерованная) С1 | C117: DE | D117: интерьер | E117: краска | F117: акрил | G117: 1 | H117: 2 | I117: satinmatt | J117: 5 | K117: л | L117: Ведро | M117: 0.13 | N117: 0.3 | O117: л/м² | P117: =P116+'7. Надбавки'!$C$6 -> 1644 | Q117: 1972.8 | R117: 256.464 | S117: 9864 | U117: 0 | V117: 0 | W117: 0 | Z117: 60 | AA117: 433.8 | AB117: 1980
A118: 00026-003 | B118: StoColor Opticryl Satinmatt weiss (белая) | C118: DE | D118: интерьер | E118: краска | F118: акрил | G118: 1 | H118: 2 | I118: satinmatt | J118: 2,5 | K118: л | L118: Ведро | M118: 0.13 | N118: 0.3 | O118: л/м² | P118: =VLOOKUP($A118,'Изменение прайс-листа'!$A$2:$E$798,4,FALSE) -> 2018 | Q118: 2421.6 | R118: 314.808 | S118: 6054 | U118: 0 | V118: 0 | W118: 0 | X118: ● | Z118: 72 | AA118: 264.6 | AB118: 2376
A119: 00026-006 | B119: StoColor Opticryl Satinmatt getönt (колерованная) С1 | C119: DE | D119: интерьер | E119: краска | F119: акрил | G119: 1 | H119: 2 | I119: satinmatt | J119: 2,5 | K119: л | L119: Ведро | M119: 0.13 | N119: 0.3 | O119: л/м² | P119: =P118+'7. Надбавки'!$C$6 -> 2092 | Q119: 2510.4 | R119: 326.352 | S119: 6276 | U119: 0 | V119: 0 | W119: 0 | Z119: 72 | AA119: 264.6 | AB119: 2376
P120: =VLOOKUP($A120,'Изменение прайс-листа'!$A$2:$E$798,4,FALSE) -> 
P121: =VLOOKUP($A121,'Изменение прайс-листа'!$A$2:$E$798,4,FALSE) -> 
P122: =VLOOKUP($A122,'Изменение прайс-листа'!$A$2:$E$798,4,FALSE) -> 
P123: =VLOOKUP($A123,'Изменение прайс-листа'!$A$2:$E$798,4,FALSE) -> 
P124: =VLOOKUP($A124,'Изменение прайс-листа'!$A$2:$E$798,4,FALSE) -> 
P125: =VLOOKUP($A125,'Изменение прайс-листа'!$A$2:$E$798,4,FALSE) -> 
P126: =VLOOKUP($A126,'Изменение прайс-листа'!$A$2:$E$798,4,FALSE) -> 
P127: =VLOOKUP($A127,'Изменение прайс-листа'!$A$2:$E$798,4,FALSE) -> 
A128: 00030-001 | B128: StoColor Opticryl Gloss weiss (белая) | C128: DE | D128: интерьер | E128: краска | F128: акрил | G128: 1 | H128: 2 | I128: gloss | J128: 15 | K128: л | L128: Ведро | M128: 0.13 | N128: 0.3 | O128: л/м² | P128: =VLOOKUP($A128,'Изменение прайс-листа'!$A$2:$E$798,4,FALSE) -> 2184 | Q128: =P128*1.2 -> 2620.8 | R128: =Q128*M128 -> 340.704 | S128: =Q128*J128 -> 39312 | U128: =T128*S128 -> 0 | V128: 0 | W128: 0 | Z128: 24 | AA128: 503.64 | AB128: 792 | AC128: Opticryl Gloss. Глянцевая краска из серии латексных дисперсионных красок Opticryl. Тонкослойная (не забивает структуру), не содержит эмиссий и растворителей, класс укрывистости - 2. Подходит для экстремально нагружаемых поверхностей.
A129: 00030-002 | B129: StoColor Opticryl Gloss getönt (колерованная) С1 | C129: DE | D129: интерьер | E129: краска | F129: акрил | G129: 1 | H129: 2 | I129: gloss | J129: 15 | K129: л | L129: Ведро | M129: 0.13 | N129: 0.3 | O129: л/м² | P129: =P128+'7. Надбавки'!$C$6 -> 2258 | Q129: 2709.6 | R129: 352.248 | S129: 40644 | U129: 0 | V129: 0 | W129: 0 | Z129: 24 | AA129: 503.64 | AB129: 792
A130: 00030-005 | B130: StoColor Opticryl Gloss weiss (белая) | C130: DE | D130: интерьер | E130: краска | F130: акрил | G130: 1 | H130: 2 | I130: gloss | J130: 10 | K130: л | L130: Ведро | M130: 0.13 | N130: 0.3 | O130: л/м² | P130: =VLOOKUP($A130,'Изменение прайс-листа'!$A$2:$E$798,4,FALSE) -> 2374 | Q130: 2848.8 | R130: 370.344 | S130: 28488 | U130: 0 | V130: 0 | W130: 0 | Z130: 27 | AA130: 378.27 | AB130: 891
A131: 00030-008 | B131: StoColor Opticryl Gloss getönt (колерованная) С1 | C131: DE | D131: интерьер | E131: краска | F131: акрил | G131: 1 | H131: 2 | I131: gloss | J131: 10 | K131: л | L131: Ведро | M131: 0.13 | N131: 0.3 | O131: л/м² | P131: =P130+'7. Надбавки'!$C$6 -> 2448 | Q131: 2937.6 | R131: 381.888 | S131: 29376 | U131: 0 | V131: 0 | W131: 0 | Z131: 27 | AA131: 378.27 | AB131: 891
A132: 00030-004 | B132: StoColor Opticryl Gloss weiss (белая) | C132: DE | D132: интерьер | E132: краска | F132: акрил | G132: 1 | H132: 2 | I132: gloss | J132: 5 | K132: л | L132: Ведро | M132: 0.13 | N132: 0.3 | O132: л/м² | P132: =VLOOKUP($A132,'Изменение прайс-листа'!$A$2:$E$798,4,FALSE) -> 2468 | Q132: 2961.6 | R132: 385.008 | S132: 14808 | U132: 0 | V132: 0 | W132: 0 | Z132: 60 | AA132: 420.3 | AB132: 1980
A133: 00030-007 | B133: StoColor Opticryl Gloss getönt (колерованная) С1 | C133: DE | D133: интерьер | E133: краска | F133: акрил | G133: 1 | H133: 2 | I133: gloss | J133: 5 | K133: л | L133: Ведро | M133: 0.13 | N133: 0.3 | O133: л/м² | P133: =P132+'7. Надбавки'!$C$6 -> 2542 | Q133: 3050.4 | R133: 396.552 | S133: 15252 | U133: 0 | V133: 0 | W133: 0 | Z133: 60 | AA133: 420.3 | AB133: 1980
A134: 00030-003 | B134: StoColor Opticryl Gloss weiss (белая) | C134: DE | D134: интерьер | E134: краска | F134: акрил | G134: 1 | H134: 2 | I134: gloss | J134: 2,5 | K134: л | L134: Ведро | M134: 0.13 | N134: 0.3 | O134: л/м² | P134: =VLOOKUP($A134,'Изменение прайс-листа'!$A$2:$E$798,4,FALSE) -> 2964 | Q134: 3556.8 | R134: 462.384 | S134: 8892 | U134: 0 | V134: =ROUNDUP(AA134/Z134*T134,0) -> 0 | W134: =T134/Z134 -> 0 | Z134: 72 | AA134: 257.4 | AB134: 2376
A135: 00030-006 | B135: StoColor Opticryl Gloss getönt (колерованная) С1 | C135: DE | D135: интерьер | E135: краска | F135: акрил | G135: 1 | H135: 2 | I135: gloss | J135: 2,5 | K135: л | L135: Ведро | M135: 0.13 | N135: 0.3 | O135: л/м² | P135: =P134+'7. Надбавки'!$C$6 -> 3038 | Q135: 3645.6 | R135: 473.928 | S135: 9114 | U135: 0 | V135: 0 | W135: 0 | Z135: 72 | AA135: 257.4 | AB135: 2376
A136: 00097-002 | B136: StoColor Titanium weiss (белая) | C136: DE | D136: интерьер | E136: краска | F136: акрил | G136: 1 | H136: 1 | I136: matt | J136: 15 | K136: л | L136: Ведро | M136: 0.14 | N136: 0.34 | O136: л/м² | P136: =VLOOKUP($A136,'Изменение прайс-листа'!$A$2:$E$798,4,FALSE) -> 1552 | Q136: 1862.4 | R136: 260.736 | S136: 27936 | U136: 0 | V136: 0 | W136: 0 | X136: ● | Y136: ● | Z136: 24 | AA136: 554.04 | AB136: 768 | AC136: особо устойчивая дисперсионная краска. ослепительно белая, глубоко матовая, тонкослойная. Имеет сертификат TÜV как безвредный продукт. Колеруется в широкий спектр цветов, класс укрывистости - 1.
A137: 00097-004 | B137: StoColor Titanium getönt (колерованная) C1 | C137: DE | D137: интерьер | E137: краска | F137: акрил | G137: 1 | H137: 1 | I137: matt | J137: 15 | K137: л | L137: Ведро | M137: 0.14 | N137: 0.34 | O137: л/м² | P137: =P136+'7. Надбавки'!$C$6 -> 1626 | Q137: 1951.2 | R137: 273.168 | S137: 29268 | U137: 0 | V137: 0 | W137: 0 | Z137: 24 | AA137: 554.04 | AB137: 768
A138: 00097-001 | B138: StoColor Titanium weiss (белая) | C138: DE | D138: интерьер | E138: краска | F138: акрил | G138: 1 | H138: 1 | I138: matt | J138: 10 | K138: л | L138: Ведро | M138: 0.14 | N138: 0.34 | O138: л/м² | P138: =VLOOKUP($A138,'Изменение прайс-листа'!$A$2:$E$798,4,FALSE) -> 1736 | Q138: 2083.2 | R138: 291.648 | S138: 20832 | U138: 0 | V138: 0 | W138: 0 | X138: ● | Z138: 27 | AA138: 416.07 | AB138: 891
A139: 00097-003 | B139: StoColor Titanium getönt (колерованная) C1 | C139: DE | D139: интерьер | E139: краска | F139: акрил | G139: 1 | H139: 1 | I139: matt | J139: 10 | K139: л | L139: Ведро | M139: 0.14 | N139: 0.34 | O139: л/м² | P139: =P138+'7. Надбавки'!$C$6 -> 1810 | Q139: 2172 | R139: 304.08 | S139: 21720 | U139: 0 | V139: 0 | W139: 0 | Z139: 27 | AA139: 416.07 | AB139: 891
A140: 00097-020 | B140: StoColor Titanium ASE getönt (колерованная) | C140: DE | D140: интерьер | E140: краска | F140: акрил | G140: 1 | H140: 1 | I140: matt | J140: 15 | K140: л | L140: Ведро | M140: 0.14 | N140: 0.34 | O140: л/м² | P140: =VLOOKUP($A140,'Изменение прайс-листа'!$A$2:$E$798,4,FALSE) -> 1974 | Q140: 2368.8 | R140: 331.632 | S140: 35532 | U140: 0 | V140: 0 | W140: 0 | X140: ● | Z140: 24 | AA140: 554.04 | AB140: 768 | AC140: Уникальный продукт! специальная дисперсионная краска для насыщенных тонов со сниженным "эффектом письма". При колеровке в пастельные тона обладает свойствами матовой, хорошо моющейся краски
A141: 00097-021 | B141: StoColor Titanium ASE getönt (колерованная) | C141: DE | D141: интерьер | E141: краска | F141: акрил | G141: 1 | H141: 1 | I141: matt | J141: 5 | K141: л | L141: Ведро | M141: 0.14 | N141: 0.34 | O141: л/м² | P141: =VLOOKUP($A141,'Изменение прайс-листа'!$A$2:$E$798,4,FALSE) -> 2218 | Q141: 2661.6 | R141: 372.624 | S141: 13308 | U141: 0 | V141: 0 | W141: 0 | X141: ● | Z141: 60 | AA141: 462.3 | AB141: 1980
A142: 02990-001 | B142: StoColor Climasan weiss (белая) | C142: DE | D142: интерьер | E142: краска | F142: акрил | G142: 2 | H142: 1 | I142: stumpfmatt | J142: 15 | K142: л | L142: Ведро | M142: 0.14 | N142: 0.34 | O142: л/м² | P142: =VLOOKUP($A142,'Изменение прайс-листа'!$A$2:$E$798,4,FALSE) -> 2662 | Q142: 3194.4 | R142: 447.216 | S142: 47916 | U142: 0 | V142: 0 | W142: 0 | Z142: 24 | AA142: 522.36 | AB142: 792 | AC142: Уникальный продукт! активная краска для внутренних работ, очищающая воздух под воздействием света. Фотокаталитический принцип действия обеспечивает устранение из воздуха вредных веществ и неприятных запахов. Краска имеет матовую поверхность, обладает высокой степенью укрывитости и наносится в один слой. Не содержит растворителей и пластификаторов, характеризуется крайне низкой эмиссией вредных веществ. Имеет сертификат TÜV, не содержит субстанций, вызывающих эффект потемнения.
A143: 02990-004 | B143: StoColor Climasan getönt (колерованная) С1 | C143: DE | D143: интерьер | E143: краска | F143: акрил | G143: 2 | H143: н/д | I143: stumpfmatt | J143: 15 | K143: л | L143: Ведро | M143: 0.14 | N143: 0.34 | O143: л/м² | P143: =P142+'7. Надбавки'!$C$6 -> 2736 | Q143: 3283.2 | R143: 459.648 | S143: 49248 | U143: 0 | V143: 0 | W143: 0 | Z143: 24 | AA143: 522.36 | AB143: 792
A144: 02990-007 | B144: StoColor Climasan weiss (белая) | C144: DE | D144: интерьер | E144: краска | F144: акрил | G144: 2 | H144: 1 | I144: stumpfmatt | J144: 5 | K144: л | L144: Ведро | M144: 0.14 | N144: 0.34 | O144: л/м² | P144: =VLOOKUP($A144,'Изменение прайс-листа'!$A$2:$E$798,4,FALSE) -> 2960 | Q144: 3552 | R144: 497.28 | S144: 17760 | U144: 0 | V144: 0 | W144: 0 | Z144: 60 | AA144: 437.4 | AB144: 1980
A145: 02990-008 | B145: StoColor Climasan getönt (колерованная) С1 | C145: DE | D145: интерьер | E145: краска | F145: акрил | G145: 2 | H145: н/д | I145: stumpfmatt | J145: 5 | K145: л | L145: Ведро | M145: 0.14 | N145: 0.34 | O145: л/м² | P145: =P144+'7. Надбавки'!$C$6 -> 3034 | Q145: 3640.8 | R145: 509.712 | S145: 18204 | U145: 0 | V145: 0 | W145: 0 | Z145: 60 | AA145: 437.4 | AB145: 1980
A146: 09378-002 | B146: StoColor Supermatt weiss (белый) | C146: DE | D146: интерьер | E146: краска | F146: силикон | G146: 1 | H146: 2 | I146: stumpfmatt | J146: 15 | K146: л | L146: Ведро | M146: 0.12 | N146: 0.3 | O146: л/м² | P146: =VLOOKUP($A146,'Изменение прайс-листа'!$A$2:$E$798,4,FALSE) -> 1348 | Q146: 1617.6 | R146: 194.112 | S146: 24264 | U146: 0 | V146: 0 | W146: 0 | X146: ● | Y146: ● | Z146: 24 | AA146: 572.16 | AB146: 744 | AC146: экстремально матовая силиконовая краска для внутренних работ. Идеально подходит для больших площадей, не "полосит"
A147: 09378-001 | B147: StoColor Supermatt getönt (колерованная) C1 | C147: DE | D147: интерьер | E147: краска | F147: силикон | G147: 1 | H147: 2 | I147: stumpfmatt | J147: 15 | K147: л | L147: Ведро | M147: 0.12 | N147: 0.3 | O147: л/м² | P147: =P146+'7. Надбавки'!$C$6 -> 1422 | Q147: 1706.4 | R147: 204.768 | S147: 25596 | U147: 0 | V147: 0 | W147: 0 | Z147: 24 | AA147: 572.16 | AB147: 744
A148: 09378-004 | B148: StoColor Supermatt weiss (белый) | C148: DE | D148: интерьер | E148: краска | F148: силикон | G148: 1 | H148: 2 | I148: stumpfmatt | J148: 5 | K148: л | L148: Ведро | M148: 0.12 | N148: 0.3 | O148: л/м² | P148: =VLOOKUP($A148,'Изменение прайс-листа'!$A$2:$E$798,4,FALSE) -> 1808 | Q148: 2169.6 | R148: 260.352 | S148: 10848 | U148: 0 | V148: 0 | W148: 0 | X148: ● | Z148: 60 | AA148: 479.7 | AB148: 1980
A149: 09378-003 | B149: StoColor Supermatt getönt (колерованная) C1 | C149: DE | D149: интерьер | E149: краска | F149: силикон | G149: 1 | H149: 2 | I149: stumpfmatt | J149: 5 | K149: л | L149: Ведро | M149: 0.12 | N149: 0.3 | O149: л/м² | P149: =P148+'7. Надбавки'!$C$6 -> 1882 | Q149: =P149*1.2 -> 2258.4 | R149: =Q149*M149 -> 271.008 | S149: =Q149*J149 -> 11292 | U149: 0 | V149: 0 | W149: 0 | Z149: 60 | AA149: 479.7 | AB149: 1980
A150: 00292-001 | B150: StoColor Sil Mineral weiss (белая) | C150: DE | D150: интерьер | E150: краска | F150: силикат | G150: 3 | H150: 2 | I150: stumpfmatt | J150: 15 | K150: л | L150: Ведро | M150: 0.17 | N150: 0.34 | O150: л/м² | P150: =VLOOKUP($A150,'Изменение прайс-листа'!$A$2:$E$798,4,FALSE) -> 794 | Q150: =P150*1.2 -> 952.8 | R150: =Q150*M150 -> 161.976 | S150: =Q150*J150 -> 14292 | U150: =T150*S150 -> 0 | V150: 0 | W150: 0 | Z150: 24 | AA150: 582.84 | AB150: 744 | AC150: экологически чистая, силикатная краска. Имеет сертификат TÜV как безвредный продукт. Предназначена для людей, особо ценящих экологическую чистоту в доме. Материал колеруется в ограниченный диапазон цветов, не содержит растворителей и пластификаторов, эмиссий вредных веществ и субстанций, вызывающих эффект потемнения.
A151: 00292-011 | B151: StoColor Sil Mineral getönt (колерованная) С 1 | C151: DE | D151: интерьер | E151: краска | F151: силикат | G151: 3 | H151: 2 | I151: stumpfmatt | J151: 15 | K151: л | L151: Ведро | M151: 0.17 | N151: 0.34 | O151: л/м² | P151: =P150+'7. Надбавки'!$C$6 -> 868 | Q151: 1041.6 | R151: 177.072 | S151: 15624 | U151: 0 | V151: 0 | W151: 0 | Z151: 24 | AA151: 582.84 | AB151: 744
A152: 00292-019 | B152: StoColor Sil Mineral weiss (белая) | C152: DE | D152: интерьер | E152: краска | F152: силикат | G152: 3 | H152: 2 | I152: stumpfmatt | J152: 10 | K152: л | L152: Ведро | M152: 0.17 | N152: 0.34 | O152: л/м² | P152: =VLOOKUP($A152,'Изменение прайс-листа'!$A$2:$E$798,4,FALSE) -> 984 | Q152: 1180.8 | R152: 200.736 | S152: 11808 | U152: 0 | V152: 0 | W152: 0 | Z152: 27 | AA152: 438.48 | AB152: 891
A153: 00292-020 | B153: StoColor Sil Mineral getönt (колерованная) С 1 | C153: DE | D153: интерьер | E153: краска | F153: силикат | G153: 3 | H153: 2 | I153: stumpfmatt | J153: 10 | K153: л | L153: Ведро | M153: 0.17 | N153: 0.34 | O153: л/м² | P153: =P152+'7. Надбавки'!$C$6 -> 1058 | Q153: 1269.6 | R153: 215.832 | S153: 12696 | U153: 0 | V153: 0 | W153: 0 | Z153: 27 | AA153: 438.48 | AB153: 891
A154: 00292-025 | B154: StoColor Sil Mineral weiss (белая) | C154: DE | D154: интерьер | E154: краска | F154: силикат | G154: 3 | H154: 2 | I154: stumpfmatt | J154: 5 | K154: л | L154: Ведро | M154: 0.17 | N154: 0.34 | O154: л/м² | P154: =VLOOKUP($A154,'Изменение прайс-листа'!$A$2:$E$798,4,FALSE) -> 1068 | Q154: 1281.6 | R154: 217.872 | S154: 6408 | U154: 0 | V154: 0 | W154: 0 | Z154: 60 | AA154: 487.2 | AB154: 1980
A155: 00292-026 | B155: Sto Color Sil Mineral getönt (колерованная) С 1 | C155: DE | D155: интерьер | E155: краска | F155: силикат | G155: 3 | H155: 2 | I155: stumpfmatt | J155: 5 | K155: л | L155: Ведро | M155: 0.17 | N155: 0.34 | O155: л/м² | P155: =P154+'7. Надбавки'!$C$6 -> 1142 | Q155: 1370.4 | R155: 232.968 | S155: 6852 | U155: 0 | V155: 0 | W155: 0 | Z155: 60 | AA155: 487.2 | AB155: 1980
A156: 09547-004 | B156: StoColor Sil Comfort weiss (белая) | C156: DE | D156: интерьер | E156: краска | F156: силикат | G156: 2 | H156: 2 | I156: matt | J156: 15 | K156: л | L156: Ведро | M156: 0.13 | N156: 0.3 | O156: л/м² | P156: =VLOOKUP($A156,'Изменение прайс-листа'!$A$2:$E$798,4,FALSE) -> 1144 | Q156: 1372.8 | R156: 178.464 | S156: 20592 | U156: 0 | V156: 0 | W156: 0 | Z156: 24 | AA156: 559.44 | AB156: 768 | AC156: высококачественная силикатная краска для внутренних работ
A157: 09547-003 | B157: StoColor Sil Comfort getönt (колерованная) С 1 | C157: DE | D157: интерьер | E157: краска | F157: силикат | G157: 2 | H157: 2 | I157: matt | J157: 15 | K157: л | L157: Ведро | M157: 0.13 | N157: 0.3 | O157: л/м² | P157: =P156+'7. Надбавки'!$C$6 -> 1218 | Q157: 1461.6 | R157: 190.008 | S157: 21924 | U157: 0 | V157: 0 | W157: 0 | Z157: 24 | AA157: 559.44 | AB157: 768
A158: 00206-006 | B158: StoColor Sil In weiss (белая) | C158: DE | D158: интерьер | E158: краска | F158: силикат | G158: 2 | H158: 1 | I158: matt | J158: 15 | K158: л | L158: Ведро | M158: 0.12 | N158: 0.28 | O158: л/м² | P158: =VLOOKUP($A158,'Изменение прайс-листа'!$A$2:$E$798,4,FALSE) -> 1134 | Q158: 1360.8 | R158: 163.296 | S158: 20412 | U158: 0 | V158: 0 | W158: 0 | Z158: 24 | AA158: 572.04 | AB158: 744 | AC158: силикатная краска для внутренних работ. Абсолютно экологически чистый, натуральный материал, имеет сертификат TÜV как безвредный продукт и сертификат Nature plus как особо натуральный продукт. Имеет высокую степень белизны и глубоко матовую поверхность, ограниченный спектр по колеровке.
A159: 00206-044 | B159: StoColor Sil In getönt (колерованная) C1 | C159: DE | D159: интерьер | E159: краска | F159: силикат | G159: 2 | H159: 1 | I159: matt | J159: 15 | K159: л | L159: Ведро | M159: 0.12 | N159: 0.28 | O159: л/м² | P159: =P158+'7. Надбавки'!$C$6 -> 1208 | Q159: 1449.6 | R159: 173.952 | S159: 21744 | U159: 0 | V159: 0 | W159: 0 | Z159: 24 | AA159: 572.04 | AB159: 744
A160: 00206-004 | B160: StoColor Sil In weiss (белая) | C160: DE | D160: интерьер | E160: краска | F160: силикат | G160: 2 | H160: 1 | I160: matt | J160: 10 | K160: л | L160: Ведро | M160: 0.12 | N160: 0.28 | O160: л/м² | P160: =VLOOKUP($A160,'Изменение прайс-листа'!$A$2:$E$798,4,FALSE) -> 1224 | Q160: 1468.8 | R160: 176.256 | S160: 14688 | U160: 0 | V160: 0 | W160: 0 | Z160: 27 | AA160: 429.57 | AB160: 891
A161: 00206-052 | B161: StoColor Sil In getönt (колерованная) C1 | C161: DE | D161: интерьер | E161: краска | F161: силикат | G161: 2 | H161: 1 | I161: matt | J161: 10 | K161: л | L161: Ведро | M161: 0.12 | N161: 0.28 | O161: л/м² | P161: =P160+'7. Надбавки'!$C$6 -> 1298 | Q161: 1557.6 | R161: 186.912 | S161: 15576 | U161: 0 | V161: 0 | W161: 0 | Z161: 27 | AA161: 429.57 | AB161: 891
A162: 00206-012 | B162: StoColor Sil In weiss (белая) | C162: DE | D162: интерьер | E162: краска | F162: силикат | G162: 2 | H162: 1 | I162: matt | J162: 5 | K162: л | L162: Ведро | M162: 0.12 | N162: 0.28 | O162: л/м² | P162: =VLOOKUP($A162,'Изменение прайс-листа'!$A$2:$E$798,4,FALSE) -> 1406 | Q162: 1687.2 | R162: 202.464 | S162: 8436 | U162: 0 | V162: 0 | W162: 0 | Z162: 60 | AA162: 477.3 | AB162: 1980
A163: 00206-057 | B163: StoColor Sil In getönt (колерованная) C1 | C163: DE | D163: интерьер | E163: краска | F163: силикат | G163: 2 | H163: 1 | I163: matt | J163: 5 | K163: л | L163: Ведро | M163: 0.12 | N163: 0.28 | O163: л/м² | P163: =P162+'7. Надбавки'!$C$6 -> 1480 | Q163: 1776 | R163: 213.12 | S163: 8880 | U163: 0 | V163: 0 | W163: 0 | Z163: 60 | AA163: 477.3 | AB163: 1980
A164: 00206-075 | B164: StoColor Sil In weiss (белая) | C164: DE | D164: интерьер | E164: краска | F164: силикат | G164: 2 | H164: 1 | I164: matt | J164: 2,5 | K164: л | L164: Ведро | M164: 0.12 | N164: 0.28 | O164: л/м² | P164: =VLOOKUP($A164,'Изменение прайс-листа'!$A$2:$E$798,4,FALSE) -> 1904 | Q164: 2284.8 | R164: 274.176 | S164: 5712 | U164: 0 | V164: 0 | W164: 0 | Z164: 72 | AA164: 286.38 | AB164: 2376
A165: 00206-086 | B165: StoColor Sil In getönt (колерованная) C1 | C165: DE | D165: интерьер | E165: краска | F165: силикат | G165: 2 | H165: 1 | I165: matt | J165: 2,5 | K165: л | L165: Ведро | M165: 0.12 | N165: 0.28 | O165: л/м² | P165: =P164+'7. Надбавки'!$C$6 -> 1978 | Q165: 2373.6 | R165: 284.832 | S165: 5934 | U165: 0 | V165: 0 | W165: 0 | Z165: 72 | AA165: 286.38 | AB165: 2376
A166: 00199-004 | B166: StoColor Sil Premium weiß | C166: DE | D166: интерьер | E166: краска | F166: силикат | G166: 1 | H166: 1 | I166: stumpfmatt | J166: 15 | K166: л | L166: Ведро | M166: 0.12 | N166: 0.28 | O166: л/м² | P166: =VLOOKUP($A166,'Изменение прайс-листа'!$A$2:$E$798,4,FALSE) -> 1194 | Q166: 1432.8 | R166: 171.936 | S166: 21492 | U166: =T166*S166 -> 0 | V166: 0 | W166: 0 | Z166: 24 | AA166: 559.44 | AB166: 768 | AC166: Уникальный продукт! Силикатная краска, имеющая 1-й класс влажного истирания и укрывистости. Натуральный материал, не содержит пластификаторов и вредных добавок, хорошо подходит для людей, страдающих аллергическими реакциями.
A167: 00199-003 | B167: StoColor Sil Premium getönt (колерованная) С 1 | C167: DE | D167: интерьер | E167: краска | F167: силикат | G167: 1 | H167: 1 | I167: stumpfmatt | J167: 15 | K167: л | L167: Ведро | M167: 0.12 | N167: 0.28 | O167: л/м² | P167: =P166+'7. Надбавки'!$C$6 -> 1268 | Q167: 1521.6 | R167: 182.592 | S167: 22824 | U167: 0 | V167: 0 | W167: 0 | Z167: 24 | AA167: 559.44 | AB167: 768
A168: 00199-010 | B168: StoColor Sil Premium weiß | C168: DE | D168: интерьер | E168: краска | F168: силикат | G168: 1 | H168: 1 | I168: stumpfmatt | J168: 5 | K168: л | L168: Ведро | M168: 0.12 | N168: 0.28 | O168: л/м² | P168: =VLOOKUP($A168,'Изменение прайс-листа'!$A$2:$E$798,4,FALSE) -> 1426 | Q168: 1711.2 | R168: 205.344 | S168: 8556 | U168: 0 | V168: 0 | W168: 0 | Z168: 60 | AA168: 466.2 | AB168: 1980
A169: 00199-009 | B169: StoColor Sil Premium getönt (колерованная) С 1 | C169: DE | D169: интерьер | E169: краска | F169: силикат | G169: 1 | H169: 1 | I169: stumpfmatt | J169: 5 | K169: л | L169: Ведро | M169: 0.12 | N169: 0.28 | O169: л/м² | P169: =P168+'7. Надбавки'!$C$6 -> 1500 | Q169: 1800 | R169: 216 | S169: 9000 | U169: 0 | V169: 0 | W169: 0 | Z169: 60 | AA169: 466.2 | AB169: 1980
A170: 00247-001 | B170: StoColor Calcetura natur (натуральный цвет) | C170: DE | D170: интерьер | E170: краска | F170: известь | G170: 3 | H170: 3 | I170: stumpfmatt | J170: 20 | K170: кг | L170: Ведро | M170: 0.2 | N170: 0.6 | O170: кг/м² | P170: =VLOOKUP($A170,'Изменение прайс-листа'!$A$2:$E$798,4,FALSE) -> 540 | Q170: =P170*1.2 -> 648 | R170: =Q170*M170 -> 129.6 | S170: =Q170*J170 -> 12960 | U170: =T170*S170 -> 0 | V170: 0 | W170: 0 | Z170: 24 | AA170: 495.84 | AB170: 792 | AC170: усиленная клеем известковая краска, минеральная, устойчивая к мытью. Хорошая укрывистость, высокая степень белизны, не содержит консервантов, натурально-белая.
A171: 00080/001 | B171: StoColor Puran Satin weiss (белая), комплект из 2-х компонентов | C171: DE | D171: интерьер | E171: краска | F171: полиуретан | G171: 1 | H171: 2 | I171: satin | J171: 16.5 | K171: кг | L171: Комплект | M171: 0.15 | N171: 0.4 | O171: кг/м² | P171: =VLOOKUP($A171,'Изменение прайс-листа'!$A$2:$E$798,4,FALSE) -> 2236 | Q171: 2683.2 | R171: 402.48 | S171: 44272.8 | U171: 0 | V171: 0 | W171: 0 | X171: ● | Y171: ● | Z171: 24 | AA171: 420.552 | AB171: 792 | AC171: Уникальный продукт! двухкомпонентная полиуретановая краска с шелковисто-матовой поверхностью, может подвергаться обработке дезактивирующими и дезинфицирующими веществами, 1-й класс устойчивости к влажному истиранию по евростандарту EN 13300. Подходит для использования в медицинских и других общественных заведениях
A172: 00080/002 | B172: StoColor Puran Satin getönt (колерованная) С1, комплект из 2-х компонентов | C172: DE | D172: интерьер | E172: краска | F172: полиуретан | G172: 1 | H172: 2 | I172: satin | J172: 16.5 | K172: кг | L172: Комплект | M172: 0.15 | N172: 0.4 | O172: кг/м² | P172: =P171+'7. Надбавки'!C5 -> 2282 | Q172: 2738.4 | R172: 410.76 | S172: 45183.6 | U172: 0 | V172: 0 | W172: 0 | Z172: 24 | AA172: 420.552 | AB172: 792
A173: 00200-011 | B173: StoColor Isol weiss (белая) | C173: DE | D173: интерьер | E173: краска изолирующая | F173: растворитель | G173: 2 | H173: 2 | I173: matt | J173: 12.5 | K173: л | L173: Ведро | M173: 0.13 | N173: 0.3 | O173: л/м² | P173: =VLOOKUP($A173,'Изменение прайс-листа'!$A$2:$E$798,4,FALSE) -> 4030 | Q173: 4836 | R173: 628.68 | S173: 60450 | U173: 0 | V173: 0 | W173: 0 | Z173: 24 | AA173: 452.7 | AB173: 792 | AC173: матовая изолирующая краска на основе растворителя, 2-й класс укрывистости, 2-й класс устойчивости к влажному истиранию, высокая степень белизны, хорошая укрывистость, со слабым внутренним напряжением. Для нанесения на проблемные основания (например, пятна от никотина, копоти, воды)
A174: 00200-012 | B174: StoColor Isol getönt (колерованная) С1 | C174: DE | D174: интерьер | E174: краска изолирующая | F174: растворитель | G174: 2 | H174: 2 | I174: matt | J174: 12.5 | K174: л | L174: Ведро | M174: 0.13 | N174: 0.3 | O174: л/м² | P174: =P173+'7. Надбавки'!$C$6 -> 4104 | Q174: 4924.8 | R174: 640.224 | S174: 61560 | U174: 0 | V174: 0 | W174: 0 | Z174: 24 | AA174: 452.7 | AB174: 792
A175: 00289-001 | B175: StoColor Isol W weiss (белая) | C175: DE | D175: интерьер | E175: краска изолирующая | F175: акрил | G175: 1 | H175: 2 | I175: matt | J175: 15 | K175: л | L175: Ведро | M175: 0.13 | N175: 0.3 | O175: л/м² | P175: =VLOOKUP($A175,'Изменение прайс-листа'!$A$2:$E$798,4,FALSE) -> 2002 | Q175: 2402.4 | R175: 312.312 | S175: 36036 | U175: 0 | V175: 0 | W175: 0 | Z175: 24 | AA175: 476.64 | AB175: 792 | AC175: водная, изолирующая дисперсионная краска. Высокая степень белизны, 2-й класс влажного истирания, хорошая укрывистость, со слабым внутренним напряжением. Для нанесения на проблемные основания (например, пятна от никотина, копоти, места, пораженные лигнином)
A176: 00289-013 | B176: StoColor Isol W getönt (колерованная) С1 | C176: DE | D176: интерьер | E176: краска изолирующая | F176: акрил | G176: 1 | H176: 2 | I176: matt | J176: 15 | K176: л | L176: Ведро | M176: 0.13 | N176: 0.3 | O176: л/м² | P176: =P175+'7. Надбавки'!$C$6 -> 2076 | Q176: 2491.2 | R176: 323.856 | S176: 37368 | U176: 0 | V176: 0 | W176: 0 | Z176: 24 | AA176: 476.64 | AB176: 792
A177: 00289-004 | B177: StoColor Isol W weiss (белая) | C177: DE | D177: интерьер | E177: краска изолирующая | F177: акрил | G177: 1 | H177: 2 | I177: matt | J177: 5 | K177: л | L177: Ведро | M177: 0.13 | N177: 0.3 | O177: л/м² | P177: =VLOOKUP($A177,'Изменение прайс-листа'!$A$2:$E$798,4,FALSE) -> 2312 | Q177: 2774.4 | R177: 360.672 | S177: 13872 | U177: 0 | V177: 0 | W177: 0 | Z177: 60 | AA177: 399.3 | AB177: 1980
A178: 00289-026 | B178: StoColor Isol W getönt (колерованная) С1 | C178: DE | D178: интерьер | E178: краска изолирующая | F178: акрил | G178: 1 | H178: 2 | I178: matt | J178: 5 | K178: л | L178: Ведро | M178: 0.13 | N178: 0.3 | O178: л/м² | P178: =P177+'7. Надбавки'!$C$6 -> 2386 | Q178: 2863.2 | R178: 372.216 | S178: 14316 | U178: 0 | V178: 0 | W178: 0 | Z178: 60 | AA178: 399.3 | AB178: 1980
A179: 00300-001 | B179: StoLook Decor Fine 1 мм weiss (белое) | C179: DE | D179: интерьер | E179: краска структурная | F179: акрил | G179: н/д | H179: н/д | I179: matt | J179: 21 | K179: кг | L179: Ведро | M179: 0.7 | N179: 0.9 | O179: кг/м² | P179: =VLOOKUP($A179,'Изменение прайс-листа'!$A$2:$E$798,4,FALSE) -> 610 | Q179: 732 | R179: 512.4 | S179: 15372 | U179: 0 | V179: 0 | W179: 0 | Z179: 24 | AA179: 520.128 | AB179: 792 | AC179: мелкозернистое структурное покрытие, наносится методом набрызга
A180: 00300-007 | B180: StoLook Decor Fine 1 мм getönt (колерованное) | C180: DE | D180: интерьер | E180: краска структурная | F180: акрил | G180: н/д | H180: н/д | I180: matt | J180: 21 | K180: кг | L180: Ведро | M180: 0.7 | N180: 0.9 | O180: кг/м² | P180: =P179+'7. Надбавки'!$C$5 -> 656 | Q180: 787.2 | R180: 551.04 | S180: 16531.2 | U180: 0 | V180: 0 | W180: 0 | Z180: 24 | AA180: 520.128 | AB180: 792
A181: 00302-001 | B181: StoLook Decor Medium 1,5 мм weiss (белое) | C181: DE | D181: интерьер | E181: краска структурная | F181: акрил | G181: н/д | H181: н/д | I181: matt | J181: 21 | K181: кг | L181: Ведро | M181: 0.8 | N181: 1 | O181: кг/м² | P181: =VLOOKUP($A181,'Изменение прайс-листа'!$A$2:$E$798,4,FALSE) -> 610 | Q181: 732 | R181: 585.6 | S181: 15372 | U181: 0 | V181: 0 | W181: 0 | Z181: 24 | AA181: 520.128 | AB181: 792 | AC181: среднезернистое структурное покрытие, наносится методом набрызга
A182: 00302-005 | B182: StoLook Decor Medium 1,5 мм getönt (колерованное) | C182: DE | D182: интерьер | E182: краска структурная | F182: акрил | G182: н/д | H182: н/д | I182: matt | J182: 21 | K182: кг | L182: Ведро | M182: 0.8 | N182: 1 | O182: кг/м² | P182: =P181+'7. Надбавки'!$C$5 -> 656 | Q182: 787.2 | R182: 629.76 | S182: 16531.2 | U182: 0 | V182: 0 | W182: 0 | Z182: 24 | AA182: 520.128 | AB182: 792
A183: 00735-017 | B183: StoLook Decor Perl weiss (белое) | C183: DE | D183: интерьер | E183: краска структурная | F183: акрил | G183: н/д | H183: н/д | I183: matt | J183: 16 | K183: кг | L183: Ведро | M183: 0.8 | N183: 1 | O183: кг/м² | P183: =VLOOKUP($A183,'Изменение прайс-листа'!$A$2:$E$798,4,FALSE) -> 704 | Q183: 844.8 | R183: 675.84 | S183: 13516.8 | U183: 0 | V183: 0 | W183: 0 | Z183: 24 | AA183: 400.128 | AB183: 792 | AC183: матовое покрытие с эффектом "рассыпавшихся шариков", наносится методом набрызга
A184: 00282-001 | B184: StoLook Struktur F weiss (белое) | C184: DE | D184: интерьер | E184: краска структурная | F184: акрил | G184: н/д | H184: н/д | I184: matt | J184: 20 | K184: кг | L184: Ведро | M184: 0.3 | N184: 1.5 | O184: кг/м² | P184: =VLOOKUP($A184,'Изменение прайс-листа'!$A$2:$E$798,4,FALSE) -> 800 | Q184: 960 | R184: 288 | S184: 19200 | U184: 0 | V184: 0 | W184: 0 | Z184: 24 | AA184: 495.84 | AB184: 792 | AC184: структурная краска с мелким наполнителем, подходит для создания различных декоративных покрытий различным инструментом, 2-й класс устойчивости к влажному истиранию (EN 13300)
A185: 00282-002 | B185: StoLook Struktur F getönt (колерованное) | C185: DE | D185: интерьер | E185: краска структурная | F185: акрил | G185: н/д | H185: н/д | I185: matt | J185: 20 | K185: кг | L185: Ведро | M185: 0.3 | N185: 1.5 | O185: кг/м² | P185: =P184+'7. Надбавки'!$C$5 -> 846 | Q185: 1015.2 | R185: 304.56 | S185: 20304 | U185: 0 | V185: 0 | W185: 0 | Z185: 24 | AA185: 495.84 | AB185: 792
A186: 00282-005 | B186: StoLook Struktur F weiss (белое) | C186: DE | D186: интерьер | E186: краска структурная | F186: акрил | G186: н/д | H186: н/д | I186: matt | J186: 10 | K186: кг | L186: Ведро | M186: 0.3 | N186: 1.5 | O186: кг/м² | P186: =VLOOKUP($A186,'Изменение прайс-листа'!$A$2:$E$798,4,FALSE) -> 1050 | Q186: 1260 | R186: 378 | S186: 12600 | U186: 0 | V186: 0 | W186: 0 | Z186: 27 | AA186: 282.42 | AB186: 792
A187: 00282-006 | B187: StoLook Struktur F getönt (колерованное) | C187: DE | D187: интерьер | E187: краска структурная | F187: акрил | G187: н/д | H187: н/д | I187: matt | J187: 10 | K187: кг | L187: Ведро | M187: 0.3 | N187: 1.5 | O187: кг/м² | P187: =P186+'7. Надбавки'!$C$5 -> 1096 | Q187: 1315.2 | R187: 394.56 | S187: 13152 | U187: 0 | V187: 0 | W187: 0 | Z187: 27 | AA187: 282.42 | AB187: 792
A188: 00571-001 | B188: StoLook Struktur G weiss (белое) | C188: DE | D188: интерьер | E188: краска структурная | F188: акрил | G188: н/д | H188: н/д | I188: matt | J188: 20 | K188: кг | L188: Ведро | M188: 0.4 | N188: 1.5 | O188: кг/м² | P188: =VLOOKUP($A188,'Изменение прайс-листа'!$A$2:$E$798,4,FALSE) -> 800 | Q188: 960 | R188: 384 | S188: 19200 | U188: 0 | V188: 0 | W188: 0 | Z188: 24 | AA188: 495.84 | AB188: 792 | AC188: структурная краска с крупным наполнителем, подходит для создания различных декоративных покрытий различным инстументом, 2-й класс устойчивости к влажному истиранию (EN 13300)
A189: 00571-002 | B189: StoLook Struktur G getönt (колерованное) | C189: DE | D189: интерьер | E189: краска структурная | F189: акрил | G189: н/д | H189: н/д | I189: matt | J189: 20 | K189: кг | L189: Ведро | M189: 0.4 | N189: 1.5 | O189: кг/м² | P189: =P188+'7. Надбавки'!$C$5 -> 846 | Q189: 1015.2 | R189: 406.08 | S189: 20304 | U189: 0 | V189: 0 | W189: 0 | Z189: 24 | AA189: 495.84 | AB189: 792
A190: 00317-001 | B190: StoLook Diamant | C190: DE | D190: интерьер | E190: лазурь | F190: акрил | G190: 2 | H190: transparent | I190: matt | J190: 5 | K190: л | L190: Ведро | M190: 0.12 | N190: 0.3 | O190: л/м² | P190: =VLOOKUP($A190,'Изменение прайс-листа'!$A$2:$E$798,4,FALSE) -> 2412 | Q190: 2894.4 | R190: 347.328 | S190: 14472 | U190: 0 | V190: 0 | W190: 0 | Z190: 60 | AA190: 318.3 | AB190: 1980 | AC190: прозрачное дисперс. покрытие с мелкими от-ражающими слюдяными хлопьями, 2-й класс устойчивости к влажному истиранию (EN 13300)
A191: 00319-011 | B191: StoColor Metallic natur (серебристого цвета) 37800М | C191: DE | D191: универсальный | E191: краска металлик | F191: акрил | G191: н/д | H191: н/д | I191: satin | J191: 10 | K191: л | L191: Ведро | M191: 0.1 | N191: 0.3 | O191: л/м² | P191: =VLOOKUP($A191,'Изменение прайс-листа'!$A$2:$E$798,4,FALSE) -> 2424 | Q191: 2908.8 | R191: 290.88 | S191: 29088 | U191: 0 | V191: 0 | W191: 0 | X191: ● | Y191: ● | Z191: 27 | AA191: 310.77 | AB191: 891 | AC191: декоративное водоразбавимое финишное покрытие (краска) с эффектом "металлик" для наружных и внутренних работ
A192: 00319-004 | B192: StoColor Metallic getönt (колерованная, серебристая) C1 | C192: DE | D192: универсальный | E192: краска металлик | F192: акрил | G192: н/д | H192: н/д | I192: satin | J192: 10 | K192: л | L192: Ведро | M192: 0.1 | N192: 0.3 | O192: л/м² | P192: =P191+'7. Надбавки'!$C$6 -> 2498 | Q192: 2997.6 | R192: 299.76 | S192: 29976 | U192: 0 | V192: 0 | W192: 0 | Z192: 27 | AA192: 310.77 | AB192: 891
A193: 00319-010 | B193: StoColor Metallic natur (серебристого цвета) 37800М | C193: DE | D193: универсальный | E193: краска металлик | F193: акрил | G193: н/д | H193: н/д | I193: satin | J193: 5 | K193: л | L193: Ведро | M193: 0.1 | N193: 0.3 | O193: л/м² | P193: =VLOOKUP($A193,'Изменение прайс-листа'!$A$2:$E$798,4,FALSE) -> 2594 | Q193: 3112.8 | R193: 311.28 | S193: 15564 | U193: 0 | V193: 0 | W193: 0 | X193: ● | Y193: ● | Z193: 60 | AA193: 345.3 | AB193: 1980
A194: 00319-003 | B194: StoColor Metallic getönt (колерованная, серебристая) C1 | C194: DE | D194: универсальный | E194: краска металлик | F194: акрил | G194: н/д | H194: н/д | I194: satin | J194: 5 | K194: л | L194: Ведро | M194: 0.1 | N194: 0.3 | O194: л/м² | P194: =P193+'7. Надбавки'!$C$6 -> 2668 | Q194: 3201.6 | R194: 320.16 | S194: 16008 | U194: 0 | V194: 0 | W194: 0 | Z194: 60 | AA194: 345.3 | AB194: 1980
A195: 00319-025 | B195: StoColor Metallic natur (золотистого цвета) 37820М | C195: DE | D195: универсальный | E195: краска металлик | F195: акрил | G195: н/д | H195: н/д | I195: satin | J195: 10 | K195: л | L195: Ведро | M195: 0.1 | N195: 0.3 | O195: л/м² | P195: =VLOOKUP($A195,'Изменение прайс-листа'!$A$2:$E$798,4,FALSE) -> 4872 | Q195: 5846.4 | R195: 584.64 | S195: 58464 | U195: 0 | V195: 0 | W195: 0 | X195: ● | Z195: 27 | AA195: 307.8 | AB195: 891
A196: 00319-104 | B196: StoColor Metallic getönt (колерованная, золотистая) C1 | C196: DE | D196: универсальный | E196: краска металлик | F196: акрил | G196: н/д | H196: н/д | I196: satin | J196: 10 | K196: л | L196: Ведро | M196: 0.1 | N196: 0.3 | O196: л/м² | P196: =P195+'7. Надбавки'!$C$6 -> 4946 | Q196: =P196*1.2 -> 5935.2 | R196: =Q196*M196 -> 593.52 | S196: =Q196*J196 -> 59352 | U196: 0 | V196: 0 | W196: 0 | Z196: 27 | AA196: 307.8 | AB196: 891
A197: 00319-024 | B197: StoColor Metallic natur (золотистого цвета) 37820М | C197: DE | D197: универсальный | E197: краска металлик | F197: акрил | G197: н/д | H197: н/д | I197: satin | J197: 5 | K197: л | L197: Ведро | M197: 0.1 | N197: 0.3 | O197: л/м² | P197: =VLOOKUP($A197,'Изменение прайс-листа'!$A$2:$E$798,4,FALSE) -> 4944 | Q197: 5932.8 | R197: 593.28 | S197: 29664 | U197: =T197*S197 -> 0 | V197: 0 | W197: 0 | X197: ● | Z197: 60 | AA197: 342 | AB197: 1980
A198: 00319-103 | B198: StoColor Metallic getönt (колерованная, золотистая) C1 | C198: DE | D198: универсальный | E198: краска металлик | F198: акрил | G198: н/д | H198: н/д | I198: satin | J198: 5 | K198: л | L198: Ведро | M198: 0.1 | N198: 0.3 | O198: л/м² | P198: =P197+'7. Надбавки'!$C$6 -> 5018 | Q198: 6021.6 | R198: 602.16 | S198: 30108 | U198: 0 | V198: =ROUNDUP(AA198/Z198*T198,0) -> 0 | W198: =T198/Z198 -> 0 | Z198: 60 | AA198: 342 | AB198: 1980
A199: 00330-053 | B199: StoLook Piccolo FT LP0204 | C199: DE | D199: интерьер | E199: декоративное покрытие | F199: акрил | G199: н/д | H199: н/д | I199: matt | J199: 12,5 | K199: кг | L199: Ведро | M199: 0.3 | N199: 0.8 | O199: кг/м² | P199: =VLOOKUP($A199,'Изменение прайс-листа'!$A$2:$E$798,4,FALSE) -> 2308 | Q199: =P199*1.2 -> 2769.6 | R199: =Q199*M199 -> 830.88 | S199: =Q199*J199 -> 34620 | U199: =T199*S199 -> 0 | V199: 0 | W199: 0 | Z199: 36 | AA199: 466.668 | AB199: 1188 | AC199: Уникальный продукт! Готовое к применению шелковисто-матовое покрытие с цветными чипсами, необходим грунт в цвет дизайна. Цвет и фактуру см. в каталоге или на образцах (приложение)
A200: 00330-071 | B200: StoLook Piccolo FT LP0222 | C200: DE | D200: интерьер | E200: декоративное покрытие | F200: акрил | G200: н/д | H200: н/д | I200: matt | J200: 12,5 | K200: кг | L200: Ведро | M200: 0.3 | N200: 0.8 | O200: кг/м² | P200: =VLOOKUP($A200,'Изменение прайс-листа'!$A$2:$E$798,4,FALSE) -> 2308 | Q200: 2769.6 | R200: 830.88 | S200: 34620 | U200: 0 | V200: 0 | W200: 0 | Z200: 36 | AA200: 466.668 | AB200: 1188
A201: 00330-070 | B201: StoLook Piccolo FT LP0221 | C201: DE | D201: интерьер | E201: декоративное покрытие | F201: акрил | G201: н/д | H201: н/д | I201: matt | J201: 12,5 | K201: кг | L201: Ведро | M201: 0.3 | N201: 0.8 | O201: кг/м² | P201: =VLOOKUP($A201,'Изменение прайс-листа'!$A$2:$E$798,4,FALSE) -> 2308 | Q201: 2769.6 | R201: 830.88 | S201: 34620 | U201: 0 | V201: 0 | W201: 0 | Z201: 36 | AA201: 466.668 | AB201: 1188
... 53 more rows

Sheet 3. STOMIX
A1: Прайс-лист Товаров Продуктовой группы раздела «Stomix» Цены действительны c 03.03.2022 г.
A3: Артикул | B3: Наименование продукта | C3: Произ-водство | D3: Область применения | E3: Вид материала | F3: Цветовая гамма | G3: Упаковка | J3: Min расход продукта | M3: Цена БЕЗ учета НДС за единицу измерения | N3: Цена с НДС за единицу измерения | O3: Цена с НДС за 1м² (при min расходе) | P3: Цена с НДС за упаковку | Q3: Кол-во единиц товара | R3: Сумма заказа с НДС | S3: Итого вес брутто (кг) | T3: Итого паллет | U3: Наличие на складе | V3: Количество упаковок на паллете, шт. | W3: Вес одного паллето-места (без палеты), кг. | X3: Норма загрузки авто (20 т.) шт. | Y3: Краткое описание продукта
G4: кол-во | H4: ед. изм. | I4: вид упак. | J4: от | K4: до | L4: ед. изм.
A5: 66502_001 | B5: Грунтовка проникающая универсальная EH концентрат | C5: RU | D5: фасад | E5: Грунтовки | G5: 15 | H5: кг | I5: ведро | J5: 0.04 | K5: 0.07 | L5: кг/м² | M5: =VLOOKUP($A5,'Изменение прайс-листа'!$A$2:$E$798,4,FALSE) -> 560 | N5: =M5*1.2 -> 672 | O5: =SUM(J5*N5) -> 26.88 | P5: =N5*G5 -> 10080 | R5: =Q5*P5 -> 0 | S5: =ROUNDUP(W5/V5*Q5,0) -> 0 | T5: =Q5/V5 -> 0 | U5: ● | V5: 24 | W5: 376.8 | X5: 792 | Y5: воднодисперсионная грунтовка для обработки сильновпитывающих оснований
A6: 66301_001 | B6: Клеевой состав ALFAFIX S2 | C6: RU | D6: фасад | E6: Клей | F6: серый | G6: 25 | H6: кг | I6: мешок | J6: 3 | K6: 10 | L6: кг/м² | M6: =VLOOKUP($A6,'Изменение прайс-листа'!$A$2:$E$798,4,FALSE) -> 38 | N6: 45.6 | O6: 136.8 | P6: 1140 | R6: 0 | S6: =ROUNDUP(W6/V6*Q6,0) -> 0 | T6: =Q6/V6 -> 0 | U6: ● | V6: 42 | W6: 1054.2 | X6: 780 | Y6: клей минеральный для приклеивания теплоизоляционных плит
A7: 66302_001 | B7: Клеевой и армирующий состав ALFAFIX S1 | C7: RU | D7: фасад | E7: Клей и армирующие массы | F7: серый | G7: 25 | H7: кг | I7: мешок | J7: 3 | K7: 10 | L7: кг/м² | M7: =VLOOKUP($A7,'Изменение прайс-листа'!$A$2:$E$798,4,FALSE) -> 46 | N7: 55.2 | O7: 165.6 | P7: 1380 | R7: 0 | S7: 0 | T7: 0 | U7: ● | V7: 42 | W7: 1054.2 | X7: 780 | Y7: клей минеральный для создания базового армированного слоя и приклеивания теплоизоляционных плит
A8: 66305_001 | B8: Клеевой и армирующий состав ALFAFIX S11 | C8: RU | D8: фасад | E8: Клей и армирующие массы | F8: серый | G8: 25 | H8: кг | I8: мешок | J8: 2.7 | K8: 10 | L8: кг/м² | M8: =VLOOKUP($A8,'Изменение прайс-листа'!$A$2:$E$798,4,FALSE) -> 76 | N8: 91.2 | O8: 246.24 | P8: 2280 | R8: 0 | S8: 0 | T8: 0 | V8: 42 | W8: 1054.2 | X8: 780 | Y8: клей минеральный эластичный для создания базового слоя и приклеивания теплоизоляционных плит на нестабильные основания
A9: 66310_001 | B9: Клеевой состав BETAFIX Flex | C9: RU | D9: фасад | E9: Клей и армирующие массы | F9: серый | G9: 25 | H9: кг | I9: мешок | J9: 1.5 | K9: 8 | L9: кг/м² | M9: =VLOOKUP($A9,'Изменение прайс-листа'!$A$2:$E$798,4,FALSE) -> 78 | N9: 93.6 | O9: 140.4 | P9: 2340 | R9: 0 | S9: 0 | T9: 0 | V9: 42 | W9: 1054.2 | X9: 780 | Y9: клей минеральный с высокой эластичностью для облицовочных материалов, для стен и пола
A10: 66311_001 | B10: Клеевой состав BETAFIX Basic | C10: RU | D10: фасад | E10: Клей и армирующие массы | F10: серый | G10: 25 | H10: кг | I10: мешок | J10: 1.5 | K10: 8 | L10: кг/м² | M10: =VLOOKUP($A10,'Изменение прайс-листа'!$A$2:$E$798,4,FALSE) -> 42 | N10: 50.4 | O10: 75.6 | P10: 1260 | R10: 0 | S10: 0 | T10: 0 | V10: 42 | W10: 1054.2 | X10: 780 | Y10: клей минеральный универсальный для облицовочных материалов, для стен и пола
A11: 520110-01 | B11: Сетка фасадная с логотипом STOMIX | C11: RU | D11: фасад | E11: Сетка для армирования | G11: 50 | H11: м | I11: рулон | J11: 1 | K11: 1.1 | L11: мп/м² | M11: =VLOOKUP($A11,'Изменение прайс-листа'!$A$2:$E$798,4,FALSE) -> 170 | N11: 204 | O11: 204 | P11: 10200 | R11: 0 | S11: 0 | T11: 0 | U11: ● | V11: 35 | W11: 339.5 | X11: 1120 | Y11: Сетка для армирования из стекловолокна со щелочестойкой пропиткой.
A12: 512153 | B12: Уголок ПВХ с стеклосеткой 10х15 с логотипом STOMIX | C12: RU | D12: фасад | E12: профиль | G12: 2.5 | H12: м | I12: коробка | M12: =VLOOKUP($A12,'Изменение прайс-листа'!$A$2:$E$798,4,FALSE) -> 70 | N12: =M12*1.2 -> 84 | P12: 210 | R12: 0 | S12: 0 | T12: 0 | U12: ● | V12: 2000 | W12: 440 | X12: 30000 | Y12: профиль для формирования углов 90 град.
A13: 66503_009 | B13: Грунтовка адгезионная HC-4, белая | C13: RU | D13: фасад | E13: Грунтовки | F13: вся | G13: 24 | H13: кг | I13: ведро | J13: 0.19 | K13: 0.35 | L13: кг/м² | M13: =VLOOKUP($A13,'Изменение прайс-листа'!$A$2:$E$798,4,FALSE) -> 195 | N13: =M13*1.2 -> 234 | O13: =SUM(J13*N13) -> 44.46 | P13: 5616 | R13: 0 | S13: 0 | T13: 0 | U13: ● | V13: 24 | W13: 592.8 | X13: 744 | Y13: воднодисперсионая адгезионная грунтовка
A14: 66503_010 | B14: Грунтовка адгезионная HC-4 (колерованная С1) | C14: RU | D14: фасад | E14: Грунтовки | F14: вся | G14: 24 | H14: кг | I14: ведро | J14: 0.19 | K14: 0.35 | L14: кг/м² | M14: =M13+'7. Надбавки'!$C$5 -> 241 | N14: =M14*1.2 -> 289.2 | O14: =SUM(J14*N14) -> 54.948 | P14: 6940.8 | R14: 0 | S14: 0 | T14: 0 | V14: 24 | W14: 592.8 | X14: 744
A15: 66802_001 | B15: ALFAFORM SCB шпаклевка белая | C15: RU | D15: фасад | E15: Шпаклевка | F15: белый | G15: 18 | H15: кг | I15: мешок | J15: 0.9 | K15: 0.9 | L15: кг/м² | M15: =VLOOKUP($A15,'Изменение прайс-листа'!$A$2:$E$798,4,FALSE) -> 88 | N15: =M15*1.2 -> 105.6 | O15: =SUM(J15*N15) -> 95.04 | P15: =N15*G15 -> 1900.8 | R15: =Q15*P15 -> 0 | S15: 0 | T15: 0 | V15: 42 | W15: 764 | X15: 780 | Y15: Финишная шпаклеква минеральная усиленная
A16: 66801_001 | B16: ALFAFORM SCA шпаклевка выравнивающая | C16: RU | D16: фасад | E16: Шпаклевка | F16: серый | G16: 25 | H16: кг | I16: мешок | J16: 2 | K16: 2 | L16: кг/м² | M16: =VLOOKUP($A16,'Изменение прайс-листа'!$A$2:$E$798,4,FALSE) -> 42 | N16: 50.4 | O16: 100.8 | P16: 1260 | R16: 0 | S16: 0 | T16: 0 | V16: 42 | W16: 1054.2 | X16: 780 | Y16: Шпаклеква минеральная усиленная
A17: 61041_015 | B17: Штукатурка BETADEKOR SF15 | C17: RU | D17: фасад | E17: Декоративные штукатурки: минеральные | F17: белый | G17: 25 | H17: кг | I17: мешок | J17: 2.3 | K17: 2.4 | L17: кг/м² | M17: =VLOOKUP($A17,'Изменение прайс-листа'!$A$2:$E$798,4,FALSE) -> 52 | N17: =M17*1.2 -> 62.4 | O17: =SUM(J17*N17) -> 143.52 | P17: =N17*G17 -> 1560 | R17: =Q17*P17 -> 0 | S17: 0 | T17: 0 | U17: ● | V17: 42 | W17: 1054.2 | X17: 780 | Y17: сухая минеральная штукатурка на основе белого цемента с шероховатой структурой (шуба) для наружних и внутренних работ
A18: 61043_020 | B18: Штукатурка BETADEKOR SF20 | C18: RU | D18: фасад | E18: Декоративные штукатурки: минеральные | F18: белый | G18: 25 | H18: кг | I18: мешок | J18: 2.4 | K18: 2.5 | L18: кг/м² | M18: =VLOOKUP($A18,'Изменение прайс-листа'!$A$2:$E$798,4,FALSE) -> 52 | N18: =M18*1.2 -> 62.4 | O18: =SUM(J18*N18) -> 149.76 | P18: =N18*G18 -> 1560 | R18: =Q18*P18 -> 0 | S18: 0 | T18: 0 | U18: ● | V18: 42 | W18: 1054.2 | X18: 780
A19: 61030_015 | B19: Штукатурка BETADEKOR SD15 | C19: RU | D19: фасад | E19: Декоративные штукатурки: минеральные | F19: белый | G19: 25 | H19: кг | I19: мешок | J19: 2.6 | K19: 2.7 | L19: кг/м² | M19: =VLOOKUP($A19,'Изменение прайс-листа'!$A$2:$E$798,4,FALSE) -> 52 | N19: =M19*1.2 -> 62.4 | O19: =SUM(J19*N19) -> 162.24 | P19: =N19*G19 -> 1560 | R19: =Q19*P19 -> 0 | S19: 0 | T19: 0 | V19: 42 | W19: 1054.2 | X19: 780
A20: 61032_020 | B20: Штукатурка BETADEKOR SD20 | C20: RU | D20: фасад | E20: Декоративные штукатурки: минеральные | F20: белый | G20: 25 | H20: кг | I20: мешок | J20: 2.6 | K20: 2.7 | L20: кг/м² | M20: =VLOOKUP($A20,'Изменение прайс-листа'!$A$2:$E$798,4,FALSE) -> 52 | N20: =M20*1.2 -> 62.4 | O20: =SUM(J20*N20) -> 162.24 | P20: =N20*G20 -> 1560 | R20: =Q20*P20 -> 0 | S20: 0 | T20: 0 | V20: 42 | W20: 1054.2 | X20: 780 | Y20: сухая минеральная штукатурка на основе белого цемента с бороздчатой структурой (короед) для наружних и внутренних работ
A21: 61130 | B21: ALFADEKOR F | C21: RU | D21: фасад | E21: Декоративные штукатурки: органические | F21: 35 | G21: 25 | H21: кг | I21: ведро | J21: 3.5 | K21: 4 | L21: кг/м² | M21: =VLOOKUP($A21,'Изменение прайс-листа'!$A$2:$E$798,4,FALSE) -> 672 | N21: =M21*1.2 -> 806.4 | O21: =SUM(J21*N21) -> 2822.4 | P21: =N21*G21 -> 20160 | R21: =Q21*P21 -> 0 | S21: 0 | T21: 0 | V21: 24 | W21: 616.8 | X21: 696 | Y21: воднодисперсионная мозаичная штукатурка- мелкозернистая
A22: 61140 | B22: ALFADEKOR G 102,104,105,106,107,108,109,110,111,115,114,116,118,119,120,121,122,123,125,200,201,202,203,204,205,206,207,208,209,210,211,213,212,214,215,216,217,218,219,220,221,222 | C22: RU | D22: фасад | E22: Декоративные штукатурки: органические | F22: 35 | G22: 25 | H22: кг | I22: ведро | J22: 5.5 | K22: 6 | L22: кг/м² | M22: =VLOOKUP($A22,'Изменение прайс-листа'!$A$2:$E$798,4,FALSE) -> 704 | N22: 844.8 | O22: 4646.4 | P22: 21120 | R22: =Q22*P22 -> 0 | S22: 0 | T22: 0 | V22: 24 | W22: 616.8 | X22: 696 | Y22: воднодисперсионная мозаичная штукатурка - крупнозернистая, материал соответствует StoSuperlit из основного ассортимента Sto
A23: 61150 | B23: ALFADEKOR S 402,402,403,404,405,406,407,408,409,410,411,412 | C23: RU | D23: фасад | E23: Декоративные штукатурки: органические | F23: 12 | G23: 25 | H23: кг | I23: ведро | J23: 3.5 | K23: 6 | L23: кг/м² | M23: =VLOOKUP($A23,'Изменение прайс-листа'!$A$2:$E$798,4,FALSE) -> 704 | N23: 844.8 | O23: 2956.8 | P23: 5750 | R23: 0 | S23: 0 | T23: 0 | V23: 24 | W23: 616.8 | X23: 696 | Y23: воднодисперсионная мозаичная штукатурка- для нанесения распылением
A24: 61081_007 | B24: BETADEKOR SAF10, белая | C24: RU | D24: фасад | E24: Декоративные штукатурки: органические | F24: вся | G24: 25 | H24: кг | I24: ведро | J24: 2.6 | K24: 2.7 | L24: кг/м² | M24: =VLOOKUP($A24,'Изменение прайс-листа'!$A$2:$E$798,4,FALSE) -> 196 | N24: =M24*1.2 -> 235.2 | O24: =SUM(J24*N24) -> 611.52 | P24: 5750 | R24: 0 | S24: 0 | T24: 0 | V24: 24 | W24: 616.8 | X24: 696 | Y24: воднодисперсионная силикон-акрилатная штукатурка с шероховатой структурой (шуба) для наружних и внутренних работ.
A25: 61081_006 | B25: BETADEKOR SAF10, (колерованная С1) | C25: RU | D25: фасад | E25: Декоративные штукатурки: органические | F25: вся | G25: 25 | H25: кг | I25: ведро | J25: 2.6 | K25: 2.7 | L25: кг/м² | M25: =M24+'7. Надбавки'!$C$5 -> 242 | N25: 290.4 | O25: 755.04 | P25: 5750 | R25: 0 | S25: 0 | T25: 0 | V25: 24 | W25: 616.8 | X25: 696
A26: 61082_007 | B26: BETADEKOR SAF15, белая | C26: RU | D26: фасад | E26: Декоративные штукатурки: органические | F26: вся | G26: 25 | H26: кг | I26: ведро | J26: 2.6 | K26: 2.7 | L26: кг/м² | M26: =VLOOKUP($A26,'Изменение прайс-листа'!$A$2:$E$798,4,FALSE) -> 196 | N26: 235.2 | O26: 611.52 | P26: =N26*G26 -> 5880 | R26: 0 | S26: 0 | T26: 0 | U26: ● | V26: 24 | W26: 616.8 | X26: 696
A27: 61082_008 | B27: BETADEKOR SAF15, (колерованная С1) | C27: RU | D27: фасад | E27: Декоративные штукатурки: органические | F27: вся | G27: 25 | H27: кг | I27: ведро | J27: 2.6 | K27: 2.7 | L27: кг/м² | M27: =M26+'7. Надбавки'!$C$5 -> 242 | N27: 290.4 | O27: 755.04 | P27: 7260 | R27: 0 | S27: 0 | T27: 0 | V27: 24 | W27: 616.8 | X27: 696
A28: 61083_007 | B28: BETADEKOR SAF20, белая | C28: RU | D28: фасад | E28: Декоративные штукатурки: органические | F28: вся | G28: 25 | H28: кг | I28: ведро | J28: 3.2 | K28: 3.3 | L28: кг/м² | M28: =VLOOKUP($A28,'Изменение прайс-листа'!$A$2:$E$798,4,FALSE) -> 196 | N28: 235.2 | O28: 752.64 | P28: 5880 | R28: 0 | S28: 0 | T28: 0 | U28: ● | V28: 24 | W28: 616.8 | X28: 696
A29: 61083_008 | B29: BETADEKOR SAF20, (колерованная С1) | C29: RU | D29: фасад | E29: Декоративные штукатурки: органические | F29: вся | G29: 25 | H29: кг | I29: ведро | J29: 3.2 | K29: 3.3 | L29: кг/м² | M29: =M28+'7. Надбавки'!$C$5 -> 242 | N29: 290.4 | O29: 929.28 | P29: 7260 | R29: 0 | S29: 0 | T29: 0 | V29: 24 | W29: 616.8 | X29: 696
A30: 61086_009 | B30: BETADEKOR SAD20, белая | C30: RU | D30: фасад | E30: Декоративные штукатурки: органические | F30: вся | G30: 25 | H30: кг | I30: ведро | J30: 2.7 | K30: 2.8 | L30: кг/м² | M30: =VLOOKUP($A30,'Изменение прайс-листа'!$A$2:$E$798,4,FALSE) -> 196 | N30: 235.2 | O30: 635.04 | P30: 5880 | R30: 0 | S30: 0 | T30: 0 | V30: 24 | W30: 616.8 | X30: 696 | Y30: воднодисперсионная силикон-акрилатная штукатурка с бороздчатой структурой (короед) для наружних и внутренних работ
A31: 61086_010 | B31: BETADEKOR SAD20, (колерованная С1) | C31: RU | D31: фасад | E31: Декоративные штукатурки: органические | F31: вся | G31: 25 | H31: кг | I31: ведро | J31: 2.7 | K31: 2.8 | L31: кг/м² | M31: =M30+'7. Надбавки'!$C$5 -> 242 | N31: 290.4 | O31: 784.08 | P31: 7260 | R31: 0 | S31: 0 | T31: 0 | V31: 24 | W31: 616.8 | X31: 696
A32: 61061_001 | B32: BETADEKOR SIF10, белая | C32: RU | D32: фасад | E32: Декоративные штукатурки: органические | F32: вся | G32: 25 | H32: кг | I32: ведро | J32: 2.6 | K32: 2.7 | L32: кг/м² | M32: =VLOOKUP($A32,'Изменение прайс-листа'!$A$2:$E$798,4,FALSE) -> 205 | N32: 246 | O32: 639.6 | P32: 6150 | R32: 0 | S32: 0 | T32: 0 | V32: 24 | W32: 616.8 | X32: 696 | Y32: воднодисперсионная силиконовая штукатурка (повышенное содержание силиконовых дисперсий) с шероховатой структурой (шуба)
A33: 61061_002 | B33: BETADEKOR SIF10, (колерованная С1) | C33: RU | D33: фасад | E33: Декоративные штукатурки: органические | F33: вся | G33: 25 | H33: кг | I33: ведро | J33: 2.6 | K33: 2.7 | L33: кг/м² | M33: =M32+'7. Надбавки'!$C$5 -> 251 | N33: 301.2 | O33: 783.12 | P33: 7530 | R33: 0 | S33: 0 | T33: 0 | V33: 24 | W33: 616.8 | X33: 696
A34: 61062_006 | B34: BETADEKOR SIF15, белая | C34: RU | D34: фасад | E34: Декоративные штукатурки: органические | F34: вся | G34: 25 | H34: кг | I34: ведро | J34: 2.6 | K34: 2.7 | L34: кг/м² | M34: =VLOOKUP($A34,'Изменение прайс-листа'!$A$2:$E$798,4,FALSE) -> 205 | N34: 246 | O34: 639.6 | P34: 6150 | R34: 0 | S34: 0 | T34: 0 | V34: 24 | W34: 616.8 | X34: 696
A35: 61062_007 | B35: BETADEKOR SIF15, (колерованная С1) | C35: RU | D35: фасад | E35: Декоративные штукатурки: органические | F35: вся | G35: 25 | H35: кг | I35: ведро | J35: 2.6 | K35: 2.7 | L35: кг/м² | M35: =M34+'7. Надбавки'!$C$5 -> 251 | N35: 301.2 | O35: 783.12 | P35: 7530 | R35: 0 | S35: 0 | T35: 0 | V35: 24 | W35: 616.8 | X35: 696
A36: 61063_006 | B36: BETADEKOR SIF20, белая | C36: RU | D36: фасад | E36: Декоративные штукатурки: органические | F36: вся | G36: 25 | H36: кг | I36: ведро | J36: 3.2 | K36: 3.3 | L36: кг/м² | M36: =VLOOKUP($A36,'Изменение прайс-листа'!$A$2:$E$798,4,FALSE) -> 205 | N36: 246 | O36: 787.2 | P36: 6150 | R36: 0 | S36: 0 | T36: 0 | V36: 24 | W36: 616.8 | X36: 696
A37: 61063_007 | B37: BETADEKOR SIF20, (колерованная С1) | C37: RU | D37: фасад | E37: Декоративные штукатурки: органические | F37: вся | G37: 25 | H37: кг | I37: ведро | J37: 3.2 | K37: 3.3 | L37: кг/м² | M37: =M36+'7. Надбавки'!$C$5 -> 251 | N37: 301.2 | O37: 963.84 | P37: 7530 | R37: 0 | S37: 0 | T37: 0 | V37: 24 | W37: 616.8 | X37: 696
A38: 61053_006 | B38: BETADEKOR SID20, белая | C38: RU | D38: фасад | E38: Декоративные штукатурки: органические | F38: вся | G38: 25 | H38: кг | I38: ведро | J38: 2.7 | K38: 2.8 | L38: кг/м² | M38: =VLOOKUP($A38,'Изменение прайс-листа'!$A$2:$E$798,4,FALSE) -> 205 | N38: 246 | O38: 664.2 | P38: 6150 | R38: 0 | S38: 0 | T38: 0 | V38: 24 | W38: 616.8 | X38: 696 | Y38: воднодисперсионная силиконовая штукатурка (повышенное содержание силиконовых дисперсий) с бороздчатой структурой (короед)
A39: 61053_007 | B39: BETADEKOR SID20, (колерованная С1) | C39: RU | D39: фасад | E39: Декоративные штукатурки: органические | F39: вся | G39: 25 | H39: кг | I39: ведро | J39: 2.7 | K39: 2.8 | L39: кг/м² | M39: =M38+'7. Надбавки'!$C$5 -> 251 | N39: 301.2 | O39: 813.24 | P39: 7530 | R39: 0 | S39: 0 | T39: 0 | V39: 24 | W39: 616.8 | X39: 696
A40: 66004_019 | B40: GAMADEKOR - F, белая | C40: RU | D40: фасад | E40: Краски фасадные универсальные | F40: вся | G40: 15 | H40: л | I40: ведро | J40: 0.16 | K40: 0.32 | L40: л/м² | M40: =VLOOKUP($A40,'Изменение прайс-листа'!$A$2:$E$798,4,FALSE) -> 570 | N40: =M40*1.2 -> 684 | O40: =SUM(J40*N40) -> 109.44 | P40: =N40*G40 -> 10260 | R40: 0 | S40: 0 | T40: 0 | U40: ● | V40: 24 | W40: 572.4 | X40: 768 | Y40: фасадная краска с высоким показателем паропроницаемости. Матовая. Колеруется в светлые тона.
A41: 66004_119 | B41: GAMADEKOR - F, (колерованная С1) | C41: RU | D41: фасад | E41: Краски фасадные универсальные | F41: вся | G41: 15 | H41: л | I41: ведро | J41: 0.16 | K41: 0.32 | L41: л/м² | M41: =M40+'7. Надбавки'!$C$6 -> 644 | N41: 772.8 | O41: 123.648 | P41: 11592 | R41: 0 | S41: 0 | T41: 0 | V41: 24 | W41: 576 | X41: 768
A42: 66004-020 | B42: GAMADEKOR - F, G белая | C42: RU | D42: фасад | E42: Краски фасадные универсальные | F42: вся | G42: 15 | H42: л | I42: ведро | J42: 0.16 | K42: 0.32 | L42: л/м² | M42: =VLOOKUP($A42,'Изменение прайс-листа'!$A$2:$E$798,4,FALSE) -> 592 | N42: =M42*1.2 -> 710.4 | O42: =SUM(J42*N42) -> 113.664 | P42: =N42*G42 -> 10656 | R42: =Q42*P42 -> 0 | S42: 0 | T42: 0 | V42: 24 | W42: 572.4 | X42: 768 | Y42: фасадная краска с высоким показателем паропроницаемости. Матовая. С биоцидными добавками.
A43: 66004-120 | B43: GAMADEKOR - F, G (колерованная С1) | C43: RU | D43: фасад | E43: Краски фасадные универсальные | F43: вся | G43: 15 | H43: л | I43: ведро | J43: 0.16 | K43: 0.32 | L43: л/м² | M43: =M42+'7. Надбавки'!$C$6 -> 666 | N43: 799.2 | O43: 127.872 | P43: 11988 | R43: 0 | S43: 0 | T43: 0 | V43: 24 | W43: 576 | X43: 768
B44: GAMADEKOR SG белая | C44: RU | D44: фасад | E44: Краски фасадные универсальные | F44: вся | G44: 15 | H44: л | I44: ведро | J44: 0.16 | K44: 0.32 | L44: л/м² | M44: ='Изменение прайс-листа'!D29 -> 746 | N44: =M44*1.2 -> 895.2 | O44: =SUM(J44*N44) -> 143.232 | P44: =N44*G44 -> 13428 | R44: =Q44*P44 -> 0 | S44: =ROUNDUP(W44/V44*Q44,0) -> 0 | T44: =Q44/V44 -> 0 | V44: 24 | W44: 572.4 | X44: 768 | Y44: фасадная краска с высоким показателем паропроницаемости. Матовая. С содержанием силикона и антигрибковой добавкой
B45: GAMADEKOR SG (колерованная С1) | C45: RU | D45: фасад | E45: Краски фасадные универсальные | F45: вся | G45: 15 | H45: л | I45: ведро | J45: 0.16 | K45: 0.32 | L45: л/м² | M45: =M44+'7. Надбавки'!$C$6 -> 820 | N45: 984 | O45: 157.44 | P45: 14760 | R45: 0 | S45: 0 | T45: 0 | V45: 24 | W45: 576 | X45: 768
A46: 00278-141 | B46: GAMADEKOR - SA, белая | C46: RU | D46: фасад | E46: Краски фасадные универсальные | F46: вся | G46: 15 | H46: л | I46: ведро | J46: 0.2 | K46: 0.5 | L46: л/м² | M46: =VLOOKUP($A46,'Изменение прайс-листа'!$A$2:$E$798,4,FALSE) -> 1050 | N46: 1260 | O46: 252 | P46: 18900 | R46: 0 | S46: 0 | T46: 0 | U46: ● | V46: 24 | W46: 572.04 | X46: 768 | Y46: силиконовая краска с высокой паропрницаемостью и укрывистостью. Большой выбор цветов.
A47: 00278-140 | B47: GAMADEKOR - SA, (колерованная С1) | C47: RU | D47: фасад | E47: Краски фасадные универсальные | F47: вся | G47: 15 | H47: л | I47: ведро | J47: 0.2 | K47: 0.5 | L47: л/м² | M47: =M46+'7. Надбавки'!$C$6 -> 1124 | N47: 1348.8 | O47: 269.76 | P47: 20232 | R47: 0 | S47: 0 | T47: 0 | V47: 24 | W47: 572.04 | X47: 768
A48: *** | B48: Дополнительно перечень и цены комплектующих в ассортименте STO в разделе Фасады.

Sheet 4. Базы
A1: Прайс-лист Товаров Продуктовой группы раздела «Материалы для колерования» (Базы) Цены действительны c 03.03.2022 г.
A2: Артикул | B2: Наименование продукта | C2: Упаковка | F2: Цена БЕЗ учета НДС за единицу измерения | G2: Цена с НДС за единицу измерения | H2: Цена с НДС за упаковку | I2: Кол-во единиц товара | J2: Сумма заказа с НДС | K2: Итого вес брутто (кг) | L2: Итого паллет | M2: Наличие на складе | N2: Количество упаковок на паллете, шт. | O2: Вес одного паллето-места (без палеты), кг. | P2: норма загрузки авто (20 т.) шт.
C3: к-во | D3: ед. | E3: вид упаковки
A4: 05374-053 | B4: PUTZGRUND OT | C4: 22.5 | D4: кг | E4: Ведро | F4: =VLOOKUP($A4,'Изменение прайс-листа'!$A$2:$E$798,4,FALSE) -> 590 | G4: =F4*1.2 -> 708 | H4: =G4*C4 -> 15930 | J4: =I4*H4 -> 0 | K4: =ROUNDUP(O4/N4*I4,0) -> 0 | L4: =I4/N4 -> 0 | N4: 24 | O4: 548.88 | P4: 792
A5: 05374-051 | B5: PUTZGRUND HALBTITAN | C5: 23 | D5: кг | E5: Ведро | F5: =VLOOKUP($A5,'Изменение прайс-листа'!$A$2:$E$798,4,FALSE) -> 546 | G5: 655.2 | H5: 15069.6 | J5: =I5*H5 -> 0 | K5: =ROUNDUP(O5/N5*I5,0) -> 0 | L5: =I5/N5 -> 0 | M5: ● | N5: 24 | O5: 568.008 | P5: 768
A6: 05825-012 | B6: STOLIT K 1,0 OT | C6: 25 | D6: кг | E6: Ведро | F6: =VLOOKUP($A6,'Изменение прайс-листа'!$A$2:$E$798,4,FALSE) -> 664 | G6: 796.8 | H6: 19920 | J6: 0 | K6: 0 | L6: 0 | N6: 24 | O6: 616.2 | P6: 696
A7: 05826-019 | B7: STOLIT K 1,5 O T | C7: 25 | D7: кг | E7: Ведро | F7: =VLOOKUP($A7,'Изменение прайс-листа'!$A$2:$E$798,4,FALSE) -> 586 | G7: 703.2 | H7: 17580 | J7: 0 | K7: 0 | L7: 0 | N7: 24 | O7: 616.2 | P7: 696
A8: 05827-019 | B8: STOLIT K 2,0 O T | C8: 25 | D8: кг | E8: Ведро | F8: =VLOOKUP($A8,'Изменение прайс-листа'!$A$2:$E$798,4,FALSE) -> 596 | G8: 715.2 | H8: 17880 | J8: 0 | K8: 0 | L8: 0 | N8: 24 | O8: 616.2 | P8: 696
A9: 05829-021 | B9: STOLIT K 3,0 O T | C9: 25 | D9: кг | E9: Ведро | F9: =VLOOKUP($A9,'Изменение прайс-листа'!$A$2:$E$798,4,FALSE) -> 598 | G9: 717.6 | H9: 17940 | J9: 0 | K9: 0 | L9: 0 | N9: 24 | O9: 616.2 | P9: 696
A10: 05830-010 | B10: STOLIT K 6,0 O T | C10: 25 | D10: кг | E10: Ведро | F10: =VLOOKUP($A10,'Изменение прайс-листа'!$A$2:$E$798,4,FALSE) -> 868 | G10: 1041.6 | H10: 26040 | J10: 0 | K10: 0 | L10: 0 | N10: 24 | O10: 616.2 | P10: 696
A11: 05831-016 | B11: STOLIT R 1,5 O T | C11: 25 | D11: кг | E11: Ведро | F11: =VLOOKUP($A11,'Изменение прайс-листа'!$A$2:$E$798,4,FALSE) -> 646 | G11: 775.2 | H11: 19380 | J11: 0 | K11: 0 | L11: 0 | N11: 24 | O11: 616.2 | P11: 696
A12: 05832-016 | B12: STOLIT R 2,0 O T | C12: 25 | D12: кг | E12: Ведро | F12: =VLOOKUP($A12,'Изменение прайс-листа'!$A$2:$E$798,4,FALSE) -> 590 | G12: 708 | H12: 17700 | J12: 0 | K12: 0 | L12: 0 | N12: 24 | O12: 616.2 | P12: 696
A13: 05834-016 | B13: STOLIT R 3,0 O T | C13: 25 | D13: кг | E13: Ведро | F13: =VLOOKUP($A13,'Изменение прайс-листа'!$A$2:$E$798,4,FALSE) -> 734 | G13: 880.8 | H13: 22020 | J13: 0 | K13: 0 | L13: 0 | N13: 24 | O13: 616.2 | P13: 696
A14: 05835-010 | B14: STOLIT R 6,0 O T | C14: 25 | D14: кг | E14: Ведро | F14: =VLOOKUP($A14,'Изменение прайс-листа'!$A$2:$E$798,4,FALSE) -> 1300 | G14: 1560 | H14: 39000 | J14: 0 | K14: 0 | L14: 0 | N14: 24 | O14: 616.2 | P14: 696
A15: 05822-013 | B15: STOLIT MP O T | C15: 25 | D15: кг | E15: Ведро | F15: =VLOOKUP($A15,'Изменение прайс-листа'!$A$2:$E$798,4,FALSE) -> 634 | G15: 760.8 | H15: 19020 | J15: 0 | K15: 0 | L15: 0 | N15: 24 | O15: 616.2 | P15: 696
A16: 15828-002 | B16: STOLIT MILANO O T | C16: 25 | D16: кг | E16: Ведро | F16: =VLOOKUP($A16,'Изменение прайс-листа'!$A$2:$E$798,4,FALSE) -> 594 | G16: 712.8 | H16: 17820 | J16: 0 | K16: 0 | L16: 0 | N16: 24 | O16: 616.2 | P16: 696
A17: 15727-004 | B17: STOLIT Effect O T | C17: 25 | D17: кг | E17: Ведро | F17: =VLOOKUP($A17,'Изменение прайс-листа'!$A$2:$E$798,4,FALSE) -> 776 | G17: 931.2 | H17: 23280 | J17: 0 | K17: 0 | L17: 0 | N17: 24 | O17: 616.2 | P17: 696
A18: 15096_026 | B18: ВASIS A NEOSIL B | C18: 15 | D18: л | E18: Ведро | F18: =VLOOKUP($A18,'Изменение прайс-листа'!$A$2:$E$798,4,FALSE) -> 540 | G18: 648 | H18: 9720 | J18: 0 | K18: 0 | L18: 0 | M18: ● | N18: 24 | O18: 557.64 | P18: 768
A19: 15096_027 | B19: ВASIS B NEOSIL B | C19: 15 | D19: л | E19: Ведро | F19: =VLOOKUP($A19,'Изменение прайс-листа'!$A$2:$E$798,4,FALSE) -> 462 | G19: 554.4 | H19: 8316 | J19: 0 | K19: 0 | L19: 0 | M19: ● | N19: 24 | O19: 541.44 | P19: 792
A20: 15096_028 | B20: ВASIS OT NEOSIL B | C20: 14.5 | D20: л | E20: Ведро | F20: =VLOOKUP($A20,'Изменение прайс-листа'!$A$2:$E$798,4,FALSE) -> 441 | G20: 529.2 | H20: 7673.4 | J20: 0 | K20: 0 | L20: 0 | M20: ● | N20: 24 | O20: 515.28 | P20: 792
A21: 15096_226 | B21: ВASIS A NEOSIL B G | C21: 15 | D21: л | E21: Ведро | F21: =VLOOKUP($A21,'Изменение прайс-листа'!$A$2:$E$798,4,FALSE) -> 558 | G21: =F21*1.2 -> 669.6 | H21: =G21*C21 -> 10044 | J21: 0 | K21: 0 | L21: 0 | N21: 24 | O21: 515.28 | P21: 792
A22: 15096_227 | B22: ВASIS B NEOSIL B G | C22: 15 | D22: л | E22: Ведро | F22: =VLOOKUP($A22,'Изменение прайс-листа'!$A$2:$E$798,4,FALSE) -> 472 | G22: 566.4 | H22: 8496 | J22: 0 | K22: 0 | L22: 0 | N22: 24 | O22: 515.28 | P22: 792
A23: 15096_228 | B23: ВASIS OT NEOSIL B G | C23: 14.5 | D23: л | E23: Ведро | F23: =VLOOKUP($A23,'Изменение прайс-листа'!$A$2:$E$798,4,FALSE) -> 464 | G23: 556.8 | H23: 8073.6 | J23: 0 | K23: 0 | L23: 0 | N23: 24 | O23: 515.28 | P23: 792
B24: ВASIS A NEOSIL SG | C24: 15 | D24: л | E24: Ведро | F24: ='Изменение прайс-листа'!D66 -> 702 | G24: =F24*1.2 -> 842.4 | H24: =G24*C24 -> 12636 | J24: =I24*H24 -> 0 | K24: =ROUNDUP(O24/N24*I24,0) -> 0 | L24: =I24/N24 -> 0 | M24: ● | N24: 24 | O24: 515.28 | P24: 792
B25: ВASIS B NEOSIL SG | C25: 15 | D25: л | E25: Ведро | F25: ='Изменение прайс-листа'!D67 -> 600 | G25: 720 | H25: 10800 | J25: 0 | K25: 0 | L25: 0 | M25: ● | N25: 24 | O25: 515.28 | P25: 792
B26: ВASIS OT NEOSIL SG | C26: 14.5 | D26: л | E26: Ведро | F26: ='Изменение прайс-листа'!D68 -> 570 | G26: 684 | H26: 9918 | J26: 0 | K26: 0 | L26: 0 | M26: ● | N26: 24 | O26: 515.28 | P26: 792
A27: 05425-013 | B27: STO COLOR TOP BASIS A | C27: 15 | D27: л | E27: Ведро | F27: =VLOOKUP($A27,'Изменение прайс-листа'!$A$2:$E$798,4,FALSE) -> 1832 | G27: =F27*1.2 -> 2198.4 | H27: =G27*C27 -> 32976 | J27: =I27*H27 -> 0 | K27: 0 | L27: 0 | M27: ● | N27: 24 | O27: 510.84 | P27: 792
A28: 05425-015 | B28: STO COLOR TOP BASIS B | C28: 15 | D28: л | E28: Ведро | F28: =VLOOKUP($A28,'Изменение прайс-листа'!$A$2:$E$798,4,FALSE) -> 1632 | G28: 1958.4 | H28: 29376 | J28: 0 | K28: 0 | L28: 0 | M28: ● | N28: 24 | O28: 507.24 | P28: 792
A29: 05425-012 | B29: STO COLOR TOP BASIS OT | C29: 14.5 | D29: л | E29: Ведро | F29: =VLOOKUP($A29,'Изменение прайс-листа'!$A$2:$E$798,4,FALSE) -> 1492 | G29: 1790.4 | H29: 25960.8 | J29: 0 | K29: 0 | L29: 0 | M29: ● | N29: 24 | O29: 501.84 | P29: 792
A30: 15003-015 | B30: BASIS A DRYONIC | C30: 15 | D30: л | E30: Ведро | F30: =VLOOKUP($A30,'Изменение прайс-листа'!$A$2:$E$798,4,FALSE) -> 1866 | G30: 2239.2 | H30: 33588 | J30: 0 | K30: 0 | L30: 0 | M30: ● | N30: 24 | O30: 456.84 | P30: 792
A31: 15003-016 | B31: BASIS B DRYONIC | C31: 15 | D31: л | E31: Ведро | F31: =VLOOKUP($A31,'Изменение прайс-листа'!$A$2:$E$798,4,FALSE) -> 1820 | G31: 2184 | H31: 32760 | J31: 0 | K31: 0 | L31: 0 | M31: ● | N31: 24 | O31: 430.2 | P31: 792
A32: 15003-014 | B32: DRYONIC O T | C32: 14.5 | D32: л | E32: Ведро | F32: =VLOOKUP($A32,'Изменение прайс-листа'!$A$2:$E$798,4,FALSE) -> 1670 | G32: 2004 | H32: 29058 | J32: 0 | K32: 0 | L32: 0 | M32: ● | N32: 24 | O32: 411 | P32: 792
A33: 15003-044 | B33: DRYONIC S Basis A | C33: 15 | D33: л | E33: Ведро | F33: =VLOOKUP($A33,'Изменение прайс-листа'!$A$2:$E$798,4,FALSE) -> 2596 | G33: 3115.2 | H33: 46728 | J33: 0 | K33: 0 | L33: 0 | N33: 24 | O33: 456.84 | P33: 792
A34: 15003-045 | B34: DRYONIC S Basis B | C34: 15 | D34: л | E34: Ведро | F34: =VLOOKUP($A34,'Изменение прайс-листа'!$A$2:$E$798,4,FALSE) -> 2486 | G34: 2983.2 | H34: 44748 | J34: 0 | K34: 0 | L34: 0 | N34: 24 | O34: 430.2 | P34: 792
A35: 15003-046 | B35: DRYONIC S Basis OT | C35: 14.5 | D35: л | E35: Ведро | F35: =VLOOKUP($A35,'Изменение прайс-листа'!$A$2:$E$798,4,FALSE) -> 2360 | G35: 2832 | H35: 41064 | J35: 0 | K35: 0 | L35: 0 | N35: 24 | O35: 411 | P35: 792
A36: 15003-133 | B36: DRYONIC WOOD Basis A | C36: 10 | D36: л | E36: Ведро | F36: =VLOOKUP($A36,'Изменение прайс-листа'!$A$2:$E$798,4,FALSE) -> 2396 | G36: 2875.2 | H36: 28752 | J36: 0 | K36: 0 | L36: 0 | N36: 27 | O36: 336.96 | P36: 891
A37: 15003-134 | B37: DRYONIC WOOD Basis B | C37: 10 | D37: л | E37: Ведро | F37: =VLOOKUP($A37,'Изменение прайс-листа'!$A$2:$E$798,4,FALSE) -> 2336 | G37: 2803.2 | H37: 28032 | J37: 0 | K37: 0 | L37: 0 | N37: 27 | O37: 328.59 | P37: 891
A38: 15003-111 | B38: DRYONIC WOOD Basis OT | C38: 9.7 | D38: л | E38: Ведро | F38: =VLOOKUP($A38,'Изменение прайс-листа'!$A$2:$E$798,4,FALSE) -> 2302 | G38: 2762.4 | H38: 26795.28 | J38: 0 | K38: 0 | L38: 0 | N38: 27 | O38: 313.227 | P38: 891
A39: 05877-010 | B39: Color S GROB OT BASIS | C39: 25 | D39: кг | E39: Ведро | F39: =VLOOKUP($A39,'Изменение прайс-листа'!$A$2:$E$798,4,FALSE) -> 760 | G39: 912 | H39: 22800 | J39: 0 | K39: 0 | L39: 0 | N39: 24 | O39: 616.2 | P39: 696
A40: 05876-010 | B40: Color S FEIN OT BASIS | C40: 25 | D40: кг | E40: Ведро | F40: =VLOOKUP($A40,'Изменение прайс-листа'!$A$2:$E$798,4,FALSE) -> 734 | G40: 880.8 | H40: 22020 | J40: 0 | K40: 0 | L40: 0 | M40: ● | N40: 24 | O40: 616.2 | P40: 696
A41: 05876-019 | B41: Color S FEIN A BASIS | C41: 25 | D41: кг | E41: Ведро | F41: =VLOOKUP($A41,'Изменение прайс-листа'!$A$2:$E$798,4,FALSE) -> 798 | G41: 957.6 | H41: 23940 | J41: 0 | K41: 0 | L41: 0 | M41: ● | N41: 24 | O41: 616.2 | P41: 696
A42: 05415-148 | B42: BASIS A SVJ Jumbosil | C42: 15 | D42: л | E42: Ведро | F42: =VLOOKUP($A42,'Изменение прайс-листа'!$A$2:$E$798,4,FALSE) -> 1016 | G42: 1219.2 | H42: 18288 | J42: 0 | K42: 0 | L42: 0 | M42: ● | N42: 24 | O42: 557.64 | P42: 768
A43: 05415-153 | B43: BASIS B SVJ Jumbosil | C43: 15 | D43: л | E43: Ведро | F43: =VLOOKUP($A43,'Изменение прайс-листа'!$A$2:$E$798,4,FALSE) -> 954 | G43: 1144.8 | H43: 17172 | J43: 0 | K43: 0 | L43: 0 | M43: ● | N43: 24 | O43: 541.44 | P43: 792
A44: 05415-156 | B44: BASIS O T SVJ Jumbosil | C44: 14.5 | D44: л | E44: Ведро | F44: =VLOOKUP($A44,'Изменение прайс-листа'!$A$2:$E$798,4,FALSE) -> 912 | G44: 1094.4 | H44: 15868.8 | J44: 0 | K44: 0 | L44: 0 | M44: ● | N44: 24 | O44: 515.28 | P44: 792
A45: 05902-103 | B45: BASIS A SILCO IQ | C45: 15 | D45: л | E45: Ведро | F45: =VLOOKUP($A45,'Изменение прайс-листа'!$A$2:$E$798,4,FALSE) -> 1202 | G45: 1442.4 | H45: 21636 | J45: 0 | K45: 0 | L45: 0 | N45: 24 | O45: 561.84 | P45: 768
A46: 05902-105 | B46: BASIS B SILCO IQ | C46: 15 | D46: л | E46: Ведро | F46: =VLOOKUP($A46,'Изменение прайс-листа'!$A$2:$E$798,4,FALSE) -> 1122 | G46: 1346.4 | H46: 20196 | J46: 0 | K46: 0 | L46: 0 | N46: 24 | O46: 557.52 | P46: 768
A47: 05902-101 | B47: BASIS OT SILCO IQ | C47: 14.5 | D47: л | E47: Ведро | F47: =VLOOKUP($A47,'Изменение прайс-листа'!$A$2:$E$798,4,FALSE) -> 1096 | G47: 1315.2 | H47: 19070.4 | J47: 0 | K47: 0 | L47: 0 | N47: 24 | O47: 552.96 | P47: 768
A48: 05454-058 | B48: BASIS OT SILCO G IQ | C48: 14.5 | D48: л | E48: Ведро | F48: =VLOOKUP($A48,'Изменение прайс-листа'!$A$2:$E$798,4,FALSE) -> 1168 | G48: 1401.6 | H48: 20323.2 | J48: 0 | K48: 0 | L48: 0 | N48: 24 | O48: 552.96 | P48: 768
A49: 15101-161 | B49: BASIS A LOTUSAN IQ | C49: 12.5 | D49: л | E49: Ведро | F49: =VLOOKUP($A49,'Изменение прайс-листа'!$A$2:$E$798,4,FALSE) -> 1378 | G49: 1653.6 | H49: 20670 | J49: 0 | K49: 0 | L49: 0 | M49: ● | N49: 32 | O49: 613.6 | P49: 928
A50: 15101-163 | B50: BASIS B LOTUSAN IQ | C50: 12.5 | D50: л | E50: Ведро | F50: =VLOOKUP($A50,'Изменение прайс-листа'!$A$2:$E$798,4,FALSE) -> 1210 | G50: 1452 | H50: 18150 | J50: 0 | K50: 0 | L50: 0 | M50: ● | N50: 32 | O50: 595.2 | P50: 960
A51: 15101-159 | B51: BASIS OT LOTUSAN IQ | C51: 12.1 | D51: л | E51: Ведро | F51: =VLOOKUP($A51,'Изменение прайс-листа'!$A$2:$E$798,4,FALSE) -> 1152 | G51: 1382.4 | H51: 16727.04 | J51: 0 | K51: 0 | L51: 0 | M51: ● | N51: 32 | O51: 565.312 | P51: 1024
A52: 15003-271 | B52: BASIS A LOTUSAN AIMS IQ 15 L EIM | C52: 15 | D52: л | E52: Ведро | F52: =VLOOKUP($A52,'Изменение прайс-листа'!$A$2:$E$798,4,FALSE) -> 1788 | G52: =F52*1.2 -> 2145.6 | H52: =G52*C52 -> 32184 | J52: =I52*H52 -> 0 | K52: =ROUNDUP(O52/N52*I52,0) -> 0 | L52: =I52/N52 -> 0 | N52: 32 | O52: 565.312 | P52: 1024
A53: 15003-273 | B53: BASIS B LOTUSAN AIMS IQ 15 L EIM | C53: 15 | D53: л | E53: Ведро | F53: =VLOOKUP($A53,'Изменение прайс-листа'!$A$2:$E$798,4,FALSE) -> 1674 | G53: 2008.8 | H53: 30132 | J53: 0 | K53: 0 | L53: 0 | N53: 32 | O53: 565.312 | P53: 1024
A54: 15003-269 | B54: LOTUSAN AIMS IQ O T 14,5 L EIM | C54: 14.5 | D54: л | E54: Ведро | F54: =VLOOKUP($A54,'Изменение прайс-листа'!$A$2:$E$798,4,FALSE) -> 1496 | G54: 1795.2 | H54: 26030.4 | J54: 0 | K54: 0 | L54: 0 | N54: 32 | O54: 565.312 | P54: 1024
A55: 05007-025 | B55: SIL BASIS A | C55: 15 | D55: л | E55: Ведро | F55: =VLOOKUP($A55,'Изменение прайс-листа'!$A$2:$E$798,4,FALSE) -> 1192 | G55: 1430.4 | H55: 21456 | J55: 0 | K55: 0 | L55: 0 | N55: 24 | O55: 581.76 | P55: 744
A56: 05007-034 | B56: SIL BASIS B | C56: 15 | D56: л | E56: Ведро | F56: =VLOOKUP($A56,'Изменение прайс-листа'!$A$2:$E$798,4,FALSE) -> 1080 | G56: 1296 | H56: 19440 | J56: 0 | K56: 0 | L56: 0 | N56: 24 | O56: 579.36 | P56: 744
A57: 05883-021 | B57: BASIS A LCRB / COLOR LASTIC | C57: 15 | D57: л | E57: Ведро | F57: =VLOOKUP($A57,'Изменение прайс-листа'!$A$2:$E$798,4,FALSE) -> 1606 | G57: 1927.2 | H57: 28908 | J57: 0 | K57: 0 | L57: 0 | M57: ● | N57: 24 | O57: 491.04 | P57: 792
A58: 05883-018 | B58: BASIS B LCRB / COLOR LASTIC | C58: 15 | D58: л | E58: Ведро | F58: =VLOOKUP($A58,'Изменение прайс-листа'!$A$2:$E$798,4,FALSE) -> 1514 | G58: 1816.8 | H58: 27252 | J58: 0 | K58: 0 | L58: 0 | M58: ● | N58: 24 | O58: 473.4 | P58: 792
A59: 05883-014 | B59: BASIS RB OT / COLOR LASTIC | C59: 14.5 | D59: л | E59: Ведро | F59: =VLOOKUP($A59,'Изменение прайс-листа'!$A$2:$E$798,4,FALSE) -> 1416 | G59: 1699.2 | H59: 24638.4 | J59: 0 | K59: 0 | L59: 0 | M59: ● | N59: 24 | O59: 444.048 | P59: 792
A60: 05355-009 | B60: FIBRASIL BASIS A | C60: 15 | D60: л | E60: Ведро | F60: =VLOOKUP($A60,'Изменение прайс-листа'!$A$2:$E$798,4,FALSE) -> 1664 | G60: 1996.8 | H60: 29952 | J60: 0 | K60: 0 | L60: 0 | N60: 24 | O60: 514.44 | P60: 792
A61: 05355-011 | B61: FIBRASIL BASIS B | C61: 15 | D61: л | E61: Ведро | F61: =VLOOKUP($A61,'Изменение прайс-листа'!$A$2:$E$798,4,FALSE) -> 1528 | G61: 1833.6 | H61: 27504 | J61: 0 | K61: 0 | L61: 0 | N61: 24 | O61: 509.76 | P61: 792
A62: 05355-007 | B62: FIBRASIL O T 14,5 L EIM D/E/F/ | C62: 14.5 | D62: л | E62: Ведро | F62: =VLOOKUP($A62,'Изменение прайс-листа'!$A$2:$E$798,4,FALSE) -> 1412 | G62: 1694.4 | H62: 24568.8 | J62: 0 | K62: 0 | L62: 0 | N62: 24 | O62: 473.64 | P62: 792
A63: 15319-007 | B63: SILCO ELAST BASIS A | C63: 15 | D63: л | E63: Ведро | F63: =VLOOKUP($A63,'Изменение прайс-листа'!$A$2:$E$798,4,FALSE) -> 2002 | G63: =F63*1.2 -> 2402.4 | H63: =G63*C63 -> 36036 | J63: 0 | K63: 0 | L63: 0 | N63: 24 | O63: 539.28 | P63: 792
A64: 15319-005 | B64: SILCO ELAST BASIS OT | C64: 14.5 | D64: л | E64: Ведро | F64: =VLOOKUP($A64,'Изменение прайс-листа'!$A$2:$E$798,4,FALSE) -> 1768 | G64: 2121.6 | H64: 30763.2 | J64: 0 | K64: 0 | L64: 0 | N64: 24 | O64: 539.28 | P64: 792
A65: 05076-013 | B65: StoAQUA TOP SATIN OT | C65: 5 | D65: л | E65: Банка | F65: =VLOOKUP($A65,'Изменение прайс-листа'!$A$2:$E$798,4,FALSE) -> 2862 | G65: =F65*1.2 -> 3434.4 | H65: =G65*C65 -> 17172 | J65: 0 | K65: 0 | L65: 0 | N65: 60 | O65: 339.3 | P65: 1980
A66: 05076-012 | B66: StoAQUA TOP SATIN OT | C66: 2.5 | D66: л | E66: Банка | F66: =VLOOKUP($A66,'Изменение прайс-листа'!$A$2:$E$798,4,FALSE) -> 2622 | G66: 3146.4 | H66: 7866 | J66: 0 | K66: 0 | L66: 0 | M66: ● | N66: 160 | O66: 452.48 | P66: 5280
A67: 66004_121 | B67: GAMADEKOR - F база A | C67: 15 | D67: л | E67: Ведро | F67: =VLOOKUP($A67,'Изменение прайс-листа'!$A$2:$E$798,4,FALSE) -> 516 | G67: 619.2 | H67: 9288 | J67: 0 | K67: 0 | L67: 0 | M67: ● | N67: 24 | O67: 515.28 | P67: 792
A68: 66004_122 | B68: GAMADEKOR - F база B | C68: 15 | D68: л | E68: Ведро | F68: =VLOOKUP($A68,'Изменение прайс-листа'!$A$2:$E$798,4,FALSE) -> 470 | G68: 564 | H68: 8460 | J68: 0 | K68: 0 | L68: 0 | M68: ● | N68: 24 | O68: 515.28 | P68: 792
A69: 66004_123 | B69: GAMADEKOR - F база OT | C69: 14.5 | D69: л | E69: Ведро | F69: =VLOOKUP($A69,'Изменение прайс-листа'!$A$2:$E$798,4,FALSE) -> 460 | G69: 552 | H69: 8004 | J69: 0 | K69: 0 | L69: 0 | M69: ● | N69: 24 | O69: 515.28 | P69: 792
B70: GAMADEKOR SG база A | C70: 15 | D70: л | E70: Ведро | F70: ='Изменение прайс-листа'!D30 -> 674 | G70: 808.8 | H70: 12132 | J70: =I70*H70 -> 0 | K70: =ROUNDUP(O70/N70*I70,0) -> 0 | L70: =I70/N70 -> 0 | M70: ● | N70: 24 | O70: 515.28 | P70: 792
B71: GAMADEKOR SG база B | C71: 15 | D71: л | E71: Ведро | F71: ='Изменение прайс-листа'!D31 -> 572 | G71: 686.4 | H71: 10296 | J71: 0 | K71: 0 | L71: 0 | M71: ● | N71: 24 | O71: 515.28 | P71: 792
B72: GAMADEKOR SG база OT | C72: 14.5 | D72: л | E72: Ведро | F72: ='Изменение прайс-листа'!D32 -> 542 | G72: 650.4 | H72: 9430.8 | J72: 0 | K72: 0 | L72: 0 | M72: ● | N72: 24 | O72: 515.28 | P72: 792
A73: 05415-165 | B73: GAMADEKOR - SA, база А | C73: 15 | D73: л | E73: Ведро | F73: =VLOOKUP($A73,'Изменение прайс-листа'!$A$2:$E$798,4,FALSE) -> 1022 | G73: =F73*1.2 -> 1226.4 | H73: =G73*C73 -> 18396 | J73: =I73*H73 -> 0 | K73: 0 | L73: 0 | M73: ● | N73: 24 | O73: 557.64 | P73: 768
A74: 05415-166 | B74: GAMADEKOR - SA, база B | C74: 15 | D74: л | E74: Ведро | F74: =VLOOKUP($A74,'Изменение прайс-листа'!$A$2:$E$798,4,FALSE) -> 960 | G74: 1152 | H74: 17280 | J74: 0 | K74: 0 | L74: 0 | M74: ● | N74: 24 | O74: 541.44 | P74: 792
A75: 05415-167 | B75: GAMADEKOR - SA, база OT | C75: 14.5 | D75: л | E75: Ведро | F75: =VLOOKUP($A75,'Изменение прайс-листа'!$A$2:$E$798,4,FALSE) -> 956 | G75: 1147.2 | H75: 16634.4 | J75: 0 | K75: 0 | L75: 0 | M75: ● | N75: 24 | O75: 515.52 | P75: 792
A76: 15993-011 | B76: BASIS A TITANIUM ASE | C76: 15 | D76: л | E76: Ведро | F76: =VLOOKUP($A76,'Изменение прайс-листа'!$A$2:$E$798,4,FALSE) -> 1494 | G76: =F76*1.2 -> 1792.8 | H76: =G76*C76 -> 26892 | J76: =I76*H76 -> 0 | K76: 0 | L76: 0 | M76: ● | N76: 24 | O76: 527.04 | P76: 792
A77: 15993-010 | B77: BASIS A TITANIUM ASE | C77: 5 | D77: л | E77: Ведро | F77: =VLOOKUP($A77,'Изменение прайс-листа'!$A$2:$E$798,4,FALSE) -> 1752 | G77: 2102.4 | H77: 10512 | J77: 0 | K77: 0 | L77: 0 | M77: ● | N77: 60 | O77: 441.6 | P77: 1980
A78: 15993-014 | B78: BASIS B TITANIUM ASE | C78: 15 | D78: л | E78: Ведро | F78: =VLOOKUP($A78,'Изменение прайс-листа'!$A$2:$E$798,4,FALSE) -> 1442 | G78: 1730.4 | H78: 25956 | J78: 0 | K78: =ROUNDUP(O78/N78*I78,0) -> 0 | L78: =I78/N78 -> 0 | M78: ● | N78: 24 | O78: 491.04 | P78: 792
A79: 15993-013 | B79: BASIS B TITANIUM ASE | C79: 5 | D79: л | E79: Ведро | F79: =VLOOKUP($A79,'Изменение прайс-листа'!$A$2:$E$798,4,FALSE) -> 1694 | G79: 2032.8 | H79: 10164 | J79: 0 | K79: 0 | L79: 0 | M79: ● | N79: 60 | O79: 411.6 | P79: 1980
A80: 15993-007 | B80: BASIS OT TITANIUM ASE | C80: 14.5 | D80: л | E80: Ведро | F80: =VLOOKUP($A80,'Изменение прайс-листа'!$A$2:$E$798,4,FALSE) -> 1470 | G80: 1764 | H80: 25578 | J80: 0 | K80: 0 | L80: 0 | M80: ● | N80: 24 | O80: 454.56 | P80: 792
A81: 15993-006 | B81: BASIS OT TITANIUM ASE | C81: 4.85 | D81: л | E81: Ведро | F81: =VLOOKUP($A81,'Изменение прайс-листа'!$A$2:$E$798,4,FALSE) -> 1688 | G81: 2025.6 | H81: 9824.16 | J81: 0 | K81: 0 | L81: 0 | M81: ● | N81: 60 | O81: 382.2 | P81: 1980
A82: 15964-005 | B82: BASIS A INNEN MATT | C82: 15 | D82: л | E82: Ведро | F82: =VLOOKUP($A82,'Изменение прайс-листа'!$A$2:$E$798,4,FALSE) -> 1058 | G82: =F82*1.2 -> 1269.6 | H82: =G82*C82 -> 19044 | J82: =I82*H82 -> 0 | K82: 0 | L82: 0 | M82: ● | N82: 24 | O82: 554.04 | P82: 768
A83: 15964-012 | B83: BASIS A INNEN MATT | C83: 10 | D83: л | E83: Ведро | F83: =VLOOKUP($A83,'Изменение прайс-листа'!$A$2:$E$798,4,FALSE) -> 1158 | G83: =F83*1.2 -> 1389.6 | H83: =G83*C83 -> 13896 | J83: =I83*H83 -> 0 | K83: 0 | L83: 0 | M83: ● | N83: 27 | O83: 416.07 | P83: 891
A84: 15964-011 | B84: BASIS A INNEN MATT | C84: 5 | D84: л | E84: Ведро | F84: =VLOOKUP($A84,'Изменение прайс-листа'!$A$2:$E$798,4,FALSE) -> 1152 | G84: =F84*1.2 -> 1382.4 | H84: =G84*C84 -> 6912 | J84: =I84*H84 -> 0 | K84: 0 | L84: 0 | M84: ● | N84: 60 | O84: 463.8 | P84: 1980
A85: 15964-010 | B85: BASIS A INNEN MATT | C85: 2.5 | D85: л | E85: Ведро | F85: =VLOOKUP($A85,'Изменение прайс-листа'!$A$2:$E$798,4,FALSE) -> 1744 | G85: =F85*1.2 -> 2092.8 | H85: =G85*C85 -> 5232 | J85: =I85*H85 -> 0 | K85: 0 | L85: 0 | M85: ● | N85: 72 | O85: 282.6 | P85: 2376
A86: 15964-006 | B86: BASIS B INNEN MATT | C86: 15 | D86: л | E86: Ведро | F86: =VLOOKUP($A86,'Изменение прайс-листа'!$A$2:$E$798,4,FALSE) -> 892 | G86: 1070.4 | H86: 16056 | J86: 0 | K86: 0 | L86: 0 | M86: ● | N86: 24 | O86: 545.04 | P86: 792
A87: 15964-015 | B87: BASIS B INNEN MATT | C87: 10 | D87: л | E87: Ведро | F87: =VLOOKUP($A87,'Изменение прайс-листа'!$A$2:$E$798,4,FALSE) -> 1068 | G87: =F87*1.2 -> 1281.6 | H87: =G87*C87 -> 12816 | J87: =I87*H87 -> 0 | K87: 0 | L87: 0 | M87: ● | N87: 27 | O87: 410.67 | P87: 891
A88: 15964-014 | B88: BASIS B INNEN MATT | C88: 5 | D88: л | E88: Ведро | F88: =VLOOKUP($A88,'Изменение прайс-листа'!$A$2:$E$798,4,FALSE) -> 1142 | G88: 1370.4 | H88: 6852 | J88: 0 | K88: 0 | L88: 0 | M88: ● | N88: 60 | O88: 457.8 | P88: 1980
A89: 15964-013 | B89: BASIS B INNEN MATT | C89: 2.5 | D89: л | E89: Ведро | F89: =VLOOKUP($A89,'Изменение прайс-листа'!$A$2:$E$798,4,FALSE) -> 1590 | G89: 1908 | H89: 4770 | J89: 0 | K89: 0 | L89: 0 | M89: ● | N89: 72 | O89: 242.136 | P89: 2376
A90: 15964-004 | B90: INNEN MATT O T | C90: 14.5 | D90: л | E90: Ведро | F90: =VLOOKUP($A90,'Изменение прайс-листа'!$A$2:$E$798,4,FALSE) -> 796 | G90: 955.2 | H90: 13850.4 | J90: 0 | K90: 0 | L90: 0 | M90: ● | N90: 24 | O90: 527.568 | P90: 792
A91: 15964-009 | B91: INNEN MATT O T | C91: 9.7 | D91: л | E91: Ведро | F91: =VLOOKUP($A91,'Изменение прайс-листа'!$A$2:$E$798,4,FALSE) -> 976 | G91: 1171.2 | H91: 11360.64 | J91: 0 | K91: 0 | L91: 0 | M91: ● | N91: 27 | O91: 397.575 | P91: 891
A92: 15964-008 | B92: INNEN MATT O T | C92: 4.85 | D92: л | E92: Ведро | F92: =VLOOKUP($A92,'Изменение прайс-листа'!$A$2:$E$798,4,FALSE) -> 1052 | G92: 1262.4 | H92: 6122.64 | J92: 0 | K92: 0 | L92: 0 | M92: ● | N92: 60 | O92: 443.22 | P92: 1980
A93: 15964-007 | B93: INNEN MATT O T | C93: 2.4 | D93: л | E93: Ведро | F93: =VLOOKUP($A93,'Изменение прайс-листа'!$A$2:$E$798,4,FALSE) -> 1524 | G93: 1828.8 | H93: 4389.12 | J93: 0 | K93: 0 | L93: 0 | M93: ● | N93: 72 | O93: 267.48 | P93: 2376
A94: 15965-005 | B94: BASIS A INNEN SATINMATT | C94: 15 | D94: л | E94: Ведро | F94: =VLOOKUP($A94,'Изменение прайс-листа'!$A$2:$E$798,4,FALSE) -> 1180 | G94: =F94*1.2 -> 1416 | H94: =G94*C94 -> 21240 | J94: =I94*H94 -> 0 | K94: 0 | L94: 0 | M94: ● | N94: 24 | O94: 500.4 | P94: 792
A95: 15965-012 | B95: BASIS A INNEN SATINMATT | C95: 10 | D95: л | E95: Ведро | F95: =VLOOKUP($A95,'Изменение прайс-листа'!$A$2:$E$798,4,FALSE) -> 1358 | G95: 1629.6 | H95: 16296 | J95: 0 | K95: 0 | L95: 0 | M95: ● | N95: 27 | O95: 416.07 | P95: 891
A96: 15965-011 | B96: BASIS A INNEN SATINMATT | C96: 5 | D96: л | E96: Ведро | F96: =VLOOKUP($A96,'Изменение прайс-листа'!$A$2:$E$798,4,FALSE) -> 1430 | G96: 1716 | H96: 8580 | J96: 0 | K96: 0 | L96: 0 | M96: ● | N96: 60 | O96: 463.8 | P96: 1980
A97: 15965-010 | B97: BASIS A INNEN SATINMATT | C97: 2.5 | D97: л | E97: Ведро | F97: =VLOOKUP($A97,'Изменение прайс-листа'!$A$2:$E$798,4,FALSE) -> 1878 | G97: 2253.6 | H97: 5634 | J97: 0 | K97: 0 | L97: 0 | M97: ● | N97: 72 | O97: 282.6 | P97: 2376
A98: 15965-006 | B98: BASIS B INNEN SATINMATT | C98: 15 | D98: л | E98: Ведро | F98: =VLOOKUP($A98,'Изменение прайс-листа'!$A$2:$E$798,4,FALSE) -> 1044 | G98: 1252.8 | H98: 18792 | J98: 0 | K98: 0 | L98: 0 | M98: ● | N98: 24 | O98: 473.04 | P98: 792
A99: 15965-015 | B99: BASIS B INNEN SATINMATT | C99: 10 | D99: л | E99: Ведро | F99: =VLOOKUP($A99,'Изменение прайс-листа'!$A$2:$E$798,4,FALSE) -> 1066 | G99: 1279.2 | H99: 12792 | J99: 0 | K99: 0 | L99: 0 | M99: ● | N99: 27 | O99: 355.32 | P99: 891
A100: 15965-014 | B100: BASIS B INNEN SATINMATT | C100: 5 | D100: л | E100: Ведро | F100: =VLOOKUP($A100,'Изменение прайс-листа'!$A$2:$E$798,4,FALSE) -> 1138 | G100: 1365.6 | H100: 6828 | J100: 0 | K100: 0 | L100: 0 | M100: ● | N100: 60 | O100: 396.3 | P100: 1980
A101: 15965-013 | B101: BASIS B INNEN SATINMATT | C101: 2.5 | D101: л | E101: Ведро | F101: =VLOOKUP($A101,'Изменение прайс-листа'!$A$2:$E$798,4,FALSE) -> 1602 | G101: 1922.4 | H101: 4806 | J101: 0 | K101: 0 | L101: 0 | M101: ● | N101: 72 | O101: 242.136 | P101: 2376
A102: 15965-004 | B102: INNEN SATINMATT O T | C102: 14.5 | D102: л | E102: Ведро | F102: =VLOOKUP($A102,'Изменение прайс-листа'!$A$2:$E$798,4,FALSE) -> 942 | G102: 1130.4 | H102: 16390.8 | J102: 0 | K102: 0 | L102: 0 | M102: ● | N102: 24 | O102: 447.528 | P102: 792
A103: 15965-009 | B103: INNEN SATINMATT O T | C103: 9.7 | D103: л | E103: Ведро | F103: =VLOOKUP($A103,'Изменение прайс-листа'!$A$2:$E$798,4,FALSE) -> 1184 | G103: 1420.8 | H103: 13781.76 | J103: 0 | K103: 0 | L103: 0 | M103: ● | N103: 27 | O103: 337.338 | P103: 891
A104: 15965-008 | B104: INNEN SATINMATT O T | C104: 4.85 | D104: л | E104: Ведро | F104: =VLOOKUP($A104,'Изменение прайс-листа'!$A$2:$E$798,4,FALSE) -> 1254 | G104: 1504.8 | H104: 7298.28 | J104: 0 | K104: 0 | L104: 0 | M104: ● | N104: 60 | O104: 376.26 | P104: 1980
A105: 15965-007 | B105: INNEN SATINMATT O T | C105: 2.4 | D105: л | E105: Ведро | F105: =VLOOKUP($A105,'Изменение прайс-листа'!$A$2:$E$798,4,FALSE) -> 1716 | G105: 2059.2 | H105: 4942.08 | J105: 0 | K105: 0 | L105: 0 | M105: ● | N105: 72 | O105: 227.736 | P105: 2376
A106: 15966-005 | B106: BASIS A INNEN SATIN 15 L EIM | C106: 15 | D106: л | E106: Ведро | F106: =VLOOKUP($A106,'Изменение прайс-листа'!$A$2:$E$798,4,FALSE) -> 1912 | G106: =F106*1.2 -> 2294.4 | H106: =G106*C106 -> 34416 | J106: 0 | K106: 0 | L106: 0 | N106: 24 | O106: 522.36 | P106: 792
A107: 15966-012 | B107: BASIS A INNEN SATIN | C107: 10 | D107: л | E107: Ведро | F107: =VLOOKUP($A107,'Изменение прайс-листа'!$A$2:$E$798,4,FALSE) -> 2050 | G107: =F107*1.2 -> 2460 | H107: =G107*C107 -> 24600 | J107: =I107*H107 -> 0 | K107: 0 | L107: 0 | N107: 27 | O107: 391.77 | P107: 891
A108: 15966-011 | B108: BASIS A INNEN SATIN | C108: 5 | D108: л | E108: Ведро | F108: =VLOOKUP($A108,'Изменение прайс-листа'!$A$2:$E$798,4,FALSE) -> 2144 | G108: =F108*1.2 -> 2572.8 | H108: =G108*C108 -> 12864 | J108: =I108*H108 -> 0 | K108: 0 | L108: 0 | N108: 60 | O108: 435.3 | P108: 1980
A109: 15966-010 | B109: BASIS A INNEN SATIN | C109: 2.5 | D109: л | E109: Ведро | F109: =VLOOKUP($A109,'Изменение прайс-листа'!$A$2:$E$798,4,FALSE) -> 2644 | G109: =F109*1.2 -> 3172.8 | H109: =G109*C109 -> 7932 | J109: =I109*H109 -> 0 | K109: 0 | L109: 0 | N109: 72 | O109: 261.216 | P109: 2376
A110: 15966-006 | B110: BASIS B INNEN SATIN 15 L EIM | C110: 15 | D110: л | E110: Ведро | F110: =VLOOKUP($A110,'Изменение прайс-листа'!$A$2:$E$798,4,FALSE) -> 1718 | G110: 2061.6 | H110: 30924 | J110: 0 | K110: 0 | L110: 0 | N110: 24 | O110: 482.04 | P110: 792
A111: 15966-015 | B111: BASIS B INNEN SATIN | C111: 10 | D111: л | E111: Ведро | F111: =VLOOKUP($A111,'Изменение прайс-листа'!$A$2:$E$798,4,FALSE) -> 1856 | G111: =F111*1.2 -> 2227.2 | H111: =G111*C111 -> 22272 | J111: =I111*H111 -> 0 | K111: 0 | L111: 0 | N111: 27 | O111: 361.53 | P111: 891
A112: 15966-014 | B112: BASIS B INNEN SATIN | C112: 5 | D112: л | E112: Ведро | F112: =VLOOKUP($A112,'Изменение прайс-листа'!$A$2:$E$798,4,FALSE) -> 1962 | G112: =F112*1.2 -> 2354.4 | H112: =G112*C112 -> 11772 | J112: =I112*H112 -> 0 | K112: 0 | L112: 0 | N112: 60 | O112: 401.7 | P112: 1980
A113: 15966-013 | B113: BASIS B INNEN SATIN | C113: 2.5 | D113: л | E113: Ведро | F113: =VLOOKUP($A113,'Изменение прайс-листа'!$A$2:$E$798,4,FALSE) -> 2450 | G113: =F113*1.2 -> 2940 | H113: =G113*C113 -> 7350 | J113: =I113*H113 -> 0 | K113: 0 | L113: 0 | N113: 72 | O113: 241.056 | P113: 2376
A114: 15966-004 | B114: INNEN SATIN O T | C114: 14.5 | D114: л | E114: Ведро | F114: =VLOOKUP($A114,'Изменение прайс-листа'!$A$2:$E$798,4,FALSE) -> 1602 | G114: =F114*1.2 -> 1922.4 | H114: =G114*C114 -> 27874.8 | J114: =I114*H114 -> 0 | K114: 0 | L114: 0 | N114: 24 | O114: 448.224 | P114: 792
A115: 15966-007 | B115: INNEN SATIN O T | C115: 2.4 | D115: л | E115: Ведро | F115: =VLOOKUP($A115,'Изменение прайс-листа'!$A$2:$E$798,4,FALSE) -> 2372 | G115: 2846.4 | H115: 6831.36 | J115: 0 | K115: 0 | L115: 0 | N115: 72 | O115: 222.624 | P115: 2376
A116: 15966-008 | B116: INNEN SATIN O T | C116: 4.85 | D116: л | E116: Ведро | F116: =VLOOKUP($A116,'Изменение прайс-листа'!$A$2:$E$798,4,FALSE) -> 1840 | G116: 2208 | H116: 10708.8 | J116: 0 | K116: 0 | L116: 0 | N116: 60 | O116: 374.82 | P116: 1980
A117: 15966-009 | B117: INNEN SATIN O T | C117: 9.7 | D117: л | E117: Ведро | F117: =VLOOKUP($A117,'Изменение прайс-листа'!$A$2:$E$798,4,FALSE) -> 1744 | G117: 2092.8 | H117: 20300.16 | J117: 0 | K117: 0 | L117: 0 | N117: 27 | O117: 337.338 | P117: 891
A118: 15967-005 | B118: BASIS A INNEN GLOSS | C118: 15 | D118: л | E118: Ведро | F118: =VLOOKUP($A118,'Изменение прайс-листа'!$A$2:$E$798,4,FALSE) -> 2274 | G118: =F118*1.2 -> 2728.8 | H118: =G118*C118 -> 40932 | J118: =I118*H118 -> 0 | K118: 0 | L118: 0 | N118: 24 | O118: 476.64 | P118: 792
A119: 15967-012 | B119: BASIS A INNEN GLOSS | C119: 10 | D119: л | E119: Ведро | F119: =VLOOKUP($A119,'Изменение прайс-листа'!$A$2:$E$798,4,FALSE) -> 2538 | G119: 3045.6 | H119: 30456 | J119: 0 | K119: 0 | L119: 0 | N119: 27 | O119: 357.48 | P119: 891
A120: 15967-011 | B120: BASIS A INNEN GLOSS | C120: 5 | D120: л | E120: Ведро | F120: =VLOOKUP($A120,'Изменение прайс-листа'!$A$2:$E$798,4,FALSE) -> 2516 | G120: 3019.2 | H120: 15096 | J120: 0 | K120: 0 | L120: 0 | N120: 60 | O120: 397.2 | P120: 1980
A121: 15967-010 | B121: BASIS A INNEN GLOSS | C121: 2.5 | D121: л | E121: Ведро | F121: =VLOOKUP($A121,'Изменение прайс-листа'!$A$2:$E$798,4,FALSE) -> 2842 | G121: 3410.4 | H121: 8526 | J121: 0 | K121: 0 | L121: 0 | N121: 72 | O121: 238.32 | P121: 2376
A122: 15967-006 | B122: BASIS B INNEN GLOSS | C122: 15 | D122: л | E122: Ведро | F122: =VLOOKUP($A122,'Изменение прайс-листа'!$A$2:$E$798,4,FALSE) -> 2128 | G122: 2553.6 | H122: 38304 | J122: 0 | K122: 0 | L122: 0 | N122: 24 | O122: 440.28 | P122: 792
A123: 15967-015 | B123: BASIS B INNEN GLOSS | C123: 10 | D123: л | E123: Ведро | F123: =VLOOKUP($A123,'Изменение прайс-листа'!$A$2:$E$798,4,FALSE) -> 2612 | G123: 3134.4 | H123: 31344 | J123: 0 | K123: 0 | L123: 0 | N123: 27 | O123: 330.21 | P123: 891
A124: 15967-014 | B124: BASIS B INNEN GLOSS | C124: 5 | D124: л | E124: Ведро | F124: =VLOOKUP($A124,'Изменение прайс-листа'!$A$2:$E$798,4,FALSE) -> 2338 | G124: 2805.6 | H124: 14028 | J124: 0 | K124: 0 | L124: 0 | N124: 60 | O124: 366.9 | P124: 1980
A125: 15967-013 | B125: BASIS B INNEN GLOSS | C125: 2.5 | D125: л | E125: Ведро | F125: =VLOOKUP($A125,'Изменение прайс-листа'!$A$2:$E$798,4,FALSE) -> 2640 | G125: 3168 | H125: 7920 | J125: 0 | K125: 0 | L125: 0 | N125: 72 | O125: 220.176 | P125: 2376
A126: 15967-004 | B126: INNEN GLOSS O T | C126: 14.5 | D126: л | E126: Ведро | F126: =VLOOKUP($A126,'Изменение прайс-листа'!$A$2:$E$798,4,FALSE) -> 1774 | G126: 2128.8 | H126: 30867.6 | J126: 0 | K126: 0 | L126: 0 | N126: 24 | O126: 402.288 | P126: 792
A127: 15967-009 | B127: INNEN GLOSS O T | C127: 9.7 | D127: л | E127: Ведро | F127: =VLOOKUP($A127,'Изменение прайс-листа'!$A$2:$E$798,4,FALSE) -> 2216 | G127: 2659.2 | H127: 25794.24 | J127: 0 | K127: 0 | L127: 0 | N127: 27 | O127: 303.804 | P127: 891
A128: 15967-008 | B128: INNEN GLOSS O T | C128: 4.85 | D128: л | E128: Ведро | F128: =VLOOKUP($A128,'Изменение прайс-листа'!$A$2:$E$798,4,FALSE) -> 2022 | G128: 2426.4 | H128: 11768.04 | J128: 0 | K128: 0 | L128: 0 | N128: 60 | O128: 337.56 | P128: 1980
A129: 15967-007 | B129: INNEN GLOSS O T | C129: 2.4 | D129: л | E129: Ведро | F129: =VLOOKUP($A129,'Изменение прайс-листа'!$A$2:$E$798,4,FALSE) -> 2540 | G129: 3048 | H129: 7315.2 | J129: 0 | K129: 0 | L129: 0 | N129: 72 | O129: 200.448 | P129: 2376
A130: 15799-007 | B130: BASIS A PURAN SATIN | C130: 15 | D130: кг | E130: Ведро | F130: =VLOOKUP($A130,'Изменение прайс-листа'!$A$2:$E$798,4,FALSE) -> 2142 | G130: 2570.4 | H130: 38556 | J130: 0 | K130: 0 | L130: 0 | M130: ● | N130: 24 | O130: 375.84 | P130: 792
A131: 15799-004 | B131: BASIS B PURAN SATIN | C131: 15 | D131: кг | E131: Ведро | F131: =VLOOKUP($A131,'Изменение прайс-листа'!$A$2:$E$798,4,FALSE) -> 2068 | G131: =F131*1.2 -> 2481.6 | H131: =G131*C131 -> 37224 | J131: 0 | K131: 0 | L131: 0 | M131: ● | N131: 24 | O131: 375.84 | P131: 792
A132: 15799-008 | B132: BASIS OT PURAN SATIN | C132: 14.6 | D132: кг | E132: Ведро | F132: =VLOOKUP($A132,'Изменение прайс-листа'!$A$2:$E$798,4,FALSE) -> 2350 | G132: 2820 | H132: 41172 | J132: 0 | K132: 0 | L132: 0 | M132: ● | N132: 24 | O132: 366.168 | P132: 792
A133: 00082-001 | B133: PURAN KB | C133: 1.5 | D133: кг | E133: Банка | F133: =VLOOKUP($A133,'Изменение прайс-листа'!$A$2:$E$798,4,FALSE) -> 7750 | G133: 9300 | H133: 13950 | J133: 0 | K133: 0 | L133: 0 | M133: ● | N133: 180 | O133: 313.2 | P133: 5940
A134: 15033-002 | B134: LOOK STRUKTUR F OT | C134: 20 | D134: кг | E134: Ведро | F134: =VLOOKUP($A134,'Изменение прайс-листа'!$A$2:$E$798,4,FALSE) -> 802 | G134: 962.4 | H134: 19248 | J134: 0 | K134: 0 | L134: 0 | N134: 24 | O134: 495.84 | P134: 792
A135: 05082-024 | B135: StoAQUA TOP IN OT | C135: 2.5 | D135: л | E135: Банка | F135: =VLOOKUP($A135,'Изменение прайс-листа'!$A$2:$E$798,4,FALSE) -> 2710 | G135: =F135*1.2 -> 3252 | H135: =G135*C135 -> 8130 | J135: =I135*H135 -> 0 | K135: 0 | L135: 0 | N135: 160 | O135: 454.08 | P135: 5280
A136: 15013-019 | B136: StoPOX WL 100 BASIS A | C136: 10 | D136: кг | E136: Ведро | F136: =VLOOKUP($A136,'Изменение прайс-листа'!$A$2:$E$798,4,FALSE) -> 2228 | G136: 2673.6 | H136: 26736 | J136: =I136*H136 -> 0 | K136: 0 | L136: 0 | N136: 40 | O136: 418.8 | P136: 1320
A137: 15013-021 | B137: StoPOX WL 100 BASIS B | C137: 10 | D137: кг | E137: Ведро | F137: =VLOOKUP($A137,'Изменение прайс-листа'!$A$2:$E$798,4,FALSE) -> 2176 | G137: 2611.2 | H137: 26112 | J137: 0 | K137: 0 | L137: 0 | N137: 40 | O137: 418.8 | P137: 1320
A138: 08989-009 | B138: StoPOX WL/WB/WG Comp. B | C138: 2 | D138: кг | E138: Банка | F138: =VLOOKUP($A138,'Изменение прайс-листа'!$A$2:$E$798,4,FALSE) -> 4694 | G138: 5632.8 | H138: 11265.6 | J138: 0 | K138: 0 | L138: 0 | N138: 120 | O138: 268.8 | P138: 3960
A139: 15013-029 | B139: StoPOX WL 100 KA OT | C139: 9.7 | D139: кг | E139: Ведро | F139: =VLOOKUP($A139,'Изменение прайс-листа'!$A$2:$E$798,4,FALSE) -> 2094 | G139: =F139*1.2 -> 2512.8 | H139: =G139*C139 -> 24374.16 | J139: =I139*H139 -> 0 | K139: 0 | L139: 0 | N139: 40 | O139: 407 | P139: 1320
A140: 08989-010 | B140: StoPOX WL/WB/WG Comp. B | C140: 5 | D140: кг | E140: Банка | F140: =VLOOKUP($A140,'Изменение прайс-листа'!$A$2:$E$798,4,FALSE) -> 4504 | G140: 5404.8 | H140: 27024 | J140: 0 | K140: 0 | L140: 0 | N140: 60 | O140: 325.8 | P140: 1980
A141: 15675-005 | B141: StoPox MS 200 Weiss | C141: 12.5 | D141: кг | E141: Ведро | F141: =VLOOKUP($A141,'Изменение прайс-листа'!$A$2:$E$798,4,FALSE) -> 2870 | G141: 3444 | H141: 43050 | J141: 0 | K141: 0 | L141: 0 | N141: 28 | O141: 368.564 | P141: 924
A142: 15675-007 | B142: StoPox MS 200 Basis A | C142: 12.5 | D142: кг | E142: Ведро | F142: =VLOOKUP($A142,'Изменение прайс-листа'!$A$2:$E$798,4,FALSE) -> 3014 | G142: 3616.8 | H142: 45210 | J142: 0 | K142: =ROUNDUP(O142/N142*I142,0) -> 0 | L142: =I142/N142 -> 0 | N142: 28 | O142: 368.564 | P142: 924
A143: 15675-006 | B143: StoPox MS 200 Basis B | C143: 12.5 | D143: кг | E143: Ведро | F143: =VLOOKUP($A143,'Изменение прайс-листа'!$A$2:$E$798,4,FALSE) -> 2910 | G143: 3492 | H143: 43650 | J143: 0 | K143: 0 | L143: 0 | N143: 28 | O143: 368.564 | P143: 924
A144: 15675-004 | B144: StoPox MS 200 Basis OT | C144: 12.1 | D144: кг | E144: Ведро | F144: =VLOOKUP($A144,'Изменение прайс-листа'!$A$2:$E$798,4,FALSE) -> 2840 | G144: 3408 | H144: 41236.8 | J144: 0 | K144: 0 | L144: 0 | N144: 28 | O144: 357.364 | P144: 924
A145: 09352-001 | B145: StoPox MS 200 Comp. B | C145: 5 | D145: кг | E145: Ведро | F145: =VLOOKUP($A145,'Изменение прайс-листа'!$A$2:$E$798,4,FALSE) -> 5674 | G145: 6808.8 | H145: 34044 | J145: 0 | K145: 0 | L145: 0 | N145: 60 | O145: 328.2 | P145: 1980
A146: 15003-175 | B146: Basis A CRYL BF 700 | C146: 10 | D146: л | E146: Ведро | F146: =VLOOKUP($A146,'Изменение прайс-листа'!$A$2:$E$798,4,FALSE) -> 2326 | G146: 2791.2 | H146: 27912 | J146: 0 | K146: 0 | L146: 0 | N146: 27 | O146: 352.08 | P146: 891
A147: 15003-177 | B147: Basis B CRYL BF 700 | C147: 10 | D147: л | E147: Ведро | F147: =VLOOKUP($A147,'Изменение прайс-листа'!$A$2:$E$798,4,FALSE) -> 2302 | G147: 2762.4 | H147: 27624 | J147: 0 | K147: 0 | L147: 0 | N147: 27 | O147: 344.52 | P147: 891
A148: 15003-180 | B148: Basis OT CRYL BF 700 | C148: 9.7 | D148: л | E148: Ведро | F148: =VLOOKUP($A148,'Изменение прайс-листа'!$A$2:$E$798,4,FALSE) -> 2296 | G148: 2755.2 | H148: 26725.44 | J148: 0 | K148: 0 | L148: 0 | N148: 27 | O148: 329.481 | P148: 891
A149: 15003-176 | B149: Basis A CRYL BF 700 | C149: 5 | D149: л | E149: Ведро | F149: =VLOOKUP($A149,'Изменение прайс-листа'!$A$2:$E$798,4,FALSE) -> 2422 | G149: 2906.4 | H149: 14532 | J149: 0 | K149: 0 | L149: 0 | N149: 60 | O149: 392.7 | P149: 1980
A150: 15003-178 | B150: Basis B CRYL BF 700 | C150: 5 | D150: л | E150: Ведро | F150: =VLOOKUP($A150,'Изменение прайс-листа'!$A$2:$E$798,4,FALSE) -> 2400 | G150: 2880 | H150: 14400 | J150: 0 | K150: 0 | L150: 0 | N150: 60 | O150: 392.7 | P150: 1980
A151: 15003-179 | B151: Basis OT CRYL BF 700 | C151: 4.85 | D151: л | E151: Ведро | F151: =VLOOKUP($A151,'Изменение прайс-листа'!$A$2:$E$798,4,FALSE) -> 2396 | G151: 2875.2 | H151: 13944.72 | J151: 0 | K151: 0 | L151: 0 | N151: 60 | O151: 380.94 | P151: 1980
A152: 15003-188 | B152: Basis Gold CRYL BF 700 Metallic | C152: 5 | D152: л | E152: Ведро | F152: =VLOOKUP($A152,'Изменение прайс-листа'!$A$2:$E$798,4,FALSE) -> 5630 | G152: =F152*1.2 -> 6756 | H152: =G152*C152 -> 33780 | J152: 0 | K152: 0 | L152: 0 | N152: 60 | O152: 408.3 | P152: 1980
A153: 15003-189 | B153: Basis Silber CRYL BF 700 Metallic | C153: 5 | D153: л | E153: Ведро | F153: =VLOOKUP($A153,'Изменение прайс-листа'!$A$2:$E$798,4,FALSE) -> 3438 | G153: =F153*1.2 -> 4125.6 | H153: =G153*C153 -> 20628 | J153: 0 | K153: 0 | L153: 0 | N153: 60 | O153: 408.3 | P153: 1980

Sheet 5. Ведра. Инструмент
A1: Прайс-лист Товаров Продуктовой группы раздела «Профессиональный ручной инструмент» Цены действительны c 03.03.2022 г.
A2: Артикул | B2: Наименование продукта | C2: Вид материала | D2: Упаковка | F2: фото | G2: Цена руб/ед без учета НДС | H2: Цена руб/ед с учетом НДС | I2: Кол-во единиц товара | J2: Сумма заказа с НДС | K2: Наличие на складе | L2: Рекомендованный ассортимент | M2: Краткое описание продукта
D3: к-во | E3: ед.
A4: 09679-188 | B4: Ведро желтое с логотипом Sto - 0,8 литра | C4: Ведро | D4: 1 | E4: шт. | G4: =VLOOKUP($A4,'Изменение прайс-листа'!$A$2:$E$798,4,FALSE) -> 380 | H4: =G4*1.2 -> 456 | J4: =I4*H4 -> 0 | K4: ● | L4: ● | M4: Ведро фирменное с логотипом Sto для образцов
A5: 09257-002 | B5: Ведро желтое с логотипом Sto - 1,8 литра | C5: Ведро | D5: 1 | E5: шт. | G5: =VLOOKUP($A5,'Изменение прайс-листа'!$A$2:$E$798,4,FALSE) -> 498 | H5: =G5*1.2 -> 597.6 | J5: =I5*H5 -> 0 | K5: ● | L5: ●
A6: 09050-002 | B6: Ведро желтое с логотипом Sto - 3,2 литра | C6: Ведро | D6: 1 | E6: шт. | G6: =VLOOKUP($A6,'Изменение прайс-листа'!$A$2:$E$798,4,FALSE) -> 530 | H6: =G6*1.2 -> 636 | J6: 0 | K6: ● | L6: ●
A7: 09049-002 | B7: Ведро желтое с логотипом Sto - 5,5 литра | C7: Ведро | D7: 1 | E7: шт. | G7: =VLOOKUP($A7,'Изменение прайс-листа'!$A$2:$E$798,4,FALSE) -> 646 | H7: =G7*1.2 -> 775.2 | J7: 0 | K7: ● | L7: ●
A8: 09065-001 | B8: Ведро желтое с логотипом Sto - 12,0 литров | C8: Ведро | D8: 1 | E8: шт. | G8: по запросу | H8: по запросу | J8: =H8 -> по запросу | K8: ●
A9: 09019-002 | B9: Ведро желтое с логотипом Sto - 18,0 литров | C9: Ведро | D9: 1 | E9: шт. | G9: по запросу | H9: по запросу | J9: =H9 -> по запросу | K9: ●
A10: 08335-001 | B10: Sto-WDVS-Schleifpapier 420 x 200 мм K 16 | C10: Шлифовальные материалы | D10: 1 | E10: шт. | G10: =VLOOKUP($A10,'Изменение прайс-листа'!$A$2:$E$798,4,FALSE) -> 1896 | H10: =G10*1.2 -> 2275.2 | J10: 0 | K10: ● | L10: ● | M10: шлифовальная бумага для шлифовальной доски Sto-WDVS-Schleifbrett, для шлифования теплоизоляционного материала
A11: 08335-002 | B11: Sto-WDVS-Schleifbrett 420 x 200 мм | C11: Шлифовальные материалы | D11: 1 | E11: шт. | G11: =VLOOKUP($A11,'Изменение прайс-листа'!$A$2:$E$798,4,FALSE) -> 7742 | H11: =G11*1.2 -> 9290.4 | J11: 0 | K11: ● | L11: ● | M11: алюминиевая шлифовальная доска с деревянной ручкой, в комплекте со шлифовальной бумагой K16
A12: 08290-015 | B12: Sto-Flächenspachtel mit Softgriff abgerundet, 480 мм | C12: Шпатели | D12: 1 | E12: шт. | G12: =VLOOKUP($A12,'Изменение прайс-листа'!$A$2:$E$798,4,FALSE) -> 4088 | H12: =G12*1.2 -> 4905.6 | J12: 0 | K12: ● | L12: ● | M12: широкий шпатель с мягкой ручкой и закругленными углами
A13: 08290-016 | B13: Sto-Flächenspachtel mit Softgriff abgerundet, 570 мм | C13: Шпатели | D13: 1 | E13: шт. | G13: =VLOOKUP($A13,'Изменение прайс-листа'!$A$2:$E$798,4,FALSE) -> 4460 | H13: 5352 | J13: 0 | K13: ● | L13: ●
A14: 08303-004 | B14: Sto-Japanspachtelsatz mit Leichtmetallrücken | C14: Шпатели | D14: 1 | E14: шт. | G14: =VLOOKUP($A14,'Изменение прайс-листа'!$A$2:$E$798,4,FALSE) -> 1522 | H14: 1826.4 | J14: 0 | K14: ● | L14: ● | M14: набор из четырех японских шпателей шир. 50, 80, 105, 120 мм, из закаленной нержавеющей стали толщ. 0,3 мм, нерабочая грань из легкого металла.
A15: 08356-001 | B15: Sto-Stuckateurspachtel, 80 мм | C15: Шпатели | D15: 1 | E15: шт. | G15: =VLOOKUP($A15,'Изменение прайс-листа'!$A$2:$E$798,4,FALSE) -> 2158 | H15: 2589.6 | J15: 0 | K15: ● | L15: ● | M15: мастерок из закаленной нержавеющей стали толщ. 0,8 мм, с деревянной ручкой
A16: 08356-002 | B16: Sto-Stuckateurspachtel, 100 мм | C16: Шпатели | D16: 1 | E16: шт. | G16: =VLOOKUP($A16,'Изменение прайс-листа'!$A$2:$E$798,4,FALSE) -> 2338 | H16: 2805.6 | J16: 0 | K16: ● | L16: ●
A17: 08313-028 | B17: Sto-Malerspachtel Profi, 50 мм | C17: Шпатели | D17: 1 | E17: шт. | G17: =VLOOKUP($A17,'Изменение прайс-листа'!$A$2:$E$798,4,FALSE) -> 992 | H17: 1190.4 | J17: 0 | K17: ● | L17: ● | M17: шпатель из закаленной стали с деревянной ручкой
A18: 08313-029 | B18: Sto-Malerspachtel Profi, 80 мм | C18: Шпатели | D18: 1 | E18: шт. | G18: =VLOOKUP($A18,'Изменение прайс-листа'!$A$2:$E$798,4,FALSE) -> 1110 | H18: 1332 | J18: 0 | K18: ● | L18: ●
A19: 08288-001 | B19: Sto-Glättekelle Profi 280 x 130 x 0,7 мм | C19: Кельмы | выравнивающие | D19: 1 | E19: шт. | G19: =VLOOKUP($A19,'Изменение прайс-листа'!$A$2:$E$798,4,FALSE) -> 3854 | H19: =G19*1.2 -> 4624.8 | J19: 0 | K19: ● | L19: ● | M19: кельма из нержавеющей стали толщ. 0,7 мм для нанесения финишных штукатурок
A20: 08288-008 | B20: Sto-Glättekelle gezahnt 280 x 130 мм, 4 х 4 | C20: Кельмы | выравнивающие | D20: 1 | E20: шт. | G20: =VLOOKUP($A20,'Изменение прайс-листа'!$A$2:$E$798,4,FALSE) -> 1914 | H20: 2296.8 | J20: 0 | M20: зубчатая кельма из нержавеющей стали, для нанесения строительных растворов
A21: 08288-009 | B21: Sto-Glättekelle gezahnt 280 x 130 мм, 6 х 6 | C21: Кельмы | выравнивающие | D21: 1 | E21: шт. | G21: =VLOOKUP($A21,'Изменение прайс-листа'!$A$2:$E$798,4,FALSE) -> 1914 | H21: 2296.8 | J21: 0 | K21: ● | L21: ●
A22: 08288-010 | B22: Sto-Glättekelle gezahnt 280 x 130 мм, 8 х 8 | C22: Кельмы | выравнивающие | D22: 1 | E22: шт. | G22: =VLOOKUP($A22,'Изменение прайс-листа'!$A$2:$E$798,4,FALSE) -> 1914 | H22: 2296.8 | J22: 0
A23: 08288-002 | B23: Sto-Schweizer Glättekelle 500 x 130 x 0,7 мм | C23: Кельмы | выравнивающие | D23: 1 | E23: шт. | G23: =VLOOKUP($A23,'Изменение прайс-листа'!$A$2:$E$798,4,FALSE) -> 6956 | H23: 8347.2 | J23: 0 | M23: швейцарская кельма из нержавеющей стали, для вытягивания, выравнивания, укладки армирующей сетки
A24: 08289-003 | B24: Sto-Glättekelle Profi Kunststoff Mini 160 x 80 x 3 мм | C24: Кельмы | выравнивающие | D24: 1 | E24: шт. | G24: =VLOOKUP($A24,'Изменение прайс-листа'!$A$2:$E$798,4,FALSE) -> 2134 | H24: 2560.8 | J24: 0 | M24: мини-кельма из серого ударопрочного ПВХ с деревянной ручкой, для структурирования финишных штукатурок
A25: 08289-010 | B25: Sto-Glättekelle Kunststoff mit Kunststoffgriff 280 x 140 x 3 мм | C25: Кельмы | выравнивающие | D25: 1 | E25: шт. | G25: =VLOOKUP($A25,'Изменение прайс-листа'!$A$2:$E$798,4,FALSE) -> 1272 | H25: 1526.4 | J25: 0 | K25: ● | L25: ● | M25: кельма из ударопрочного ПВХ с пластиковой ручкой, для структурирования финишных штукатурок
A26: 08289-009 | B26: Sto-Glättekelle Kunststoff mit Kunststoffgriff 280 x 140 x 2 мм | C26: Кельмы | выравнивающие | D26: 1 | E26: шт. | G26: =VLOOKUP($A26,'Изменение прайс-листа'!$A$2:$E$798,4,FALSE) -> 1178 | H26: 1413.6 | J26: 0
A27: 08376-003 | B27: Sto-Calce Marmorino-Glättekelle 280 x 100/90 мм | C27: Кельмы | выравнивающие | D27: 1 | E27: шт. | G27: =VLOOKUP($A27,'Изменение прайс-листа'!$A$2:$E$798,4,FALSE) -> 7498 | H27: 8997.6 | J27: 0 | K27: ● | L27: ● | M27: "венецианская" кельма из нержавеющей специальной стали толщ. 0,6 мм с закругленными углами И деревянной ручкой, для нанесения StoCalce Marmorino
A28: 08376-002 | B28: Sto-Calce Marmorino-Glättekelle 240 x 100/80 мм | C28: Кельмы | выравнивающие | D28: 1 | E28: шт. | G28: =VLOOKUP($A28,'Изменение прайс-листа'!$A$2:$E$798,4,FALSE) -> 6682 | H28: 8018.4 | J28: 0 | K28: ● | L28: ●
A29: 08376-001 | B29: Sto-Calce Marmorino-Glättekelle 200 x 80/70 мм | C29: Кельмы | выравнивающие | D29: 1 | E29: шт. | G29: =VLOOKUP($A29,'Изменение прайс-листа'!$A$2:$E$798,4,FALSE) -> 6292 | H29: 7550.4 | J29: 0 | K29: ● | L29: ●
A30: 08327-001 | B30: Sto-Berner Putzkelle 140 мм | C30: Кельмы | штукатурные | D30: 1 | E30: шт. | G30: =VLOOKUP($A30,'Изменение прайс-листа'!$A$2:$E$798,4,FALSE) -> 2216 | H30: =G30*1.2 -> 2659.2 | J30: 0 | K30: ● | L30: ● | M30: кельма из закаленной нержавеющей стали толщ. 1,00 мм, с деревянной ручкой
A31: 08268-009 | B31: Sto-Inneneckenkelle 80 x 60 мм | C31: Кельмы | угловые | D31: 1 | E31: шт. | G31: =VLOOKUP($A31,'Изменение прайс-листа'!$A$2:$E$798,4,FALSE) -> 2194 | H31: 2632.8 | J31: 0 | K31: ● | L31: ● | M31: кельма для внутренних углов из нержавеющей закаленной стали толщ. 0,7 мм, с деревянной ручкой
A32: 08268-001 | B32: Sto-Außeneckenkelle 65 x 65 мм | C32: Кельмы | угловые | D32: 1 | E32: шт. | G32: =VLOOKUP($A32,'Изменение прайс-листа'!$A$2:$E$798,4,FALSE) -> 2462 | H32: 2954.4 | J32: 0 | K32: ● | L32: ● | M32: кельма для наружных углов из нержавеющей закаленной стали толщ. 0,7 мм, с деревянной ручкой
A33: 08259-001 | B33: Sto-Bossenkelle | C33: Кельмы | угловые | D33: 1 | E33: шт. | G33: =VLOOKUP($A33,'Изменение прайс-листа'!$A$2:$E$798,4,FALSE) -> 15222 | H33: 18266.4 | J33: 0 | M33: специальная кельма из нержавеющей стали, для воспроизведения руста
A34: 08328-001 | B34: Sto-Reibebrett mit Schwammgummibelag grob 280 x 140 мм | C34: Тёрки | D34: 1 | E34: шт. | G34: =VLOOKUP($A34,'Изменение прайс-листа'!$A$2:$E$798,4,FALSE) -> 1852 | H34: 2222.4 | J34: 0 | K34: ● | L34: ● | M34: пластиковая терка с основанием из грубой губчатой резины
A35: 08328-002 | B35: Sto-Zellkautschukreibebrett | C35: Тёрки | D35: 1 | E35: шт. | G35: =VLOOKUP($A35,'Изменение прайс-листа'!$A$2:$E$798,4,FALSE) -> 1434 | H35: 1720.8 | J35: 0 | K35: ● | L35: ● | M35: кельма для структурирования нивелирующих фасадных штукатурок
A36: 08301-001 | B36: StoLook Schwammscheibe 220 x 140 мм | C36: Тёрки | D36: 1 | E36: шт. | G36: =VLOOKUP($A36,'Изменение прайс-листа'!$A$2:$E$798,4,FALSE) -> 2968 | H36: 3561.6 | J36: 0 | K36: ● | L36: ● | M36: жесткая губка для обработки и выравнивания материалов StoCalce Fondo, StoCalce Effetto
A37: 17100-003 | B37: Sto-Flachpinsel Standart 50 мм, дл. щетины 58 мм | C37: Кисти | плоские | D37: 1 | E37: шт. | G37: =VLOOKUP($A37,'Изменение прайс-листа'!$A$2:$E$798,4,FALSE) -> 1258 | H37: 1509.6 | J37: 0 | K37: ● | L37: ● | M37: плоская кисть со светлой щетиной, для работы с алкидными лаками, содержащими растворитель, и дисперсионными красками
A38: 17100-004 | B38: Sto-Flachpinsel Standart 60 мм, дл. щетины 58 мм | C38: Кисти | плоские | D38: 1 | E38: шт. | G38: =VLOOKUP($A38,'Изменение прайс-листа'!$A$2:$E$798,4,FALSE) -> 1560 | H38: 1872 | J38: 0 | K38: ● | L38: ●
A39: 17100-005 | B39: Sto-Flachpinsel Standart 70 мм, дл. щетины 64 мм | C39: Кисти | плоские | D39: 1 | E39: шт. | G39: =VLOOKUP($A39,'Изменение прайс-листа'!$A$2:$E$798,4,FALSE) -> 1924 | H39: 2308.8 | J39: 0 | K39: ● | L39: ●
A40: 17100-006 | B40: Sto-Flachpinsel Standart 80 мм, дл. щетины 64 мм | C40: Кисти | плоские | D40: 1 | E40: шт. | G40: =VLOOKUP($A40,'Изменение прайс-листа'!$A$2:$E$798,4,FALSE) -> 2508 | H40: 3009.6 | J40: 0 | K40: ● | L40: ●
A41: 17100-007 | B41: Sto-Flachpinsel Standart 100 мм, дл. щетины 64 мм | C41: Кисти | плоские | D41: 1 | E41: шт. | G41: =VLOOKUP($A41,'Изменение прайс-листа'!$A$2:$E$798,4,FALSE) -> 3112 | H41: 3734.4 | J41: 0 | K41: ● | L41: ●
A42: 17101-001 | B42: Sto-Heizkörperpinsel Standart hell 25 мм, дл. щетины 43 мм | C42: Кисти | радиаторные | D42: 1 | E42: шт. | G42: =VLOOKUP($A42,'Изменение прайс-листа'!$A$2:$E$798,4,FALSE) -> 642 | H42: 770.4 | J42: 0 | K42: ● | L42: ● | M42: кисть для окраски радиаторов со светлой щетиной, для работ с водорастворимыми, дисперсионными красками и лаками
A43: 17101-003 | B43: Sto-Heizkörperpinsel Standart hell 50 мм, дл. щетины 56 мм | C43: Кисти | радиаторные | D43: 1 | E43: шт. | G43: =VLOOKUP($A43,'Изменение прайс-листа'!$A$2:$E$798,4,FALSE) -> 862 | H43: 1034.4 | J43: 0 | K43: ● | L43: ●
A44: 17106-003 | B44: Sto-Flächenstreicher Orel®-Mix 135 мм, дл. щетины 85 мм | C44: Кисти | широкие | D44: 1 | E44: шт. | G44: =VLOOKUP($A44,'Изменение прайс-листа'!$A$2:$E$798,4,FALSE) -> 6836 | H44: 8203.2 | J44: 0 | M44: высококачественная широкая кисть в овальном деревянном корпусе, особенно подходит для нанесения лазурей и лаков
A45: 17103-006 | B45: Sto-Flächenstreicher Standart grau 120 мм, дл. щетины 65 мм | C45: Кисти | широкие | D45: 1 | E45: шт. | G45: =VLOOKUP($A45,'Изменение прайс-листа'!$A$2:$E$798,4,FALSE) -> 3394 | H45: 4072.8 | J45: 0 | K45: ● | L45: ● | M45: широкая кисть с серой щетиной в латунном корпусе с деревянной ручкой, для лакокрасочных работ, нанесения лазурей, морилок по дереву
A46: 17811-003 | B46: Sto-Fassadenwalze Standart 270 мм, Ø 96 мм | C46: Валики | фасадные | D46: 1 | E46: шт. | G46: =VLOOKUP($A46,'Изменение прайс-листа'!$A$2:$E$798,4,FALSE) -> 2034 | H46: 2440.8 | J46: 0 | K46: ● | L46: ● | M46: профессиональный полиамидный валик, дл. ворса 18 мм, набивка 8 мм, идеально подходит для дисперсий, латексных красок, пропиток, грунтовок глубокого проникновения
A47: Валики | малярные | C47: Валики | фасадные | G47: =VLOOKUP($A47,'Изменение прайс-листа'!$A$2:$E$798,4,FALSE) ->  | J47: 0 | K47: ● | L47: ●
A48: 17800-024 | B48: Sto-Malerwalze FIL Langflor 180 мм, Ø 85 мм | C48: Валики | фасадные | D48: 1 | E48: шт. | G48: =VLOOKUP($A48,'Изменение прайс-листа'!$A$2:$E$798,4,FALSE) -> 1588 | H48: =G48*1.2 -> 1905.6 | J48: 0 | K48: ● | L48: ● | M48: высококачественный полиамидный валик с длинным ворсом, дл. 18 мм, без набивки, идеально подходит для нанесения грунтовок, дисперсионных красок
A49: 17800-025 | B49: Sto-Malerwalze FIL Langflor 250 мм, Ø 85 мм | C49: Валики | фасадные | D49: 1 | E49: шт. | G49: =VLOOKUP($A49,'Изменение прайс-листа'!$A$2:$E$798,4,FALSE) -> 1998 | H49: 2397.6 | J49: 0 | K49: ● | L49: ●
A50: 17811-006 | B50: Sto-Malerwalze Standard 250 mm Langflor 18 мм | C50: Валики | фасадные | D50: 1 | E50: шт. | G50: =VLOOKUP($A50,'Изменение прайс-листа'!$A$2:$E$798,4,FALSE) -> 1650 | H50: 1980 | J50: 0 | K50: ● | L50: ●
A51: 17811-008 | B51: Sto-Malerwalze Standart Kurzflor 25см Flor 12мм, Ø 72мм | C51: Валики | фасадные | D51: 1 | E51: шт. | G51: =VLOOKUP($A51,'Изменение прайс-листа'!$A$2:$E$798,4,FALSE) -> 1466 | H51: 1759.2 | J51: 0 | K51: ● | L51: ● | M51: полиамидный валик с коротким ворсом, дл. 12 мм, без набивки, идеально подходит для нанесения латексных, дисперсионных красок, грунтовок глубокого проникновения, пропиток
A52: 17804-002 | B52: Sto-Grundierwalze Microfaser 250 mm (замена 17803-002) | C52: Валики | для лаков и лазурей | D52: 1 | E52: шт. | G52: =VLOOKUP($A52,'Изменение прайс-листа'!$A$2:$E$798,4,FALSE) -> 1732 | H52: 2078.4 | J52: 0 | K52: ● | L52: ● | M52: полиамидный валик с ворсом 5 мм, без набивки, устойчив к воздействию растворителя, идеально подходит для нанесения антикоррозионных, эпоксидных, 2-компонентных красок, паркетных лаков на основе синтетической смолы и полиэфира
A53: 08278-006 | B53: Sto-Lackierwalze Nylon RS 8 250 мм Ø 60 мм | C53: Валики | для лаков и лазурей | D53: 1 | E53: шт. | G53: =VLOOKUP($A53,'Изменение прайс-листа'!$A$2:$E$798,4,FALSE) -> 1534 | H53: 1840.8 | J53: 0 | K53: ● | L53: ● | M53: полиамидный валик с коротким ворсом 8 мм, идеален для 2-К , эпоксидов и лаков, длина 25 см
A54: 08279-004 | B54: Sto-Heizkörperwalze Nylon RS13 100 мм, Ø 45 мм | C54: Валики | радиаторные | D54: 1 | E54: шт. | G54: =VLOOKUP($A54,'Изменение прайс-листа'!$A$2:$E$798,4,FALSE) -> 482 | H54: 578.4 | J54: 0 | K54: ● | L54: ● | M54: высококачественный полиамидный валик с коротким ворсом, дл. 11 мм, без набивки, идеально подходит для нанесения латексных, дисперсионных красок
A55: 08279-005 | B55: Sto-Heizkörperwalze Nylon RS8 100 мм, Ø 31 мм | C55: Валики | радиаторные | D55: 1 | E55: шт. | G55: =VLOOKUP($A55,'Изменение прайс-листа'!$A$2:$E$798,4,FALSE) -> 482 | H55: 578.4 | J55: 0 | K55: ● | L55: ● | M55: валик с ворсом дл. 6 мм из нейлоновых волокОн, фиксированных на полиамидной основе, устойчив к воздействию растворителя, идеально подходит для нанесения антикоррозионных, эпоксидных, 2-компонентных красок, лаков на основе синтетической смолы и полиэфира
A56: 08354-010 | B56: Sto-Strukturwalze grob 110 мм, Ø 35 мм, прямой | C56: Валики | декоративные | D56: 1 | E56: шт. | G56: =VLOOKUP($A56,'Изменение прайс-листа'!$A$2:$E$798,4,FALSE) -> 494 | H56: 592.8 | J56: 0 | K56: ● | L56: ● | M56: грубый поролоновый валик, идеально подходит для структурирования штукатурки, шпаrлевки и структурной краски
A57: 08354-011 | B57: Sto-Strukturwalze grob 250 мм, Ø 74 мм, двустор. крепление | C57: Валики | декоративные | D57: 1 | E57: шт. | G57: =VLOOKUP($A57,'Изменение прайс-листа'!$A$2:$E$798,4,FALSE) -> 2518 | H57: 3021.6 | J57: 0 | K57: ● | L57: ●
A58: 08219-006 | B58: Sto-Reliefwalze Eiche | C58: Валики | декоративные | D58: 1 | E58: шт. | G58: =VLOOKUP($A58,'Изменение прайс-листа'!$A$2:$E$798,4,FALSE) -> 4598 | H58: 5517.6 | J58: 0 | K58: ● | L58: ● | M58: валик для создания рельефа
A59: 08254-009 | B59: Sto-Farbrollerbügel Ø 8 мм, для валиков 18-20 см, дл. 29 см | C59: Сопутствующие / вспомогательные товары | D59: 1 | E59: шт. | G59: =VLOOKUP($A59,'Изменение прайс-листа'!$A$2:$E$798,4,FALSE) -> 636 | H59: =G59*1.2 -> 763.2 | J59: 0 | K59: ● | L59: ● | M59: ручка бюгельная из оцинкованной стали с пластиковой рукояткой
A60: 08254-010 | B60: Sto-Farbrollerbügel Ø 8 мм, для валиков 25-27 см, дл. 29 см | C60: Сопутствующие / вспомогательные товары | D60: 1 | E60: шт. | G60: =VLOOKUP($A60,'Изменение прайс-листа'!$A$2:$E$798,4,FALSE) -> 680 | H60: 816 | J60: 0 | K60: ● | L60: ●
A61: 08302-010 | B61: Sto-Farbrollerbügel Ø 6 мм, для валиков 10-12 см, дл. 42 см | C61: Сопутствующие / вспомогательные товары | D61: 1 | E61: шт. | G61: =VLOOKUP($A61,'Изменение прайс-листа'!$A$2:$E$798,4,FALSE) -> 552 | H61: 662.4 | J61: 0 | K61: ● | L61: ●
A62: 08369-009 | B62: Sto-Teleskopstange Aluminium gelb 117-200 см | C62: Сопутствующие / вспомогательные товары | D62: 1 | E62: шт. | G62: =VLOOKUP($A62,'Изменение прайс-листа'!$A$2:$E$798,4,FALSE) -> 5156 | H62: 6187.2 | J62: 0 | K62: ● | L62: ● | M62: раздвижная прочная алюминиевая штанга, подходит для любых типов бюгелей
A63: 08253-011 | B63: Sto-Abstreifgitter Kunststoff gelb 27 x 29 см | C63: Сопутствующие / вспомогательные товары | D63: 1 | E63: шт. | G63: =VLOOKUP($A63,'Изменение прайс-листа'!$A$2:$E$798,4,FALSE) -> 474 | H63: 568.8 | J63: 0 | K63: ● | L63: ● | M63: пластиковая решетка для раскатывания валика, желтая, опускается в ведро
A64: 08281-004 | B64: Sto-Farbwanne 22 x 27 см | C64: Сопутствующие / вспомогательные товары | D64: 1 | E64: шт. | G64: =VLOOKUP($A64,'Изменение прайс-листа'!$A$2:$E$798,4,FALSE) -> 534 | H64: 640.8 | J64: 0 | K64: ● | L64: ● | M64: желтая пластиковая ванночка для раскатывания валика

Sheet 6. Колоранты
A1: Прайс-лист Товаров Продуктовой группы раздела «Колоранты» Цены действительны c 03.03.2022 г.
A2: Артикул | B2: Наименование продукта | C2: Производство | D2: Упаковка | H2: Цена БЕЗ учета НДС за единицу измерения | I2: Цена с НДС за единицу измерения | J2: Цена с НДС за упаковку | K2: Кол-во единиц товара | L2: Сумма заказа с НДС | M2: Итого вес брутто (кг) | N2: Итого паллет | O2: Наличие на складе | P2: Кол-во упаковок на паллете, шт. | Q2: Вес одного паллето-места (без палеты), кг.
D3: к-во | E3: ед. изм. | F3: литраж | G3: вид упаковки
A4: 06508-005 | B4: Sto-Colorant SBL | C4: DE | D4: 4,577 | E4: кг | F4: 2.3 | G4: Ведро | H4: =VLOOKUP($A4,'Изменение прайс-листа'!$A$2:$E$798,4,FALSE) -> 11768 | I4: =H4*1.2 -> 14121.6 | J4: =I4*D4 -> 64634.5632 | L4: =K4*J4 -> 0 | M4: =ROUNDUP(Q4/P4*K4,0) -> 0 | N4: =K4/P4 -> 0 | O4: ● | P4: 72 | Q4: 338.4
A5: 06516-007 | B5: Sto-Colorant OG | C5: DE | D5: 4,600 | E5: кг | F5: 2.3 | G5: Ведро | H5: =VLOOKUP($A5,'Изменение прайс-листа'!$A$2:$E$798,4,FALSE) -> 1920 | I5: 2304 | J5: 10598.4 | L5: =K5*J5 -> 0 | M5: =ROUNDUP(Q5/P5*K5,0) -> 0 | N5: =K5/P5 -> 0 | O5: ● | P5: 72 | Q5: 345.6
A6: 06517-007 | B6: Colorant G2GXD | C6: DE | D6: 2,714 | E6: кг | F6: 2.3 | G6: Ведро | H6: =VLOOKUP($A6,'Изменение прайс-листа'!$A$2:$E$798,4,FALSE) -> 6008 | I6: 7209.6 | J6: 19566.8544 | L6: =K6*J6 -> 0 | M6: 0 | N6: 0 | O6: ● | P6: 72 | Q6: 208.8
A7: 06523-005 | B7: Colorant PG | C7: DE | D7: 1,340 | E7: кг | F7: 1 | G7: Банка | H7: =VLOOKUP($A7,'Изменение прайс-листа'!$A$2:$E$798,4,FALSE) -> 7778 | I7: 9333.6 | J7: 12507.024 | L7: 0 | M7: 0 | N7: 0 | O7: ● | P7: 270 | Q7: 405
A8: 06526-006 | B8: Sto-Colorant CGR | C8: DE | D8: 5,980 | E8: кг | F8: 2.3 | G8: Ведро | H8: =VLOOKUP($A8,'Изменение прайс-листа'!$A$2:$E$798,4,FALSE) -> 4506 | I8: 5407.2 | J8: 32335.056 | L8: 0 | M8: 0 | N8: 0 | O8: ● | P8: 72 | Q8: 439.2
A9: 06531-003 | B9: Sto-Colorant BLU | C9: DE | D9: 1,240 | E9: кг | F9: 1 | G9: Ведро | H9: =VLOOKUP($A9,'Изменение прайс-листа'!$A$2:$E$798,4,FALSE) -> 8074 | I9: 9688.8 | J9: 12014.112 | L9: 0 | M9: 0 | N9: 0 | O9: ● | P9: 270 | Q9: 351
A10: 06532-007 | B10: Sto-Colorant CV | C10: DE | D10: 1,130 | E10: кг | F10: 1 | G10: Ведро | H10: =VLOOKUP($A10,'Изменение прайс-листа'!$A$2:$E$798,4,FALSE) -> 20708 | I10: 24849.6 | J10: 28080.048 | L10: 0 | M10: 0 | N10: 0 | O10: ● | P10: 270 | Q10: 351
A11: 06533-006 | B11: Sto-Colorant KBL | C11: DE | D11: 4,922 | E11: кг | F11: 2.3 | G11: Ведро | H11: =VLOOKUP($A11,'Изменение прайс-листа'!$A$2:$E$798,4,FALSE) -> 11794 | I11: 14152.8 | J11: 69660.0816 | L11: 0 | M11: 0 | N11: 0 | O11: ● | P11: 72 | Q11: 367.2
A12: 06536-006 | B12: Sto-Colorant BV | C12: DE | D12: 5,129 | E12: кг | F12: 2.3 | G12: Ведро | H12: =VLOOKUP($A12,'Изменение прайс-листа'!$A$2:$E$798,4,FALSE) -> 9988 | I12: 11985.6 | J12: 61474.1424 | L12: 0 | M12: 0 | N12: 0 | O12: ● | P12: 72 | Q12: 374.4
A13: 06547-008 | B13: Sto-Colorant OR | C13: DE | D13: 5,497 | E13: кг | F13: 2.3 | G13: Ведро | H13: =VLOOKUP($A13,'Изменение прайс-листа'!$A$2:$E$798,4,FALSE) -> 2444 | I13: 2932.8 | J13: 16121.6016 | L13: 0 | M13: 0 | N13: 0 | O13: ● | P13: 72 | Q13: 417.6
A14: 06548-010 | B14: Colorant OS 530 | C14: DE | D14: 4,140 | E14: кг | F14: 2.3 | G14: Ведро | H14: =VLOOKUP($A14,'Изменение прайс-листа'!$A$2:$E$798,4,FALSE) -> 2946 | I14: 3535.2 | J14: 14635.728 | L14: 0 | M14: 0 | N14: 0 | O14: ● | P14: 72 | Q14: 324
A15: 06550-004 | B15: Colorant TY | C15: DE | D15: 1,500 | E15: кг | F15: 1 | G15: Банка | H15: =VLOOKUP($A15,'Изменение прайс-листа'!$A$2:$E$798,4,FALSE) -> 7494 | I15: 8992.8 | J15: 13489.2 | L15: 0 | M15: 0 | N15: 0 | O15: ● | P15: 270 | Q15: 486
A16: 06552-004 | B16: Sto-Colorant TR | C16: DE | D16: 1,450 | E16: кг | F16: 1 | G16: Банка | H16: =VLOOKUP($A16,'Изменение прайс-листа'!$A$2:$E$798,4,FALSE) -> 8540 | I16: 10248 | J16: 14859.6 | L16: 0 | M16: 0 | N16: 0 | O16: ● | P16: 270 | Q16: 405
A17: 06556-007 | B17: Sto-Colorant TW | C17: DE | D17: 5,060 | E17: кг | F17: 2.3 | G17: Ведро | H17: =VLOOKUP($A17,'Изменение прайс-листа'!$A$2:$E$798,4,FALSE) -> 3418 | I17: 4101.6 | J17: 20754.096 | L17: 0 | M17: 0 | N17: 0 | O17: ● | P17: 72 | Q17: 378.72
A18: 06557-008 | B18: Sto-Colorant G100 | C18: DE | D18: 4,968 | E18: кг | F18: 2.3 | G18: Ведро | H18: =VLOOKUP($A18,'Изменение прайс-листа'!$A$2:$E$798,4,FALSE) -> 2472 | I18: 2966.4 | J18: 14737.0752 | L18: 0 | M18: 0 | N18: 0 | O18: ● | P18: 72 | Q18: 367.2
A19: 06558-009 | B19: Sto-Colorant CR100 | C19: DE | D19: 5,083 | E19: кг | F19: 2.3 | G19: Ведро | H19: =VLOOKUP($A19,'Изменение прайс-листа'!$A$2:$E$798,4,FALSE) -> 5034 | I19: 6040.8 | J19: 30705.3864 | L19: 0 | M19: 0 | N19: 0 | O19: ● | P19: 75 | Q19: 390
A20: 06560-008 | B20: Sto-Colorant CS | C20: DE | D20: 2,898 | E20: кг | F20: 2.3 | G20: Ведро | H20: =VLOOKUP($A20,'Изменение прайс-листа'!$A$2:$E$798,4,FALSE) -> 3128 | I20: 3753.6 | J20: 10877.9328 | L20: 0 | M20: 0 | N20: 0 | O20: ● | P20: 72 | Q20: 217.44
A21: 16547-004 | B21: Colorant ROSA E | C21: DE | D21: 1,080 | E21: кг | F21: 1 | G21: Банка | H21: =VLOOKUP($A21,'Изменение прайс-листа'!$A$2:$E$798,4,FALSE) -> 11606 | I21: 13927.2 | J21: 15041.376 | L21: 0 | M21: 0 | N21: 0 | O21: ● | P21: 270 | Q21: 345.6
A22: 16576-001 | B22: Sto-Colorant SGN | C22: DE | D22: 5,000 | E22: кг | F22: 5 | G22: Ведро | H22: =VLOOKUP($A22,'Изменение прайс-листа'!$A$2:$E$798,4,FALSE) -> 29670 | I22: 35604 | J22: 178020 | L22: 0 | M22: 0 | N22: 0 | O22: ● | P22: 270 | Q22: 388.8
A23: 16580-002 | B23: Sto-Colorant PO2 R | C23: DE | D23: 1,750 | E23: кг | F23: 1 | G23: Банка | H23: =VLOOKUP($A23,'Изменение прайс-листа'!$A$2:$E$798,4,FALSE) -> 3498 | I23: 4197.6 | J23: 7345.8 | L23: 0 | M23: 0 | N23: 0 | O23: ● | P23: 270 | Q23: 513
A24: 06519-004 | B24: Sto-Colorant FGR | C24: DE | D24: 1,200 | E24: кг | F24: 1 | G24: Банка | H24: =VLOOKUP($A24,'Изменение прайс-листа'!$A$2:$E$798,4,FALSE) -> 7178 | I24: 8613.6 | J24: 10336.32 | L24: 0 | M24: 0 | N24: 0 | O24: ● | P24: 270 | Q24: 405

Sheet 7. Надбавки
A1: Прайс-лист на надбавки за тонирование Товара Цены действительны c 03.03.2022 г.
A2: Таблица надбавок к прайс-листу на колерованные материалы
A3: Продукты тонирования | B3: ед изм | C3: тонирование уровня С1 фиксированная надбавка* к wiess/natur | E3: тонирование уровня С2 фиксированная надбавка* к С1 | G3: тонирование уровня С3 фиксированная надбавка* к С1 | I3: тонирование уровня С4
C4: руб без НДС | D4: руб с НДС | E4: руб без НДС | F4: руб с НДС | G4: руб без НДС | H4: руб с НДС
A5: декоративная штукатурка декоративное покрытие шпатлевка грунт адгезионный | B5: кг | C5: 46 | D5: 55.2 | E5: 46 | F5: 55.2 | G5: 92 | H5: 110.4 | I5: по запросу
A6: краска лазурь | B6: л | C6: 74 | D6: 88.8 | E6: 74 | F6: 88.8 | G6: 148 | H6: 177.6 | I6: по запросу
A8: фиксированная надбавка, скидки не распространяются.
A9: Подробно согласовывайте спецификации с Менеджерами по продажам.
I27: 25
J434: 7.3

Sheet 8.Тарифы транспорта
C1: со склада Видное | E1: со склада Орёл | G1: со склада Германия
B3: Вознаграждение за транспортно-экспедиционные услуги ООО"СТО" действительны с 03.03.2022
C4: Транспортные услуги - поставки со склада г. Видное | E4: Транспортные услуги - поставки со склада г. Орёл | G4: Транспортные услуги - прямые поставки Германия (79+78) - регионы России
C5: Стоимость указана при полной загрузке 20-тн машины Ставки указаны в руб. с НДС. | E5: Стоимость указана при полной загрузке 20-тн машины Ставки указаны в руб. с НДС. | G5: Стоимость указана при полной загрузке 20-тн машины Ставки указаны в евро с НДС
C6: Условия и сроки поставки товара со склада Sto (Видное): | E6: Условия и сроки поставки товара со склада Sto (Видное): | G6: Условия и сроки поставки товара со склада Sto (Германия):
C7: 1. При заказе продукции больше текущего запаса на складе дозаказ/внутреннее перемещение согласовывается с Покупателем дополнительно. | E7: 1. При заказе продукции больше текущего запаса на складе дозаказ/внутреннее перемещение согласовывается с Покупателем дополнительно. | G7: 1. Размещение заказа в Германии - за 10-14 календарных дней до планируемой даты отгрузки
C8: 2. Отгрузка товаров через транспортные компании – в течение 3-х рабочих дней. | E8: 2. Отгрузка товаров через транспортные компании – в течение 3-х рабочих дней. | G8: 2. Отгрузка только полными 20-тн машинами
C9: 3. Продукты торговых марок Sto и STOMIX требуют соблюдения температурного режима перевозки. Период с ноября по конец марта для перевозок используются РЭФы (температурный режим +6 +8), с апреля по конец ноября - тенты. | E9: 3. Продукты торговых марок Sto и STOMIX требуют соблюдения температурного режима перевозки. Период с ноября по конец марта для перевозок используются РЭФы (температурный режим +6 +8), с апреля по конец ноября - тенты. | G9: 3. Заказ транспорта и согласование даты отгрузки - за 7 календарных дней до планируемой даты отгрузки
C10: 4. Вознаграждение Поставщику уплачивается Покупателем в размере 100%, указанной в счете отдельной строкой. | E10: 4. Вознаграждение Поставщику уплачивается Покупателем в размере 100%, указанной в счете отдельной строкой. | G10: 4. Транзитное время + растамаживание груза - 9-10 календарных дней
G11: 5. Доставка до региона - дополнительно 1-3 календарных дня в зависимости от местонахождения склада Покупателя
G12: 6. Стоимость доставки выставляется в счете отдельной строкой в рублях по курсу на день выставления счета
C13: Склад отгрузки
C14: склад Видное | E14: склад Орёл | G14: Германия
B15: город доставки | C15: стоимость в руб. с НДС | E15: стоимость в руб. с НДС | G15: стоимость в евро с НДС
C16: тент | D16: реф | E16: тент | F16: реф | G16: тент | H16: реф
B17: г. Калуга | C17: 26000 | D17: 33000 | E17: 30000 | F17: 36000 | G17: по запросу | H17: по запросу
B18: г. Тула | C18: 27000 | D18: 34000 | E18: 29000 | F18: 35000 | G18: по запросу | H18: по запросу
B19: г. Ярославль | C19: 32000 | D19: 38000 | E19: 56000 | F19: 60000 | G19: по запросу | H19: по запросу
B20: г. Рязань | C20: 30000 | D20: 37000 | E20: 36000 | F20: 40000 | G20: по запросу | H20: по запросу
B21: г. Санкт-Петербург | C21: 52000 | D21: 65000 | E21: 75000 | F21: 90000 | G21: по запросу | H21: по запросу
B22: г. Нижний Новгород | C22: 44000 | D22: 53000 | E22: 60000 | F22: 65000 | G22: по запросу | H22: по запросу
B23: г. Курск | C23: 42000 | D23: 48000 | E23: 28000 | F23: 32000 | G23: по запросу | H23: по запросу
B24: г. Липецк | C24: 42000 | D24: 48000 | E24: 33000 | F24: 37000 | G24: по запросу | H24: по запросу
B25: г. Тамбов | C25: 45000 | D25: 50000 | E25: 44000 | F25: 49000 | G25: по запросу | H25: по запросу
B26: г. Воронеж | C26: 42000 | D26: 48000 | E26: 35000 | F26: 38000 | G26: по запросу | H26: по запросу
B27: г. Брянск | C27: 38000 | D27: 44000 | E27: 22000 | F27: 28000 | G27: по запросу | H27: по запросу
B28: г. Смоленск | C28: 38000 | D28: 45000 | E28: 34000 | F28: 37000 | G28: по запросу | H28: по запросу
B29: г. Ростов на Дону | C29: 90000 | D29: 110000 | E29: 89000 | F29: 95000 | G29: 950 | H29: 1150
B30: г. Краснодар | C30: 120000 | D30: 135000 | E30: 97000 | F30: 114000 | G30: 1200 | H30: 1400
B31: г. Ставрополь | C31: 140000 | D31: 155000 | E31: 120000 | F31: 130000 | G31: 1250 | H31: 1450
B32: г. Сочи | C32: 180000 | D32: 210000 | E32: 155000 | F32: 170000 | G32: 1350 | H32: 1550
B33: г. Чебоксары | C33: 80000 | D33: 95000 | E33: 90000 | F33: 100000 | G33: по запросу | H33: по запросу
B34: г. Казань | C34: 85000 | D34: 100000 | E34: 91000 | F34: 105000 | G34: 950 | H34: 1150
B35: г. Самара | C35: 90000 | D35: 115000 | E35: 86000 | F35: 102000 | G35: по запросу | H35: по запросу
B36: г. Ульяновск | C36: 77000 | D36: 96000 | E36: 87000 | F36: 94000 | G36: по запросу | H36: по запросу
B37: г. Тольятти | C37: 90000 | D37: 115000 | E37: 88000 | F37: 97000 | G37: по запросу | H37: по запросу
B38: г. Нальчик | C38: 155000 | D38: 170000 | E38: 140000 | F38: 150000 | G38: по запросу | H38: по запросу
B39: г. Новороссийск | C39: 140000 | D39: 160000 | E39: 110000 | F39: 125000 | G39: по запросу | H39: по запросу
B40: г. Екатеринбург | C40: 140000 | D40: 160000 | E40: 150000 | F40: 170000 | G40: по запросу | H40: по запросу
B41: г. Уфа | C41: 120000 | D41: 140000 | E41: 115000 | F41: 135000 | G41: по запросу | H41: по запросу
B42: г. Пермь | C42: 120000 | D42: 140000 | E42: 125000 | F42: 145000 | G42: по запросу | H42: по запросу
B43: г. Новосибирск | C43: 258000 | D43: 310000 | E43: 260000 | F43: 315000 | G43: по запросу | H43: по запросу
B44: г. Красноярск | C44: 300000 | D44: 360000 | E44: 340000 | F44: 396000 | G44: по запросу | H44: по запросу

Sheet Изменение прайс-листа
A1: Приложение 1 к письму об изменении Прайс-листа от 03.03.2022
A2: Артикул | B2: Наименование продукта | C2: прайс-лист 07.02.2022 | D2: прайс-лист 02.03.2022 | E2: изм %
C4: руб/ед без НДС | D4: руб/ед без НДС
A5: 66502_001 | B5: Грунтовка проникающая универсальная EH концентрат | C5: 484.5 | D5: 560 | E5: =D5/C5-1 -> 0.1558307534
A6: 66503_009 | B6: Грунтовка адгезионная HC-4, белая | C6: 192.85 | D6: 195 | E6: 0.01114856106
A7: 66301_001 | B7: Клеевой состав ALFAFIX S2 | C7: 27.55 | D7: 38 | E7: 0.3793103448
A8: 66302_001 | B8: Клеевой и армирующий состав ALFAFIX S1 | C8: 33.25 | D8: 46 | E8: 0.3834586466
A9: 66305_001 | B9: Клеевой и армирующий состав ALFAFIX S11 | C9: 53.2 | D9: 76 | E9: 0.4285714286
A10: 66310_001 | B10: Клеевой состав BETAFIX Flex | C10: 57 | D10: 78 | E10: 0.3684210526
A11: 66311_001 | B11: Клеевой состав BETAFIX Basic | C11: 31 | D11: 42 | E11: 0.3548387097
A12: 61041_015 | B12: Штукатурка BETADEKOR SF15 | C12: 47.5 | D12: 52 | E12: 0.09473684211
A13: 61043_020 | B13: Штукатурка BETADEKOR SF20 | C13: 47.5 | D13: 52 | E13: 0.09473684211
A14: 61030_015 | B14: Штукатурка BETADEKOR SD15 | C14: 47.5 | D14: 52 | E14: 0.09473684211
A15: 61032_020 | B15: Штукатурка BETADEKOR SD20 | C15: 47.5 | D15: 52 | E15: 0.09473684211
A16: 61081_007 | B16: BETADEKOR SAF10, белая | C16: 167.2 | D16: 196 | E16: 0.1722488038
A17: 61082_007 | B17: BETADEKOR SAF15, белая | C17: 167.2 | D17: 196 | E17: 0.1722488038
A18: 61083_007 | B18: BETADEKOR SAF20, белая | C18: 167.2 | D18: 196 | E18: 0.1722488038
A19: 61086_009 | B19: BETADEKOR SAD20, белая | C19: 167.2 | D19: 196 | E19: 0.1722488038
A20: 61061_001 | B20: BETADEKOR SIF10, белая | C20: 202.35 | D20: 205 | E20: 0.01309612058
A21: 61062_006 | B21: BETADEKOR SIF15, белая | C21: 202.35 | D21: 205 | E21: 0.01309612058
A22: 61063_006 | B22: BETADEKOR SIF20, белая | C22: 202.35 | D22: 205 | E22: 0.01309612058
A23: 61053_006 | B23: BETADEKOR SID20, белая | C23: 202.35 | D23: 205 | E23: 0.01309612058
A24: 66004_019 | B24: GAMADEKOR - F, белая | C24: 448.4 | D24: 570 | E24: 0.2711864407
A25: 66004_121 | B25: GAMADEKOR F BASIS A | C25: 418.95 | D25: 516 | E25: 0.231650555
A26: 66004_122 | B26: GAMADEKOR F BASIS B | C26: 418.95 | D26: 470 | E26: 0.1218522497
A27: 66004_123 | B27: GAMADEKOR F BASIS OT | C27: 418.95 | D27: 460 | E27: 0.09798305287
A28: 66004-020 | B28: GAMADEKOR - F, G белая | C28: 470.82 | D28: 592 | E28: 0.25738074
B29: GammaDekor SG | D29: 746
B30: ВASIS A GammaDekor SG | D30: 674
B31: ВASIS B GammaDekor SG | D31: 572
B32: ВASIS OT GammaDekor SG | D32: 542
A33: 66802_001 | B33: ALFAFORM SCB шпаклевка белая | C33: 83.6 | D33: 88 | E33: 0.05263157895
A34: 66801_001 | B34: ALFAFORM SCA шпаклевка выравнивающая | C34: 34.2 | D34: 42 | E34: 0.2280701754
A35: 00861_012 | B35: StoPrim Solid | C35: 510 | D35: 566 | E35: 0.1098039216
A36: 00801_118 | B36: Sto-Putzgrund natur (натурального цвета) | C36: 203 | D36: 234 | E36: 0.1527093596
A37: 01373_129 | B37: StoLevell Basic | C37: 35 | D37: 46 | E37: 0.3142857143
A38: 00728_102 | B38: StoColl Basic | C38: 29 | D38: 38 | E38: 0.3103448276
A39: 00728_002 | B39: Sto-Baukleber | C39: 47 | D39: 60 | E39: 0.2765957447
A40: 00225_002 | B40: Sto-Armierungsputz natur (натурального цвета) | C40: 187 | D40: 216 | E40: 0.1550802139
A41: 00225_003 | B41: Sto-Armierungsputz natur (600 кг) | C41: 187 | D41: 216 | E41: 0.1550802139
A42: 00846_001 | B42: StoColl KM | C42: 93 | D42: 104 | E42: 0.1182795699
A43: 01373_029 | B43: StoLevell Duo plus | C43: 49 | D43: 64 | E43: 0.306122449
A44: 00815_001 | B44: StoLevell Uni | C44: 63 | D44: 74 | E44: 0.1746031746
A45: 01505_001 | B45: Sto-Strukturputz K 1,5 weiss (белая) | C45: 50 | D45: 54 | E45: 0.08
A46: 01502_004 | B46: Sto-Strukturputz K 2,0 weiss (белая) | C46: 50 | D46: 54 | E46: 0.08
A47: 01512_001 | B47: Sto-Strukturputz R 1,5 weiss (белая) | C47: 50 | D47: 54 | E47: 0.08
A48: 01512_002 | B48: Sto-Strukturputz R 2,0 weiss (белая) | C48: 50 | D48: 54 | E48: 0.08
A49: 01247_001 | B49: StoMarlit K 1.0 weiss (белая) | C49: 176 | D49: 214 | E49: 0.2159090909
A50: 02131_001 | B50: StoMarlit K 1.5 weiss (белая) | C50: 176 | D50: 214 | E50: 0.2159090909
A51: 02132_001 | B51: StoMarlit K 2.0 weiss (белая) | C51: 176 | D51: 214 | E51: 0.2159090909
A52: 02142_001 | B52: StoMarlit R 2.0 weiss (белая) | C52: 176 | D52: 214 | E52: 0.2159090909
A53: 14524_002 | B53: Sto-Silkolit K 1,0 weiss (белая) | C53: 213 | D53: 258 | E53: 0.2112676056
A54: 14006_031 | B54: Sto-Silkolit K 1,5 weiss (белая) | C54: 213 | D54: 258 | E54: 0.2112676056
A55: 14007_037 | B55: Sto-Silkolit K 2,0 weiss (белая) | C55: 213 | D55: 258 | E55: 0.2112676056
A56: 14009_002 | B56: Sto-Silkolit R 2,0 weiss (белая) | C56: 213 | D56: 258 | E56: 0.2112676056
A57: 14026_129 | B57: StoColor Neosil B weiss (белая) | C57: 472 | D57: 594 | E57: 0.2584745763
A58: 15096_026 | B58: ВASIS A NEOSIL B | C58: 441 | D58: 540 | E58: 0.2244897959
A59: 15096_027 | B59: ВASIS B NEOSIL B | C59: 441 | D59: 462 | E59: 0.04761904762
A60: 15096_028 | B60: ВASIS OT NEOSIL B | C60: 441 | D60: 441 | E60: 0
A61: 14026_130 | B61: StoColor Neosil BG weiss (белая) | C61: 496 | D61: 610 | E61: 0.2298387097
A62: 15096_226 | B62: ВASIS A NEOSIL BG | C62: 464 | D62: 558 | E62: 0.2025862069
A63: 15096_227 | B63: ВASIS B NEOSIL BG | C63: 464 | D63: 472 | E63: 0.01724137931
A64: 15096_228 | B64: ВASIS OT NEOSIL BG | C64: 464 | D64: 464 | E64: 0
B65: StoColor Neosil SG | D65: 776
B66: ВASIS A NEOSIL SG | D66: 702
B67: ВASIS B NEOSIL SG | D67: 600
B68: ВASIS OT NEOSIL SG | D68: 570
A69: 00170_003 | B69: Sto-Cleyer Wood 2000 x 16 x 5 | C69: 1280 | D69: 1280 | E69: =D69/C69-1 -> 0
A70: 04346_120 | B70: StoReno fein | C70: 88 | D70: 90 | E70: 0.02272727273
A71: 04346_121 | B71: StoReno | C71: 36 | D71: 42 | E71: 0.1666666667
A72: 512153 | B72: Уголок ПВХ с стеклосеткой 10х15 с логотипом STOMIX | C72: 64.9 | D72: 70 | E72: 0.07858243451
A73: 520110-01 | B73: Сетка фасадная с логотипом STOMIX | C73: 127.1 | D73: 170 | E73: 0.3375295043
A74: 00920_003 | B74: Sto-Glasfasergewebe/ стеклосетка F 110 cm, ячейка 4х4 мм. | C74: 127.1 | D74: 170 | E74: 0.3375295043
A75: 00915_002 | B75: Sto-Glasfasergewebe G / стеклосетка G 100cм | C75: 247.45 | D75: 266 | E75: 0.07496463932
A76: 00917_001 | B76: Sto-Panzergewebe/ панцерная сетка 100 см | C76: 297.06 | D76: 336 | E76: 0.1310846294
A77: 00920_004 | B77: Sto-Detailgewebe/ сетка архитектурная 100 см | C77: 205.8461538 | D77: 286 | E77: 0.389387145
A78: 00961_013 | B78: Gewebewinkel/ уголок 2,5м стеклосетка 10х15 | C78: 64.9 | D78: 70 | E78: 0.07858243451
A79: 01032_005 | B79: Anputzleiste профиль примыкания со стеклосеткой 6 мм, 2.4 м | C79: 107.6923077 | D79: по запросу
A80: 01889_016 | B80: Tropfkantenprofil 2,5м с "закрытым" капельником | C80: 199.44 | D80: по запросу
A81: 01077_017 | B81: Соединитель для цокольных шин 30 mm (100 шт.) | C81: 1282.061538 | D81: по запросу
A82: 07845_009 | B82: Sockelleiste профиль цокольный 80 мм 2,5 м | C82: 269.2307692 | D82: по запросу
A83: 07845_011 | B83: Sockelleiste профиль цокольный 100 мм 2,5 м | C83: 453.8461538 | D83: по запросу
A84: 07845_014 | B84: Sockelleiste профиль цокольный 150 мм 2,5 м | C84: 564.0923077 | D84: по запросу
A85: 01070_011 | B85: Unterlegscheibe компенсатор, толщина 3 мм (100 шт.) | C85: 1410.246154 | D85: по запросу
A86: 01070_012 | B86: Unterlegscheibe компенсатор, толщина 5 мм (100 шт.) | C86: 1435.907692 | D86: по запросу
A87: 04878_025 | B87: Sto-Универсальный забивной дюбель Н5 x 135 толщина теплоизоляции 80 | C87: 24.65 | D87: по запросу
A88: 04878_026 | B88: Sto-Универсальный забивной дюбель Н5 x 155 толщина теплоизоляции 100 | C88: 26.83 | D88: по запросу
A89: 04878_027 | B89: Sto-Универсальный забивной дюбель Н5 x 175 толщина теплоизоляции 120 | C89: 28.87 | D89: по запросу
A90: 04878_028 | B90: Sto-Универсальный забивной дюбель Н5 x 195 толщина теплоизоляции 140 | C90: 30.3 | D90: по запросу
A91: 04878_029 | B91: Sto-Универсальный забивной дюбель Н5 x 215 толщина теплоизоляции 160 | C91: 32.63 | D91: по запросу
A92: 04878_030 | B92: Sto-Универсальный забивной дюбель Н5 x 235 толщина теплоизоляции 180 | C92: 35.28 | D92: по запросу
A93: 04878_031 | B93: Sto-Универсальный забивной дюбель Н5 x 255 толщина теплоизоляции 200 | C93: 37.26 | D93: по запросу
A94: 04878_032 | B94: Sto-Универсальный забивной дюбель Н5 x 275 толщина теплоизоляции 220 | C94: 83.3 | D94: по запросу
A95: 04878_033 | B95: Sto-Универсальный забивной дюбель Н5 x 295 толщина теплоизоляции 240 | C95: 105.76 | D95: по запросу
A96: 01011_001 | B96: Sto-Thermodübel EJ STR 8/60U, длина 115 мм | C96: 54.39 | D96: по запросу
A97: 01011_002 | B97: Sto- Thermodübel EJ STR 8/60U, длина 135 мм | C97: 61.3 | D97: по запросу
A98: 01011_003 | B98: Sto-Thermodübel EJ STR 8/60U, длина 155 мм | C98: 71.21 | D98: по запросу
A99: 01011_004 | B99: Sto-Thermodübel EJ STR 8/60U, длина 175 мм | C99: 77.12 | D99: по запросу
A100: 01011_005 | B100: Sto-Thermodübel EJ STR 8/60U, длина 195 мм | C100: 96.91 | D100: по запросу
A101: 01011_006 | B101: Sto-Thermodübel EJ STR 8/60U, длина 215 мм | C101: 114.71 | D101: по запросу
A102: 01011_007 | B102: Sto-Thermodübel EJ STR 8/60U, длина 235 мм | C102: 128.55 | D102: по запросу
A103: 01011_008 | B103: Sto-Thermodübel EJ STR 8/60U, длина 255 мм | C103: 160.19 | D103: по запросу
A104: 01011_009 | B104: Sto-Thermodübel EJ STR 8/60U, длина 275 мм | C104: 181.96 | D104: по запросу
A105: 01011_010 | B105: Sto-Thermodübel EJ STR 8/60U, длина 295 мм | C105: 195.8 | D105: по запросу
A106: 00931_001 | B106: Sto-Thermodübel RPS / STR заглушка EPS (Rondell Polystyrol) | C106: 11.8 | D106: по запросу
A107: 00931_002 | B107: Sto-Thermodübel RMW / STR заглушка MW (Rondell Mineralwolle) | C107: 20.74 | D107: по запросу
A108: 00931_003 | B108: Sto-Thermodübel VE / STR заглушка EPS малая (Verschlusselement) | C108: 5.94 | D108: по запросу
A109: 00934_004 | B109: Sto-Thermodübel MT Фреза STR tool | C109: 17806 | D109: по запросу
A110: 02335_001 | B110: StoQuarz 0,1 mm кварцевая пыль | C110: 62 | D110: по запросу
A111: 00890_001 | B111: StoQuarz 0,3-0,8 mm неокрашенный | C111: 49 | D111: по запросу
A112: 02336_001 | B112: StoQuarz 0,1-0,4 mm неокрашенный | C112: 42 | D112: по запросу
A113: 00890-001 | B113: StoQuarz 0,6-1,2 mm неокрашенный | C113: 53 | D113: по запросу
A114: 02335_003 | B114: StoQuarz 0,6-1,6 mm неокрашенный | C114: 53 | D114: по запросу
A115: 02336_006 | B115: StoQuarz 1,0-3,0 mm окрашенный, PG11 | C115: по запросу | D115: по запросу
A116: 02336_006 | B116: StoQuarz 1,0-3,0 mm окрашенный, PG12 | C116: по запросу | D116: по запросу
A117: 00861-002 | B117: StoPlex W | C117: 328 | D117: 540 | E117: 0.6463414634
A118: 00861-001 | B118: StoPlex W | C118: 332 | D118: 536 | E118: 0.6144578313
A119: 00810-015 | B119: StoPrim Micro | C119: 10720 | D119: 14448 | E119: 0.347761194
A120: 00870-006 | B120: StoPrim Silikat | C120: 330 | D120: 584 | E120: 0.7696969697
A121: 00870-047 | B121: StoPrim Sol GT | C121: 434 | D121: 720 | E121: 0.6589861751
A122: 00856-013 | B122: StoPrim Grundex | C122: 1458 | D122: 2078 | E122: 0.4252400549
A123: 00856-012 | B123: StoPrim Grundex | C123: 1602 | D123: 2262 | E123: 0.4119850187
A124: 01304-005 | B124: StoPrim Isol | C124: 1224 | D124: 1808 | E124: 0.477124183
A125: 01304-006 | B125: StoPrim Isol | C125: 1430 | D125: 2110 | E125: 0.4755244755
A126: 00855-003 | B126: StoPrim LP | C126: 2328 | D126: 3306 | E126: 0.4201030928
A127: 00884-001 | B127: StoPrep Contact | C127: 326 | D127: 530 | E127: 0.6257668712
A128: 08401-009 | B128: Sto-Allgrund AF, белая | C128: 3026 | D128: 4224 | E128: 0.3959021811
A129: 08401-011 | B129: Sto-Allgrund AF getönt (колерованная) | C129: 3044 | D129: 4224 | E129: =D129/C129-1 -> 0.3876478318
A130: 00889-005 | B130: StoPrim Fungal | C130: 301 | D130: 468 | E130: 0.5548172757
A131: 00889-001 | B131: StoPrim Fungal | C131: 326 | D131: 480 | E131: 0.472392638
A132: 02559-002 | B132: Sto-Turbofix mini, баллон 750 мл. | C132: 1936 | D132: 2712 | E132: 0.4008264463
A133: 00832-006 | B133: Sto-Steinpaste | C133: 1002 | D133: 1496 | E133: 0.4930139721
A134: 00829-004 | B134: Sto-Dispersionskleber | C134: 488 | D134: 764 | E134: 0.5655737705
A135: 00506-001 | B135: Sto-Pistolenschaum SE, 750 мл | C135: 1626 | D135: 2296 | E135: 0.4120541205
A136: 00250-087 | B136: StoArmat Classic plus F (натурального цвета) | C136: 292 | D136: 490 | E136: 0.6780821918
A137: 00250-089 | B137: StoArmat Classic plus M (натурального цвета) | C137: 288 | D137: 490 | E137: 0.7013888889
A138: 00250-091 | B138: StoArmat Classic plus G (натурального цвета) | C138: 290 | D138: 490 | E138: 0.6896551724
A139: 00002-002 | B139: ARMAT CLASSIC AIMS NAT 25 KG EIM | C139: 376 | D139: 604 | E139: 0.6063829787
A140: 00250-029 | B140: StoArmat Classic S1 natur (натурального цвета) | C140: 336 | D140: 548 | E140: 0.630952381
A141: 00804-001 | B141: StoPrep Miral natur (натурального цвета) | C141: 380 | D141: 554 | E141: 0.4578947368
A142: 01917-007 | B142: Sto-Rolleckwinkel 10х15 см. | C142: 179 | D142: 230 | E142: 0.2849162011
A143: 04909-010 | B143: Sto-Übergangsprofil Blech 250 см | C143: 784 | D143: 1072 | E143: 0.3673469388
A144: 01900-001 | B144: Sto-Dehnfugenband 37/17-32 mm anthrazit | C144: 2264 | D144: 3060 | E144: 0.351590106
A145: 01897-017 | B145: Dehnfugenprofil/ профиль деформационный Typ E 2,5м | C145: 1118 | D145: 1520 | E145: 0.3595706619
A146: 01897-018 | B146: Dehnfugenprofil/ профиль деформационный Typ V 2,5м | C146: 1164 | D146: 1580 | E146: 0.3573883162
A147: 01846-001 | B147: Sto-Fugendichtband 2D, 15/5-12 mm | C147: 208 | D147: 288 | E147: 0.3846153846
A148: 01897-019 | B148: Sto-Dehnfugen-Abdeckprofil E 250 cm | C148: 578 | D148: 792 | E148: 0.3702422145
A149: 04346-019 | B149: StoLevell Reno weiss (белая) | C149: 215 | D149: 262 | E149: 0.2186046512
A150: 00747-001 | B150: StoLevell Deco weiss (белая) | C150: 300 | D150: 496 | E150: 0.6533333333
A151: 08744-001 | B151: StoMiral K 1,0 weiss (белая) | C151: 166 | D151: 312 | E151: 0.8795180723
A152: 01380-001 | B152: StoMiral K 1,5 weiss (белая) | C152: 166 | D152: 312 | E152: 0.8795180723
A153: 01381-001 | B153: StoMiral K 2,0 weiss (белая) | C153: 166 | D153: 312 | E153: 0.8795180723
A154: 01382-001 | B154: StoMiral K 3,0 weiss (белая) | C154: 166 | D154: 312 | E154: 0.8795180723
A155: 01385-001 | B155: StoMiral R 1,5 weiss (белая) | C155: 166 | D155: 312 | E155: 0.8795180723
A156: 01386-001 | B156: StoMiral R 2,0 weiss (белая) | C156: 166 | D156: 312 | E156: 0.8795180723
A157: 01387-001 | B157: StoMiral R 3,0 weiss (белая) | C157: 166 | D157: 312 | E157: 0.8795180723
A158: 00113-020 | B158: StoMiral MP weiss (белая) | C158: 166 | D158: 312 | E158: 0.8795180723
A159: 00845-006 | B159: StoMiral FL Vario | C159: 166 | D159: 312 | E159: 0.8795180723
A160: 01388-001 | B160: StoMiral Nivell F (мелкозернистая) | C160: 166 | D160: 312 | E160: 0.8795180723
A161: 00130-001 | B161: Stolit K 1,0 weiss (белая) | C161: 360 | D161: 580 | E161: 0.6111111111
A162: 00131-001 | B162: Stolit K 1,5 weiss (белая) | C162: 360 | D162: 580 | E162: 0.6111111111
A163: 00132-001 | B163: Stolit K 2,0 weiss (белая) | C163: 360 | D163: 580 | E163: 0.6111111111
A164: 00134-001 | B164: Stolit K 3,0 weiss (белая) | C164: 360 | D164: 580 | E164: 0.6111111111
A165: 00135-001 | B165: Stolit K 6,0 weiss (белая) | C165: 380 | D165: 606 | E165: 0.5947368421
A166: 00141-001 | B166: Stolit R 1,5 weiss (белая) | C166: 360 | D166: 580 | E166: 0.6111111111
A167: 00142-002 | B167: Stolit R 2,0 weiss (белая) | C167: 360 | D167: 580 | E167: 0.6111111111
A168: 00143-001 | B168: Stolit R 3,0 weiss (белая) | C168: 360 | D168: 580 | E168: 0.6111111111
A169: 00144-001 | B169: Stolit R 6,0 weiss (белая) | C169: 380 | D169: 648 | E169: 0.7052631579
A170: 00183-001 | B170: Stolit MP weiss (белая) | C170: 380 | D170: 580 | E170: 0.5263157895
A171: 00966-001 | B171: Stolit Effect weiss (белая) | C171: 360 | D171: 580 | E171: 0.6111111111
A172: 04366-003 | B172: Stolit Milano natur (натурального цвета) | C172: 360 | D172: 580 | E172: 0.6111111111
A173: 09576-010 | B173: Stolit AIMS K 1,0 weiss (белая) | C173: 498 | D173: 792 | E173: 0.5903614458
A174: 09576-006 | B174: Stolit AIMS K 1,5 weiss (белая) | C174: 498 | D174: 792 | E174: 0.5903614458
A175: 09576-002 | B175: Stolit AIMS K 2,0 weiss (белая) | C175: 498 | D175: 792 | E175: 0.5903614458
A176: 09576-008 | B176: Stolit AIMS K 3,0 weiss (белая) | C176: 560 | D176: 792 | E176: 0.4142857143
A177: 09576-004 | B177: Stolit AIMS MP weiss (белая) | C177: 560 | D177: 848 | E177: 0.5142857143
A178: 01383-001 | B178: StoNivellit weiss (белая) | C178: 380 | D178: 614 | E178: 0.6157894737
A179: 00152-062 | B179: Sto-Superlit K 2,0 405 (размер зерна 2,00 мм) | C179: 470 | D179: 734 | E179: 0.5617021277
A180: 00152-063 | B180: Sto-Superlit K 2,0 409 (размер зерна 2,00 мм) | C180: 470 | D180: 734 | E180: 0.5617021277
A181: 00152-077 | B181: Sto-Superlit K 2,0 411 (размер зерна 2,00 мм) | C181: 470 | D181: 734 | E181: 0.5617021277
A182: 00152-078 | B182: Sto-Superlit K 2,0 412 (размер зерна 2,00 мм) | C182: 470 | D182: 734 | E182: 0.5617021277
A183: 00152-064 | B183: Sto-Superlit K 2,0 413 (размер зерна 2,00 мм) | C183: 470 | D183: 734 | E183: 0.5617021277
A184: 00152-079 | B184: Sto-Superlit K 2,0 414 (размер зерна 2,00 мм) | C184: 470 | D184: 734 | E184: 0.5617021277
A185: 00152-080 | B185: Sto-Superlit K 2,0 416 (размер зерна 2,00 мм) | C185: 470 | D185: 734 | E185: 0.5617021277
A186: 00152-030 | B186: Sto-Superlit K 2,0 800 (размер зерна 2,00 мм) | C186: 470 | D186: 734 | E186: 0.5617021277
A187: 00152-041 | B187: Sto-Superlit K 2,0 818 (размер зерна 2,00 мм) | C187: 470 | D187: 734 | E187: 0.5617021277
A188: 00152-043 | B188: Sto-Superlit K 2,0 820 (размер зерна 2,00 мм) | C188: 470 | D188: 734 | E188: 0.5617021277
A189: 00152-044 | B189: Sto-Superlit K 2,0 821 (размер зерна 2,00 мм) | C189: 470 | D189: 734 | E189: 0.5617021277
A190: 00152-047 | B190: Sto-Superlit K 2,0 824 (размер зерна 2,00 мм) | C190: 470 | D190: 734 | E190: 0.5617021277
A191: 00152-051 | B191: Sto-Superlit K 2,0 828 (размер зерна 2,00 мм) | C191: 470 | D191: 734 | E191: 0.5617021277
A192: 00152-054 | B192: Sto-Superlit K 2,0 831 (размер зерна 2,00 мм) | C192: 470 | D192: 734 | E192: 0.5617021277
A193: 00152-056 | B193: Sto-Superlit K 2,0 833 (размер зерна 2,00 мм) | C193: 470 | D193: 734 | E193: =D193/C193-1 -> 0.5617021277
A194: 00152-057 | B194: Sto-Superlit K 2,0 834 (размер зерна 2,00 мм) | C194: 470 | D194: 734 | E194: 0.5617021277
A195: 00152-083 | B195: Sto-Superlit K 2,0 841 (размер зерна 2,00 мм) | C195: 470 | D195: 734 | E195: 0.5617021277
A196: 00152-061 | B196: Sto-Superlit K 2,0 403 (размер зерна 2,00 мм) | C196: 540 | D196: 734 | E196: 0.3592592593
A197: 00152-076 | B197: Sto-Superlit K 2,0 404 (размер зерна 2,00 мм) | C197: 540 | D197: 808 | E197: 0.4962962963
A198: 00152-065 | B198: Sto-Superlit K 2,0 415 (размер зерна 2,00 мм) | C198: 540 | D198: 808 | E198: 0.4962962963
A199: 00152-050 | B199: Sto-Superlit K 2,0 827 (размер зерна 2,00 мм) | C199: 540 | D199: 808 | E199: 0.4962962963
A200: 00152-052 | B200: Sto-Superlit K 2,0 829 (размер зерна 2,00 мм) | C200: 540 | D200: 808 | E200: 0.4962962963
A201: 00152-055 | B201: Sto-Superlit K 2,0 832 (размер зерна 2,00 мм) | C201: 540 | D201: 808 | E201: 0.4962962963
... 597 more rows
